Workbook

Sheet START

Sheet Instructions
D2: 2020
X4: Yes
X5: No
W7: Type of Entities Range:
X8: Parent Municipality
X9: Consolidated Information
W17: MTREF Range: | X17: 2008
X18: 2009
X19: 2010
X20: 2011
X21: 2012
X22: 2013
X23: 2014
X24: 2015
X25: 2016
X26: 2017
X27: 2018
X28: 2019
X29: 2020
X30: 2021
X31: 2022
W33: MTREF Linked: | X33: 13
W34: MTREF: | X34: =INDEX(X17:X31,X33,1) -> 2020
W36: Fin Year: | X36: =MTREF&"/"&RIGHT(MTREF,2)+1 -> 2020/21

Sheet Template names (hidden)
A1: Common sheet headings
A2: Head1 | B2: =HLOOKUP(MTREF,Headings,2) -> 2018/19 | C2: Prior year -1
A3: Head1A | B3: =HLOOKUP(MTREF,Headings,3) -> 2017/18 | C3: Prior year -2
A4: Head1B | B4: =HLOOKUP(MTREF,Headings,4) -> 2016/17 | C4: Prior year -3
A5: Head2 | B5: =HLOOKUP(MTREF,Headings,5) -> Current Year 2019/20 | C5: Year in which budget is being prepared
A6: Head2A | B6: =HLOOKUP(MTREF,Headings,6) -> 2019/20 | C6: Year in which budget is being prepared
A7: Head3 | B7: =HLOOKUP(MTREF,Headings,7) -> 2020/21 Medium Term Revenue & Expenditure Framework | C7: MTREF name
A8: Head4 | B8: LTFS | C8: Long term financial strategy
A9: Head5 | B9: Audited Outcome
A10: Head5A | B10: Outcome
A11: Head5B | B11: Pre-audit outcome
A12: Head6 | B12: Original Budget
A13: Head7 | B13: Adjusted Budget
A14: Head8 | B14: Full Year Forecast
A15: Head9 | B15: =HLOOKUP(MTREF,Headings,8) -> Budget Year 2020/21 | C15: 1st year of MTREF | D15: Year1
A16: Head10 | B16: =HLOOKUP(MTREF,Headings,9) -> Budget Year +1 2021/22 | C16: 2nd year of MTREF | D16: Year2
A17: Head11 | B17: =HLOOKUP(MTREF,Headings,10) -> Budget Year +2 2022/23 | C17: 3rd year of MTREF | D17: Year3
A18: Head12 | B18: =HLOOKUP(MTREF,Headings,11) -> Forecast 2023/24 | C18: 1st yr of long term forecast | D18: Year4
A19: Head13 | B19: =HLOOKUP(MTREF,Headings,12) -> Forecast 2024/25 | C19: Next yr of long term forecast | D19: Year5
A20: Head14 | B20: =HLOOKUP(MTREF,Headings,13) -> Forecast 2025/26 | C20: Next yr of long term forecast | D20: Year6
A21: Head15 | B21: =HLOOKUP(MTREF,Headings,14) -> Forecast 2026/27 | C21: Next yr of long term forecast | D21: Year7
A22: Head16 | B22: =HLOOKUP(MTREF,Headings,15) -> Forecast 2027/28 | C22: Next yr of long term forecast | D22: Year8
A23: Head17 | B23: =HLOOKUP(MTREF,Headings,16) -> Forecast 2028/29 | C23: Next yr of long term forecast | D23: Year9
A24: Head18 | B24: =HLOOKUP(MTREF,Headings,17) -> Forecast 2029/30 | C24: Next yr of long term forecast | D24: Year10
A25: Head19 | B25: =HLOOKUP(MTREF,Headings,18) -> Forecast 2030/31 | C25: Next yr of long term forecast | D25: Year11
A26: Head20 | B26: =HLOOKUP(MTREF,Headings,19) -> Forecast 2031/32 | C26: Next yr of long term forecast | D26: Year12
A27: Head21 | B27: =HLOOKUP(MTREF,Headings,20) -> Forecast 2032/33 | C27: Next yr of long term forecast | D27: Year13
A28: Head22 | B28: =HLOOKUP(MTREF,Headings,21) -> Forecast 2033/34 | C28: Next yr of long term forecast | D28: Year14
A29: Head23 | B29: =HLOOKUP(MTREF,Headings,22) -> Forecast 2034/35 | C29: Next yr of long term forecast | D29: Year15
A30: Head24 | B30: Description
A31: Head25
A32: Head26 | B32: Vote Description
A33: Head27 | B33: Ref
A34: Head27a | B34: References
A35: Head28 | B35: Surplus/(Deficit) for the year | D35: Result
A36: Head29 | B36: =HLOOKUP(MTREF,Headings,23) -> Annual target 2020/21
A37: Head30 | B37: =HLOOKUP(MTREF,Headings,24) -> Revised target 2020/21
A38: Head31 | B38: Quarter ended 30 September
A39: Head32 | B39: Quarter ended 31 December
A40: Head33 | B40: Quarter ended 31 March
A41: Head34 | B41: Quarter ended 30 June
A42: Head35 | B42: Variance explanation
A43: Head36 | B43: YTD Actual 31 Dec
A44: Head37 | B44: YTD Budget 31 Dec
A45: Head38 | B45: Monthly actual
A46: Head39 | B46: YTD actual
A47: Head40 | B47: YTD budget
A48: Head41 | B48: YTD variance
A49: Head42 | B49: Surplus/ (Deficit) for the yr/period
A50: Head43 | B50: =Head3&" Summary" -> 2020/21 Medium Term Revenue & Expenditure Framework Summary
A51: Head44 | B51: 2001 Census
A52: Head45 | B52: 2011 Census
A53: Head46 | B53: - Adjustments Budget - January 2007
A54: Head47 | B54: Previous target year to complete
A55: Head48 | B55: Present value
A56: Head49
A57: Head50 | B57: Other Adjusts.
A58: Head51 | B58: Accum. Funds
A59: Head52 | B59: Multi-year capital
A60: Head53 | B60: Unfore. Unavoid.
A61: Head54 | B61: Prior Adjusted
A62: Head55 | B62: Nat. or Prov. Govt
A63: Head56 | B63: Total Adjusts.
A64: SFPerf1 | B64: Budgeted Financial Performance
A65: SFPerf2 | B65: Forecast Financial Performance
A66: SFPos1 | B66: Budgeted Financial Position
A67: SFPos2 | B67: Forecast Financial Position
A68: Cash1 | B68: Budget Cash Flow
A69: Cash2 | B69: Forecast Cash Flow
A70: RandM | B70: Expenditure includes repairs & maintenance of R'000
A71: Depart1 | B71: Department 1 - | D71: DEP1
A72: Depart2 | B72: Department 2 - | D72: DEP2
A73: Depart3 | B73: Department 3 - | D73: DEP3
A74: Depart4 | B74: Department 4 - | D74: DEP4
A75: Depart5 | B75: Department 5 - | D75: DEP5
A76: Depart6 | B76: Department 6 - | D76: DEP6
A77: Depart7 | B77: Department 7 - | D77: DEP7
A78: Depart8 | B78: Department 8 - | D78: DEP8
A79: Depart9 | B79: Department 9 - | D79: DEP9
A80: Depart10 | B80: Department 10 - | D80: DEP10
A81: Depart11 | B81: Department 11 - | D81: DEP11
A82: Depart12 | B82: Department 12 - | D82: DEP12
A83: Depart13 | B83: Department 13 - | D83: DEP13
A84: Depart14 | B84: Department 14 - | D84: DEP14
A87: Base year of forecast column selection names
A88: Choose | B88: ACT
B89: APP
B90: ADJ
A92: Standard nomenclature
A93: Muni | B93: ='Lookup and lists'!B28 -> DC13 Chris Hani
A94: Municipal Entities | B94: 2 | C94: Type of report: | D94: 1
A95: =IF((MuniEntities=1)*(MuniType=2),"YES","NO") -> NO | B95: Does this municipality have entities (consolidated budget and entity budgets required)? YES/NO
A96: Entity 1 | B96: (Pty) Ltd Example 1 - Municipal entity - | D96: Ent1
A97: Entity 2 | B97: (Pty) Ltd Example 2 - Municipal entity - | D97: Ent2
A98: Entity 3 | B98: Municipal Entity Example 3 | D98: Ent3
A99: Budget approval tables | C99: Chart x-ref | D99: Sch/Tab/Ch | E99: Alternative for municipalities without entities | F99: Alternative for municipalities without entities
B100: =IF(Consolques="YES",E100,F100) -> Table A1 Budget Summary | D100: Table A1 | E100: =D100&"Consolidated Budget Summary" -> Table A1 Consolidated Budget Summary | F100: =D100&"Budget Summary" -> Table A1 Budget Summary
B101: Table A2 Budgeted Financial Performance (revenue and expenditure by functional classification) | C101: Charts 5, 6 | D101: Table A2 | E101: =D101&"Consolidated Budgeted Financial Performance (revenue and expenditure by functional classification)" -> Table A2 Consolidated Budgeted Financial Performance (revenue and expenditure by functional classification) | F101: =D101&"Budgeted Financial Performance (revenue and expenditure by functional classification)" -> Table A2 Budgeted Financial Performance (revenue and expenditure by functional classification)
B102: Table A3 Budgeted Financial Performance (revenue and expenditure by municipal vote) | D102: Table A3 | E102: =D102&"Consolidated Budgeted Financial Performance (revenue and expenditure by municipal vote)" -> Table A3 Consolidated Budgeted Financial Performance (revenue and expenditure by municipal vote) | F102: =D102&"Budgeted Financial Performance (revenue and expenditure by municipal vote)" -> Table A3 Budgeted Financial Performance (revenue and expenditure by municipal vote)
B103: Table A4 Budgeted Financial Performance (revenue and expenditure) | C103: Charts 1, 2, 3, 4 | D103: Table A4 | E103: =D103&"Consolidated Budgeted Financial Performance (revenue and expenditure)" -> Table A4 Consolidated Budgeted Financial Performance (revenue and expenditure) | F103: =D103&"Budgeted Financial Performance (revenue and expenditure)" -> Table A4 Budgeted Financial Performance (revenue and expenditure)
B104: Table A5 Budgeted Capital Expenditure by vote, functional classification and funding | C104: Charts 7, 8, 9, 10, 20 | D104: Table A5 | E104: =D104&"Consolidated Budgeted Capital Expenditure by vote, functional classification and funding" -> Table A5 Consolidated Budgeted Capital Expenditure by vote, functional classification and funding | F104: =D104&"Budgeted Capital Expenditure by vote, functional classification and funding" -> Table A5 Budgeted Capital Expenditure by vote, functional classification and funding
B105: Table A6 Budgeted Financial Position | D105: Table A6 | E105: =D105&"Consolidated Budgeted Financial Position" -> Table A6 Consolidated Budgeted Financial Position | F105: =D105&"Budgeted Financial Position" -> Table A6 Budgeted Financial Position
B106: Table A7 Budgeted Cash Flows | D106: Table A7 | E106: =D106&"Consolidated Budgeted Cash Flows" -> Table A7 Consolidated Budgeted Cash Flows | F106: =D106&"Budgeted Cash Flows" -> Table A7 Budgeted Cash Flows
B107: Table A8 Cash backed reserves/accumulated surplus reconciliation | D107: Table A8 | E107: =D107&"Consolidated Cash backed reserves/accumulated surplus reconciliation" -> Table A8 Consolidated Cash backed reserves/accumulated surplus reconciliation | F107: =D107&"Cash backed reserves/accumulated surplus reconciliation" -> Table A8 Cash backed reserves/accumulated surplus reconciliation
B108: Table A9 Asset Management | D108: Table A9 | E108: =D108&"Consolidated Asset Management" -> Table A9 Consolidated Asset Management | F108: =D108&"Asset Management" -> Table A9 Asset Management
B109: Table A10 Basic service delivery measurement | D109: Table A10 | E109: =D109&"Consolidated basic service delivery measurement" -> Table A10 Consolidated basic service delivery measurement | F109: =D109&"Basic service delivery measurement" -> Table A10 Basic service delivery measurement
A110: Supportinging Tables to the Budget Approval Tables | C110: =$C$99 -> Chart x-ref | D110: =$D$99 -> Sch/Tab/Ch
A111: Supporting Table SA1 | B111: =A111&" Supportinging detail to 'Budgeted Financial Performance'" -> Supporting Table SA1 Supportinging detail to 'Budgeted Financial Performance'
A112: Supporting Table SA2 | B112: =IF(Consolques="YES",E112,F112) -> Supporting Table SA2 Matrix Financial Performance Budget (revenue source/expenditure type and dept.) | E112: =A112&"Consolidated Matrix Financial Performance Budget (revenue source/expenditure type & dept.)" -> Supporting Table SA2 Consolidated Matrix Financial Performance Budget (revenue source/expenditure type & dept.) | F112: =A112&"Matrix Financial Performance Budget (revenue source/expenditure type and dept.)" -> Supporting Table SA2 Matrix Financial Performance Budget (revenue source/expenditure type and dept.)
A113: Supporting Table SA3 | B113: =A113&"Supportinging detail to 'Budgeted Financial Position'" -> Supporting Table SA3 Supportinging detail to 'Budgeted Financial Position'
A114: Supporting Table SA4 | B114: =A114&"Reconciliation of IDP strategic objectives and budget (revenue)" -> Supporting Table SA4 Reconciliation of IDP strategic objectives and budget (revenue) | C114: Chart 11
A115: Supporting Table SA5 | B115: =A115&"Reconciliation of IDP strategic objectives and budget (operating expenditure)" -> Supporting Table SA5 Reconciliation of IDP strategic objectives and budget (operating expenditure) | C115: Chart 12
A116: Supporting Table SA6 | B116: =A116&"Reconciliation of IDP strategic objectives and budget (capital expenditure)" -> Supporting Table SA6 Reconciliation of IDP strategic objectives and budget (capital expenditure) | C116: Chart 13
A117: Supporting Table SA7 | B117: =A117&" Measureable performance objectives" -> Supporting Table SA7 Measureable performance objectives
A118: Supporting Table SA8 | B118: =A118&" Performance indicators and benchmarks" -> Supporting Table SA8 Performance indicators and benchmarks | C118: Chts 15-19
A119: Supporting Table SA9 | B119: =A119&" Social, economic and demographic statistics and assumptions" -> Supporting Table SA9 Social, economic and demographic statistics and assumptions
A120: Supporting Table SA10 | B120: =A120&" Funding measurement" -> Supporting Table SA10 Funding measurement | C120: Chart 14
A121: Supporting Table SA11 | B121: =A121&" Property rates summary" -> Supporting Table SA11 Property rates summary
A122: Supporting Table SA12a | B122: =A122&" Property rates by category (current year)" -> Supporting Table SA12a Property rates by category (current year)
A123: Supporting Table SA12b | B123: =A123&" Property rates by category (budget year)" -> Supporting Table SA12b Property rates by category (budget year)
A124: Supporting Table SA13a | B124: =A124&" Service Tariffs by category" -> Supporting Table SA13a Service Tariffs by category
A125: Supporting Table SA13b | B125: =A125&" Service Tariffs by category - explanatory" -> Supporting Table SA13b Service Tariffs by category - explanatory
A126: Supporting Table SA14 | B126: =A126&" Household bills" -> Supporting Table SA14 Household bills
A127: Supporting Table SA15 | B127: =A127&" Investment particulars by type" -> Supporting Table SA15 Investment particulars by type
A128: Supporting Table SA16 | B128: =A128&" Investment particulars by maturity" -> Supporting Table SA16 Investment particulars by maturity
A129: Supporting Table SA17 | B129: =A129&" Borrowing" -> Supporting Table SA17 Borrowing
A130: Supporting Table SA18 | B130: =A130&" Transfers and grant receipts" -> Supporting Table SA18 Transfers and grant receipts
A131: Supporting Table SA19 | B131: =A131&" Expenditure on transfers and grant programme" -> Supporting Table SA19 Expenditure on transfers and grant programme
A132: Supporting Table SA20 | B132: =A132&" Reconciliation of transfers, grant receipts and unspent funds" -> Supporting Table SA20 Reconciliation of transfers, grant receipts and unspent funds
A133: Supporting Table SA21 | B133: =A133&" Transfers and grants made by the municipality" -> Supporting Table SA21 Transfers and grants made by the municipality
A134: Supporting Table SA22 | B134: =A134&" Summary councillor and staff benefits" -> Supporting Table SA22 Summary councillor and staff benefits
A135: Supporting Table SA23 | B135: =A135&" Salaries, allowances & benefits (political office bearers/councillors/senior managers)" -> Supporting Table SA23 Salaries, allowances & benefits (political office bearers/councillors/senior managers)
A136: Supporting Table SA24 | B136: =A136&" Summary of personnel numbers" -> Supporting Table SA24 Summary of personnel numbers
A137: Supporting Table SA25 | B137: =IF(Consolques="YES",E137,F137) -> Supporting Table SA25 Budgeted monthly revenue and expenditure | E137: =A137&" Consolidated budgeted monthly revenue and expenditure" -> Supporting Table SA25 Consolidated budgeted monthly revenue and expenditure | F137: =A137&" Budgeted monthly revenue and expenditure" -> Supporting Table SA25 Budgeted monthly revenue and expenditure
A138: Supporting Table SA26 | B138: Supporting Table SA26 Budgeted monthly revenue and expenditure (municipal vote) | E138: =A138&" Consolidated budgeted monthly revenue and expenditure (municipal vote)" -> Supporting Table SA26 Consolidated budgeted monthly revenue and expenditure (municipal vote) | F138: =A138&" Budgeted monthly revenue and expenditure (municipal vote)" -> Supporting Table SA26 Budgeted monthly revenue and expenditure (municipal vote)
A139: Supporting Table SA27 | B139: Supporting Table SA27 Budgeted monthly revenue and expenditure (functional classification) | E139: =A139&" Consolidated budgeted monthly revenue and expenditure (functional classification)" -> Supporting Table SA27 Consolidated budgeted monthly revenue and expenditure (functional classification) | F139: =A139&" Budgeted monthly revenue and expenditure (functional classification)" -> Supporting Table SA27 Budgeted monthly revenue and expenditure (functional classification)
A140: Supporting Table SA28 | B140: Supporting Table SA28 Budgeted monthly capital expenditure (municipal vote) | E140: =A140&" Consolidated budgeted monthly capital expenditure (municipal vote)" -> Supporting Table SA28 Consolidated budgeted monthly capital expenditure (municipal vote) | F140: =A140&" Budgeted monthly capital expenditure (municipal vote)" -> Supporting Table SA28 Budgeted monthly capital expenditure (municipal vote)
A141: Supporting Table SA29 | B141: Supporting Table SA29 Budgeted monthly capital expenditure (functional classification) | E141: =A141&" Consolidated budgeted monthly capital expenditure (functional classification)" -> Supporting Table SA29 Consolidated budgeted monthly capital expenditure (functional classification) | F141: =A141&" Budgeted monthly capital expenditure (functional classification)" -> Supporting Table SA29 Budgeted monthly capital expenditure (functional classification)
A142: Supporting Table SA30 | B142: Supporting Table SA30 Budgeted monthly cash flow | E142: =A142&" Consolidated budgeted monthly cash flow" -> Supporting Table SA30 Consolidated budgeted monthly cash flow | F142: =A142&" Budgeted monthly cash flow" -> Supporting Table SA30 Budgeted monthly cash flow
A143: Supporting Table SA31 | B143: NOT REQUIRED - municipality does not have entities | E143: =A143&" Aggregated entity budget" -> Supporting Table SA31 Aggregated entity budget | F143: NOT REQUIRED - municipality does not have entities
A144: Supporting Table SA32 | B144: =A144&" List of external mechanisms" -> Supporting Table SA32 List of external mechanisms
A145: Supporting Table SA33 | B145: =A145&" Contracts having future budgetary implications" -> Supporting Table SA33 Contracts having future budgetary implications
A146: Supporting Table SA34a | B146: =IF(Consolques="YES",E146,F146) -> Supporting Table SA34a Capital expenditure on new assets by asset class | E146: =A146&" Consolidated capital expenditure on new assets by asset class" -> Supporting Table SA34a Consolidated capital expenditure on new assets by asset class | F146: =A146&" Capital expenditure on new assets by asset class" -> Supporting Table SA34a Capital expenditure on new assets by asset class
A147: Supporting Table SA34b | B147: Supporting Table SA34b Capital expenditure on the renewal of existing assets by asset class | E147: =A147&" Consolidated capital expenditure on the renewal of existing assets by asset class" -> Supporting Table SA34b Consolidated capital expenditure on the renewal of existing assets by asset class | F147: =A147&" Capital expenditure on the renewal of existing assets by asset class" -> Supporting Table SA34b Capital expenditure on the renewal of existing assets by asset class
A148: Supporting Table SA34c | B148: Supporting Table SA34c Repairs and maintenance expenditure by asset class | E148: =A148&" Consolidated repairs and maintenance by asset class" -> Supporting Table SA34c Consolidated repairs and maintenance by asset class | F148: =A148&" Repairs and maintenance expenditure by asset class" -> Supporting Table SA34c Repairs and maintenance expenditure by asset class
A149: Supporting Table SA34d | B149: =IF(Consolques="YES",E149,F149) -> Supporting Table SA34d Depreciation by asset class | E149: =A149&" Consolidated Depreciation by asset class" -> Supporting Table SA34d Consolidated Depreciation by asset class | F149: =A149&" Depreciation by asset class" -> Supporting Table SA34d Depreciation by asset class
A150: Supporting Table SA34e | B150: =IF(Consolques="YES",E150,F150) -> Supporting Table SA34e Capital expenditure on the upgrading of existing assets by asset class | E150: =A150&" Consolidated capital expenditure on the upgrading of existing assets by asset class" -> Supporting Table SA34e Consolidated capital expenditure on the upgrading of existing assets by asset class | F150: =A150&" Capital expenditure on the upgrading of existing assets by asset class" -> Supporting Table SA34e Capital expenditure on the upgrading of existing assets by asset class
A151: Supporting Table SA35 | B151: Supporting Table SA35 Future financial implications of the capital budget | E151: =A151&" Consolidated future financial implications of the capital budget" -> Supporting Table SA35 Consolidated future financial implications of the capital budget | F151: =A151& " Future financial implications of the capital budget" -> Supporting Table SA35 Future financial implications of the capital budget
A152: Supporting Table SA36 | B152: Supporting Table SA36 Detailed capital budget | E152: =A152&" Consolidated detailed capital budget" -> Supporting Table SA36 Consolidated detailed capital budget | F152: =A152& " Detailed capital budget" -> Supporting Table SA36 Detailed capital budget
A153: Supporting Table SA37 | B153: Supporting Table SA37 Projects delayed from previous financial year/s | E153: =A153&" Consolidated projects delayed from previous financial year/s" -> Supporting Table SA37 Consolidated projects delayed from previous financial year/s | F153: =A153& " Projects delayed from previous financial year/s" -> Supporting Table SA37 Projects delayed from previous financial year/s
A154: Supporting Table SA38 | B154: =IF(Consolques="YES",E154,F154) -> Supporting Table SA38 Detailed operational projects | E154: =A154&" Consolidated detailed operational projects" -> Supporting Table SA38 Consolidated detailed operational projects | F154: =A154& " Detailed operational projects" -> Supporting Table SA38 Detailed operational projects
A156: Budget Charts | B156: Charts | C156: Cross reference
A157: Chart A1 | B157: =A157&"Revenue by Municipal Vote" -> Chart A1 Revenue by Municipal Vote
A158: Chart A2 | B158: =A158&"Expenditure by Municipal Vote" -> Chart A2 Expenditure by Municipal Vote
A159: Chart A3 | B159: =A159&"Revenue by Standard Classification" -> Chart A3 Revenue by Standard Classification | C159: A2
A160: Chart A4 | B160: =A160&"Expenditure by Standard Classification" -> Chart A4 Expenditure by Standard Classification | C160: A2
A161: Chart A5 | B161: =A161&"Revenue by Major Source (refer 'Minor' source for 'Other Revenue' allocation" -> Chart A5 Revenue by Major Source (refer 'Minor' source for 'Other Revenue' allocation | C161: A3
A162: Chart A6 | B162: =A162&"Revenue by Minor Source (Other)" -> Chart A6 Revenue by Minor Source (Other) | C162: A3
A163: Chart A7 | B163: =A163&"Expenditure by Major Type" -> Chart A7 Expenditure by Major Type | C163: A3
A164: Chart A8 | B164: =A164&"Expenditure by Minor Type (Other)" -> Chart A8 Expenditure by Minor Type (Other) | C164: A3
A165: Chart A9 | B165: =A165&"Capital Expenditure by Municipal Vote/Appropriation (Major)" -> Chart A9 Capital Expenditure by Municipal Vote/Appropriation (Major) | C165: A5
A166: Chart A10 | B166: =A166&"Capital Expenditure by Municipal Vote/Appropriation (Minor)" -> Chart A10 Capital Expenditure by Municipal Vote/Appropriation (Minor) | C166: A5
A167: Chart A11 | B167: =A166&"Capital Expenditure by Standard Classification" -> Chart A10 Capital Expenditure by Standard Classification | C167: A5
A168: Chart A12 | B168: =A168&"Capital expenditure performance trend" -> Chart A12 Capital expenditure performance trend | C168: A5
A169: Chart A13 | B169: =A169&"Capital funding by Source" -> Chart A13 Capital funding by Source | C169: A5
A170: Chart A14 | B170: =A170&"Cash flow trend" -> Chart A14 Cash flow trend | C170: A7
A171: Chart A15 | B171: =A171&"IDP Strategic Objective - Revenue" -> Chart A15 IDP Strategic Objective - Revenue | C171: Table A4
A172: Chart A16 | B172: =A172&"IDP Strategic Objective - Expenditure" -> Chart A16 IDP Strategic Objective - Expenditure | C172: Table A5
A173: Chart A17 | B173: =A173&"IDP Strategic Objective - Capital Expenditure" -> Chart A17 IDP Strategic Objective - Capital Expenditure | C173: Table A6
A174: Chart A18 | B174: =A174&"Debt (borrowing to Total Revenue)" -> Chart A18 Debt (borrowing to Total Revenue) | C174: Table A8
A175: Chart A19 | B175: =A175&"Debtors' trend analysis" -> Chart A19 Debtors' trend analysis | C175: Table A8
A176: Chart A20 | B176: =A176&"Distribution losses" -> Chart A20 Distribution losses | C176: Table A8
A177: Chart A21 | B177: =A177&"Borrowed funding of capital expenditure" -> Chart A21 Borrowed funding of capital expenditure | C177: Table A8
A178: Chart A22 | B178: =A178&"Expenditure analysis (% of Revenue)" -> Chart A22 Expenditure analysis (% of Revenue) | C178: Table A8
A179: Chart A23 | B179: =A179&"Increases in service charges" -> Chart A23 Increases in service charges | C179: Table A10

Sheet Lookup and lists (hidden)
A1: Description | B1: 2007 | C1: 2008 | D1: 2009 | E1: 2010 | F1: 2011 | G1: 2012 | H1: 2013 | I1: 2014 | J1: 2015 | K1: 2016 | L1: 2017 | M1: 2018 | N1: 2019 | O1: 2020 | Q1: Lists | Y1: Grants: | Z1: National - opex | AA1: Provincial - opex | AB1: National - capex | AC1: Provincial - capex
A2: ='Template names'!C2 -> Prior year -1 | B2: 2005/06 | C2: 2006/07 | D2: 2007/08 | E2: =E1-2&"/"&RIGHT(E1,2)-1 -> 2008/9 | F2: 2009/10 | G2: 2010/11 | H2: 2011/12 | I2: 2012/13 | J2: 2013/14 | K2: 2014/15 | L2: 2015/16 | M2: 2016/17 | N2: 2017/18 | O2: 2018/19 | Q2: Yes | R2: <1 | S2: <4 | T2: Market | U2: Land & impr. | V2: Yes | W2: Uniform | X2: Yrs | Z2: Local Government Equitable Share | AA2: Health subsidy | AB2: Municipal Infrastructure Grant (MIG) | AC2: Agriculture
A3: ='Template names'!C3 -> Prior year -2 | B3: 2004/05 | C3: 2005/06 | D3: 2006/07 | E3: =E1-3&"/"&RIGHT(E1,2)-2 -> 2007/8 | F3: 2008/9 | G3: 2009/10 | H3: 2010/11 | I3: 2011/12 | J3: 2012/13 | K3: 2013/14 | L3: 2014/15 | M3: 2015/16 | N3: 2016/17 | O3: 2017/18 | Q3: No | R3: 1 | S3: 4 | T3: Dep.Replace | U3: Land only | V3: No | W3: Variable | X3: Mths | Z3: RSC Levy Replacement | AA3: Ambulance subsidy | AB3: Public Transport and Systems | AC3: Education
A4: ='Template names'!C4 -> Prior year -3 | B4: 2003/04 | C4: 2004/05 | D4: 2005/06 | E4: =E1-4&"/"&RIGHT(E1,2)-3 -> 2006/7 | F4: 2007/8 | G4: 2008/9 | H4: 2009/10 | I4: 2010/11 | J4: 2011/12 | K4: 2012/13 | L4: 2013/14 | M4: 2014/15 | N4: 2015/16 | O4: 2016/17 | R4: 2 | S4: 5 | T4: Other | U4: Other | Z4: Finance Management | AA4: Housing | AB4: Rural Transport Services and Infrastructure | AC4: Health
A5: ='Template names'!C5 -> Year in which budget is being prepared | B5: Current Year 2006/07 | C5: Current Year 2007/08 | D5: Current Year 2008/09 | E5: ="Current Year "& E1-1&"/"&RIGHT(E1,2) -> Current Year 2009/10 | F5: Current Year 2010/11 | G5: Current Year 2011/12 | H5: Current Year 2012/13 | I5: Current Year 2013/14 | J5: Current Year 2014/15 | K5: Current Year 2015/16 | L5: Current Year 2016/17 | M5: Current Year 2017/18 | N5: Current Year 2018/19 | O5: Current Year 2019/20 | R5: 3 | S5: 6 | Z5: Municipal Systems Improvement | AA5: Sport and Recreation | AB5: Regional Bulk Infrastructure | AC5: Housing and Local Government
A6: ='Template names'!C6 -> Year in which budget is being prepared | B6: 2006/07 | C6: 2007/08 | D6: 2008/09 | E6: =E1-1&"/"&RIGHT(E1,2) -> 2009/10 | F6: 2010/11 | G6: 2011/12 | H6: 2012/13 | I6: 2013/14 | J6: 2014/15 | K6: 2015/16 | L6: 2016/17 | M6: 2017/18 | N6: 2018/19 | O6: 2019/20 | R6: 4 | S6: 6-10 | Z6: Water Services Operating Subsidy | AB6: Rural Households Infrastructure | AC6: Other Departments
A7: ='Template names'!C7 -> MTREF name | B7: 2007/08 Medium Term Revenue & Expenditure Framework | C7: 2008/09 Medium Term Revenue & Expenditure Framework | D7: 2009/10 Medium Term Revenue & Expenditure Framework | E7: =E1&"/"&RIGHT(E1,2)+1&" Medium Term Revenue & Expenditure Framework" -> 2010/11 Medium Term Revenue & Expenditure Framework | F7: 2011/12 Medium Term Revenue & Expenditure Framework | G7: 2012/13 Medium Term Revenue & Expenditure Framework | H7: 2013/14 Medium Term Revenue & Expenditure Framework | I7: 2014/15 Medium Term Revenue & Expenditure Framework | J7: 2015/16 Medium Term Revenue & Expenditure Framework | K7: 2016/17 Medium Term Revenue & Expenditure Framework | L7: 2017/18 Medium Term Revenue & Expenditure Framework | M7: 2018/19 Medium Term Revenue & Expenditure Framework | N7: 2019/20 Medium Term Revenue & Expenditure Framework | O7: 2020/21 Medium Term Revenue & Expenditure Framework | R7: 5 | S7: >10 | Z7: Energy Efficiency and Demand Management | AB7: Neighbourhood Development Partnership | AC7: Public Works, Roads, Transport
A8: ='Template names'!C15 -> 1st year of MTREF | B8: Budget Year 2007/08 | C8: Budget Year 2008/09 | D8: Budget Year 2009/10 | E8: ="Budget Year "&E1&"/"&RIGHT(E1,2)+1 -> Budget Year 2010/11 | F8: Budget Year 2011/12 | G8: Budget Year 2012/13 | H8: Budget Year 2013/14 | I8: Budget Year 2014/15 | J8: Budget Year 2015/16 | K8: Budget Year 2016/17 | L8: Budget Year 2017/18 | M8: Budget Year 2018/19 | N8: Budget Year 2019/20 | O8: Budget Year 2020/21 | R8: >5 | Z8: Integrated National Electrification Programme | AB8: 2010 FIFA World Cup Stadiums Development | AC8: Sport and Recreation
A9: ='Template names'!C16 -> 2nd year of MTREF | B9: Budget Year +1 2008/09 | C9: Budget Year +1 2009/10 | D9: Budget Year +1 2010/11 | E9: ="Budget Year +1 "&E1+1&"/"&RIGHT(E1,2)+2 -> Budget Year +1 2011/12 | F9: Budget Year +1 2012/13 | G9: Budget Year +1 2013/14 | H9: Budget Year +1 2014/15 | I9: Budget Year +1 2015/16 | J9: Budget Year +1 2016/17 | K9: Budget Year +1 2017/18 | L9: Budget Year +1 2018/19 | M9: Budget Year +1 2019/20 | N9: Budget Year +1 2020/21 | O9: Budget Year +1 2021/22 | Z9: Municipal Drought Relief
A10: ='Template names'!C17 -> 3rd year of MTREF | B10: Budget Year +2 2009/10 | C10: Budget Year +2 2010/11 | D10: Budget Year +2 2011/12 | E10: ="Budget Year +2 "&E1+2&"/"&RIGHT(E1,2)+3 -> Budget Year +2 2012/13 | F10: Budget Year +2 2013/14 | G10: Budget Year +2 2014/15 | H10: Budget Year +2 2015/16 | I10: Budget Year +2 2016/17 | J10: Budget Year +2 2017/18 | K10: Budget Year +2 2018/19 | L10: Budget Year +2 2019/20 | M10: Budget Year +2 2020/21 | N10: Budget Year +2 2021/22 | O10: Budget Year +2 2022/23 | Z10: 2010 FIFA World Cup Operating
A11: ='Template names'!C18 -> 1st yr of long term forecast | B11: Forecast 2010/11 | C11: Forecast 2011/12 | D11: Forecast 2012/13 | E11: ="Forecast "&E1+3&"/"&RIGHT(E1,2)+4 -> Forecast 2013/14 | F11: Forecast 2014/15 | G11: Forecast 2015/16 | H11: Forecast 2016/17 | I11: Forecast 2017/18 | J11: Forecast 2018/19 | K11: Forecast 2019/20 | L11: Forecast 2020/21 | M11: Forecast 2021/22 | N11: Forecast 2022/23 | O11: Forecast 2023/24 | Z11: Electricity Demand Side Management
A12: ='Template names'!C19 -> Next yr of long term forecast | B12: Forecast 2011/12 | C12: Forecast 2012/13 | D12: Forecast 2013/14 | E12: ="Forecast "&E1+4&"/"&RIGHT(E1,2)+5 -> Forecast 2014/15 | F12: Forecast 2015/16 | G12: Forecast 2016/17 | H12: Forecast 2017/18 | I12: Forecast 2018/19 | J12: Forecast 2019/20 | K12: Forecast 2020/21 | L12: Forecast 2021/22 | M12: Forecast 2022/23 | N12: Forecast 2023/24 | O12: Forecast 2024/25 | Z12: EPWP Incentive
A13: ='Template names'!C20 -> Next yr of long term forecast | B13: Forecast 2012/13 | C13: Forecast 2013/14 | D13: Forecast 2014/15 | E13: ="Forecast "&E1+5&"/"&RIGHT(E1,2)+6 -> Forecast 2015/16 | F13: Forecast 2016/17 | G13: Forecast 2017/18 | H13: Forecast 2018/19 | I13: Forecast 2019/20 | J13: Forecast 2020/21 | K13: Forecast 2021/22 | L13: Forecast 2022/23 | M13: Forecast 2023/24 | N13: Forecast 2024/25 | O13: Forecast 2025/26
A14: ='Template names'!C21 -> Next yr of long term forecast | B14: Forecast 2013/14 | C14: Forecast 2014/15 | D14: Forecast 2015/16 | E14: ="Forecast "&E1+6&"/"&RIGHT(E1,2)+7 -> Forecast 2016/17 | F14: Forecast 2017/18 | G14: Forecast 2018/19 | H14: Forecast 2019/20 | I14: Forecast 2020/21 | J14: Forecast 2021/22 | K14: Forecast 2022/23 | L14: Forecast 2023/24 | M14: Forecast 2024/25 | N14: Forecast 2025/26 | O14: Forecast 2026/27 | Z14: Asset Class | AA14: Asset sub-class old | AB14: Asset sub-class | AC14: IUDF | AD14: MTSF
A15: ='Template names'!C22 -> Next yr of long term forecast | B15: Forecast 2014/15 | C15: Forecast 2015/16 | D15: Forecast 2016/17 | E15: ="Forecast "&E1+7&"/"&RIGHT(E1,2)+8 -> Forecast 2017/18 | F15: Forecast 2018/19 | G15: Forecast 2019/20 | H15: Forecast 2020/21 | I15: Forecast 2021/22 | J15: Forecast 2022/23 | K15: Forecast 2023/24 | L15: Forecast 2024/25 | M15: Forecast 2025/26 | N15: Forecast 2026/27 | O15: Forecast 2027/28
A16: ='Template names'!C23 -> Next yr of long term forecast | B16: Forecast 2015/16 | C16: Forecast 2016/17 | D16: Forecast 2017/18 | E16: ="Forecast "&E1+8&"/"&RIGHT(E1,2)+9 -> Forecast 2018/19 | F16: Forecast 2019/20 | G16: Forecast 2020/21 | H16: Forecast 2021/22 | I16: Forecast 2022/23 | J16: Forecast 2023/24 | K16: Forecast 2024/25 | L16: Forecast 2025/26 | M16: Forecast 2026/27 | N16: Forecast 2027/28 | O16: Forecast 2028/29 | Z16: Roads Infrastructure | AA16: Roads, Pavements & Bridges | AB16: Roads | AC16: Spatial integration | AD16: Quality basic education
A17: ='Template names'!C24 -> Next yr of long term forecast | B17: Forecast 2016/17 | C17: Forecast 2017/18 | D17: Forecast 2018/19 | E17: ="Forecast "&E1+9&"/"&RIGHT(E1,2)+10 -> Forecast 2019/20 | F17: Forecast 2020/21 | G17: Forecast 2021/22 | H17: Forecast 2022/23 | I17: Forecast 2023/24 | J17: Forecast 2024/25 | K17: Forecast 2025/26 | L17: Forecast 2026/27 | M17: Forecast 2027/28 | N17: Forecast 2028/29 | O17: Forecast 2029/30 | Z17: Storm water Infrastructure | AA17: Storm water | AB17: Road Structures | AC17: Inclusion and access | AD17: A long and healthy life for all South Africans
A18: ='Template names'!C25 -> Next yr of long term forecast | B18: Forecast 2017/18 | C18: Forecast 2018/19 | D18: Forecast 2019/20 | E18: ="Forecast "&E1+10&"/"&RIGHT(E1,2)+11 -> Forecast 2020/21 | F18: Forecast 2021/22 | G18: Forecast 2022/23 | H18: Forecast 2023/24 | I18: Forecast 2024/25 | J18: Forecast 2025/26 | K18: Forecast 2026/27 | L18: Forecast 2027/28 | M18: Forecast 2028/29 | N18: Forecast 2029/30 | O18: Forecast 2030/31 | Z18: Electrical Infrastructure | AA18: Generation | AB18: Road Furniture | AC18: Growth | AD18: All people in South Africa are and feel safe
A19: ='Template names'!C26 -> Next yr of long term forecast | B19: Forecast 2018/19 | C19: Forecast 2019/20 | D19: Forecast 2020/21 | E19: ="Forecast "&E1+11&"/"&RIGHT(E1,2)+12 -> Forecast 2021/22 | F19: Forecast 2022/23 | G19: Forecast 2023/24 | H19: Forecast 2024/25 | I19: Forecast 2025/26 | J19: Forecast 2026/27 | K19: Forecast 2027/28 | L19: Forecast 2028/29 | M19: Forecast 2029/30 | N19: Forecast 2030/31 | O19: Forecast 2031/32 | Z19: Water Supply Infrastructure | AA19: Transmission & Reticulation | AB19: Capital Spares | AC19: Governance | AD19: Decent employment through inclusive growth
A20: ='Template names'!C27 -> Next yr of long term forecast | B20: Forecast 2019/20 | C20: Forecast 2020/21 | D20: Forecast 2021/22 | E20: ="Forecast "&E1+12&"/"&RIGHT(E1,2)+13 -> Forecast 2022/23 | F20: Forecast 2023/24 | G20: Forecast 2024/25 | H20: Forecast 2025/26 | I20: Forecast 2026/27 | J20: Forecast 2027/28 | K20: Forecast 2028/29 | L20: Forecast 2029/30 | M20: Forecast 2030/31 | N20: Forecast 2031/32 | O20: Forecast 2032/33 | Z20: Sanitation Infrastructure | AA20: Street Lighting | AB20: Drainage Collection | AD20: A skilled and capable workforce to support an inclusive growth path
A21: ='Template names'!C28 -> Next yr of long term forecast | B21: Forecast 2020/21 | C21: Forecast 2021/22 | D21: Forecast 2022/23 | E21: ="Forecast "&E1+13&"/"&RIGHT(E1,2)+14 -> Forecast 2023/24 | F21: Forecast 2024/25 | G21: Forecast 2025/26 | H21: Forecast 2026/27 | I21: Forecast 2027/28 | J21: Forecast 2028/29 | K21: Forecast 2029/30 | L21: Forecast 2030/31 | M21: Forecast 2031/32 | N21: Forecast 2032/33 | O21: Forecast 2033/34 | Z21: Solid Waste Infrastructure | AA21: Dams & Reservoirs | AB21: Storm water Conveyance | AD21: An efficient, competitive and responsive economic infrastructure network
A22: ='Template names'!C29 -> Next yr of long term forecast | B22: Forecast 2021/22 | C22: Forecast 2022/23 | D22: Forecast 2023/24 | E22: ="Forecast "&E1+14&"/"&RIGHT(E1,2)+15 -> Forecast 2024/25 | F22: Forecast 2025/26 | G22: Forecast 2026/27 | H22: Forecast 2027/28 | I22: Forecast 2028/29 | J22: Forecast 2029/30 | K22: Forecast 2030/31 | L22: Forecast 2031/32 | M22: Forecast 2032/33 | N22: Forecast 2033/34 | O22: Forecast 2034/35 | Z22: Rail Infrastructure | AA22: Water purification | AB22: Attenuation | AD22: Vibrant, equitable, sustainable rural communities contributing towards food security for all
A23: Adjustments Budget | B23: Annual target 2007/08 | C23: Annual target 2008/09 | D23: Annual target 2009/10 | E23: ="Annual target " & E1&"/"&RIGHT(E1,2)+1 -> Annual target 2010/11 | F23: Annual target 2011/12 | G23: Annual target 2012/13 | H23: Annual target 2013/14 | I23: Annual target 2014/15 | J23: Annual target 2015/16 | K23: Annual target 2016/17 | L23: Annual target 2017/18 | M23: Annual target 2018/19 | N23: Annual target 2019/20 | O23: Annual target 2020/21 | Z23: Coastal Infrastructure | AA23: Reticulation | AB23: Power Plants | AD23: Sustainable human settlements and improved quality of household life
A24: =A23 -> Adjustments Budget | B24: Revised target 2007/08 | C24: Revised target 2008/09 | D24: Revised target 2009/10 | E24: ="Revised target "& E1&"/"&RIGHT(E1,2)+1 -> Revised target 2010/11 | F24: Revised target 2011/12 | G24: Revised target 2012/13 | H24: Revised target 2013/14 | I24: Revised target 2014/15 | J24: Revised target 2015/16 | K24: Revised target 2016/17 | L24: Revised target 2017/18 | M24: Revised target 2018/19 | N24: Revised target 2019/20 | O24: Revised target 2020/21 | Z24: Information and Communication Infrastructure | AA24: Sewerage purification | AB24: HV Substations | AD24: Responsive, accountable, effective and efficient local government
A25: NOTE: This sheet should not be directly amended - select headings from sheet 'S' | Z25: Community Facilities | AA25: Waste Management | AB25: HV Switching Station | AD25: Protect and enhance our environmental assets and natural resources
Z26: Sport and Recreation Facilities | AA26: Transportation | AB26: HV Transmission Conductors | AD26: Create a better South Africa and contribute to a better Africa and a better world
A27: Name link | B27: 25 | Z27: Heritage assets | AA27: Gas | AB27: MV Substations | AD27: An efficient, effective and development-oriented public service
A28: Name of Muni | B28: =INDEX(B29:B307,B27,1) -> DC13 Chris Hani | Z28: Revenue Generating | AA28: Parks & gardens | AB28: MV Switching Stations | AD28: A comprehensive, responsive and sustainable social protection system
B29: Choose name from list | C29: Set name on 'Instructions' sheet | Z29: Non-revenue Generating | AA29: Sportsfields & stadia | AB29: MV Networks | AD29: A diverse, socially cohesive society with a common national identity
B30: BUF Buffalo City | C30: EC EASTERN CAPE | Z30: Operational Buildings | AA30: Swimming pools | AB30: LV Networks
B31: NMA Nelson Mandela Bay | C31: EC EASTERN CAPE | Z31: Housing | AA31: Community halls | AB31: Capital Spares
B32: EC101 Dr Beyers Naude | C32: EC EASTERN CAPE | Z32: Biological or Cultivated Assets | AA32: Libraries | AB32: Dams and Weirs
B33: EC102 Blue Crane Route | C33: EC EASTERN CAPE | Z33: Servitudes | AA33: Recreational facilities | AB33: Boreholes
B34: EC104 Makana | C34: EC EASTERN CAPE | Z34: Licences and Rights | AA34: Fire, safety & emergency | AB34: Reservoirs
B35: EC105 Ndlambe | C35: EC EASTERN CAPE | Z35: Computer Equipment | AA35: Security and policing | AB35: Pump Stations
B36: EC106 Sundays River Valley | C36: EC EASTERN CAPE | Z36: Furniture and Office Equipment | AA36: Buses | AB36: Water Treatment Works
B37: EC108 Kouga | C37: EC EASTERN CAPE | Z37: Machinery and Equipment | AA37: Clinics | AB37: Bulk Mains
B38: EC109 Kou-Kamma | C38: EC EASTERN CAPE | Z38: Transport Assets | AA38: Museums & Art Galleries | AB38: Distribution
B39: DC10 Sarah Baartman | C39: EC EASTERN CAPE | Z39: Land | AA39: Cemeteries | AB39: Distribution Points
B40: EC121 Mbhashe | C40: EC EASTERN CAPE | Z40: Zoo's, Marine and Non-biological Animals | AA40: Social rental housing | AB40: PRV Stations
B41: EC122 Mnquma | C41: EC EASTERN CAPE | AA41: Buildings | AB41: Capital Spares
B42: EC123 Great Kei | C42: EC EASTERN CAPE | AA42: Housing development | AB42: Pump Station
B43: EC124 Amahlathi | C43: EC EASTERN CAPE | AA43: General vehicles | AB43: Reticulation
B44: EC126 Ngqushwa | C44: EC EASTERN CAPE | AA44: Specialised vehicles - Refuse | AB44: Waste Water Treatment Works
B45: EC129 Raymond Mhlaba | C45: EC EASTERN CAPE | AA45: Specialised vehicles - Fire | AB45: Outfall Sewers
B46: DC12 Amathole | C46: EC EASTERN CAPE | AA46: Specialised vehicles - Conservancy | AB46: Toilet Facilities
B47: EC131 Inxuba Yethemba | C47: EC EASTERN CAPE | AA47: Specialised vehicles - Ambulances | AB47: Capital Spares
B48: EC135 Intsika Yethu | C48: EC EASTERN CAPE | AA48: Plant & equipment | AB48: Landfill Sites
B49: EC136 Emalahleni (Ec) | C49: EC EASTERN CAPE | AA49: Computers - hardware/equipment | AB49: Waste Transfer Stations
B50: EC137 Engcobo | C50: EC EASTERN CAPE | AA50: Furniture and other office equipment | AB50: Waste Processing Facilities
B51: EC138 Sakhisizwe | C51: EC EASTERN CAPE | AA51: Abattoirs | AB51: Waste Drop-off Points
B52: EC139 Enoch Mgijima | C52: EC EASTERN CAPE | AA52: Markets | AB52: Waste Separation Facilities
B53: DC13 Chris Hani | C53: EC EASTERN CAPE | AA53: Civic Land and Buildings | AB53: Electricity Generation Facilities
B54: EC141 Elundini | C54: EC EASTERN CAPE | AA54: Other Buildings | AB54: Capital Spares
B55: EC142 Senqu | C55: EC EASTERN CAPE | AA55: Other Land | AB55: Rail Lines
B56: EC145 Walter Sisulu | C56: EC EASTERN CAPE | AA56: Surplus Assets - (Investment or Inventory) | AB56: Rail Structures
B57: DC14 Joe Gqabi | C57: EC EASTERN CAPE | AA57: Computers - software & programming | AB57: Rail Furniture
B58: EC153 Ngquza Hills | C58: EC EASTERN CAPE | AA58: Other | AB58: Drainage Collection
B59: EC154 Port St Johns | C59: EC EASTERN CAPE | AB59: Storm water Conveyance
B60: EC155 Nyandeni | C60: EC EASTERN CAPE | Z60: SA16 - Investments | AB60: Attenuation
B61: EC156 Mhlontlo | C61: EC EASTERN CAPE | Z61: Security | AA61: Interest rate | AB61: MV Substations
B62: EC157 King Sabata Dalindyebo | C62: EC EASTERN CAPE | Z62: Yes | AA62: Fixed | AB62: LV Networks
B63: DC15 O .R. Tambo | C63: EC EASTERN CAPE | Z63: No | AA63: Variable | AB63: Capital Spares
B64: EC441 Matatiele | C64: EC EASTERN CAPE | AB64: Sand Pumps
B65: EC442 Umzimvubu | C65: EC EASTERN CAPE | AB65: Piers
B66: EC443 Mbizana | C66: EC EASTERN CAPE | Z66: SA36, SA37 - Capital projects | AB66: Revetments
B67: EC444 Ntabankulu | C67: EC EASTERN CAPE | Z67: Yes | AB67: Promenades
B68: DC44 Alfred Nzo | C68: EC EASTERN CAPE | Z68: No | AB68: Capital Spares
B69: MAN Mangaung | C69: FS FREE STATE | AB69: Data Centres
B70: FS161 Letsemeng | C70: FS FREE STATE | AB70: Core Layers
B71: FS162 Kopanong | C71: FS FREE STATE | AB71: Distribution Layers
B72: FS163 Mohokare | C72: FS FREE STATE | AB72: Capital Spares
B73: DC16 Xhariep | C73: FS FREE STATE | AB73: Halls
B74: FS181 Masilonyana | C74: FS FREE STATE | AB74: Centres
B75: FS182 Tokologo | C75: FS FREE STATE | AB75: Crèches
B76: FS183 Tswelopele | C76: FS FREE STATE | AB76: Clinics/Care Centres
B77: FS184 Matjhabeng | C77: FS FREE STATE | AB77: Fire/Ambulance Stations
B78: FS185 Nala | C78: FS FREE STATE | AB78: Testing Stations
B79: DC18 Lejweleputswa | C79: FS FREE STATE | AB79: Museums
B80: FS191 Setsoto | C80: FS FREE STATE | AB80: Galleries
B81: FS192 Dihlabeng | C81: FS FREE STATE | AB81: Theatres
B82: FS193 Nketoana | C82: FS FREE STATE | AB82: Libraries
B83: FS194 Maluti-a-Phofung | C83: FS FREE STATE | AB83: Cemeteries/Crematoria
B84: FS195 Phumelela | C84: FS FREE STATE | AB84: Police
B85: FS196 Mantsopa | C85: FS FREE STATE | AB85: Purls
B86: DC19 Thabo Mofutsanyana | C86: FS FREE STATE | AB86: Public Open Space
B87: FS201 Moqhaka | C87: FS FREE STATE | AB87: Nature Reserves
B88: FS203 Ngwathe | C88: FS FREE STATE | AB88: Public Ablution Facilities
B89: FS204 Metsimaholo | C89: FS FREE STATE | AB89: Markets
B90: FS205 Mafube | C90: FS FREE STATE | AB90: Stalls
B91: DC20 Fezile Dabi | C91: FS FREE STATE | AB91: Abattoirs
B92: EKU City of Ekurhuleni | C92: GT GAUTENG | AB92: Airports
B93: JHB City Of Johannesburg | C93: GT GAUTENG | AB93: Taxi Ranks/Bus Terminals
B94: TSH City Of Tshwane | C94: GT GAUTENG | AB94: Capital Spares
B95: GT421 Emfuleni | C95: GT GAUTENG | AB95: Indoor Facilities
B96: GT422 Midvaal | C96: GT GAUTENG | AB96: Outdoor Facilities
B97: GT423 Lesedi | C97: GT GAUTENG | AB97: Capital Spares
B98: DC42 Sedibeng | C98: GT GAUTENG | AB98: Monuments
B99: GT481 Mogale City | C99: GT GAUTENG | AB99: Historic Buildings
B100: GT484 Merafong City | C100: GT GAUTENG | AB100: Works of Art
B101: GT485 Rand West City | C101: GT GAUTENG | AB101: Conservation Areas
B102: DC48 West Rand | C102: GT GAUTENG | AB102: Other Heritage
B103: ETH eThekwini | C103: KZN KWAZULU-NATAL | AB103: Improved Property
B104: KZN212 Umdoni | C104: KZN KWAZULU-NATAL | AB104: Unimproved Property
B105: KZN213 Umzumbe | C105: KZN KWAZULU-NATAL | AB105: Municipal Offices
B106: KZN214 uMuziwabantu | C106: KZN KWAZULU-NATAL | AB106: Pay/Enquiry Points
B107: KZN216 Ray Nkonyeni | C107: KZN KWAZULU-NATAL | AB107: Building Plan Offices
B108: DC21 Ugu | C108: KZN KWAZULU-NATAL | AB108: Workshops
B109: KZN221 uMshwathi | C109: KZN KWAZULU-NATAL | AB109: Yards
B110: KZN222 uMngeni | C110: KZN KWAZULU-NATAL | AB110: Stores
B111: KZN223 Mpofana | C111: KZN KWAZULU-NATAL | AB111: Laboratories
B112: KZN224 Impendle | C112: KZN KWAZULU-NATAL | AB112: Training Centres
B113: KZN225 Msunduzi | C113: KZN KWAZULU-NATAL | AB113: Manufacturing Plant
B114: KZN226 Mkhambathini | C114: KZN KWAZULU-NATAL | AB114: Depots
B115: KZN227 Richmond | C115: KZN KWAZULU-NATAL | AB115: Capital Spares
B116: DC22 uMgungundlovu | C116: KZN KWAZULU-NATAL | AB116: Staff Housing
B117: KZN235 Okhahlamba | C117: KZN KWAZULU-NATAL | AB117: Social Housing
B118: KZN237 Inkosi Langalibalele | C118: KZN KWAZULU-NATAL | AB118: Capital Spares
B119: KZN238 Alfred Duma | C119: KZN KWAZULU-NATAL | AB119: Water Rights
B120: DC23 Uthukela | C120: KZN KWAZULU-NATAL | AB120: Effluent Licenses
B121: KZN241 Endumeni | C121: KZN KWAZULU-NATAL | AB121: Solid Waste Licenses
B122: KZN242 Nquthu | C122: KZN KWAZULU-NATAL | AB122: Computer Software and Applications
B123: KZN244 Msinga | C123: KZN KWAZULU-NATAL | AB123: Load Settlement Software Applications
B124: KZN245 Umvoti | C124: KZN KWAZULU-NATAL | AB124: Unspecified
B125: DC24 Umzinyathi | C125: KZN KWAZULU-NATAL
B126: KZN252 Newcastle | C126: KZN KWAZULU-NATAL
B127: KZN253 Emadlangeni | C127: KZN KWAZULU-NATAL
B128: KZN254 Dannhauser | C128: KZN KWAZULU-NATAL
B129: DC25 Amajuba | C129: KZN KWAZULU-NATAL
B130: KZN261 eDumbe | C130: KZN KWAZULU-NATAL
B131: KZN262 uPhongolo | C131: KZN KWAZULU-NATAL
B132: KZN263 Abaqulusi | C132: KZN KWAZULU-NATAL
B133: KZN265 Nongoma | C133: KZN KWAZULU-NATAL
B134: KZN266 Ulundi | C134: KZN KWAZULU-NATAL
B135: DC26 Zululand | C135: KZN KWAZULU-NATAL
B136: KZN271 Umhlabuyalingana | C136: KZN KWAZULU-NATAL
B137: KZN272 Jozini | C137: KZN KWAZULU-NATAL
B138: KZN275 Mtubatuba | C138: KZN KWAZULU-NATAL
B139: KZN276 Hlabisa Big Five | C139: KZN KWAZULU-NATAL
B140: DC27 Umkhanyakude | C140: KZN KWAZULU-NATAL
B141: KZN281 Mfolozi | C141: KZN KWAZULU-NATAL
B142: KZN282 uMhlathuze | C142: KZN KWAZULU-NATAL
B143: KZN284 uMlalazi | C143: KZN KWAZULU-NATAL
B144: KZN285 Mthonjaneni | C144: KZN KWAZULU-NATAL
B145: KZN286 Nkandla | C145: KZN KWAZULU-NATAL
B146: DC28 King Cetshwayo | C146: KZN KWAZULU-NATAL
B147: KZN291 Mandeni | C147: KZN KWAZULU-NATAL
B148: KZN292 KwaDukuza | C148: KZN KWAZULU-NATAL
B149: KZN293 Ndwedwe | C149: KZN KWAZULU-NATAL
B150: KZN294 Maphumulo | C150: KZN KWAZULU-NATAL
B151: DC29 iLembe | C151: KZN KWAZULU-NATAL
B152: KZN433 Greater Kokstad | C152: KZN KWAZULU-NATAL
B153: KZN434 Ubuhlebezwe | C153: KZN KWAZULU-NATAL
B154: KZN435 Umzimkhulu | C154: KZN KWAZULU-NATAL
B155: KZN436 Dr Nkosazana Dlamini Zuma | C155: KZN KWAZULU-NATAL
B156: DC43 Harry Gwala | C156: KZN KWAZULU-NATAL
B157: LIM331 Greater Giyani | C157: LIM LIMPOPO
B158: LIM332 Greater Letaba | C158: LIM LIMPOPO
B159: LIM333 Greater Tzaneen | C159: LIM LIMPOPO
B160: LIM334 Ba-Phalaborwa | C160: LIM LIMPOPO
B161: LIM335 Maruleng | C161: LIM LIMPOPO
B162: DC33 Mopani | C162: LIM LIMPOPO
B163: LIM341 Musina | C163: LIM LIMPOPO
B164: LIM343 Thulamela | C164: LIM LIMPOPO
B165: LIM344 Makhado | C165: LIM LIMPOPO
B166: LIM345 Collins Chabane | C166: LIM LIMPOPO
B167: DC34 Vhembe | C167: LIM LIMPOPO
B168: LIM351 Blouberg | C168: LIM LIMPOPO
B169: LIM353 Molemole | C169: LIM LIMPOPO
B170: LIM354 Polokwane | C170: LIM LIMPOPO
B171: LIM355 Lepelle-Nkumpi | C171: LIM LIMPOPO
B172: DC35 Capricorn | C172: LIM LIMPOPO
B173: LIM361 Thabazimbi | C173: LIM LIMPOPO
B174: LIM362 Lephalale | C174: LIM LIMPOPO
B175: LIM366 Bela Bela | C175: LIM LIMPOPO
B176: LIM367 Mogalakwena | C176: LIM LIMPOPO
B177: LIM368 Modimolle-Mookgopong | C177: LIM LIMPOPO
B178: DC36 Waterberg | C178: LIM LIMPOPO
B179: LIM471 Ephraim Mogale | C179: LIM LIMPOPO
B180: LIM472 Elias Motsoaledi | C180: LIM LIMPOPO
B181: LIM473 Makhuduthamaga | C181: LIM LIMPOPO
B182: LIM476 Tubatse Fetakgomo | C182: LIM LIMPOPO
B183: DC47 Sekhukhune | C183: LIM LIMPOPO
B184: MP301 Albert Luthuli | C184: MP MPUMALANGA
B185: MP302 Msukaligwa | C185: MP MPUMALANGA
B186: MP303 Mkhondo | C186: MP MPUMALANGA
B187: MP304 Pixley Ka Seme (MP) | C187: MP MPUMALANGA
B188: MP305 Lekwa | C188: MP MPUMALANGA
B189: MP306 Dipaleseng | C189: MP MPUMALANGA
B190: MP307 Govan Mbeki | C190: MP MPUMALANGA
B191: DC30 Gert Sibande | C191: MP MPUMALANGA
B192: MP311 Victor Khanye | C192: MP MPUMALANGA
B193: MP312 Emalahleni (Mp) | C193: MP MPUMALANGA
B194: MP313 Steve Tshwete | C194: MP MPUMALANGA
B195: MP314 Emakhazeni | C195: MP MPUMALANGA
B196: MP315 Thembisile Hani | C196: MP MPUMALANGA
B197: MP316 Dr J.S. Moroka | C197: MP MPUMALANGA
B198: DC31 Nkangala | C198: MP MPUMALANGA
B199: MP321 Thaba Chweu | C199: MP MPUMALANGA
B200: MP324 Nkomazi | C200: MP MPUMALANGA
... 87 more rows

Sheet Org structure
A1: Organisational Structure Votes | C1: Organisational Structure Sub-Votes | E1: Display Sub-Votes
A2: =B2&" - "&C2 -> Vote 01 - Council | B2: Vote 01 | C2: Council
A3: =B5&" - "&C5 -> Vote 02 - Municipal Manager | B3: 01.1 | C3: Council's General Expenses | D3: =CONCATENATE(B3, " - ", C3) -> 01.1 - Council's General Expenses | E3: 01.1 - Council's General Expenses
A4: =B13&" - "&C13 -> Vote 03 - Budget & Treasury | B4: 01.2 | C4: Council General - Independent Contractor | D4: =CONCATENATE(B4, " - ", C4) -> 01.2 - Council General - Independent Contractor | E4: 01.2 - Council General - Independent Contractor
A5: =B24&" - "&C24 -> Vote 04 - Community Services | B5: Vote 02 | C5: Municipal Manager
A6: =B31&" - "&C31 -> Vote 05 - Corporate Services | B6: 02.1 | C6: Municipal Manager | D6: =CONCATENATE(B6, " - ", C6) -> 02.1 - Municipal Manager | E6: 02.1 - Municipal Manager
A7: =B41&" - "&C41 -> Vote 06 - Planning & Development | B7: 02.2 | C7: Communication Office | D7: 02.2 - Communication Office | E7: 02.2 - Communication Office
A8: =B45&" - "&C45 -> Vote 07 - Technical Services | B8: 02.3 | C8: Internal Audit | D8: 02.3 - Internal Audit | E8: 02.3 - Internal Audit
A9: =B66&" - "&C66 -> Vote 08 - Roadworks | B9: 02.4 | C9: Strategic Manager | D9: 02.4 - Strategic Manager | E9: 02.4 - Strategic Manager
A10: =B69&" - "&C69 -> Vote 09 - Entity: Chis Hani Development Agency | B10: 02.5 | C10: Special Programmes Unit | D10: 02.5 - Special Programmes Unit | E10: 02.5 - Special Programmes Unit
A11: =B71&" - "&C71 -> Vote 10 - Vote 10 | B11: 02.6 | C11: Special Programmes Unit | D11: 02.6 - Special Programmes Unit | E11: 02.6 - Special Programmes Unit
A12: Vote 11 - Vote 11 | B12: 02.7 | C12: Customer Care | D12: 02.7 - Customer Care | E12: 02.7 - Customer Care
A13: Vote 12 - Vote 12 | B13: Vote 03 | C13: Budget & Treasury
A14: Vote 13 - Vote 13 | B14: 03.1 | C14: Budget & Treasury Office | D14: =CONCATENATE(B14, " - ", C14) -> 03.1 - Budget & Treasury Office | E14: 03.1 - Budget & Treasury Office
A15: Vote 14 - Vote 14 | B15: 03.2 | C15: Budget & Treasury Office | D15: 03.2 - Budget & Treasury Office | E15: 03.2 - Budget & Treasury Office
A16: Vote 15 - Other | B16: 03.3 | C16: Accounting Services | D16: 03.3 - Accounting Services | E16: 03.3 - Accounting Services
B17: 03.4 | C17: Budget Control | D17: 03.4 - Budget Control | E17: 03.4 - Budget Control
B18: 03.5 | C18: Revenue Services | D18: 03.5 - Revenue Services | E18: 03.5 - Revenue Services
B19: 03.6 | C19: Supply Chain Management | D19: 03.6 - Supply Chain Management | E19: 03.6 - Supply Chain Management
B20: 03.7 | C20: Systems Administration | D20: 03.7 - Systems Administration | E20: 03.7 - Systems Administration
B21: 03.8 | C21: Financial Statements Management | D21: 03.8 - Financial Statements Management | E21: 03.8 - Financial Statements Management
B22: 03.9 | C22: Grants & Donations | D22: 03.9 - Grants & Donations | E22: 03.9 - Grants & Donations
B23: 03.10 | C23: Assets Management | D23: 03.10 - Assets Management | E23: 03.10 - Assets Management
B24: Vote 04 | C24: Community Services
B25: 04.1 | C25: Community & Social Services | D25: =CONCATENATE(B25, " - ", C25) -> 04.1 - Community & Social Services | E25: 04.1 - Community & Social Services
B26: 04.2 | C26: Disaster Management | D26: 04.2 - Disaster Management | E26: 04.2 - Disaster Management
B27: 04.3 | C27: Environmental Management | D27: 04.3 - Environmental Management | E27: 04.3 - Environmental Management
B28: 04.4 | C28: Fire Services | D28: 04.4 - Fire Services | E28: 04.4 - Fire Services
B29: 04.5 | C29: Municipal Health Services | D29: 04.5 - Municipal Health Services | E29: 04.5 - Municipal Health Services
B30: 04.6 | C30: Hiv And Aids Section | D30: 04.6 - Hiv And Aids Section | E30: 04.6 - Hiv And Aids Section
B31: Vote 05 | C31: Corporate Services
B32: 05.1 | C32: Corporate Services | D32: =CONCATENATE(B32, " - ", C32) -> 05.1 - Corporate Services | E32: 05.1 - Corporate Services
B33: 05.2 | C33: Council Support | D33: 05.2 - Council Support | E33: 05.2 - Council Support
B34: 05.3 | C34: Employee Assistance Unit | D34: 05.3 - Employee Assistance Unit | E34: 05.3 - Employee Assistance Unit
B35: 05.4 | C35: Administration | D35: 05.4 - Administration | E35: 05.4 - Administration
B36: 05.5 | C36: Fleet | D36: 05.5 - Fleet | E36: 05.5 - Fleet
B37: 05.6 | C37: Human Resources | D37: 05.6 - Human Resources | E37: 05.6 - Human Resources
B38: 05.7 | C38: Legal Services | D38: 05.7 - Legal Services | E38: 05.7 - Legal Services
B39: 05.8 | C39: Information Technology Management | D39: 05.8 - Information Technology Management | E39: 05.8 - Information Technology Management
B40: 05.9 | C40: Job Evaluation Unit | D40: 05.9 - Job Evaluation Unit | E40: 05.9 - Job Evaluation Unit
B41: Vote 06 | C41: Planning & Development
B42: 06.1 | C42: Integrated Planning & Economic Develop | D42: =CONCATENATE(B42, " - ", C42) -> 06.1 - Integrated Planning & Economic Develop | E42: 06.1 - Integrated Planning & Economic Develop
B43: 06.2 | C43: Local Economic Development | D43: =CONCATENATE(B43, " - ", C43) -> 06.2 - Local Economic Development | E43: 06.2 - Local Economic Development
B44: 06.3 | C44: Planning | D44: =CONCATENATE(B44, " - ", C44) -> 06.3 - Planning | E44: 06.3 - Planning
B45: Vote 07 | C45: Technical Services
B46: 07.1 | C46: Technical Services Administration | D46: =CONCATENATE(B46, " - ", C46) -> 07.1 - Technical Services Administration | E46: 07.1 - Technical Services Administration
B47: 07.2 | C47: Project Management Unit | D47: 07.2 - Project Management Unit | E47: 07.2 - Project Management Unit
B48: 07.3 | C48: Sewerage Services | D48: 07.3 - Sewerage Services | E48: 07.3 - Sewerage Services
B49: 07.4 | C49: Inxuba Sanitation | D49: 07.4 - Inxuba Sanitation | E49: 07.4 - Inxuba Sanitation
B50: 07.5 | C50: Lukhanji Sanitation | D50: 07.5 - Lukhanji Sanitation | E50: 07.5 - Lukhanji Sanitation
B51: 07.6 | C51: Intsika Yethu Sanitation | D51: 07.6 - Intsika Yethu Sanitation | E51: 07.6 - Intsika Yethu Sanitation
B52: 07.7 | C52: Inkwanca Sanitation | D52: 07.7 - Inkwanca Sanitation | E52: 07.7 - Inkwanca Sanitation
B53: 07.8 | C53: Engcobo Sanitation | D53: 07.8 - Engcobo Sanitation | E53: 07.8 - Engcobo Sanitation
B54: 07.9 | C54: Tsolwana Sanitation | D54: 07.9 - Tsolwana Sanitation | E54: 07.9 - Tsolwana Sanitation
B55: 07.10 | C55: Sakhisizwe Sanitation | D55: 07.10 - Sakhisizwe Sanitation | E55: 07.10 - Sakhisizwe Sanitation
B56: 07.11 | C56: Emalahleni Sanitation | D56: 07.11 - Emalahleni Sanitation | E56: 07.11 - Emalahleni Sanitation
B57: 07.12 | C57: Water Services Authority | D57: 07.12 - Water Services Authority | E57: 07.12 - Water Services Authority
B58: 07.13 | C58: Inxuba Water | D58: 07.13 - Inxuba Water | E58: 07.13 - Inxuba Water
B59: 07.14 | C59: Lukhanji Water | D59: 07.14 - Lukhanji Water | E59: 07.14 - Lukhanji Water
B60: 07.15 | C60: Intiska Yethu Water | D60: 07.15 - Intiska Yethu Water | E60: 07.15 - Intiska Yethu Water
B61: 07.16 | C61: Inkwanca Water | D61: 07.16 - Inkwanca Water | E61: 07.16 - Inkwanca Water
B62: 07.17 | C62: Engcobo Water | D62: 07.17 - Engcobo Water | E62: 07.17 - Engcobo Water
B63: 07.18 | C63: Tsolwana Water | D63: 07.18 - Tsolwana Water | E63: 07.18 - Tsolwana Water
B64: 07.19 | C64: Sakhisizwe Water | D64: 07.19 - Sakhisizwe Water | E64: 07.19 - Sakhisizwe Water
B65: 07.20 | C65: Emalahleni Water | D65: 07.20 - Emalahleni Water | E65: 07.20 - Emalahleni Water
B66: Vote 08 | C66: Roadworks
B67: 08.1 | C67: Indirect - Roads | D67: =CONCATENATE(B67, " - ", C67) -> 08.1 - Indirect - Roads | E67: 08.1 - Indirect - Roads
B68: 08.2 | C68: Plant: Public Works | D68: =CONCATENATE(B68, " - ", C68) -> 08.2 - Plant: Public Works | E68: 08.2 - Plant: Public Works
B69: Vote 09 | C69: Entity: Chis Hani Development Agency
B70: 09.1 | C70: Chris Hani Development Agency | D70: =CONCATENATE(B70, " - ", C70) -> 09.1 - Chris Hani Development Agency | E70: 09.1 - Chris Hani Development Agency
B71: Vote 10 | C71: Vote 10
B72: Vote 11 | C72: Vote 11
B73: Vote 12 | C73: Vote 12
B74: Vote 13 | C74: Vote 13
B75: Vote 14 | C75: Vote 14
B76: Vote 15 | C76: Other

Sheet Contacts
A1: =muni&" - "&" Contact Information" -> DC13 Chris Hani - Contact Information
A3: A. GENERAL INFORMATION
A4: Municipality | B4: =muni -> DC13 Chris Hani | C4: =IF(B4="Choose name from List","Set name on 'Instructions' sheet", "") -> 
A6: Grade | C6: 1 Grade in terms of the Remuneration of Public Office Bearers Act.
A8: Province | B8: =IF(B4>" ",VLOOKUP(B4,'Lookup and lists'!B29:C307,2, FALSE)," ") -> EC EASTERN CAPE
A10: Web Address | B10: www.chrishanidm.gov.za
A12: e-mail Address
A14: B. CONTACT INFORMATION
A15: Postal address:
A16: P.O. Box | B16: Private Bag X7121
A17: City / Town | B17: Queenstown
A18: Postal Code | B18: 5320
A20: Street address
A21: Building
A22: Street No. & Name | B22: 15 Bells Road
A23: City / Town | B23: Queenstown
A24: Postal Code | B24: 5320
A26: General Contacts
A27: Telephone number | B27: 045-808 4600
A28: Fax number | B28: 045-839 2655
A30: C. POLITICAL LEADERSHIP
A31: Speaker: | C31: Secretary/PA to the Speaker:
A32: ID Number | C32: ID Number
A33: Title | B33: Cllr. | C33: Title | D33: Ms
A34: Name | B34: MXOLISI KOYO | C34: Name | D34: NANCY RATELE
A35: Telephone number | C35: Telephone number | D35: 045-808 4606
A36: Cell number | B36: 082 550 4720 | C36: Cell number | D36: 078 496 4347
A37: Fax number | B37: 045-808 4629 | C37: Fax number | D37: 045-808 4629
A38: E-mail address | B38: mckoyo@chrishanidm.gov.za | C38: E-mail address | D38: nratele@xhrishanidm.gov.za
A40: Mayor/Executive Mayor: | C40: Secretary/PA to the Mayor/Executive Mayor:
A41: ID Number | C41: ID Number
A42: Title | B42: Cllr. | C42: Title | D42: Ms
A43: Name | B43: KHOLISWA VIMBAYO | C43: Name | D43: NANCY RATELE
A44: Telephone number | B44: 045 828 4606 | C44: Telephone number | D44: 045-808 4606
A45: Cell number | B45: 072 110 4649 | C45: Cell number | D45: 078 496 4347
A46: Fax number | B46: 045 - 808 4629 | C46: Fax number | D46: 045-808 4629
A47: E-mail address | B47: mvimbayo@chrishanidm.gov.za | C47: E-mail address | D47: nratele@xhrishanidm.gov.za
A49: Deputy Mayor/Executive Mayor: | C49: Secretary/PA to the Deputy Mayor/Executive Mayor:
A50: ID Number | C50: ID Number
A51: Title | C51: Title
A52: Name | C52: Name
A53: Telephone number | C53: Telephone number
A54: Cell number | C54: Cell number
A55: Fax number | C55: Fax number
A56: E-mail address | C56: E-mail address
A58: D. MANAGEMENT LEADERSHIP
A59: Municipal Manager: | C59: Secretary/PA to the Municipal Manager:
A60: ID Number | C60: ID Number
A61: Title | B61: Mr. | C61: Title
A62: Name | B62: Gcobani Mashiyi | C62: Name
A63: Telephone number | B63: 045-808 4610 | C63: Telephone number
A64: Cell number | C64: Cell number
A65: Fax number | B65: 045-839 1582 | C65: Fax number
A66: E-mail address | C66: E-mail address
A68: Chief Financial Officer | C68: Secretary/PA to the Chief Financial Officer
A69: ID Number | C69: ID Number
A70: Title | B70: Mr | C70: Title | D70: Miss
A71: Name | B71: M Dyushu | C71: Name | D71: B Xezu
A72: Telephone number | B72: 0458084722 | C72: Telephone number | D72: 0458084722
A73: Cell number | C73: Cell number
A74: Fax number | C74: Fax number
A75: E-mail address | B75: mdyushu@chrishanidm.gov.za | C75: E-mail address | D75: bxezu@chrishanidm.gov.za
A77: Official responsible for submitting financial information | C77: Official responsible for submitting financial information
A78: ID Number | C78: ID Number
A79: Title | B79: Mrs | C79: Title | D79: Mr
A80: Name | B80: PS HLISANI | C80: Name | D80: P PAMBANISO
A81: Telephone number | B81: 0458084752 | C81: Telephone number | D81: 045 808 4627
A82: Cell number | C82: Cell number
A83: Fax number | C83: Fax number
A84: E-mail address | B84: ssomlotha@chrishanidm.gov.za | C84: E-mail address | D84: piti@chrishanidm.gov.za
A85: Official responsible for submitting financial information | C85: Official responsible for submitting financial information
A86: ID Number | C86: ID Number
A87: Title | C87: Title
A88: Name | C88: Name
A89: Telephone number | C89: Telephone number
A90: Cell number | C90: Cell number
A91: Fax number | C91: Fax number
A92: E-mail address | C92: E-mail address
A93: Official responsible for submitting financial information | C93: Official responsible for submitting financial information
A94: ID Number | C94: ID Number
A95: Title | C95: Title
A96: Name | C96: Name
A97: Telephone number | C97: Telephone number
A98: Cell number | C98: Cell number
A99: Fax number | C99: Fax number
A100: E-mail address | C100: E-mail address
A101: Official responsible for submitting financial information | C101: Official responsible for submitting financial information
A102: ID Number | C102: ID Number
A103: Title | C103: Title
A104: Name | C104: Name
A105: Telephone number | C105: Telephone number
A106: Cell number | C106: Cell number
A107: Fax number | C107: Fax number
A108: E-mail address | C108: E-mail address
A109: Official responsible for submitting financial information | C109: Official responsible for submitting financial information
A110: ID Number | C110: ID Number
A111: Title | C111: Title
A112: Name | C112: Name
A113: Telephone number | C113: Telephone number
A114: Cell number | C114: Cell number
A115: Fax number | C115: Fax number
A116: E-mail address | C116: E-mail address
A117: Official responsible for submitting financial information | C117: Official responsible for submitting financial information
A118: ID Number | C118: ID Number
A119: Title | C119: Title
A120: Name | C120: Name
A121: Telephone number | C121: Telephone number
A122: Cell number | C122: Cell number
A123: Fax number | C123: Fax number
A124: E-mail address | C124: E-mail address
A125: Official responsible for submitting financial information | C125: Official responsible for submitting financial information
A126: ID Number | C126: ID Number
A127: Title | C127: Title
A128: Name | C128: Name
A129: Telephone number | C129: Telephone number
A130: Cell number | C130: Cell number
A131: Fax number | C131: Fax number
A132: E-mail address | C132: E-mail address
A133: Official responsible for submitting financial information
A134: ID Number
A135: Title
A136: Name
A137: Telephone number
A138: Cell number
A139: Fax number
A140: E-mail address

Sheet A1-Sum
A1: =muni&" - "&Approve1 -> DC13 Chris Hani - Table A1 Budget Summary
A2: =desc -> Description | B2: =head1b -> 2016/17 | C2: =head1A -> 2017/18 | D2: =Head1 -> 2018/19 | E2: =Head2 -> Current Year 2019/20 | I2: =Head3 -> 2020/21 Medium Term Revenue & Expenditure Framework
A3: R thousands | B3: =Head5 -> Audited Outcome | C3: =Head5 -> Audited Outcome | D3: =Head5 -> Audited Outcome | E3: =Head6 -> Original Budget | F3: =Head7 -> Adjusted Budget | G3: =Head8 -> Full Year Forecast | H3: =Head5b -> Pre-audit outcome | I3: =Head9 -> Budget Year 2020/21 | J3: =Head10 -> Budget Year +1 2021/22 | K3: =Head11 -> Budget Year +2 2022/23
A4: Financial Performance
A5: Property rates | B5: ='DC13 A i Schedule 2020 2021 Fin'!C5 -> 0 | C5: ='DC13 A i Schedule 2020 2021 Fin'!D5 -> 0 | D5: ='DC13 A i Schedule 2020 2021 Fin'!E5 -> 0 | E5: ='DC13 A i Schedule 2020 2021 Fin'!F5 -> 0 | F5: ='DC13 A i Schedule 2020 2021 Fin'!G5 -> 0 | G5: ='DC13 A i Schedule 2020 2021 Fin'!H5 -> 0 | H5: ='DC13 A i Schedule 2020 2021 Fin'!I5 -> 0 | I5: ='DC13 A i Schedule 2020 2021 Fin'!J5 -> 0 | J5: ='DC13 A i Schedule 2020 2021 Fin'!K5 -> 0 | K5: ='DC13 A i Schedule 2020 2021 Fin'!L5 -> 0
A6: Service charges | B6: =SUM('DC13 A i Schedule 2020 2021 Fin'!C6:C9) -> 223923199 | C6: =SUM('DC13 A i Schedule 2020 2021 Fin'!D6:D9) -> 275035828 | D6: =SUM('DC13 A i Schedule 2020 2021 Fin'!E6:E9) -> 305466551 | E6: =SUM('DC13 A i Schedule 2020 2021 Fin'!F6:F9) -> 244461260 | F6: =SUM('DC13 A i Schedule 2020 2021 Fin'!G6:G9) -> 303532083 | G6: =SUM('DC13 A i Schedule 2020 2021 Fin'!H6:H9) -> 303532083 | H6: =SUM('DC13 A i Schedule 2020 2021 Fin'!I6:I9) -> 250227080.3 | I6: =SUM('DC13 A i Schedule 2020 2021 Fin'!J6:J9) -> 329012273 | J6: =SUM('DC13 A i Schedule 2020 2021 Fin'!K6:K9) -> 335282279 | K6: =SUM('DC13 A i Schedule 2020 2021 Fin'!L6:L9) -> 352046391
A7: Investment revenue | B7: ='DC13 A i Schedule 2020 2021 Fin'!C12 -> 36704686 | C7: ='DC13 A i Schedule 2020 2021 Fin'!D12 -> 29197389 | D7: ='DC13 A i Schedule 2020 2021 Fin'!E12 -> 36228060 | E7: ='DC13 A i Schedule 2020 2021 Fin'!F12 -> 34811696 | F7: ='DC13 A i Schedule 2020 2021 Fin'!G12 -> 36036101 | G7: ='DC13 A i Schedule 2020 2021 Fin'!H12 -> 36036101 | H7: ='DC13 A i Schedule 2020 2021 Fin'!I12 -> 19288554.69 | I7: ='DC13 A i Schedule 2020 2021 Fin'!J12 -> 37837906 | J7: ='DC13 A i Schedule 2020 2021 Fin'!K12 -> 39729801 | K7: ='DC13 A i Schedule 2020 2021 Fin'!L12 -> 41716291
A8: Transfers recognised - operational | B8: ='DC13 A i Schedule 2020 2021 Fin'!C18 -> 532895960 | C8: ='DC13 A i Schedule 2020 2021 Fin'!D18 -> 827383165 | D8: ='DC13 A i Schedule 2020 2021 Fin'!E18 -> 600176012 | E8: ='DC13 A i Schedule 2020 2021 Fin'!F18 -> 633214738 | F8: ='DC13 A i Schedule 2020 2021 Fin'!G18 -> 725119759 | G8: ='DC13 A i Schedule 2020 2021 Fin'!H18 -> 725119759 | H8: ='DC13 A i Schedule 2020 2021 Fin'!I18 -> 660359473.3 | I8: ='DC13 A i Schedule 2020 2021 Fin'!J18 -> 649963949 | J8: ='DC13 A i Schedule 2020 2021 Fin'!K18 -> 663221697 | K8: ='DC13 A i Schedule 2020 2021 Fin'!L18 -> 747007481
A9: Other own revenue | B9: ='DC13 A i Schedule 2020 2021 Fin'!C11+'DC13 A i Schedule 2020 2021 Fin'!C13+'DC13 A i Schedule 2020 2021 Fin'!C14+'DC13 A i Schedule 2020 2021 Fin'!C15+'DC13 A i Schedule 2020 2021 Fin'!C16+'DC13 A i Schedule 2020 2021 Fin'!C17+'DC13 A i Schedule 2020 2021 Fin'!C19+'DC13 A i Schedule 2020 2021 Fin'!C20 -> 38573411 | C9: ='DC13 A i Schedule 2020 2021 Fin'!D11+'DC13 A i Schedule 2020 2021 Fin'!D13+'DC13 A i Schedule 2020 2021 Fin'!D14+'DC13 A i Schedule 2020 2021 Fin'!D15+'DC13 A i Schedule 2020 2021 Fin'!D16+'DC13 A i Schedule 2020 2021 Fin'!D17+'DC13 A i Schedule 2020 2021 Fin'!D19+'DC13 A i Schedule 2020 2021 Fin'!D20 -> 31054202 | D9: ='DC13 A i Schedule 2020 2021 Fin'!E11+'DC13 A i Schedule 2020 2021 Fin'!E13+'DC13 A i Schedule 2020 2021 Fin'!E14+'DC13 A i Schedule 2020 2021 Fin'!E15+'DC13 A i Schedule 2020 2021 Fin'!E16+'DC13 A i Schedule 2020 2021 Fin'!E17+'DC13 A i Schedule 2020 2021 Fin'!E19+'DC13 A i Schedule 2020 2021 Fin'!E20 -> 61246571 | E9: ='DC13 A i Schedule 2020 2021 Fin'!F11+'DC13 A i Schedule 2020 2021 Fin'!F13+'DC13 A i Schedule 2020 2021 Fin'!F14+'DC13 A i Schedule 2020 2021 Fin'!F15+'DC13 A i Schedule 2020 2021 Fin'!F16+'DC13 A i Schedule 2020 2021 Fin'!F17+'DC13 A i Schedule 2020 2021 Fin'!F19+'DC13 A i Schedule 2020 2021 Fin'!F20 -> 35733962 | F9: ='DC13 A i Schedule 2020 2021 Fin'!G11+'DC13 A i Schedule 2020 2021 Fin'!G13+'DC13 A i Schedule 2020 2021 Fin'!G14+'DC13 A i Schedule 2020 2021 Fin'!G15+'DC13 A i Schedule 2020 2021 Fin'!G16+'DC13 A i Schedule 2020 2021 Fin'!G17+'DC13 A i Schedule 2020 2021 Fin'!G19+'DC13 A i Schedule 2020 2021 Fin'!G20 -> 116970232 | G9: ='DC13 A i Schedule 2020 2021 Fin'!H11+'DC13 A i Schedule 2020 2021 Fin'!H13+'DC13 A i Schedule 2020 2021 Fin'!H14+'DC13 A i Schedule 2020 2021 Fin'!H15+'DC13 A i Schedule 2020 2021 Fin'!H16+'DC13 A i Schedule 2020 2021 Fin'!H17+'DC13 A i Schedule 2020 2021 Fin'!H19+'DC13 A i Schedule 2020 2021 Fin'!H20 -> 116970232 | H9: ='DC13 A i Schedule 2020 2021 Fin'!I11+'DC13 A i Schedule 2020 2021 Fin'!I13+'DC13 A i Schedule 2020 2021 Fin'!I14+'DC13 A i Schedule 2020 2021 Fin'!I15+'DC13 A i Schedule 2020 2021 Fin'!I16+'DC13 A i Schedule 2020 2021 Fin'!I17+'DC13 A i Schedule 2020 2021 Fin'!I19+'DC13 A i Schedule 2020 2021 Fin'!I20 -> 83231792.91 | I9: ='DC13 A i Schedule 2020 2021 Fin'!J11+'DC13 A i Schedule 2020 2021 Fin'!J13+'DC13 A i Schedule 2020 2021 Fin'!J14+'DC13 A i Schedule 2020 2021 Fin'!J15+'DC13 A i Schedule 2020 2021 Fin'!J16+'DC13 A i Schedule 2020 2021 Fin'!J17+'DC13 A i Schedule 2020 2021 Fin'!J19+'DC13 A i Schedule 2020 2021 Fin'!J20 -> 126256515 | J9: ='DC13 A i Schedule 2020 2021 Fin'!K11+'DC13 A i Schedule 2020 2021 Fin'!K13+'DC13 A i Schedule 2020 2021 Fin'!K14+'DC13 A i Schedule 2020 2021 Fin'!K15+'DC13 A i Schedule 2020 2021 Fin'!K16+'DC13 A i Schedule 2020 2021 Fin'!K17+'DC13 A i Schedule 2020 2021 Fin'!K19+'DC13 A i Schedule 2020 2021 Fin'!K20 -> 129601840 | K9: ='DC13 A i Schedule 2020 2021 Fin'!L11+'DC13 A i Schedule 2020 2021 Fin'!L13+'DC13 A i Schedule 2020 2021 Fin'!L14+'DC13 A i Schedule 2020 2021 Fin'!L15+'DC13 A i Schedule 2020 2021 Fin'!L16+'DC13 A i Schedule 2020 2021 Fin'!L17+'DC13 A i Schedule 2020 2021 Fin'!L19+'DC13 A i Schedule 2020 2021 Fin'!L20 -> 136054433
A10: ='DC13 A i Schedule 2020 2021 Fin'!A21 -> Total Revenue (excluding capital transfers and contributions) | B10: =SUM(B5:B9) -> 832097256 | C10: 1162670584 | D10: 1003117194 | E10: 948221656 | F10: 1181658175 | G10: 1181658175 | H10: 1013106901 | I10: 1143070643 | J10: 1167835617 | K10: 1276824596
A11: Employee costs | B11: ='DC13 A i Schedule 2020 2021 Fin'!C24 -> 259775924 | C11: ='DC13 A i Schedule 2020 2021 Fin'!D24 -> 302602219 | D11: ='DC13 A i Schedule 2020 2021 Fin'!E24 -> 355802035.2 | E11: ='DC13 A i Schedule 2020 2021 Fin'!F24 -> 337874359 | F11: ='DC13 A i Schedule 2020 2021 Fin'!G24 -> 344682232 | G11: ='DC13 A i Schedule 2020 2021 Fin'!H24 -> 344682232 | H11: ='DC13 A i Schedule 2020 2021 Fin'!I24 -> 288391636.9 | I11: ='DC13 A i Schedule 2020 2021 Fin'!J24 -> 371509388 | J11: ='DC13 A i Schedule 2020 2021 Fin'!K24 -> 388096357 | K11: ='DC13 A i Schedule 2020 2021 Fin'!L24 -> 410816454
A12: Remuneration of councillors | B12: ='DC13 A i Schedule 2020 2021 Fin'!C25 -> 9577450 | C12: ='DC13 A i Schedule 2020 2021 Fin'!D25 -> 11161776 | D12: ='DC13 A i Schedule 2020 2021 Fin'!E25 -> 11665226 | E12: ='DC13 A i Schedule 2020 2021 Fin'!F25 -> 13902286 | F12: ='DC13 A i Schedule 2020 2021 Fin'!G25 -> 12427286 | G12: ='DC13 A i Schedule 2020 2021 Fin'!H25 -> 12427286 | H12: ='DC13 A i Schedule 2020 2021 Fin'!I25 -> 9829278.91 | I12: ='DC13 A i Schedule 2020 2021 Fin'!J25 -> 13172924 | J12: ='DC13 A i Schedule 2020 2021 Fin'!K25 -> 13963298 | K12: ='DC13 A i Schedule 2020 2021 Fin'!L25 -> 14801097
A13: Depreciation & asset impairment | B13: ='DC13 A i Schedule 2020 2021 Fin'!C27 -> 121882964 | C13: ='DC13 A i Schedule 2020 2021 Fin'!D27 -> 142109367 | D13: ='DC13 A i Schedule 2020 2021 Fin'!E27 -> 157121095 | E13: ='DC13 A i Schedule 2020 2021 Fin'!F27 -> 140000000 | F13: ='DC13 A i Schedule 2020 2021 Fin'!G27 -> 155000000 | G13: ='DC13 A i Schedule 2020 2021 Fin'!H27 -> 155000000 | H13: ='DC13 A i Schedule 2020 2021 Fin'!I27 -> 0 | I13: ='DC13 A i Schedule 2020 2021 Fin'!J27 -> 128309274 | J13: ='DC13 A i Schedule 2020 2021 Fin'!K27 -> 133441648 | K13: ='DC13 A i Schedule 2020 2021 Fin'!L27 -> 138779315
A14: Finance charges | B14: ='DC13 A i Schedule 2020 2021 Fin'!C28 -> 0 | C14: ='DC13 A i Schedule 2020 2021 Fin'!D28 -> 257064 | D14: ='DC13 A i Schedule 2020 2021 Fin'!E28 -> 997055 | E14: ='DC13 A i Schedule 2020 2021 Fin'!F28 -> 0 | F14: ='DC13 A i Schedule 2020 2021 Fin'!G28 -> 40000 | G14: ='DC13 A i Schedule 2020 2021 Fin'!H28 -> 40000 | H14: ='DC13 A i Schedule 2020 2021 Fin'!I28 -> 60091.74 | I14: ='DC13 A i Schedule 2020 2021 Fin'!J28 -> 500000 | J14: ='DC13 A i Schedule 2020 2021 Fin'!K28 -> 540000 | K14: ='DC13 A i Schedule 2020 2021 Fin'!L28 -> 581600
A15: Materials and bulk purchases | B15: ='DC13 A i Schedule 2020 2021 Fin'!C29+'DC13 A i Schedule 2020 2021 Fin'!C30 -> 21770752 | C15: ='DC13 A i Schedule 2020 2021 Fin'!D29+'DC13 A i Schedule 2020 2021 Fin'!D30 -> 16374604 | D15: ='DC13 A i Schedule 2020 2021 Fin'!E29+'DC13 A i Schedule 2020 2021 Fin'!E30 -> 19785231 | E15: ='DC13 A i Schedule 2020 2021 Fin'!F29+'DC13 A i Schedule 2020 2021 Fin'!F30 -> 51795608 | F15: ='DC13 A i Schedule 2020 2021 Fin'!G29+'DC13 A i Schedule 2020 2021 Fin'!G30 -> 43486944 | G15: ='DC13 A i Schedule 2020 2021 Fin'!H29+'DC13 A i Schedule 2020 2021 Fin'!H30 -> 43486944 | H15: ='DC13 A i Schedule 2020 2021 Fin'!I29+'DC13 A i Schedule 2020 2021 Fin'!I30 -> 29139551.16 | I15: ='DC13 A i Schedule 2020 2021 Fin'!J29+'DC13 A i Schedule 2020 2021 Fin'!J30 -> 41649214 | J15: ='DC13 A i Schedule 2020 2021 Fin'!K29+'DC13 A i Schedule 2020 2021 Fin'!K30 -> 43808389 | K15: ='DC13 A i Schedule 2020 2021 Fin'!L29+'DC13 A i Schedule 2020 2021 Fin'!L30 -> 46066515
A16: Transfers and grants | B16: ='DC13 A i Schedule 2020 2021 Fin'!C32 -> 228939431 | C16: ='DC13 A i Schedule 2020 2021 Fin'!D32 -> 75195311 | D16: ='DC13 A i Schedule 2020 2021 Fin'!E32 -> 0 | E16: ='DC13 A i Schedule 2020 2021 Fin'!F32 -> 0 | F16: ='DC13 A i Schedule 2020 2021 Fin'!G32 -> 31638081 | G16: ='DC13 A i Schedule 2020 2021 Fin'!H32 -> 31638081 | H16: ='DC13 A i Schedule 2020 2021 Fin'!I32 -> 28638080 | I16: ='DC13 A i Schedule 2020 2021 Fin'!J32 -> 38030646 | J16: ='DC13 A i Schedule 2020 2021 Fin'!K32 -> 34356120 | K16: ='DC13 A i Schedule 2020 2021 Fin'!L32 -> 34744411
A17: Other expenditure | B17: ='DC13 A i Schedule 2020 2021 Fin'!C26+'DC13 A i Schedule 2020 2021 Fin'!C31+'DC13 A i Schedule 2020 2021 Fin'!C33+'DC13 A i Schedule 2020 2021 Fin'!C34 -> 506189775 | C17: ='DC13 A i Schedule 2020 2021 Fin'!D26+'DC13 A i Schedule 2020 2021 Fin'!D31+'DC13 A i Schedule 2020 2021 Fin'!D33+'DC13 A i Schedule 2020 2021 Fin'!D34 -> 681429315.2 | D17: ='DC13 A i Schedule 2020 2021 Fin'!E26+'DC13 A i Schedule 2020 2021 Fin'!E31+'DC13 A i Schedule 2020 2021 Fin'!E33+'DC13 A i Schedule 2020 2021 Fin'!E34 -> 668375556.6 | E17: ='DC13 A i Schedule 2020 2021 Fin'!F26+'DC13 A i Schedule 2020 2021 Fin'!F31+'DC13 A i Schedule 2020 2021 Fin'!F33+'DC13 A i Schedule 2020 2021 Fin'!F34 -> 807836205 | F17: ='DC13 A i Schedule 2020 2021 Fin'!G26+'DC13 A i Schedule 2020 2021 Fin'!G31+'DC13 A i Schedule 2020 2021 Fin'!G33+'DC13 A i Schedule 2020 2021 Fin'!G34 -> 539173668 | G17: ='DC13 A i Schedule 2020 2021 Fin'!H26+'DC13 A i Schedule 2020 2021 Fin'!H31+'DC13 A i Schedule 2020 2021 Fin'!H33+'DC13 A i Schedule 2020 2021 Fin'!H34 -> 539173668 | H17: ='DC13 A i Schedule 2020 2021 Fin'!I26+'DC13 A i Schedule 2020 2021 Fin'!I31+'DC13 A i Schedule 2020 2021 Fin'!I33+'DC13 A i Schedule 2020 2021 Fin'!I34 -> 334050756.4 | I17: ='DC13 A i Schedule 2020 2021 Fin'!J26+'DC13 A i Schedule 2020 2021 Fin'!J31+'DC13 A i Schedule 2020 2021 Fin'!J33+'DC13 A i Schedule 2020 2021 Fin'!J34 -> 451281847 | J17: ='DC13 A i Schedule 2020 2021 Fin'!K26+'DC13 A i Schedule 2020 2021 Fin'!K31+'DC13 A i Schedule 2020 2021 Fin'!K33+'DC13 A i Schedule 2020 2021 Fin'!K34 -> 437750520 | K17: ='DC13 A i Schedule 2020 2021 Fin'!L26+'DC13 A i Schedule 2020 2021 Fin'!L31+'DC13 A i Schedule 2020 2021 Fin'!L33+'DC13 A i Schedule 2020 2021 Fin'!L34 -> 498986775
A18: ='DC13 A i Schedule 2020 2021 Fin'!A35 -> Total Expenditure | B18: =SUM(B11:B17) -> 1148136296 | C18: =SUM(C11:C17) -> 1229129656 | D18: 1213746199 | E18: 1351408458 | F18: 1126448211 | G18: 1126448211 | H18: 690109395.1 | I18: 1044453293 | J18: 1051956332 | K18: 1144776167
A19: ='DC13 A i Schedule 2020 2021 Fin'!A37 -> Surplus/(Deficit) | B19: =B10-B18 -> -316039040 | C19: -66459072.25 | D19: -210629004.8 | E19: -403186802 | F19: 55209964 | G19: 55209964 | H19: 322997506.1 | I19: 98617350 | J19: 115879285 | K19: 132048429
A20: ='DC13 A i Schedule 2020 2021 Fin'!A38 -> Transfers and subsidies - capital (monetary allocations) (National / Provincial and District) | B20: ='DC13 A i Schedule 2020 2021 Fin'!C38 -> 756556999 | C20: ='DC13 A i Schedule 2020 2021 Fin'!D38 -> 261023642 | D20: ='DC13 A i Schedule 2020 2021 Fin'!E38 -> 318276029 | E20: ='DC13 A i Schedule 2020 2021 Fin'!F38 -> 424611262 | F20: ='DC13 A i Schedule 2020 2021 Fin'!G38 -> 412525588 | G20: ='DC13 A i Schedule 2020 2021 Fin'!H38 -> 412525588 | H20: ='DC13 A i Schedule 2020 2021 Fin'!I38 -> 218675653.1 | I20: ='DC13 A i Schedule 2020 2021 Fin'!J38 -> 620504000 | J20: ='DC13 A i Schedule 2020 2021 Fin'!K38 -> 584070000 | K20: ='DC13 A i Schedule 2020 2021 Fin'!L38 -> 446946000
A21: ='DC13 A i Schedule 2020 2021 Fin'!A39&" & "&'DC13 A i Schedule 2020 2021 Fin'!A40 -> Transfers and subsidies - capital (monetary allocations) (National / Provincial Departmental Agencies, Households, Non-profit Institutions, Private Enterprises, Public Corporatons, Higher Educational Institutions) & Transfers and subsidies - capital (in-kind - all) | B21: ='DC13 A i Schedule 2020 2021 Fin'!C39+'DC13 A i Schedule 2020 2021 Fin'!C40 -> 0 | C21: ='DC13 A i Schedule 2020 2021 Fin'!D39+'DC13 A i Schedule 2020 2021 Fin'!D40 -> 0 | D21: ='DC13 A i Schedule 2020 2021 Fin'!E39+'DC13 A i Schedule 2020 2021 Fin'!E40 -> 0 | E21: ='DC13 A i Schedule 2020 2021 Fin'!F39+'DC13 A i Schedule 2020 2021 Fin'!F40 -> 0 | F21: ='DC13 A i Schedule 2020 2021 Fin'!G39+'DC13 A i Schedule 2020 2021 Fin'!G40 -> 0 | G21: ='DC13 A i Schedule 2020 2021 Fin'!H39+'DC13 A i Schedule 2020 2021 Fin'!H40 -> 0 | H21: ='DC13 A i Schedule 2020 2021 Fin'!I39+'DC13 A i Schedule 2020 2021 Fin'!I40 -> 0 | I21: ='DC13 A i Schedule 2020 2021 Fin'!J39+'DC13 A i Schedule 2020 2021 Fin'!J40 -> 0 | J21: ='DC13 A i Schedule 2020 2021 Fin'!K39+'DC13 A i Schedule 2020 2021 Fin'!K40 -> 0 | K21: ='DC13 A i Schedule 2020 2021 Fin'!L39+'DC13 A i Schedule 2020 2021 Fin'!L40 -> 0
A22: ='DC13 A i Schedule 2020 2021 Fin'!A41 -> Surplus/(Deficit) after capital transfers & contributions | B22: =B19+SUM(B20:B21) -> 440517959 | C22: =C19+SUM(C20:C21) -> 194564569.8 | D22: 107647024.2 | E22: 21424460 | F22: 467735552 | G22: 467735552 | H22: 541673159.2 | I22: 719121350 | J22: 699949285 | K22: 578994429
A23: ='DC13 A i Schedule 2020 2021 Fin'!A46 -> Share of surplus/ (deficit) of associate | B23: ='DC13 A i Schedule 2020 2021 Fin'!C46 -> 0 | C23: ='DC13 A i Schedule 2020 2021 Fin'!D46 -> 0 | D23: ='DC13 A i Schedule 2020 2021 Fin'!E46 -> 0 | E23: ='DC13 A i Schedule 2020 2021 Fin'!F46 -> 0 | F23: ='DC13 A i Schedule 2020 2021 Fin'!G46 -> 0 | G23: ='DC13 A i Schedule 2020 2021 Fin'!H46 -> 0 | H23: ='DC13 A i Schedule 2020 2021 Fin'!I46 -> 0 | I23: ='DC13 A i Schedule 2020 2021 Fin'!J46 -> 0 | J23: ='DC13 A i Schedule 2020 2021 Fin'!K46 -> 0 | K23: ='DC13 A i Schedule 2020 2021 Fin'!L46 -> 0
A24: ='DC13 A i Schedule 2020 2021 Fin'!A47 -> Surplus/(Deficit) for the year | B24: =B22+B23 -> 440517959 | C24: =C22+C23 -> 194564569.8 | D24: 107647024.2 | E24: 21424460 | F24: 467735552 | G24: 467735552 | H24: 541673159.2 | I24: 719121350 | J24: 699949285 | K24: 578994429
A26: Capital expenditure & funds sources
A27: Capital expenditure | B27: ='A5-Capex'!C63 -> 0 | C27: ='A5-Capex'!D63 -> 0 | D27: ='A5-Capex'!E63 -> 0 | E27: ='A5-Capex'!F63 -> 420411262 | F27: ='A5-Capex'!G63 -> 447343522 | G27: ='A5-Capex'!H63 -> 447343522 | H27: ='A5-Capex'!I63 -> 233477778.2 | I27: ='A5-Capex'!J63 -> 620504000 | J27: ='A5-Capex'!K63 -> 584070000 | K27: ='A5-Capex'!L63 -> 446946000
A28: Transfers recognised - capital | B28: ='A5-Capex'!C70 -> 621630053 | C28: ='A5-Capex'!D70 -> 372561620 | D28: ='A5-Capex'!E70 -> 306390256 | E28: ='A5-Capex'!F70 -> 420411262 | F28: ='A5-Capex'!G70 -> 412525948 | G28: ='A5-Capex'!H70 -> 412525948 | H28: ='A5-Capex'!I70 -> 224886872.8 | I28: ='A5-Capex'!J70 -> 620504000 | J28: ='A5-Capex'!K70 -> 584070000 | K28: ='A5-Capex'!L70 -> 446946000
A30: ='A5-Capex'!A72 -> Borrowing | B30: ='A5-Capex'!C72 -> 0 | C30: ='A5-Capex'!D72 -> 80314 | D30: ='A5-Capex'!E72 -> 0 | E30: ='A5-Capex'!F72 -> 0 | F30: ='A5-Capex'!G72 -> 0 | G30: ='A5-Capex'!H72 -> 0 | H30: ='A5-Capex'!I72 -> 0 | I30: ='A5-Capex'!J72 -> 0 | J30: ='A5-Capex'!K72 -> 0 | K30: ='A5-Capex'!L72 -> 0
A31: ='A5-Capex'!A73 -> Internally generated funds | B31: ='A5-Capex'!C73 -> 50504981 | C31: ='A5-Capex'!D73 -> 19789554 | D31: ='A5-Capex'!E73 -> 21860239 | E31: ='A5-Capex'!F73 -> 0 | F31: ='A5-Capex'!G73 -> 34817574 | G31: ='A5-Capex'!H73 -> 34817574 | H31: ='A5-Capex'!I73 -> 8590905.36 | I31: ='A5-Capex'!J73 -> 0 | J31: ='A5-Capex'!K73 -> 0 | K31: ='A5-Capex'!L73 -> 0
A32: Total sources of capital funds | B32: =+B28+B30+B31 -> 672135034 | C32: =+C28+C30+C31 -> 392431488 | D32: 328250495 | E32: 420411262 | F32: 447343522 | G32: 447343522 | H32: 233477778.2 | I32: 620504000 | J32: 584070000 | K32: 446946000
A34: Financial position
A35: ='A6-FinPos'!A12 -> Total current assets | B35: ='A6-FinPos'!C12 -> 559184773 | C35: ='A6-FinPos'!D12 -> 471229051 | D35: ='A6-FinPos'!E12 -> 852634135 | E35: ='A6-FinPos'!F12 -> 476867919 | F35: ='A6-FinPos'!G12 -> 870043007 | G35: ='A6-FinPos'!H12 -> 870043007 | H35: ='A6-FinPos'!I12 -> 1761968347 | I35: ='A6-FinPos'!J12 -> 1028640355 | J35: ='A6-FinPos'!K12 -> 1288339733 | K35: ='A6-FinPos'!L12 -> 1339873323
A36: ='A6-FinPos'!A24 -> Total non current assets | B36: ='A6-FinPos'!C24 -> 3969768494 | C36: ='A6-FinPos'!D24 -> 3871921729 | D36: ='A6-FinPos'!E24 -> 4058410700 | E36: ='A6-FinPos'!F24 -> 4452834704 | F36: ='A6-FinPos'!G24 -> 4337819360 | G36: ='A6-FinPos'!H24 -> 4337819360 | H36: ='A6-FinPos'!I24 -> 4280563959 | I36: ='A6-FinPos'!J24 -> 3595628997 | J36: ='A6-FinPos'!K24 -> 3735936597 | K36: ='A6-FinPos'!L24 -> 3724767661
A37: ='A6-FinPos'!A34 -> Total current liabilities | B37: ='A6-FinPos'!C34 -> 329102826 | C37: ='A6-FinPos'!D34 -> 288090316.1 | D37: ='A6-FinPos'!E34 -> 634192890 | E37: ='A6-FinPos'!F34 -> 4224329427 | F37: ='A6-FinPos'!G34 -> 553937616 | G37: ='A6-FinPos'!H34 -> 553937616 | H37: ='A6-FinPos'!I34 -> 1218178206 | I37: ='A6-FinPos'!J34 -> 204078466 | J37: ='A6-FinPos'!K34 -> 229101647 | K37: ='A6-FinPos'!L34 -> 222140263
A38: ='A6-FinPos'!A39 -> Total non current liabilities | B38: ='A6-FinPos'!C39 -> 42496077 | C38: ='A6-FinPos'!D39 -> 59231495 | D38: ='A6-FinPos'!E39 -> 65893340 | E38: ='A6-FinPos'!F39 -> 59231495 | F38: ='A6-FinPos'!G39 -> 65893340 | G38: ='A6-FinPos'!H39 -> 65893340 | H38: ='A6-FinPos'!I39 -> 81040493.3 | I38: ='A6-FinPos'!J39 -> 65509214 | J38: ='A6-FinPos'!K39 -> 68784674 | K38: ='A6-FinPos'!L39 -> 71536061
A39: Community wealth/Equity | B39: ='A6-FinPos'!C48 -> 4157354364 | C39: ='A6-FinPos'!D48 -> 3995828969 | D39: ='A6-FinPos'!E48 -> 4210958605 | E39: ='A6-FinPos'!F48 -> 4224329427 | F39: ='A6-FinPos'!G48 -> 4588031411 | G39: ='A6-FinPos'!H48 -> 4588031411 | H39: ='A6-FinPos'!I48 -> 4745753130 | I39: ='A6-FinPos'!J48 -> 4357481672 | J39: ='A6-FinPos'!K48 -> 4726390009 | K39: ='A6-FinPos'!L48 -> 4770964660
A41: Cash flows
A42: Net cash from (used) operating | B42: ='A7-CFlow'!C17 -> 306630867 | C42: ='A7-CFlow'!D17 -> 453522140 | D42: ='A7-CFlow'!E17 -> 443356728 | E42: ='A7-CFlow'!F17 -> 117026790.3 | F42: ='A7-CFlow'!G17 -> 606550954.4 | G42: ='A7-CFlow'!H17 -> 606550954.4 | H42: ='A7-CFlow'!I17 -> -690109395.1 | I42: ='A7-CFlow'!J17 -> 647383871.4 | J42: ='A7-CFlow'!K17 -> 635175105.8 | K42: ='A7-CFlow'!L17 -> 508307888.2
A43: Net cash from (used) investing | B43: ='A7-CFlow'!C27 -> 4251 | C43: ='A7-CFlow'!D27 -> 0 | D43: ='A7-CFlow'!E27 -> 38283 | E43: ='A7-CFlow'!F27 -> -352291.64 | F43: ='A7-CFlow'!G27 -> -458099607 | G43: ='A7-CFlow'!H27 -> -458099607 | H43: ='A7-CFlow'!I27 -> 0 | I43: ='A7-CFlow'!J27 -> 8000000 | J43: ='A7-CFlow'!K27 -> 160000 | K43: ='A7-CFlow'!L27 -> 160000
A44: Net cash from (used) financing | B44: ='A7-CFlow'!C36 -> -468204533 | C44: ='A7-CFlow'!D36 -> -392431488 | D44: ='A7-CFlow'!E36 -> -328250495 | E44: ='A7-CFlow'!F36 -> 441107.92 | F44: ='A7-CFlow'!G36 -> 0 | G44: ='A7-CFlow'!H36 -> 0 | H44: ='A7-CFlow'!I36 -> 0 | I44: ='A7-CFlow'!J36 -> -458640 | J44: ='A7-CFlow'!K36 -> -476985 | K44: ='A7-CFlow'!L36 -> -496064
A45: =LEFT('A7-CFlow'!A40,37) -> Cash/cash equivalents at the year end | B45: ='A7-CFlow'!C40 -> 201923079 | C45: ='A7-CFlow'!D40 -> 263183299 | D45: ='A7-CFlow'!E40 -> 378327815 | E45: ='A7-CFlow'!F40 -> 439721499.6 | F45: ='A7-CFlow'!G40 -> 526370673.4 | G45: ='A7-CFlow'!H40 -> 674822020.8 | H45: ='A7-CFlow'!I40 -> -690109395.1 | I45: ='A7-CFlow'!J40 -> 706134166.4 | J45: ='A7-CFlow'!K40 -> 1340992287 | K45: ='A7-CFlow'!L40 -> 1848964111
A47: Cash backing/surplus reconciliation
A48: ='A8-ResRecon'!A4 -> Cash and investments available | B48: ='A8-ResRecon'!C8 -> 202092647 | C48: ='A8-ResRecon'!D8 -> 263183299 | D48: ='A8-ResRecon'!E8 -> 378327814 | E48: ='A8-ResRecon'!F8 -> 322605893 | F48: ='A8-ResRecon'!G8 -> 566550000 | G48: ='A8-ResRecon'!H8 -> 566550000 | H48: ='A8-ResRecon'!I8 -> 73106484.8 | I48: ='A8-ResRecon'!J8 -> 614507214 | J48: ='A8-ResRecon'!K8 -> 669953797 | K48: ='A8-ResRecon'!L8 -> 696751949
A49: ='A8-ResRecon'!A10 -> Application of cash and investments | B49: ='A8-ResRecon'!C18 -> 191550997 | C49: ='A8-ResRecon'!D18 -> -619299692.9 | D49: ='A8-ResRecon'!E18 -> -567384758.4 | E49: ='A8-ResRecon'!F18 -> 118551774 | F49: ='A8-ResRecon'!G18 -> 355299830 | G49: ='A8-ResRecon'!H18 -> 355299830 | H49: ='A8-ResRecon'!I18 -> 2979454159 | I49: ='A8-ResRecon'!J18 -> 81614160 | J49: ='A8-ResRecon'!K18 -> 45752552 | K49: ='A8-ResRecon'!L18 -> 31919089
A50: Balance - surplus (shortfall) | B50: =B48-B49 -> 10541650 | C50: =C48-C49 -> 882482991.9 | D50: 945712572.4 | E50: 204054119 | F50: 211250170 | G50: 211250170 | H50: -2906347674 | I50: 532893054 | J50: 624201245 | K50: 664832860
A52: Asset management
A53: Asset register summary (WDV) | B53: ='A9-Asset'!C165 -> 3969768494 | C53: ='A9-Asset'!D165 -> 3871922121 | D53: ='A9-Asset'!E165 -> 4058410699 | E53: ='A9-Asset'!F165 -> 4452834704 | F53: ='A9-Asset'!G165 -> 4481256964 | G53: ='A9-Asset'!H165 -> 4481256964 | H53: ='A9-Asset'!H165 -> 4481256964 | I53: ='A9-Asset'!I165 -> 3594128997 | J53: ='A9-Asset'!J165 -> 3734436597 | K53: ='A9-Asset'!K165 -> 3723267661
A54: ='A9-Asset'!A168 -> Depreciation | B54: ='A9-Asset'!C168 -> -122308938 | C54: ='A9-Asset'!D168 -> -142118817 | D54: ='A9-Asset'!E168 -> -156846054 | E54: ='A9-Asset'!F168 -> 140000000 | F54: ='A9-Asset'!G168 -> 155000000 | G54: ='A9-Asset'!H168 -> 155000000 | H54: ='A9-Asset'!H168 -> 155000000 | I54: ='A9-Asset'!I168 -> 128309274 | J54: ='A9-Asset'!J168 -> 133441648 | K54: ='A9-Asset'!K168 -> 138779315
A55: Renewal and Upgrading of Existing Assets | B55: ='A9-Asset'!C37+'A9-Asset'!C69 -> 0 | C55: ='A9-Asset'!D37+'A9-Asset'!D69 -> 0 | D55: ='A9-Asset'!E37+'A9-Asset'!E69 -> 0 | E55: ='A9-Asset'!F37+'A9-Asset'!F69 -> 53524000 | F55: ='A9-Asset'!G37+'A9-Asset'!G69 -> 13113356 | G55: ='A9-Asset'!H37+'A9-Asset'!H69 -> 13113356 | H55: ='A9-Asset'!H37+'A9-Asset'!H69 -> 13113356 | I55: ='A9-Asset'!I37+'A9-Asset'!I69 -> 12115000 | J55: ='A9-Asset'!J37+'A9-Asset'!J69 -> 38445519 | K55: ='A9-Asset'!K37+'A9-Asset'!K69 -> 58700000
A56: Repairs and Maintenance | B56: ='A9-Asset'!C169 -> 181832 | C56: ='A9-Asset'!D169 -> 89679704 | D56: ='A9-Asset'!E169 -> 124264236 | E56: ='A9-Asset'!F169 -> 111890861 | F56: ='A9-Asset'!G169 -> 77322199 | G56: ='A9-Asset'!H169 -> 77322199 | H56: ='A9-Asset'!H169 -> 77322199 | I56: ='A9-Asset'!I169 -> 87560580 | J56: ='A9-Asset'!J169 -> 91314345 | K56: ='A9-Asset'!K169 -> 95218830
A58: Free services
A59: Cost of Free Basic Services provided | B59: ='A10-SerDel'!C60 -> 0 | C59: ='A10-SerDel'!D60 -> 0 | D59: ='A10-SerDel'!E60 -> 0 | E59: ='A10-SerDel'!F60 -> 0 | F59: ='A10-SerDel'!G60 -> 0 | G59: ='A10-SerDel'!H60 -> 0 | H59: ='A10-SerDel'!I60 -> 0 | I59: ='A10-SerDel'!I60 -> 0 | J59: ='A10-SerDel'!J60 -> 0 | K59: ='A10-SerDel'!K60 -> 0
A60: Revenue cost of free services provided | B60: ='A10-SerDel'!C79 -> 0 | C60: ='A10-SerDel'!D79 -> 0 | D60: ='A10-SerDel'!E79 -> 0 | E60: ='A10-SerDel'!F79 -> 0 | F60: ='A10-SerDel'!G79 -> 0 | G60: ='A10-SerDel'!H79 -> 0 | H60: ='A10-SerDel'!I79 -> 0 | I60: ='A10-SerDel'!I79 -> 0 | J60: ='A10-SerDel'!J79 -> 0 | K60: ='A10-SerDel'!K79 -> 0
A61: Households below minimum service level
A62: ='A10-SerDel'!A5 -> Water: | B62: ='A10-SerDel'!C14 -> 0 | C62: ='A10-SerDel'!D14 -> 0 | D62: ='A10-SerDel'!E14 -> 0 | E62: ='A10-SerDel'!F14 -> 0 | F62: ='A10-SerDel'!G14 -> 0 | G62: ='A10-SerDel'!H14 -> 0 | H62: ='A10-SerDel'!I14 -> 0 | I62: ='A10-SerDel'!I14 -> 0 | J62: ='A10-SerDel'!J14 -> 0 | K62: ='A10-SerDel'!K14 -> 0
A63: ='A10-SerDel'!A16 -> Sanitation/sewerage: | B63: ='A10-SerDel'!C26 -> 0 | C63: ='A10-SerDel'!D26 -> 0 | D63: ='A10-SerDel'!E26 -> 0 | E63: ='A10-SerDel'!F26 -> 0 | F63: ='A10-SerDel'!G26 -> 0 | G63: ='A10-SerDel'!H26 -> 0 | H63: ='A10-SerDel'!I26 -> 0 | I63: ='A10-SerDel'!I26 -> 0 | J63: ='A10-SerDel'!J26 -> 0 | K63: ='A10-SerDel'!K26 -> 0
A64: ='A10-SerDel'!A28 -> Energy: | B64: ='A10-SerDel'!C35 -> 0 | C64: ='A10-SerDel'!D35 -> 0 | D64: ='A10-SerDel'!E35 -> 0 | E64: ='A10-SerDel'!F35 -> 0 | F64: ='A10-SerDel'!G35 -> 0 | G64: ='A10-SerDel'!H35 -> 0 | H64: ='A10-SerDel'!I35 -> 0 | I64: ='A10-SerDel'!I35 -> 0 | J64: ='A10-SerDel'!J35 -> 0 | K64: ='A10-SerDel'!K35 -> 0
A65: ='A10-SerDel'!A37 -> Refuse: | B65: ='A10-SerDel'!C45 -> 0 | C65: ='A10-SerDel'!D45 -> 0 | D65: ='A10-SerDel'!E45 -> 0 | E65: ='A10-SerDel'!F45 -> 0 | F65: ='A10-SerDel'!G45 -> 0 | G65: ='A10-SerDel'!H45 -> 0 | H65: ='A10-SerDel'!I45 -> 0 | I65: ='A10-SerDel'!I45 -> 0 | J65: ='A10-SerDel'!J45 -> 0 | K65: ='A10-SerDel'!K45 -> 0

Sheet A2-FinPerf SC
A1: =muni&" - "&Approve3 -> DC13 Chris Hani - Table A2 Budgeted Financial Performance (revenue and expenditure by functional classification)
A2: ="Functional Classification "&desc -> Functional Classification Description | B2: =head27 -> Ref | C2: =head1b -> 2016/17 | D2: =head1A -> 2017/18 | E2: =Head1 -> 2018/19 | F2: =Head2 -> Current Year 2019/20 | I2: =Head3 -> 2020/21 Medium Term Revenue & Expenditure Framework
A3: R thousand | B3: 1 | C3: =Head5 -> Audited Outcome | D3: =Head5 -> Audited Outcome | E3: =Head5 -> Audited Outcome | F3: =Head6 -> Original Budget | G3: =Head7 -> Adjusted Budget | H3: =Head8 -> Full Year Forecast | I3: =Head9 -> Budget Year 2020/21 | J3: =Head10 -> Budget Year +1 2021/22 | K3: =Head11 -> Budget Year +2 2022/23
A4: Revenue - Functional
A5: Governance and administration | C5: =SUM(C6:C8) -> 569465837 | D5: =SUM(D6:D8) -> 858368828 | E5: 633423180 | F5: 616534658 | G5: 700271475 | H5: 700271475 | I5: 749874154 | J5: 794468338 | K5: 842370205
A6: Executive and council | C6: =A2A!C6 -> 28852145 | D6: =A2A!D6 -> 16352260 | E6: =A2A!E6 -> 21189059 | F6: =A2A!F6 -> 0 | G6: =A2A!G6 -> 0 | H6: =A2A!H6 -> 0 | I6: =A2A!I6 -> 0 | J6: =A2A!J6 -> 0 | K6: =A2A!K6 -> 0
A7: Finance and administration | C7: =A2A!C9 -> 540613692 | D7: =A2A!D9 -> 842016568 | E7: =A2A!E9 -> 612234121 | F7: =A2A!F9 -> 616534658 | G7: =A2A!G9 -> 700271475 | H7: =A2A!H9 -> 700271475 | I7: =A2A!I9 -> 749874154 | J7: =A2A!J9 -> 794468338 | K7: =A2A!K9 -> 842370205
A8: Internal audit | C8: =A2A!C23 -> 0 | D8: =A2A!D23 -> 0 | E8: =A2A!E23 -> 0 | F8: =A2A!F23 -> 0 | G8: =A2A!G23 -> 0 | H8: =A2A!H23 -> 0 | I8: =A2A!I23 -> 0 | J8: =A2A!J23 -> 0 | K8: =A2A!K23 -> 0
A9: Community and public safety | C9: =SUM(C10:C14) -> 0 | D9: =SUM(D10:D14) -> 0 | E9: 6200000 | F9: 300000 | G9: 500000 | H9: 500000 | I9: 688608 | J9: 0 | K9: 0
A10: Community and social services | C10: =A2A!C26 -> 0 | D10: =A2A!D26 -> 0 | E10: =A2A!E26 -> 0 | F10: =A2A!F26 -> 0 | G10: =A2A!G26 -> 0 | H10: =A2A!H26 -> 0 | I10: =A2A!I26 -> 0 | J10: =A2A!J26 -> 0 | K10: =A2A!K26 -> 0
A11: Sport and recreation | C11: =A2A!C48 -> 0 | D11: =A2A!D48 -> 0 | E11: =A2A!E48 -> 0 | F11: =A2A!F48 -> 0 | G11: =A2A!G48 -> 0 | H11: =A2A!H48 -> 0 | I11: =A2A!I48 -> 0 | J11: =A2A!J48 -> 0 | K11: =A2A!K48 -> 0
A12: Public safety | C12: =A2A!C54 -> 0 | D12: =A2A!D54 -> 0 | E12: =A2A!E54 -> 0 | F12: =A2A!F54 -> 0 | G12: =A2A!G54 -> 0 | H12: =A2A!H54 -> 0 | I12: =A2A!I54 -> 0 | J12: =A2A!J54 -> 0 | K12: =A2A!K54 -> 0
A13: Housing | C13: =A2A!C63 -> 0 | D13: =A2A!D63 -> 0 | E13: =A2A!E63 -> 0 | F13: =A2A!F63 -> 0 | G13: =A2A!G63 -> 0 | H13: =A2A!H63 -> 0 | I13: =A2A!I63 -> 0 | J13: =A2A!J63 -> 0 | K13: =A2A!K63 -> 0
A14: Health | C14: =A2A!C66 -> 0 | D14: =A2A!D66 -> 0 | E14: =A2A!E66 -> 6200000 | F14: =A2A!F66 -> 300000 | G14: =A2A!G66 -> 500000 | H14: =A2A!H66 -> 500000 | I14: =A2A!I66 -> 688608 | J14: =A2A!J66 -> 0 | K14: =A2A!K66 -> 0
A15: Economic and environmental services | C15: =SUM(C16:C18) -> 31111218 | D15: =SUM(D16:D18) -> 29265928 | E15: 20679101 | F15: 508116000 | G15: 586459205 | H15: 586459205 | I15: 680747608 | J15: 618724000 | K15: 525718000
A16: Planning and development | C16: =A2A!C75 -> 3311218 | D16: =A2A!D75 -> 0 | E16: =A2A!E75 -> 0 | F16: =A2A!F75 -> 478908000 | G16: =A2A!G75 -> 552724832 | H16: =A2A!H75 -> 552724832 | I16: =A2A!I75 -> 678669712 | J16: =A2A!J75 -> 618374000 | K16: =A2A!K75 -> 525368000
A17: Road transport | C17: =A2A!C86 -> 27800000 | D17: =A2A!D86 -> 29265928 | E17: =A2A!E86 -> 20679101 | F17: =A2A!F86 -> 28000000 | G17: =A2A!G86 -> 28000000 | H17: =A2A!H86 -> 28000000 | I17: =A2A!I86 -> 0 | J17: =A2A!J86 -> 0 | K17: =A2A!K86 -> 0
A18: Environmental protection | C18: =A2A!C91 -> 0 | D18: =A2A!D91 -> 0 | E18: =A2A!E91 -> 0 | F18: =A2A!F91 -> 1208000 | G18: =A2A!G91 -> 5734373 | H18: =A2A!H91 -> 5734373 | I18: =A2A!I91 -> 2077896 | J18: =A2A!J91 -> 350000 | K18: =A2A!K91 -> 350000
A19: Trading services | C19: =SUM(C20:C23) -> 988077200 | D19: =SUM(D20:D23) -> 536059470 | E19: 661090942 | F19: 247882260 | G19: 306953083 | H19: 306953083 | I19: 332264273 | J19: =SUM(J20:J23) -> 338713279 | K19: 355682391
A20: Energy sources | C20: =A2A!C99 -> 0 | D20: =A2A!D99 -> 0 | E20: =A2A!E99 -> 0 | F20: =A2A!F99 -> 0 | G20: =A2A!G99 -> 0 | H20: =A2A!H99 -> 0 | I20: =A2A!I99 -> 0 | J20: =A2A!J99 -> 0 | K20: =A2A!K99 -> 0
A21: Water management | C21: =A2A!C103 -> 938623508 | D21: =A2A!D103 -> 482989287 | E21: =A2A!E103 -> 567640096 | F21: =A2A!F103 -> 190923717 | G21: =A2A!G103 -> 247712799 | H21: =A2A!H103 -> 247712799 | I21: =A2A!I103 -> 267087000 | J21: =A2A!J103 -> 272762709 | K21: =A2A!K103 -> 286434293
A22: Waste water management | C22: =A2A!C107 -> 49453692 | D22: =A2A!D107 -> 53070183 | E22: =A2A!E107 -> 93450846 | F22: =A2A!F107 -> 56958543 | G22: =A2A!G107 -> 59240284 | H22: =A2A!H107 -> 59240284 | I22: =A2A!I107 -> 65177273 | J22: =A2A!J107 -> 65950570 | K22: =A2A!K107 -> 69248098
A23: Waste management | C23: =A2A!C112 -> 0 | D23: =A2A!D112 -> 0 | E23: =A2A!E112 -> 0 | F23: =A2A!F112 -> 0 | G23: =A2A!G112 -> 0 | H23: =A2A!H112 -> 0 | I23: =A2A!I112 -> 0 | J23: =A2A!J112 -> 0 | K23: =A2A!K112 -> 0
A24: Other | B24: 4 | C24: =A2A!C117 -> 0 | D24: =A2A!D117 -> 0 | E24: =A2A!E117 -> 0 | F24: =A2A!F117 -> 0 | G24: =A2A!G117 -> 0 | H24: =A2A!H117 -> 0 | I24: =A2A!I117 -> 0 | J24: =A2A!J117 -> 0 | K24: =A2A!K117 -> 0
A25: ="Total "&A4 -> Total Revenue - Functional | B25: 2 | C25: =C5+C9+C15+C19+C24 -> 1588654255 | D25: =D5+D9+D15+D19+D24 -> 1423694226 | E25: =E5+E9+E15+E19+E24 -> 1321393223 | F25: 1372832918 | G25: 1594183763 | H25: 1594183763 | I25: =I5+I9+I15+I19+I24 -> 1763574643 | J25: 1751905617 | K25: 1723770596
A27: Expenditure - Functional
A28: Governance and administration | C28: =SUM(C29:C31) -> 300823935 | D28: =SUM(D29:D31) -> 271350188 | E28: 310063414 | F28: 486089041 | G28: 332086922 | H28: 331736922 | I28: 345090783 | J28: 353451202 | K28: 369852712
A29: Executive and council | C29: =A2A!C128 -> 84155850 | D29: =A2A!D128 -> 76939781 | E29: =A2A!E128 -> 100826950 | F29: =A2A!F128 -> 96486916 | G29: =A2A!G128 -> 93976611 | H29: =A2A!H128 -> 93976611 | I29: =A2A!I128 -> 99874481 | J29: =A2A!J128 -> 99546081 | K29: =A2A!K128 -> 103344415
A30: Finance and administration | C30: =A2A!C131 -> 216668085 | D30: =A2A!D131 -> 194410407 | E30: =A2A!E131 -> 209236464 | F30: =A2A!F131 -> 383933685 | G30: =A2A!G131 -> 233279185 | H30: =A2A!H131 -> 233279185 | I30: =A2A!I131 -> 239812469 | J30: =A2A!J131 -> 248205495 | K30: =A2A!K131 -> 260496276
A31: Internal audit | C31: =A2A!C145 -> 0 | D31: =A2A!D145 -> 0 | E31: =A2A!E145 -> 0 | F31: =A2A!F145 -> 5668440 | G31: =A2A!G145 -> 4831126 | H31: =A2A!H145 -> 4481126 | I31: =A2A!I145 -> 5403833 | J31: =A2A!J145 -> 5699626 | K31: =A2A!K145 -> 6012021
A32: Community and public safety | C32: =SUM(C33:C37) -> 35296806 | D32: =SUM(D33:D37) -> 60193951 | E32: 73818768 | F32: 28831946 | G32: 20895933 | H32: 20895933 | I32: 22450145 | J32: 23599887 | K32: 24866403
A33: Community and social services | C33: =A2A!C148 -> 0 | D33: =A2A!D148 -> 0 | E33: =A2A!E148 -> 0 | F33: =A2A!F148 -> 13814289 | G33: =A2A!G148 -> 11986723 | H33: =A2A!H148 -> 11986723 | I33: =A2A!I148 -> 12897209 | J33: =A2A!J148 -> 13596707 | K33: =A2A!K148 -> 14335201
A34: Sport and recreation | C34: =A2A!C170 -> 0 | D34: =A2A!D170 -> 0 | E34: =A2A!E170 -> 0 | F34: =A2A!F170 -> 0 | G34: =A2A!G170 -> 0 | H34: =A2A!H170 -> 0 | I34: =A2A!I170 -> 0 | J34: =A2A!J170 -> 0 | K34: =A2A!K170 -> 0
A35: Public safety | C35: =A2A!C176 -> 0 | D35: =A2A!D176 -> 0 | E35: =A2A!E176 -> 0 | F35: =A2A!F176 -> 5833353 | G35: =A2A!G176 -> 5153572 | H35: =A2A!H176 -> 5153572 | I35: =A2A!I176 -> 5575962 | J35: =A2A!J176 -> 5848345 | K35: =A2A!K176 -> 6190262
A36: Housing | C36: =A2A!C185 -> 0 | D36: =A2A!D185 -> 0 | E36: =A2A!E185 -> 0 | F36: =A2A!F185 -> 0 | G36: =A2A!G185 -> 0 | H36: =A2A!H185 -> 0 | I36: =A2A!I185 -> 0 | J36: =A2A!J185 -> 0 | K36: =A2A!K185 -> 0
A37: Health | C37: =A2A!C188 -> 35296806 | D37: =A2A!D188 -> 60193951 | E37: =A2A!E188 -> 73818768 | F37: =A2A!F188 -> 9184304 | G37: =A2A!G188 -> 3755638 | H37: =A2A!H188 -> 3755638 | I37: =A2A!I188 -> 3976974 | J37: =A2A!J188 -> 4154835 | K37: =A2A!K188 -> 4340940
A38: Economic and environmental services | C38: =SUM(C39:C41) -> 101954543 | D38: =SUM(D39:D41) -> 87275942 | E38: 49864112 | F38: 199317332 | G38: 241126908 | H38: 241126908 | I38: 142242165 | J38: 120998011 | K38: 169818159
A39: Planning and development | C39: =A2A!C197 -> 71434710 | D39: =A2A!D197 -> 57618561 | E39: =A2A!E197 -> 25807328 | F39: =A2A!F197 -> 138218810 | G39: =A2A!G197 -> 178753253 | H39: =A2A!H197 -> 178753253 | I39: =A2A!I197 -> 109044820 | J39: =A2A!J197 -> 87680525 | K39: =A2A!K197 -> 134543354
A40: Road transport | C40: =A2A!C208 -> 30519833 | D40: =A2A!D208 -> 29657381 | E40: =A2A!E208 -> 24056784 | F40: =A2A!F208 -> 28000000 | G40: =A2A!G208 -> 28000000 | H40: =A2A!H208 -> 28000000 | I40: =A2A!I208 -> 0 | J40: =A2A!J208 -> 0 | K40: =A2A!K208 -> 0
A41: Environmental protection | C41: =A2A!C213 -> 0 | D41: =A2A!D213 -> 0 | E41: =A2A!E213 -> 0 | F41: =A2A!F213 -> 33098522 | G41: =A2A!G213 -> 34373655 | H41: =A2A!H213 -> 34373655 | I41: =A2A!I213 -> 33197345 | J41: =A2A!J213 -> 33317486 | K41: =A2A!K213 -> 35274805
A42: Trading services | C42: =SUM(C43:C46) -> 712956745 | D42: =SUM(D43:D46) -> 810309575 | E42: 779999827 | F42: =SUM(F43:F46) -> 637170139 | G42: 532338448 | H42: 532338448 | I42: 534670200 | J42: 553907232 | K42: =SUM(K43:K46) -> 580238893
A43: Energy sources | C43: =A2A!C221 -> 0 | D43: =A2A!D221 -> 0 | E43: =A2A!E221 -> 0 | F43: =A2A!F221 -> 0 | G43: =A2A!G221 -> 0 | H43: =A2A!H221 -> 0 | I43: =A2A!I221 -> 0 | J43: =A2A!J221 -> 0 | K43: =A2A!K221 -> 0
A44: Water management | C44: =A2A!C225 -> 708456745 | D44: =A2A!D225 -> 810309575 | E44: =A2A!E225 -> 756165629 | F44: =A2A!F225 -> 593478887 | G44: =A2A!G225 -> 494651177 | H44: =A2A!H225 -> 494651177 | I44: =A2A!I225 -> 493875611 | J44: =A2A!J225 -> 511436860 | K44: =A2A!K225 -> 536025708
A45: Waste water management | C45: =A2A!C229 -> 4500000 | D45: =A2A!D229 -> 0 | E45: =A2A!E229 -> 23834198 | F45: =A2A!F229 -> 43691252 | G45: =A2A!G229 -> 37687271 | H45: =A2A!H229 -> 37687271 | I45: =A2A!I229 -> 40794589 | J45: =A2A!J229 -> 42470372 | K45: =A2A!K229 -> 44213185
A46: Waste management | C46: =A2A!C234 -> 0 | D46: =A2A!D234 -> 0 | E46: =A2A!E234 -> 0 | F46: =A2A!F234 -> 0 | G46: =A2A!G234 -> 0 | H46: =A2A!H234 -> 0 | I46: =A2A!I234 -> 0 | J46: =A2A!J234 -> 0 | K46: =A2A!K234 -> 0
A47: Other | B47: 4 | C47: =A2A!C239 -> 0 | D47: =A2A!D239 -> 0 | E47: =A2A!E239 -> 0 | F47: =A2A!F239 -> 0 | G47: =A2A!G239 -> 0 | H47: =A2A!H239 -> 0 | I47: =A2A!I239 -> 0 | J47: =A2A!J239 -> 0 | K47: =A2A!K239 -> 0
A48: ="Total "&A27 -> Total Expenditure - Functional | B48: 3 | C48: =C28+C32+C38+C42+C47 -> 1151032029 | D48: =D28+D32+D38+D42+D47 -> 1229129656 | E48: =E28+E32+E38+E42+E47 -> 1213746121 | F48: =F28+F32+F38+F42+F47 -> 1351408458 | G48: 1126448211 | H48: 1126098211 | I48: 1044453293 | J48: 1051956332 | K48: 1144776167
A49: =result -> Surplus/(Deficit) for the year | C49: =C25-C48 -> 437622226 | D49: =D25-D48 -> 194564570 | E49: 107647102 | F49: 21424460 | G49: 467735552 | H49: 468085552 | I49: 719121350 | J49: 699949285 | K49: 578994429
A50: =head27a -> References
A51: 1. Government Finance Statistics Functions and Sub-functions are standardised to assist the compilation of national and international accounts for comparison purposes
A52: 2. Total Revenue by functional classification must reconcile to Total Operating Revenue shown in Budgeted Financial Performance (revenue and expenditure)
A53: 3. Total Expenditure by Functional Classification must reconcile to Total Operating Expenditure shown in Budgeted Financial Performance (revenue and expenditure)
A54: 4. All amounts must be classified under a functional classification . The GFS function 'Other' is only for Abbatoirs, Air Transport, Forestry, Licensing and Regulation, Markets and Tourism - and if used must be supported by footnotes. Nothing else may be placed under 'Other'. Assign associate share to relevant classification.
A57: check oprev balance | C57: =C25-'DC13 A i Schedule 2020 2021 Fin'!C59 -> 0 | D57: =D25-'DC13 A i Schedule 2020 2021 Fin'!D59 -> 0 | E57: =E25-'DC13 A i Schedule 2020 2021 Fin'!E59 -> 0 | F57: =F25-'DC13 A i Schedule 2020 2021 Fin'!F59 -> 0 | G57: =G25-'DC13 A i Schedule 2020 2021 Fin'!G59 -> 0 | H57: =H25-'DC13 A i Schedule 2020 2021 Fin'!H59 -> 0 | I57: =I25-'DC13 A i Schedule 2020 2021 Fin'!J59 -> 0 | J57: =J25-'DC13 A i Schedule 2020 2021 Fin'!K59 -> 0 | K57: =K25-'DC13 A i Schedule 2020 2021 Fin'!L59 -> 0
A58: check opexp balance | C58: =C48-'DC13 A i Schedule 2020 2021 Fin'!C35 -> 2895732.98 | D58: =D48-'DC13 A i Schedule 2020 2021 Fin'!D35 -> -0.25 | E58: =E48-'DC13 A i Schedule 2020 2021 Fin'!E35 -> -77.79999995 | F58: =F48-'DC13 A i Schedule 2020 2021 Fin'!F35 -> 0 | G58: =G48-'DC13 A i Schedule 2020 2021 Fin'!G35 -> 0 | H58: =H48-'DC13 A i Schedule 2020 2021 Fin'!H35 -> -350000 | I58: =I48-'DC13 A i Schedule 2020 2021 Fin'!J35 -> 0 | J58: =J48-'DC13 A i Schedule 2020 2021 Fin'!K35 -> 0 | K58: =K48-'DC13 A i Schedule 2020 2021 Fin'!L35 -> 0

Sheet A2A
A1: =muni&" - "&Approve3 -> DC13 Chris Hani - Table A2 Budgeted Financial Performance (revenue and expenditure by functional classification)
A2: ="Functional Classification "&desc -> Functional Classification Description | B2: =head27 -> Ref | C2: =head1b -> 2016/17 | D2: =head1A -> 2017/18 | E2: =Head1 -> 2018/19 | F2: =Head2 -> Current Year 2019/20 | I2: =Head3 -> 2020/21 Medium Term Revenue & Expenditure Framework
A3: R thousand | B3: 1 | C3: =Head5 -> Audited Outcome | D3: =Head5 -> Audited Outcome | E3: =Head5 -> Audited Outcome | F3: =Head6 -> Original Budget | G3: =Head7 -> Adjusted Budget | H3: =Head8 -> Full Year Forecast | I3: =Head9 -> Budget Year 2020/21 | J3: =Head10 -> Budget Year +1 2021/22 | K3: =Head11 -> Budget Year +2 2022/23
A4: Revenue - Functional
A5: Municipal governance and administration | C5: =C6+C9+C23 -> 569465837 | D5: 858368828 | E5: 633423180 | F5: 616534658 | G5: 700271475 | H5: 700271475 | I5: 749874154 | J5: 794468338 | K5: 842370205
A6: Executive and council | C6: =SUM(C7:C8) -> 28852145 | D6: =SUM(D7:D8) -> 16352260 | E6: 21189059 | F6: 0 | G6: 0 | H6: 0 | I6: 0 | J6: 0 | K6: 0
A7: Mayor and Council | C7: 28852145 | D7: 16352260 | E7: 21189059
A8: Municipal Manager, Town Secretary and Chief Executive
A9: Finance and administration | C9: =SUM(C10:C22) -> 540613692 | D9: 842016568 | E9: 612234121 | F9: 616534658 | G9: 700271475 | H9: 700271475 | I9: 749874154 | J9: 794468338 | K9: 842370205
A10: Administrative and Corporate Support | C10: 8232478 | D10: 10401060 | E10: 6827190 | F10: 289380 | G10: 289380 | H10: 289380 | I10: 303849 | J10: 319041 | K10: 334994
A11: Asset Management
A12: Finance | C12: 532381214 | D12: 831615508 | E12: 605406931 | F12: 614845278 | G12: 697305953 | H12: 697305953 | I12: 746147572 | J12: 793293600 | K12: 841136730
A13: Fleet Management
A14: Human Resources | F14: 1400000 | G14: 2676142 | H14: 2676142 | I14: 3422733 | J14: 855697 | K14: 898481
A15: Information Technology
A16: Legal Services
A17: Marketing, Customer Relations, Publicity and Media Co-ordination
A18: Property Services
A19: Risk Management
A20: Security Services
A21: Supply Chain Management
A22: Valuation Service
A23: Internal audit | C23: =SUM(C24:C24) -> 0 | D23: 0 | E23: 0 | F23: 0 | G23: 0 | H23: 0 | I23: 0 | J23: 0 | K23: 0
A24: Governance Function
A25: Community and public safety | C25: =C26+C48+C54+C63+C66 -> 0 | D25: 0 | E25: 6200000 | F25: 300000 | G25: 500000 | H25: 500000 | I25: 688608 | J25: 0 | K25: 0
A26: Community and social services | C26: =SUM(C27:C47) -> 0 | D26: =SUM(D27:D47) -> 0 | E26: 0 | F26: 0 | G26: 0 | H26: 0 | I26: 0 | J26: 0 | K26: 0
A27: Aged Care
A28: Agricultural
A29: Animal Care and Diseases
A30: Cemeteries, Funeral Parlours and Crematoriums
A31: Child Care Facilities
A32: Community Halls and Facilities
A33: Consumer Protection
A34: Cultural Matters
A35: Disaster Management
A36: Education
A37: Indigenous and Customary Law
A38: Industrial Promotion
A39: Language Policy
A40: Libraries and Archives
A41: Literacy Programmes
A42: Media Services
A43: Museums and Art Galleries
A44: Population Development
A45: Provincial Cultural Matters
A46: Theatres
A47: Zoo's
A48: Sport and recreation | C48: =SUM(C49:C53) -> 0 | D48: =SUM(D49:D53) -> 0 | E48: 0 | F48: 0 | G48: 0 | H48: 0 | I48: 0 | J48: 0 | K48: 0
A49: Beaches and Jetties
A50: Casinos, Racing, Gambling, Wagering
A51: Community Parks (including Nurseries)
A52: Recreational Facilities
A53: Sports Grounds and Stadiums
A54: Public safety | C54: =SUM(C55:C62) -> 0 | D54: 0 | E54: 0 | F54: 0 | G54: 0 | H54: 0 | I54: 0 | J54: 0 | K54: 0
A55: Civil Defence
A56: Cleansing
A57: Control of Public Nuisances
A58: Fencing and Fences
A59: Fire Fighting and Protection
A60: Licensing and Control of Animals
A61: Police Forces, Traffic and Street Parking Control
A62: Pounds
A63: Housing | C63: =SUM(C64:C65) -> 0 | D63: =SUM(D64:D65) -> 0 | E63: 0 | F63: 0 | G63: 0 | H63: 0 | I63: 0 | J63: 0 | K63: 0
A64: Housing
A65: Informal Settlements
A66: Health | C66: =SUM(C67:C73) -> 0 | D66: =SUM(D67:D73) -> 0 | E66: 6200000 | F66: 300000 | G66: 500000 | H66: 500000 | I66: 688608 | J66: 0 | K66: 0
A67: Ambulance
A68: Health Services | C68: 0 | D68: 0 | E68: 6200000 | F68: 300000 | G68: 500000 | H68: 500000 | I68: 688608 | J68: 0 | K68: 0
A69: Laboratory Services
A70: Food Control
A71: Health Surveillance and Prevention of Communicable Diseases including immunizations
A72: Vector Control
A73: Chemical Safety
A74: Economic and environmental services | C74: =C75+C86+C91 -> 31111218 | D74: 29265928 | E74: 20679101 | F74: 508116000 | G74: 586459205 | H74: 586459205 | I74: 680747608 | J74: 618724000 | K74: 525718000
A75: Planning and development | C75: =SUM(C76:C85) -> 3311218 | D75: =SUM(D76:D85) -> 0 | E75: 0 | F75: 478908000 | G75: 552724832 | H75: 552724832 | I75: 678669712 | J75: 618374000 | K75: 525368000
A76: Billboards
A77: Corporate Wide Strategic Planning (IDPs, LEDs)
A78: Central City Improvement District
A79: Development Facilitation
A80: Economic Development/Planning | F80: 2084000 | G80: 28600832 | H80: 28600832 | I80: 1351712 | J80: 0 | K80: 0
A81: Regional Planning and Development | C81: 3311218
A82: Town Planning, Building Regulations and Enforcement, and City Engineer
A83: Project Management Unit | F83: 476824000 | G83: 524124000 | H83: 524124000 | I83: 677318000 | J83: 618374000 | K83: 525368000
A84: Provincial Planning
A85: Support to Local Municipalities
A86: Road transport | C86: =SUM(C87:C90) -> 27800000 | D86: 29265928 | E86: 20679101 | F86: 28000000 | G86: 28000000 | H86: 28000000 | I86: 0 | J86: 0 | K86: 0
A87: Public Transport
A88: Road and Traffic Regulation
A89: Roads | C89: 27800000 | D89: 29265928 | E89: 20679101 | F89: 28000000 | G89: 28000000 | H89: 28000000 | I89: 0 | J89: 0 | K89: 0
A90: Taxi Ranks
A91: Environmental protection | C91: =SUM(C92:C97) -> 0 | D91: =SUM(D92:D97) -> 0 | E91: 0 | F91: 1208000 | G91: 5734373 | H91: 5734373 | I91: 2077896 | J91: 350000 | K91: 350000
A92: Biodiversity and Landscape | F92: 1208000 | G92: 5734373 | H92: 5734373 | I92: 2077896 | J92: 350000 | K92: 350000
A93: Coastal Protection
A94: Indigenous Forests
A95: Nature Conservation
A96: Pollution Control
A97: Soil Conservation
A98: Trading services | C98: =C99+C103+C107+C112 -> 988077200 | D98: =D99+D103+D107+D112 -> 536059470 | E98: 661090942 | F98: 247882260 | G98: 306953083 | H98: 306953083 | I98: 332264273 | J98: 338713279 | K98: =K99+K103+K107+K112 -> 355682391
A99: Energy sources | C99: =SUM(C100:C102) -> 0 | D99: =SUM(D100:D102) -> 0 | E99: 0 | F99: 0 | G99: 0 | H99: 0 | I99: 0 | J99: 0 | K99: 0
A100: Electricity
A101: Street Lighting and Signal Systems
A102: Nonelectric Energy
A103: Water management | C103: =SUM(C104:C106) -> 938623508 | D103: =SUM(D104:D106) -> 482989287 | E103: 567640096 | F103: 190923717 | G103: 247712799 | H103: 247712799 | I103: 267087000 | J103: 272762709 | K103: 286434293
A104: Water Treatment
A105: Water Distribution | C105: 938623508 | D105: 482989287 | E105: 567640096 | F105: 190923717 | G105: 247712799 | H105: 247712799 | I105: 267087000 | J105: 272762709 | K105: 286434293
A106: Water Storage
A107: Waste water management | C107: =SUM(C108:C111) -> 49453692 | D107: =SUM(D108:D111) -> 53070183 | E107: 93450846 | F107: 56958543 | G107: 59240284 | H107: 59240284 | I107: 65177273 | J107: 65950570 | K107: 69248098
A108: Public Toilets
A109: Sewerage | C109: 49453692 | D109: 53070183 | E109: 93450846 | F109: 56958543 | G109: 59240284 | H109: 59240284 | I109: 65177273 | J109: 65950570 | K109: 69248098
A110: Storm Water Management
A111: Waste Water Treatment
A112: Waste management | C112: =SUM(C113:C116) -> 0 | D112: =SUM(D113:D116) -> 0 | E112: 0 | F112: 0 | G112: 0 | H112: 0 | I112: 0 | J112: 0 | K112: 0
A113: Recycling
A114: Solid Waste Disposal (Landfill Sites)
A115: Solid Waste Removal
A116: Street Cleaning
A117: Other | C117: =SUM(C118:C123) -> 0 | D117: =SUM(D118:D123) -> 0 | E117: 0 | F117: 0 | G117: 0 | H117: 0 | I117: 0 | J117: 0 | K117: 0
A118: Abattoirs
A119: Air Transport
A120: Forestry
A121: Licensing and Regulation
A122: Markets
A123: Tourism
A124: ="Total "&A4 -> Total Revenue - Functional | B124: 2 | C124: =C5+C25+C74+C98+C117 -> 1588654255 | D124: 1423694226 | E124: 1321393223 | F124: 1372832918 | G124: 1594183763 | H124: 1594183763 | I124: 1763574643 | J124: 1751905617 | K124: 1723770596
A126: Expenditure - Functional
A127: =A5 -> Municipal governance and administration | C127: =C128+C131+C145 -> 300823935 | D127: 271350188 | E127: 310063414 | F127: 486089041 | G127: 332086922 | H127: 331736922 | I127: 345090783 | J127: 353451202 | K127: 369852712
A128: Executive and council | C128: =SUM(C129:C130) -> 84155850 | D128: 76939781 | E128: 100826950 | F128: 96486916 | G128: 93976611 | H128: 93976611 | I128: 99874481 | J128: 99546081 | K128: 103344415
A129: Mayor and Council | C129: 84155850 | D129: 76939781 | E129: 100826950 | F129: 26090206 | G129: 24255769 | H129: 24255769 | I129: 24272032 | J129: 25748117 | K129: 27192250
A130: Municipal Manager, Town Secretary and Chief Executive | F130: 70396710 | G130: 69720842 | H130: 69720842 | I130: 75602449 | J130: 73797964 | K130: 76152165
A131: Finance and administration | C131: =SUM(C132:C144) -> 216668085 | D131: 194410407 | E131: 209236464 | F131: 383933685 | G131: 233279185 | H131: 233279185 | I131: 239812469 | J131: 248205495 | K131: 260496276
A132: Administrative and Corporate Support | C132: 122248293 | D132: 82718943 | E132: 127175956 | F132: 213182995 | G132: 113846265 | H132: 113846265 | I132: 117485603 | J132: 122979942 | K132: 128739267
A133: Asset Management | F133: 6124104 | G133: 5026940 | H133: 5026940 | I133: 4490897 | J133: 4761945 | K133: 5047395
A134: Finance | C134: 94419792 | D134: 111691464 | E134: 82060508 | F134: 67593472 | G134: 43492392 | H134: 43492392 | I134: 42224114 | J134: 44515251 | K134: 46941125
A135: Fleet Management | F135: 21600672 | G135: 14006995 | H135: 14006995 | I135: 13999466 | J135: 14599446 | K135: 15223422
A136: Human Resources | F136: 38641043 | G136: 26627213 | H136: 26627213 | I136: 29870360 | J136: 28021986 | K136: 29550940
A137: Information Technology | F137: 23437118 | G137: 19818554 | H137: 19818554 | I137: 20513671 | J137: 21470722 | K137: 22474242
A138: Legal Services | F138: 3983406 | G138: 2223571 | H138: 2223571 | I138: 2325079 | J138: 2443205 | K138: 2567558
A139: Marketing, Customer Relations, Publicity and Media Co-ordination | F139: 633350 | G139: 290200 | H139: 290200 | I139: 292652 | J139: 304355 | K139: 316530
A140: Property Services
A141: Risk Management
A142: Security Services
A143: Supply Chain Management | F143: 8737525 | G143: 7947055 | H143: 7947055 | I143: 8610627 | J143: 9108643 | K143: 9635797
A144: Valuation Service
A145: Internal audit | C145: =SUM(C146:C146) -> 0 | D145: 0 | E145: 0 | F145: 5668440 | G145: 4831126 | H145: 4481126 | I145: 5403833 | J145: 5699626 | K145: 6012021
A146: Governance Function | F146: 5668440 | G146: 4831126 | H146: 4481126 | I146: 5403833 | J146: 5699626 | K146: 6012021
A147: Community and public safety | C147: =C148+C170+C176+C185+C188 -> 35296806 | D147: 60193951 | E147: 73818768 | F147: 28831946 | G147: 20895933 | H147: 20895933 | I147: 22450145 | J147: 23599887 | K147: 24866403
A148: Community and social services | C148: =SUM(C149:C169) -> 0 | D148: =SUM(D149:D169) -> 0 | E148: 0 | F148: 13814289 | G148: 11986723 | H148: 11986723 | I148: 12897209 | J148: 13596707 | K148: 14335201
A149: Aged Care | F149: 0 | G149: 0 | H149: 0 | I149: 0 | J149: 0 | K149: 0
A150: Agricultural
A151: Animal Care and Diseases
A152: Cemeteries, Funeral Parlours and Crematoriums
A153: Child Care Facilities
A154: Community Halls and Facilities
A155: Consumer Protection
A156: Cultural Matters
A157: Disaster Management | F157: 13814289 | G157: 11986723 | H157: 11986723 | I157: 12897209 | J157: 13596707 | K157: 14335201
A158: Education
A159: =A37 -> Indigenous and Customary Law
A160: Industrial Promotion
A161: Language Policy
A162: Libraries and Archives
A163: Literacy Programmes
A164: Media Services
A165: Museums and Art Galleries
A166: Population Development
A167: Provincial Cultural Matters
A168: Theatres
A169: Zoo's
A170: Sport and recreation | C170: =SUM(C171:C175) -> 0 | D170: 0 | E170: 0 | F170: 0 | G170: 0 | H170: 0 | I170: 0 | J170: 0 | K170: 0
A171: Beaches and Jetties
A172: Casinos, Racing, Gambling, Wagering
A173: Community Parks (including Nurseries)
A174: Recreational Facilities
A175: Sports Grounds and Stadiums
A176: Public safety | F176: =SUM(F177:F184) -> 5833353 | G176: 5153572 | H176: 5153572 | I176: 5575962 | J176: 5848345 | K176: 6190262
A177: Civil Defence
A178: Cleansing
A179: =A57 -> Control of Public Nuisances
A180: Fencing and Fences
A181: Fire Fighting and Protection | F181: 5833353 | G181: 5153572 | H181: 5153572 | I181: 5575962 | J181: 5848345 | K181: 6190262
A182: Licensing and Control of Animals
A183: Police Forces, Traffic and Street Parking Control
A184: Pounds
A185: =A63 -> Housing | C185: =SUM(C186:C187) -> 0 | D185: 0 | E185: 0 | F185: 0 | G185: 0 | H185: 0 | I185: 0 | J185: 0 | K185: 0
A186: Housing
A187: Informal Settlements
A188: Health | C188: =SUM(C189:C195) -> 35296806 | D188: =SUM(D189:D195) -> 60193951 | E188: 73818768 | F188: 9184304 | G188: 3755638 | H188: 3755638 | I188: 3976974 | J188: 4154835 | K188: 4340940
A189: Ambulance
A190: Health Services | C190: 35296806 | D190: 60193951 | E190: 73818768 | F190: 9184304 | G190: 3755638 | H190: 3755638 | I190: 3976974 | J190: 4154835 | K190: 4340940
A191: Laboratory Services
A192: Food Control
A193: Health Surveillance and Prevention of Communicable Diseases including immunizations
A194: Vector Control
A195: Chemical Safety
A196: Economic and environmental services | C196: =C197+C208+C213 -> 101954543 | D196: 87275942 | E196: 49864112 | F196: 199317332 | G196: 241126908 | H196: 241126908 | I196: 142242165 | J196: 120998011 | K196: 169818159
A197: Planning and development | C197: =SUM(C198:C207) -> 71434710 | D197: =SUM(D198:D207) -> 57618561 | E197: 25807328 | F197: 138218810 | G197: 178753253 | H197: 178753253 | I197: 109044820 | J197: 87680525 | K197: 134543354
A198: Billboards
A199: Corporate Wide Strategic Planning (IDPs, LEDs) | F199: 3660649 | G199: 4506649 | H199: 4506649 | I199: 4906867 | J199: 5194738 | K199: 5499622
A200: Central City Improvement District
A201: Development Facilitation
... 53 more rows

Sheet A3-FinPerf V
A1: =muni&" - "&Approve2 -> DC13 Chris Hani - Table A3 Budgeted Financial Performance (revenue and expenditure by municipal vote)
A2: =Vdesc -> Vote Description | B2: =head27 -> Ref | C2: =head1b -> 2016/17 | D2: =head1A -> 2017/18 | E2: =Head1 -> 2018/19 | F2: =Head2 -> Current Year 2019/20 | I2: =Head3 -> 2020/21 Medium Term Revenue & Expenditure Framework | L2: =Head4 -> LTFS
A3: R thousand | C3: =Head5 -> Audited Outcome | D3: =Head5 -> Audited Outcome | E3: =Head5 -> Audited Outcome | F3: =Head6 -> Original Budget | G3: =Head7 -> Adjusted Budget | H3: =Head8 -> Full Year Forecast | I3: =Head9 -> Budget Year 2020/21 | J3: =Head10 -> Budget Year +1 2021/22 | K3: =Head11 -> Budget Year +2 2022/23 | L3: =Head12 -> Forecast 2023/24 | M3: =Head13 -> Forecast 2024/25 | N3: =Head14 -> Forecast 2025/26 | O3: =Head15 -> Forecast 2026/27 | P3: =Head16 -> Forecast 2027/28 | Q3: =Head17 -> Forecast 2028/29 | R3: =Head18 -> Forecast 2029/30 | S3: =Head19 -> Forecast 2030/31 | T3: =Head20 -> Forecast 2031/32 | U3: =Head21 -> Forecast 2032/33 | V3: =Head22 -> Forecast 2033/34 | W3: =Head23 -> Forecast 2034/35
A4: Revenue by Vote | B4: 1
A5: =A3A!A5 -> Vote 01 - Council | C5: =A3A!C5 -> 0 | D5: =A3A!D5 -> 0 | E5: =A3A!E5 -> 0 | F5: =A3A!F5 -> 0 | G5: =A3A!G5 -> 0 | H5: =A3A!H5 -> 0 | I5: =A3A!I5 -> 0 | J5: =A3A!J5 -> 0 | K5: =A3A!K5 -> 0
A6: =A3A!A8 -> Vote 02 - Municipal Manager | C6: =A3A!C8 -> 28852145 | D6: =A3A!D8 -> 16352260 | E6: =A3A!E8 -> 21189059 | F6: =A3A!F8 -> 28852145 | G6: =A3A!G8 -> 16352260 | H6: =A3A!H8 -> 21189059 | I6: =A3A!I8 -> 0 | J6: =A3A!J8 -> 0 | K6: =A3A!K8 -> 0
A7: =A3A!A16 -> Vote 03 - Budget & Treasury | C7: =A3A!C16 -> 532381214 | D7: =A3A!D16 -> 831615508.3 | E7: =A3A!E16 -> 605406931 | F7: =A3A!F16 -> 614845278 | G7: =A3A!G16 -> 697305953 | H7: =A3A!H16 -> 697305953 | I7: =A3A!I16 -> 746147572 | J7: =A3A!J16 -> 793293600 | K7: =A3A!K16 -> 841136730
A8: =A3A!A27 -> Vote 04 - Community Services | C8: =A3A!C27 -> 0 | D8: =A3A!D27 -> 0 | E8: =A3A!E27 -> 6200000 | F8: =A3A!F27 -> 1508000 | G8: =A3A!G27 -> 6234373 | H8: =A3A!H27 -> 6234373 | I8: =A3A!I27 -> 2766504 | J8: =A3A!J27 -> 350000 | K8: =A3A!K27 -> 350000
A9: =A3A!A34 -> Vote 05 - Corporate Services | C9: =A3A!C34 -> 8232478 | D9: =A3A!D34 -> 10401060 | E9: =A3A!E34 -> 6827190 | F9: =A3A!F34 -> 1689380 | G9: =A3A!G34 -> 2965522 | H9: =A3A!H34 -> 2965522 | I9: =A3A!I34 -> 3726582 | J9: =A3A!J34 -> 1174738 | K9: =A3A!K34 -> 1233475
A10: =A3A!A44 -> Vote 06 - Planning & Development | C10: =A3A!C44 -> 3311218 | D10: =A3A!D44 -> 0 | E10: =A3A!E44 -> 0 | F10: =A3A!F44 -> 2084000 | G10: =A3A!G44 -> 28600832 | H10: =A3A!H44 -> 28600832 | I10: =A3A!I44 -> 1351712 | J10: =A3A!J44 -> 0 | K10: =A3A!K44 -> 0
A11: =A3A!A48 -> Vote 07 - Technical Services | C11: =A3A!C48 -> 988077200 | D11: =A3A!D48 -> 536059470 | E11: =A3A!E48 -> 661090942 | F11: =A3A!F48 -> 724706260 | G11: =A3A!G48 -> 831077083 | H11: =A3A!H48 -> 831077083 | I11: =A3A!I48 -> 1009582273 | J11: =A3A!J48 -> 957087279 | K11: =A3A!K48 -> 881050391
A12: =A3A!A69 -> Vote 08 - Roadworks | C12: =A3A!C69 -> 27800000 | D12: =A3A!D69 -> 29265928 | E12: =A3A!E69 -> 20679101 | F12: =A3A!F69 -> 28000000 | G12: =A3A!G69 -> 28000000 | H12: =A3A!H69 -> 28000000 | I12: =A3A!I69 -> 0 | J12: =A3A!J69 -> 0 | K12: =A3A!K69 -> 0
A13: =A3A!A72 -> Vote 09 - Entity: Chis Hani Development Agency | C13: =A3A!C72 -> 0 | D13: =A3A!D72 -> 0 | E13: =A3A!E72 -> 0 | F13: =A3A!F72 -> 0 | G13: =A3A!G72 -> 0 | H13: =A3A!H72 -> 0 | I13: =A3A!I72 -> 0 | J13: =A3A!J72 -> 0 | K13: =A3A!K72 -> 0
A14: ='Org structure'!A11 -> Vote 10 - Vote 10 | C14: =A3A!C74 -> 0 | D14: =A3A!D74 -> 0 | E14: =A3A!E74 -> 0 | F14: =A3A!F74 -> 0 | G14: =A3A!G74 -> 0 | H14: =A3A!H74 -> 0 | I14: =A3A!I74 -> 0 | J14: =A3A!J74 -> 0 | K14: =A3A!K74 -> 0
A15: ='Org structure'!A12 -> Vote 11 - Vote 11 | C15: =A3A!C75 -> 0 | D15: =A3A!D75 -> 0 | E15: =A3A!E75 -> 0 | F15: =A3A!F75 -> 0 | G15: =A3A!G75 -> 0 | H15: =A3A!H75 -> 0 | I15: =A3A!I75 -> 0 | J15: =A3A!J75 -> 0 | K15: =A3A!K75 -> 0 | L15: =A5A!#REF! -> 
A16: ='Org structure'!A13 -> Vote 12 - Vote 12 | C16: =A3A!C76 -> 0 | D16: =A3A!D76 -> 0 | E16: =A3A!E76 -> 0 | F16: =A3A!F76 -> 0 | G16: =A3A!G76 -> 0 | H16: =A3A!H76 -> 0 | I16: =A3A!I76 -> 0 | J16: =A3A!J76 -> 0 | K16: =A3A!K76 -> 0 | L16: =A5A!#REF! -> 
A17: ='Org structure'!A14 -> Vote 13 - Vote 13 | C17: =A3A!C77 -> 0 | D17: =A3A!D77 -> 0 | E17: =A3A!E77 -> 0 | F17: =A3A!F77 -> 0 | G17: =A3A!G77 -> 0 | H17: =A3A!H77 -> 0 | I17: =A3A!I77 -> 0 | J17: =A3A!J77 -> 0 | K17: =A3A!K77 -> 0 | L17: =A5A!#REF! -> 
A18: ='Org structure'!A15 -> Vote 14 - Vote 14 | C18: =A3A!C78 -> 0 | D18: =A3A!D78 -> 0 | E18: =A3A!E78 -> 0 | F18: =A3A!F78 -> 0 | G18: =A3A!G78 -> 0 | H18: =A3A!H78 -> 0 | I18: =A3A!I78 -> 0 | J18: =A3A!J78 -> 0 | K18: =A3A!K78 -> 0 | L18: =A5A!#REF! -> 
A19: ='Org structure'!A16 -> Vote 15 - Other | C19: =A3A!C79 -> 0 | D19: =A3A!D79 -> 0 | E19: =A3A!E79 -> 0 | F19: =A3A!F79 -> 0 | G19: =A3A!G79 -> 0 | H19: =A3A!H79 -> 0 | I19: =A3A!I79 -> 0 | J19: =A3A!J79 -> 0 | K19: =A3A!K79 -> 0 | L19: =A5A!#REF! -> 
A20: Total Revenue by Vote | B20: 2 | C20: =SUM(C5:C19) -> 1588654255 | D20: =SUM(D5:D19) -> 1423694226 | E20: 1321393223 | F20: 1401685063 | G20: 1610536023 | H20: 1615372822 | I20: 1763574643 | J20: 1751905617 | K20: 1723770596
A22: Expenditure by Vote to be appropriated | B22: 1
A23: =A3A!A83 -> Vote 01 - Council | C23: =A3A!C83 -> 39999850 | D23: =A3A!D83 -> 18287000 | E23: =A3A!E83 -> 36814000 | F23: =A3A!F83 -> 31340273 | G23: =A3A!G83 -> 29368836 | H23: =A3A!H83 -> 27022553 | I23: =A3A!I83 -> 29846540 | J23: =A3A!J83 -> 31656380 | K23: =A3A!K83 -> 33454267
A24: =A3A!A86 -> Vote 02 - Municipal Manager | C24: =A3A!C86 -> 44156000 | D24: =A3A!D86 -> 58653409.03 | E24: =A3A!E86 -> 64012845.45 | F24: =A3A!F86 -> 101953672 | G24: =A3A!G86 -> 92952258 | H24: =A3A!H86 -> 89629299 | I24: =A3A!I86 -> 98993318 | J24: =A3A!J86 -> 98444002 | K24: =A3A!K86 -> 102122513
A25: =A3A!A94 -> Vote 03 - Budget & Treasury | C25: =A3A!C94 -> 94419792 | D25: =A3A!D94 -> 111691040.8 | E25: =A3A!E94 -> 82060558.71 | F25: =A3A!F94 -> 88944971 | G25: =A3A!G94 -> 63302438 | H25: =A3A!H94 -> 62002438 | I25: =A3A!I94 -> 62471080 | J25: =A3A!J94 -> 65881868 | K25: =A3A!K94 -> 69488844
A26: =A3A!A105 -> Vote 04 - Community Services | C26: =A3A!C105 -> 35296806 | D26: =A3A!D105 -> 60193772.9 | E26: =A3A!E105 -> 73818728.34 | F26: =A3A!F105 -> 67448327 | G26: =A3A!G105 -> 60705650 | H26: =A3A!H105 -> 55500650 | I26: =A3A!I105 -> 61474222 | J26: =A3A!J105 -> 63088707 | K26: =A3A!K105 -> 66677628
A27: =A3A!A112 -> Vote 05 - Corporate Services | C27: =A3A!C112 -> 122248293 | D27: =A3A!D112 -> 82718908.56 | E27: =A3A!E112 -> 127176179.3 | F27: =A3A!F112 -> 229018304 | G27: =A3A!G112 -> 109399372 | H27: =A3A!H112 -> 125292366 | I27: =A3A!I112 -> 115069460 | J27: =A3A!J112 -> 117069080 | K27: =A3A!K112 -> 122621433
A28: =A3A!A122 -> Vote 06 - Planning & Development | C28: =A3A!C122 -> 71434710 | D28: =A3A!D122 -> 57619259.33 | E28: =A3A!E122 -> 25806891.9 | F28: =A3A!F122 -> 75244343 | G28: =A3A!G122 -> 56262081 | H28: =A3A!H122 -> 52305360 | I28: =A3A!I122 -> 38473119 | J28: =A3A!J122 -> 38847337 | K28: =A3A!K122 -> 40760881
A29: =A3A!A126 -> Vote 07 - Technical Services | C29: =A3A!C126 -> 712956745 | D29: =A3A!D126 -> 810310445.9 | E29: =A3A!E126 -> 779999735.9 | F29: =A3A!F126 -> 729458568 | G29: =A3A!G126 -> 686457576 | H29: =A3A!H126 -> 696845035 | I29: =A3A!I126 -> 638125554 | J29: =A3A!J126 -> 636968958 | K29: =A3A!K126 -> 709650601
A30: =A3A!A147 -> Vote 08 - Roadworks | C30: =A3A!C147 -> 30519833 | D30: =A3A!D147 -> 29656559.44 | E30: =A3A!E147 -> 24057318.54 | F30: =A3A!F147 -> 28000000 | G30: =A3A!G147 -> 28000000 | H30: =A3A!H147 -> 28000000 | I30: =A3A!I147 -> 0 | J30: =A3A!J147 -> 0 | K30: =A3A!K147 -> 0
A31: =A3A!A150 -> Vote 09 - Entity: Chis Hani Development Agency | C31: =A3A!C150 -> 0 | D31: =A3A!D150 -> 0 | E31: =A3A!E150 -> 0 | F31: =A3A!F150 -> 0 | G31: =A3A!G150 -> 0 | H31: =A3A!H150 -> 0 | I31: =A3A!I150 -> 0 | J31: =A3A!J150 -> 0 | K31: =A3A!K150 -> 0
A32: ='Org structure'!A11 -> Vote 10 - Vote 10 | C32: =A3A!C152 -> 0 | D32: =A3A!D152 -> 0 | E32: =A3A!E152 -> 0 | F32: =A3A!F152 -> 0 | G32: =A3A!G152 -> 0 | H32: =A3A!H152 -> 0 | I32: =A3A!I152 -> 0 | J32: =A3A!J152 -> 0 | K32: =A3A!K152 -> 0
A33: ='Org structure'!A12 -> Vote 11 - Vote 11 | C33: =A3A!C153 -> 0 | D33: =A3A!D153 -> 0 | E33: =A3A!E153 -> 0 | F33: =A3A!F153 -> 0 | G33: =A3A!G153 -> 0 | H33: =A3A!H153 -> 0 | I33: =A3A!I153 -> 0 | J33: =A3A!J153 -> 0 | K33: =A3A!K153 -> 0 | L33: =A3A!#REF! -> 
A34: ='Org structure'!A13 -> Vote 12 - Vote 12 | C34: =A3A!C154 -> 0 | D34: =A3A!D154 -> 0 | E34: =A3A!E154 -> 0 | F34: =A3A!F154 -> 0 | G34: =A3A!G154 -> 0 | H34: =A3A!H154 -> 0 | I34: =A3A!I154 -> 0 | J34: =A3A!J154 -> 0 | K34: =A3A!K154 -> 0 | L34: =A3A!#REF! -> 
A35: ='Org structure'!A14 -> Vote 13 - Vote 13 | C35: =A3A!C155 -> 0 | D35: =A3A!D155 -> 0 | E35: =A3A!E155 -> 0 | F35: =A3A!F155 -> 0 | G35: =A3A!G155 -> 0 | H35: =A3A!H155 -> 0 | I35: =A3A!I155 -> 0 | J35: =A3A!J155 -> 0 | K35: =A3A!K155 -> 0 | L35: =A3A!#REF! -> 
A36: ='Org structure'!A15 -> Vote 14 - Vote 14 | C36: =A3A!C156 -> 0 | D36: =A3A!D156 -> 0 | E36: =A3A!E156 -> 0 | F36: =A3A!F156 -> 0 | G36: =A3A!G156 -> 0 | H36: =A3A!H156 -> 0 | I36: =A3A!I156 -> 0 | J36: =A3A!J156 -> 0 | K36: =A3A!K156 -> 0 | L36: =A3A!#REF! -> 
A37: ='Org structure'!A16 -> Vote 15 - Other | C37: =A3A!C157 -> 0 | D37: =A3A!D157 -> 0 | E37: =A3A!E157 -> 0 | F37: =A3A!F157 -> 0 | G37: =A3A!G157 -> 0 | H37: =A3A!H157 -> 0 | I37: =A3A!I157 -> 0 | J37: =A3A!J157 -> 0 | K37: =A3A!K157 -> 0 | L37: =A3A!#REF! -> 
A38: Total Expenditure by Vote | B38: 2 | C38: =SUM(C23:C37) -> 1151032029 | D38: =SUM(D23:D37) -> 1229130396 | E38: 1213746258 | F38: 1351408458 | G38: 1126448211 | H38: 1136597701 | I38: 1044453293 | J38: 1051956332 | K38: 1144776167 | L38: =SUM(L23:L29) -> 0 | M38: 0 | N38: 0 | O38: 0 | P38: 0 | Q38: 0 | R38: 0 | S38: 0 | T38: 0 | U38: 0 | V38: 0 | W38: 0
A39: =result -> Surplus/(Deficit) for the year | B39: 2 | C39: =C20-C38 -> 437622226 | D39: 194563830.3 | E39: 107646964.8 | F39: 50276605 | G39: 484087812 | H39: 478775121 | I39: 719121350 | J39: 699949285 | K39: 578994429 | L39: 0 | M39: 0 | N39: 0 | O39: 0 | P39: 0 | Q39: 0 | R39: 0 | S39: 0 | T39: 0 | U39: 0 | V39: 0 | W39: 0
A40: =head27a -> References
A41: 1. Insert 'Vote'; e.g. department, if different to functional classification structure
A42: 2. Must reconcile to Budgeted Financial Performance (revenue and expenditure)
A43: 3. Assign share in 'associate' to relevant Vote
A45: ="check "&A39 -> check Surplus/(Deficit) for the year | C45: =C39-A3A!C160 -> 0 | D45: =D39-A3A!D160 -> 0 | E45: =E39-A3A!E160 -> 0 | F45: =F39-A3A!F160 -> 0 | G45: =G39-A3A!G160 -> 0 | H45: =H39-A3A!H160 -> 0 | I45: =I39-A3A!I160 -> 0 | J45: =J39-A3A!J160 -> 0 | K45: =K39-A3A!K160 -> 0

Sheet A3A
A1: =muni&" - "&Approve2&"A" -> DC13 Chris Hani - Table A3 Budgeted Financial Performance (revenue and expenditure by municipal vote)A
A2: =Vdesc -> Vote Description | B2: =head27 -> Ref | C2: =head1b -> 2016/17 | D2: =head1A -> 2017/18 | E2: =Head1 -> 2018/19 | F2: =Head2 -> Current Year 2019/20 | I2: =Head3 -> 2020/21 Medium Term Revenue & Expenditure Framework | L2: =Head4 -> LTFS
A3: R thousand | C3: =Head5 -> Audited Outcome | D3: =Head5 -> Audited Outcome | E3: =Head5 -> Audited Outcome | F3: =Head6 -> Original Budget | G3: =Head7 -> Adjusted Budget | H3: =Head8 -> Full Year Forecast | I3: =Head9 -> Budget Year 2020/21 | J3: =Head10 -> Budget Year +1 2021/22 | K3: =Head11 -> Budget Year +2 2022/23 | L3: =Head12 -> Forecast 2023/24 | M3: =Head13 -> Forecast 2024/25 | N3: =Head14 -> Forecast 2025/26 | O3: =Head15 -> Forecast 2026/27 | P3: =Head16 -> Forecast 2027/28 | Q3: =Head17 -> Forecast 2028/29 | R3: =Head18 -> Forecast 2029/30 | S3: =Head19 -> Forecast 2030/31 | T3: =Head20 -> Forecast 2031/32 | U3: =Head21 -> Forecast 2032/33 | V3: =Head22 -> Forecast 2033/34 | W3: =Head23 -> Forecast 2034/35
A4: Revenue by Vote | B4: 1
A5: ='Org structure'!A2 -> Vote 01 - Council | C5: =SUM(C6:C7) -> 0 | D5: 0 | E5: 0 | F5: 0 | G5: 0 | H5: 0 | I5: 0 | J5: 0 | K5: 0
A6: ='Org structure'!E3 -> 01.1 - Council's General Expenses | C6: 0 | D6: 0 | E6: 0 | F6: 0 | G6: 0 | H6: 0 | I6: 0 | J6: 0 | K6: 0
A7: ='Org structure'!E4 -> 01.2 - Council General - Independent Contractor | C7: 0 | D7: 0 | E7: 0 | F7: 0 | G7: 0 | H7: 0 | I7: 0 | J7: 0 | K7: 0
A8: ='Org structure'!A3 -> Vote 02 - Municipal Manager | C8: =SUM(C9:C15) -> 28852145 | D8: 16352260 | E8: 21189059 | F8: 28852145 | G8: 16352260 | H8: 21189059 | I8: 0 | J8: 0 | K8: 0
A9: ='Org structure'!E6 -> 02.1 - Municipal Manager | C9: 0 | D9: 0 | E9: 0 | F9: 0 | G9: 0 | H9: 0 | I9: 0 | J9: 0 | K9: 0
A10: ='Org structure'!E7 -> 02.2 - Communication Office | C10: 0 | D10: 0 | E10: 0 | F10: 0 | G10: 0 | H10: 0 | I10: 0 | J10: 0 | K10: 0
A11: ='Org structure'!E8 -> 02.3 - Internal Audit | C11: 0 | D11: 0 | E11: 0 | F11: 0 | G11: 0 | H11: 0 | I11: 0 | J11: 0 | K11: 0
A12: ='Org structure'!E9 -> 02.4 - Strategic Manager | C12: 0 | D12: 0 | E12: 0 | F12: 0 | G12: 0 | H12: 0 | I12: 0 | J12: 0 | K12: 0
A13: ='Org structure'!E10 -> 02.5 - Special Programmes Unit | C13: 28852145 | D13: 16352260 | E13: 21189059 | F13: 28852145 | G13: 16352260 | H13: 21189059 | I13: 0 | J13: 0 | K13: 0
A14: ='Org structure'!E11 -> 02.6 - Special Programmes Unit | C14: 0 | D14: 0 | E14: 0 | F14: 0 | G14: 0 | H14: 0 | I14: 0 | J14: 0 | K14: 0
A15: ='Org structure'!E12 -> 02.7 - Customer Care | C15: 0 | D15: 0 | E15: 0 | F15: 0 | G15: 0 | H15: 0 | I15: 0 | J15: 0 | K15: 0
A16: ='Org structure'!A4 -> Vote 03 - Budget & Treasury | C16: =SUM(C17:C26) -> 532381214 | D16: 831615508.3 | E16: 605406931 | F16: 614845278 | G16: 697305953 | H16: 697305953 | I16: 746147572 | J16: 793293600 | K16: 841136730
A17: ='Org structure'!E14 -> 03.1 - Budget & Treasury Office | C17: 532381214 | D17: =510965523.91+280416615 -> 791382138.9 | E17: =526520550.06+4532195.2 -> 531052745.3 | F17: 545885600 | G17: 622710674 | H17: 622710674 | I17: 667822529 | J17: 711052306 | K17: 754783370
A18: ='Org structure'!E15 -> 03.2 - Budget & Treasury Office | C18: 0 | D18: 0 | E18: 0 | F18: 0 | G18: 0 | H18: 0 | I18: 0 | J18: 0 | K18: 0
A19: ='Org structure'!E16 -> 03.3 - Accounting Services | C19: 0 | D19: 1609872.45 | E19: 0 | F19: 57876 | G19: 57876 | H19: 57876 | I19: 60770 | J19: 63808 | K19: 66999
A20: ='Org structure'!E17 -> 03.4 - Budget Control | C20: 0 | D20: 0 | E20: 0 | F20: 0 | G20: 0 | H20: 0 | I20: 0 | J20: 0 | K20: 0
A21: ='Org structure'!E18 -> 03.5 - Revenue Services | C21: 0 | D21: 38623496.9 | E21: 74354185.77 | F21: 68901802 | G21: 74537403 | H21: 74537403 | I21: 78264273 | J21: 82177486 | K21: 86286361
A22: ='Org structure'!E19 -> 03.6 - Supply Chain Management | C22: 0 | D22: 0 | E22: 0 | F22: 0 | G22: 0 | H22: 0 | I22: 0 | J22: 0 | K22: 0
A23: ='Org structure'!E20 -> 03.7 - Systems Administration | C23: 0 | D23: 0 | E23: 0 | F23: 0 | G23: 0 | H23: 0 | I23: 0 | J23: 0 | K23: 0
A24: ='Org structure'!E21 -> 03.8 - Financial Statements Management | C24: 0 | D24: 0 | E24: 0 | F24: 0 | G24: 0 | H24: 0 | I24: 0 | J24: 0 | K24: 0
A25: ='Org structure'!E22 -> 03.9 - Grants & Donations | C25: 0 | D25: 0 | E25: 0 | F25: 0 | G25: 0 | H25: 0 | I25: 0 | J25: 0 | K25: 0
A26: ='Org structure'!E23 -> 03.10 - Assets Management | C26: 0 | D26: 0 | E26: 0 | F26: 0 | G26: 0 | H26: 0 | I26: 0 | J26: 0 | K26: 0
A27: ='Org structure'!A5 -> Vote 04 - Community Services | C27: =SUM(C28:C33) -> 0 | D27: 0 | E27: 6200000 | F27: 1508000 | G27: 6234373 | H27: 6234373 | I27: 2766504 | J27: 350000 | K27: 350000
A28: ='Org structure'!E25 -> 04.1 - Community & Social Services | C28: 0 | D28: 0 | E28: 0 | F28: 0 | G28: 0 | H28: 0 | I28: 0 | J28: 0 | K28: 0
A29: ='Org structure'!E26 -> 04.2 - Disaster Management | C29: 0 | D29: 0 | E29: 0 | F29: 0 | G29: 0 | H29: 0 | I29: 0 | J29: 0 | K29: 0
A30: ='Org structure'!E27 -> 04.3 - Environmental Management | C30: 0 | D30: 0 | E30: 6200000 | F30: 1208000 | G30: 5734373 | H30: 5734373 | I30: 2077896 | J30: 350000 | K30: 350000
A31: ='Org structure'!E28 -> 04.4 - Fire Services | C31: 0 | D31: 0 | E31: 0 | F31: 0 | G31: 0 | H31: 0 | I31: 0 | J31: 0 | K31: 0
A32: ='Org structure'!E29 -> 04.5 - Municipal Health Services | C32: 0 | D32: 0 | E32: 0 | F32: 0 | G32: 0 | H32: 0 | I32: 0 | J32: 0 | K32: 0
A33: ='Org structure'!E30 -> 04.6 - Hiv And Aids Section | C33: 0 | D33: 0 | E33: 0 | F33: 300000 | G33: 500000 | H33: 500000 | I33: 688608 | J33: 0 | K33: 0
A34: ='Org structure'!A6 -> Vote 05 - Corporate Services | C34: =SUM(C35:C43) -> 8232478 | D34: 10401060 | E34: 6827190 | F34: 1689380 | G34: 2965522 | H34: 2965522 | I34: 3726582 | J34: 1174738 | K34: 1233475
A35: ='Org structure'!E32 -> 05.1 - Corporate Services | C35: 0 | D35: 0 | E35: 0 | F35: 0 | G35: 0 | H35: 0 | I35: 0 | J35: 0 | K35: 0
A36: ='Org structure'!E33 -> 05.2 - Council Support | C36: 0 | D36: 0 | E36: 0 | F36: 0 | G36: 0 | H36: 0 | I36: 0 | J36: 0 | K36: 0
A37: ='Org structure'!E34 -> 05.3 - Employee Assistance Unit | C37: 0 | D37: 0 | E37: 0 | F37: 0 | G37: 0 | H37: 0 | I37: 0 | J37: 0 | K37: 0
A38: ='Org structure'!E35 -> 05.4 - Administration | C38: 0 | D38: 0 | E38: 0 | F38: 289380 | G38: 289380 | H38: 289380 | I38: 303849 | J38: 319041 | K38: 334994
A39: ='Org structure'!E36 -> 05.5 - Fleet | C39: 0 | D39: 0 | E39: 0 | F39: 0 | G39: 0 | H39: 0 | I39: 0 | J39: 0 | K39: 0
A40: ='Org structure'!E37 -> 05.6 - Human Resources | C40: 8232478 | D40: 10401060 | E40: 6827190 | F40: 1400000 | G40: 2676142 | H40: 2676142 | I40: 3422733 | J40: 855697 | K40: 898481
A41: ='Org structure'!E38 -> 05.7 - Legal Services | C41: 0 | D41: 0 | E41: 0 | F41: 0 | G41: 0 | H41: 0 | I41: 0 | J41: 0 | K41: 0
A42: ='Org structure'!E39 -> 05.8 - Information Technology Management | C42: 0 | D42: 0 | E42: 0 | F42: 0 | G42: 0 | H42: 0 | I42: 0 | J42: 0 | K42: 0
A43: ='Org structure'!E40 -> 05.9 - Job Evaluation Unit | C43: 0 | D43: 0 | E43: 0 | F43: 0 | G43: 0 | H43: 0 | I43: 0 | J43: 0 | K43: 0
A44: ='Org structure'!A7 -> Vote 06 - Planning & Development | C44: =SUM(C45:C47) -> 3311218 | D44: 0 | E44: 0 | F44: 2084000 | G44: 28600832 | H44: 28600832 | I44: 1351712 | J44: 0 | K44: 0
A45: ='Org structure'!E42 -> 06.1 - Integrated Planning & Economic Develop | C45: 0 | D45: 0 | E45: 0 | F45: 0 | G45: 0 | H45: 0 | I45: 0 | J45: 0 | K45: 0
A46: ='Org structure'!E43 -> 06.2 - Local Economic Development | C46: 3311218 | D46: 0 | E46: 0 | F46: 2084000 | G46: 28600832 | H46: 28600832 | I46: 1351712 | J46: 0 | K46: 0
A47: ='Org structure'!E44 -> 06.3 - Planning | C47: 0 | D47: 0 | E47: 0 | F47: 0 | G47: 0 | H47: 0 | I47: 0 | J47: 0 | K47: 0
A48: ='Org structure'!A8 -> Vote 07 - Technical Services | C48: =SUM(C49:C68) -> 988077200 | D48: 536059470 | E48: 661090942 | F48: 724706260 | G48: 831077083 | H48: 831077083 | I48: 1009582273 | J48: 957087279 | K48: 881050391
A49: ='Org structure'!E46 -> 07.1 - Technical Services Administration | C49: 0 | D49: 0 | E49: 0 | F49: 0 | G49: 0 | H49: 0 | I49: 0 | J49: 0 | K49: 0
A50: ='Org structure'!E47 -> 07.2 - Project Management Unit | C50: 938623508 | D50: 482989287 | E50: 567640096 | F50: 476824000 | G50: 524124000 | H50: 524124000 | I50: 677318000 | J50: 618374000 | K50: 525368000
A51: ='Org structure'!E48 -> 07.3 - Sewerage Services | C51: 49453692 | D51: 53070183 | E51: 93450846 | F51: 0 | G51: 0 | H51: 0 | I51: 0 | J51: 0 | K51: 0
A52: ='Org structure'!E49 -> 07.4 - Inxuba Sanitation | C52: 0 | D52: 0 | E52: 0 | F52: 0 | G52: 0 | H52: 0 | I52: 0 | J52: 0 | K52: 0
A53: ='Org structure'!E50 -> 07.5 - Lukhanji Sanitation | C53: 0 | D53: 0 | E53: 0 | F53: 0 | G53: 12641 | H53: 12641 | I53: 13273 | J53: 13937 | K53: 14634
A54: ='Org structure'!E51 -> 07.6 - Intsika Yethu Sanitation | C54: 0 | D54: 0 | E54: 0 | F54: 0 | G54: 0 | H54: 0 | I54: 0 | J54: 0 | K54: 0
A55: ='Org structure'!E52 -> 07.7 - Inkwanca Sanitation | C55: 0 | D55: 0 | E55: 0 | F55: 56958543 | G55: 59227643 | H55: 59227643 | I55: 65164000 | J55: 65936633 | K55: 69233464
A56: ='Org structure'!E53 -> 07.8 - Engcobo Sanitation | C56: 0 | D56: 0 | E56: 0 | F56: 0 | G56: 0 | H56: 0 | I56: 0 | J56: 0 | K56: 0
A57: ='Org structure'!E54 -> 07.9 - Tsolwana Sanitation | C57: 0 | D57: 0 | E57: 0 | F57: 0 | G57: 0 | H57: 0 | I57: 0 | J57: 0 | K57: 0
A58: ='Org structure'!E55 -> 07.10 - Sakhisizwe Sanitation | C58: 0 | D58: 0 | E58: 0 | F58: 0 | G58: 0 | H58: 0 | I58: 0 | J58: 0 | K58: 0
A59: ='Org structure'!E56 -> 07.11 - Emalahleni Sanitation | C59: 0 | D59: 0 | E59: 0 | F59: 0 | G59: 0 | H59: 0 | I59: 0 | J59: 0 | K59: 0
A60: ='Org structure'!E57 -> 07.12 - Water Services Authority | C60: 0 | D60: 0 | E60: 0 | F60: 3421000 | G60: 3421000 | H60: 3421000 | I60: 3252000 | J60: 3431000 | K60: 3636000
A61: ='Org structure'!E58 -> 07.13 - Inxuba Water | C61: 0 | D61: 0 | E61: 0 | F61: 0 | G61: 0 | H61: 0 | I61: 0 | J61: 0 | K61: 0
A62: ='Org structure'!E59 -> 07.14 - Lukhanji Water | C62: 0 | D62: 0 | E62: 0 | F62: 101338 | G62: 108516 | H62: 108516 | I62: 113942 | J62: 119639 | K62: 125620
A63: ='Org structure'!E60 -> 07.15 - Intiska Yethu Water | C63: 0 | D63: 0 | E63: 0 | F63: 0 | G63: 0 | H63: 0 | I63: 0 | J63: 0 | K63: 0
A64: ='Org structure'!E61 -> 07.16 - Inkwanca Water | C64: 0 | D64: 0 | E64: 0 | F64: 0 | G64: 0 | H64: 0 | I64: 0 | J64: 0 | K64: 0
A65: ='Org structure'!E62 -> 07.17 - Engcobo Water | C65: 0 | D65: 0 | E65: 0 | F65: 0 | G65: 0 | H65: 0 | I65: 0 | J65: 0 | K65: 0
A66: ='Org structure'!E63 -> 07.18 - Tsolwana Water | C66: 0 | D66: 0 | E66: 0 | F66: 0 | G66: 0 | H66: 0 | I66: 0 | J66: 0 | K66: 0
A67: ='Org structure'!E64 -> 07.19 - Sakhisizwe Water | C67: 0 | D67: 0 | E67: 0 | F67: 187401379 | G67: 244183283 | H67: 244183283 | I67: 263721058 | J67: 269212070 | K67: 282672673
A68: ='Org structure'!E65 -> 07.20 - Emalahleni Water | C68: 0 | D68: 0 | E68: 0 | F68: 0 | G68: 0 | H68: 0 | I68: 0 | J68: 0 | K68: 0
A69: ='Org structure'!A9 -> Vote 08 - Roadworks | C69: =SUM(C70:C71) -> 27800000 | D69: 29265928 | E69: 20679101 | F69: 28000000 | G69: 28000000 | H69: 28000000 | I69: 0 | J69: 0 | K69: 0
A70: ='Org structure'!E67 -> 08.1 - Indirect - Roads | C70: 27800000 | D70: 29265928 | E70: 20679101 | F70: 28000000 | G70: 28000000 | H70: 28000000 | I70: 0 | J70: 0 | K70: 0
A71: ='Org structure'!E68 -> 08.2 - Plant: Public Works | C71: 0 | D71: 0 | E71: 0 | F71: 0 | G71: 0 | H71: 0 | I71: 0 | J71: 0 | K71: 0
A72: ='Org structure'!A10 -> Vote 09 - Entity: Chis Hani Development Agency | C72: =SUM(C73:C73) -> 0 | D72: 0 | E72: 0 | F72: 0 | G72: 0 | H72: 0 | I72: 0 | J72: 0 | K72: 0
A73: ='Org structure'!E70 -> 09.1 - Chris Hani Development Agency | C73: 0 | D73: 0 | E73: 0 | F73: 0 | G73: 0 | H73: 0 | I73: 0 | J73: 0 | K73: 0
A74: ='Org structure'!A11 -> Vote 10 - Vote 10 | C74: 0 | D74: 0 | E74: 0 | F74: 0 | G74: 0 | H74: 0 | I74: 0 | J74: 0 | K74: 0
A75: ='Org structure'!A12 -> Vote 11 - Vote 11 | C75: 0 | D75: 0 | E75: 0 | F75: 0 | G75: 0 | H75: 0 | I75: 0 | J75: 0 | K75: 0
A76: ='Org structure'!A13 -> Vote 12 - Vote 12 | C76: 0 | D76: 0 | E76: 0 | F76: 0 | G76: 0 | H76: 0 | I76: 0 | J76: 0 | K76: 0
A77: ='Org structure'!A14 -> Vote 13 - Vote 13 | C77: 0 | D77: 0 | E77: 0 | F77: 0 | G77: 0 | H77: 0 | I77: 0 | J77: 0 | K77: 0
A78: ='Org structure'!A15 -> Vote 14 - Vote 14 | C78: 0 | D78: 0 | E78: 0 | F78: 0 | G78: 0 | H78: 0 | I78: 0 | J78: 0 | K78: 0
A79: ='Org structure'!A16 -> Vote 15 - Other | C79: 0 | D79: 0 | E79: 0 | F79: 0 | G79: 0 | H79: 0 | I79: 0 | J79: 0 | K79: 0
A80: Total Revenue by Vote | B80: 2 | C80: =C5+C8+C16+C27+C34+C44+C48+C69+C72+C74+C75+C76+C77+C78+C79 -> 1588654255 | D80: 1423694226 | E80: 1321393223 | F80: 1401685063 | G80: 1610536023 | H80: 1615372822 | I80: 1763574643 | J80: 1751905617 | K80: 1723770596 | L80: =SUM(L55:L68) -> 0 | M80: 0 | N80: 0 | O80: 0 | P80: 0 | Q80: 0 | R80: 0 | S80: 0 | T80: 0 | U80: 0 | V80: 0 | W80: 0
A82: Expenditure by Vote | B82: 1
A83: ='Org structure'!A2 -> Vote 01 - Council | C83: =SUM(C84:C85) -> 39999850 | D83: 18287000 | E83: 36814000 | F83: 31340273 | G83: 29368836 | H83: 27022553 | I83: 29846540 | J83: 31656380 | K83: 33454267
A84: ='Org structure'!E3 -> 01.1 - Council's General Expenses | C84: =84155850-C87 -> 39999850 | D84: =18287000 -> 18287000 | E84: 36814000 | F84: 26090206 | G84: 24255769 | H84: 22009486 | I84: 24272032 | J84: 25748117 | K84: 27192250
A85: ='Org structure'!E4 -> 01.2 - Council General - Independent Contractor | C85: 0 | D85: 0 | E85: 0 | F85: 5250067 | G85: 5113067 | H85: 5013067 | I85: 5574508 | J85: 5908263 | K85: 6262017
A86: ='Org structure'!A3 -> Vote 02 - Municipal Manager | C86: =SUM(C87:C93) -> 44156000 | D86: 58653409.03 | E86: 64012845.45 | F86: 101953672 | G86: 92952258 | H86: 89629299 | I86: 98993318 | J86: 98444002 | K86: 102122513
A87: ='Org structure'!E6 -> 02.1 - Municipal Manager | C87: 44156000 | D87: =40229139.84-3000000 -> 37229139.84 | E87: 40844550.99 | F87: 70396710 | G87: 69720842 | H87: 67427883 | I87: 75602449 | J87: 73797964 | K87: 76152165
A88: ='Org structure'!E7 -> 02.2 - Communication Office | C88: 0 | D88: 8552325.31 | E88: 8488237.61 | F88: 10581968 | G88: 8966918 | H88: 8866918 | I88: 9615534 | J88: 10128820 | K88: 10670348
A89: ='Org structure'!E8 -> 02.3 - Internal Audit | C89: 0 | D89: 4379914.07 | E89: 4344196.57 | F89: 5668440 | G89: 4831126 | H89: 4481126 | I89: 5403833 | J89: 5699626 | K89: 6012021
A90: ='Org structure'!E9 -> 02.4 - Strategic Manager | C90: 0 | D90: 3771980.57 | E90: 4494998.33 | F90: 7882475 | G90: 4703911 | H90: 4123911 | I90: 4678489 | J90: 4939804 | K90: 5216035
A91: ='Org structure'!E10 -> 02.5 - Special Programmes Unit | C91: 0 | D91: 4335682.91 | E91: 0 | F91: 0 | G91: 0 | H91: 0 | I91: 0 | J91: 0 | K91: 0
A92: ='Org structure'!E11 -> 02.6 - Special Programmes Unit | C92: 0 | D92: 0 | E92: 5124284.95 | F92: 6790729 | G92: 4439261 | H92: 4439261 | I92: 3400361 | J92: 3573433 | K92: 3755414
A93: ='Org structure'!E12 -> 02.7 - Customer Care | C93: 0 | D93: 384366.33 | E93: 716577 | F93: 633350 | G93: 290200 | H93: 290200 | I93: 292652 | J93: 304355 | K93: 316530
A94: ='Org structure'!A4 -> Vote 03 - Budget & Treasury | C94: =SUM(C95:C104) -> 94419792 | D94: 111691040.8 | E94: 82060558.71 | F94: 88944971 | G94: 63302438 | H94: 62002438 | I94: 62471080 | J94: 65881868 | K94: 69488844
A95: ='Org structure'!E14 -> 03.1 - Budget & Treasury Office | C95: 94419792 | D95: =10600211.81+53343000 -> 63943211.81 | E95: 21302000 | F95: 34406738 | G95: 0 | H95: 13254721 | I95: 11419494 | J95: 12012691 | K95: 12634201
A96: ='Org structure'!E15 -> 03.2 - Budget & Treasury Office | C96: 0 | D96: 0 | E96: 0 | F96: 0 | G96: 13454721 | H96: 0 | I96: 0 | J96: 0 | K96: 0
A97: ='Org structure'!E16 -> 03.3 - Accounting Services | C97: 0 | D97: 6589961.84 | E97: 6593291.49 | F97: 7222144 | G97: 7274410 | H97: 6974410 | I97: 7841241 | J97: 8286962 | K97: 8758435
A98: ='Org structure'!E17 -> 03.4 - Budget Control | C98: 0 | D98: 3931510.61 | E98: 6506603.15 | F98: 3808093 | G98: 3838913 | H98: 3838913 | I98: 4371527 | J98: 4614315 | K98: 4870885
A99: ='Org structure'!E18 -> 03.5 - Revenue Services | C99: 0 | D99: 12918413.48 | E99: 16377263.05 | F99: 16656143 | G99: 14245591 | H99: 12795591 | I99: 13652926 | J99: 14418270 | K99: 15237949
A100: ='Org structure'!E19 -> 03.6 - Supply Chain Management | C100: 0 | D100: 7992581.84 | E100: 7016725.12 | F100: 8737525 | G100: 7947055 | H100: 7747055 | I100: 8610627 | J100: 9108643 | K100: 9635797
A101: ='Org structure'!E20 -> 03.7 - Systems Administration | C101: 0 | D101: 5434378.57 | E101: 6587340.9 | F101: 6489870 | G101: 6836051 | H101: 6836051 | I101: 7145442 | J101: 7496029 | K101: 7864527
A102: ='Org structure'!E21 -> 03.8 - Financial Statements Management | C102: 0 | D102: 5535028.35 | E102: 12285978.76 | F102: 5500354 | G102: 4678757 | H102: 4578757 | I102: 4938926 | J102: 5183013 | K102: 5439655
A103: ='Org structure'!E22 -> 03.9 - Grants & Donations | C103: 0 | D103: 0 | E103: 0 | F103: 0 | G103: 0 | H103: 0 | I103: 0 | J103: 0 | K103: 0
A104: ='Org structure'!E23 -> 03.10 - Assets Management | C104: 0 | D104: 5345954.34 | E104: 5391356.24 | F104: 6124104 | G104: 5026940 | H104: 5976940 | I104: 4490897 | J104: 4761945 | K104: 5047395
A105: ='Org structure'!A5 -> Vote 04 - Community Services | C105: =SUM(C106:C111) -> 35296806 | D105: 60193772.9 | E105: 73818728.34 | F105: 67448327 | G105: 60705650 | H105: 55500650 | I105: 61474222 | J105: 63088707 | K105: 66677628
A106: ='Org structure'!E25 -> 04.1 - Community & Social Services | C106: 35296806 | D106: =5547903.91+8779000 -> 14326903.91 | E106: 4572791.72 | F106: 5517859 | G106: 5436062 | H106: 4236062 | I106: 5826732 | J106: 6171334 | K106: 6536420
A107: ='Org structure'!E26 -> 04.2 - Disaster Management | C107: 0 | D107: 9345769.22 | E107: 15784728.86 | F107: 13814289 | G107: 11986723 | H107: 11286723 | I107: 12897209 | J107: 13596707 | K107: 14335201
A108: ='Org structure'!E27 -> 04.3 - Environmental Management | C108: 0 | D108: 27173883.14 | E108: =52678923.69-12543000 -> 40135923.69 | F108: 33098522 | G108: 34373655 | H108: 31068655 | I108: 33197345 | J108: 33317486 | K108: 35274805
A109: ='Org structure'!E28 -> 04.4 - Fire Services | C109: 0 | D109: 5622735.02 | E109: 7311394.21 | F109: 5833353 | G109: 5153572 | H109: 5153572 | I109: 5575962 | J109: 5848345 | K109: 6190262
A110: ='Org structure'!E29 -> 04.5 - Municipal Health Services | C110: 0 | D110: 3557616.15 | E110: 6013510.36 | F110: 9181700 | G110: 3753034 | H110: 3753034 | I110: 3974305 | J110: 4152059 | K110: 4338053
A111: ='Org structure'!E30 -> 04.6 - Hiv And Aids Section | C111: 0 | D111: 166865.46 | E111: 379.5 | F111: 2604 | G111: 2604 | H111: 2604 | I111: 2669 | J111: 2776 | K111: 2887
A112: ='Org structure'!A6 -> Vote 05 - Corporate Services | C112: =SUM(C113:C121) -> 122248293 | D112: 82718908.56 | E112: 127176179.3 | F112: 229018304 | G112: 109399372 | H112: 125292366 | I112: 115069460 | J112: 117069080 | K112: 122621433
A113: ='Org structure'!E32 -> 05.1 - Corporate Services | C113: 122248293 | D113: =23269297.27-10000000 -> 13269297.27 | E113: =61731112.47-25000000 -> 36731112.47 | F113: 90406029 | G113: 17123341 | H113: 17653341 | I113: 18232786 | J113: 19227463 | K113: 20275457
A114: ='Org structure'!E33 -> 05.2 - Council Support | C114: 0 | D114: 1589700.79 | E114: 1390541.04 | F114: 1535771 | G114: 1229420 | H114: 1229420 | I114: 1340694 | J114: 1420785 | K114: 1505667
A115: ='Org structure'!E34 -> 05.3 - Employee Assistance Unit | C115: 0 | D115: 6851669.88 | E115: 19514176.78 | F115: 13411853 | G115: 7520230 | H115: 8486513 | I115: 7199340 | J115: 7566376 | K115: 7952836
A116: ='Org structure'!E35 -> 05.4 - Administration | C116: 0 | D116: =25461647.45-12887000 -> 12574647.45 | E116: =38069838.53-25638000 -> 12431838.53 | F116: 55904135 | G116: 35206329 | H116: 47021219 | I116: 35932846 | J116: 37381502 | K116: 38888674
A117: ='Org structure'!E36 -> 05.5 - Fleet | C117: 0 | D117: 15567188.6 | E117: 18937891.03 | F117: 21600672 | G117: 14006995 | H117: 15706995 | I117: 13999466 | J117: 14599446 | K117: 15223422
A118: ='Org structure'!E37 -> 05.6 - Human Resources | C118: 0 | D118: 17932220.78 | E118: 18698196.06 | F118: 23977291 | G118: 18358612 | H118: 17428612 | I118: 21822633 | J118: 19561969 | K118: 20656721
A119: ='Org structure'!E38 -> 05.7 - Legal Services | C119: 0 | D119: 2135786.33 | E119: 2531953.94 | F119: 3983406 | G119: 2223571 | H119: 2223571 | I119: 2325079 | J119: 2443205 | K119: 2567558
A120: ='Org structure'!E39 -> 05.8 - Information Technology Management | C120: 0 | D120: 12396874.02 | E120: 15696060.55 | F120: 16947248 | G120: 12982503 | H120: 14794324 | I120: 13368229 | J120: 13974693 | K120: 14609715
A121: ='Org structure'!E40 -> 05.9 - Job Evaluation Unit | C121: 0 | D121: 401523.44 | E121: 1244408.94 | F121: 1251899 | G121: 748371 | H121: 748371 | I121: 848387 | J121: 893641 | K121: 941383
A122: ='Org structure'!A7 -> Vote 06 - Planning & Development | C122: =SUM(C123:C125) -> 71434710 | D122: 57619259.33 | E122: 25806891.9 | F122: 75244343 | G122: 56262081 | H122: 52305360 | I122: 38473119 | J122: 38847337 | K122: 40760881
A123: ='Org structure'!E42 -> 06.1 - Integrated Planning & Economic Develop | C123: 71434710 | D123: 2815510.2 | E123: 3700526.01 | F123: 3660649 | G123: 4506649 | H123: 3506649 | I123: 4906867 | J123: 5194738 | K123: 5499622
A124: ='Org structure'!E43 -> 06.2 - Local Economic Development | C124: 0 | D124: =45382064.63-516000 -> 44866064.63 | E124: =53582168.03-43321000 -> 10261168.03 | F124: 50850768 | G124: 43725127 | H124: 40768406 | I124: 26653125 | J124: 26385932 | K124: 27622281
A125: ='Org structure'!E44 -> 06.3 - Planning | C125: 0 | D125: 9937684.5 | E125: 11845197.86 | F125: 20732926 | G125: 8030305 | H125: 8030305 | I125: 6913127 | J125: 7266667 | K125: 7638978
A126: ='Org structure'!A8 -> Vote 07 - Technical Services | C126: =SUM(C127:C146) -> 712956745 | D126: 810310445.9 | E126: 779999735.9 | F126: 729458568 | G126: 686457576 | H126: 696845035 | I126: 638125554 | J126: 636968958 | K126: 709650601
A127: ='Org structure'!E46 -> 07.1 - Technical Services Administration | C127: 0 | D127: 4275306.88 | E127: 10781555.6 | F127: 36104691 | G127: 36067217 | H127: 35867217 | I127: 36284014 | J127: 37801971 | K127: 39384649
A128: ='Org structure'!E47 -> 07.2 - Project Management Unit | C128: 708456745 | D128: 29927158.08 | E128: 37452394.72 | F128: 56183738 | G128: 118051911 | H128: 118051911 | I128: 67171340 | J128: 45259755 | K128: 90027059
A129: ='Org structure'!E48 -> 07.3 - Sewerage Services | C129: 4500000 | D129: 15373876.29 | E129: 16998222.07 | F129: 27801642 | G129: 27801642 | H129: 27801642 | I129: 27801642 | J129: 28913708 | K129: 30070256
A130: ='Org structure'!E49 -> 07.4 - Inxuba Sanitation | C130: 0 | D130: 1415501.6 | E130: 3044781.55 | F130: 3530625 | G130: 2840025 | H130: 2840025 | I130: 4828043 | J130: 5021164 | K130: 5222011
A131: ='Org structure'!E50 -> 07.5 - Lukhanji Sanitation | C131: 0 | D131: 268636.94 | E131: 143026.63 | F131: 722460 | G131: 282260 | H131: 282260 | I131: 282260 | J131: 293550 | K131: 305292
A132: ='Org structure'!E51 -> 07.6 - Intsika Yethu Sanitation | C132: 0 | D132: 67722.38 | E132: 13680.54 | F132: 133436 | G132: 23436 | H132: 203436 | I132: 18344 | J132: 19078 | K132: 19841
A133: ='Org structure'!E52 -> 07.7 - Inkwanca Sanitation | C133: 0 | D133: 1892287.48 | E133: 3065486.66 | F133: 4097399 | G133: 1738828 | H133: 1738828 | I133: 1703306 | J133: 1815438 | K133: 1932055
A134: ='Org structure'!E53 -> 07.8 - Engcobo Sanitation | C134: 0 | D134: 0 | E134: 0 | F134: 0 | G134: 0 | H134: 0 | I134: 0 | J134: 0 | K134: 0
A135: ='Org structure'!E54 -> 07.9 - Tsolwana Sanitation | C135: 0 | D135: 1457766.74 | E135: 1717744.8 | F135: 1835883 | G135: 421242 | H135: 421242 | I135: 681112 | J135: 708356 | K135: 736690
A136: ='Org structure'!E55 -> 07.10 - Sakhisizwe Sanitation | C136: 0 | D136: 3392443.04 | E136: 2960767.08 | F136: 3984562 | G136: 4267842 | H136: 5133842 | I136: 4978539 | J136: 5177681 | K136: 5384788
A137: ='Org structure'!E56 -> 07.11 - Emalahleni Sanitation | C137: 0 | D137: 1094517.28 | E137: 1513312.26 | F137: 1585245 | G137: 311996 | H137: 149750 | I137: 501343 | J137: 521397 | K137: 542252
A138: ='Org structure'!E57 -> 07.12 - Water Services Authority | C138: 0 | D138: =489744733.53+68590000 -> 558334733.5 | E138: =401118881.65+101934000 -> 503052881.6 | F138: 359049939 | G138: 291861146 | H138: 283917301 | I138: 260236146 | J138: 265906662 | K138: 277989160
A139: ='Org structure'!E58 -> 07.13 - Inxuba Water | C139: 0 | D139: 30636480.5 | E139: 20254208.95 | F139: 29950144 | G139: 23183692 | H139: 25326151 | I139: 27314793 | J139: 28778787 | K139: 30323378
A140: ='Org structure'!E59 -> 07.14 - Lukhanji Water | C140: 0 | D140: 56320990.22 | E140: 63204114.78 | F140: 67994654 | G140: 59576631 | H140: 79108476 | I140: 68871525 | J140: 72359439 | K140: 76023653
A141: ='Org structure'!E60 -> 07.15 - Intiska Yethu Water | C141: 0 | D141: 23680119.01 | E141: 25753088.93 | F141: 29926358 | G141: 28412545 | H141: 28342545 | I141: 29117710 | J141: 30633767 | K141: 32228912
A142: ='Org structure'!E61 -> 07.16 - Inkwanca Water | C142: 0 | D142: 13207142.97 | E142: 12690957.62 | F142: 16191004 | G142: 11797969 | H142: 10889969 | I142: 13261203 | J142: 14006750 | K142: 14792624
A143: ='Org structure'!E62 -> 07.17 - Engcobo Water | C143: 0 | D143: 25193211.94 | E143: 25123001.06 | F143: 29364492 | G143: 24308935 | H143: 24183935 | I143: 29605608 | J143: 30963243 | K143: 32385585
A144: ='Org structure'!E63 -> 07.18 - Tsolwana Water | C144: 0 | D144: 12539684.84 | E144: 11174705.07 | F144: 15920024 | G144: 16372935 | H144: 15872935 | I144: 20260542 | J144: 21264641 | K144: 22320520
A145: ='Org structure'!E64 -> 07.19 - Sakhisizwe Water | C145: 0 | D145: 12302695.37 | E145: 16622020.22 | F145: 19616061 | G145: 15771621 | H145: 14727621 | I145: 18475358 | J145: 19454444 | K145: 20486859
A146: ='Org structure'!E65 -> 07.20 - Emalahleni Water | C146: 0 | D146: 18930170.78 | E146: 24433785.76 | F146: 25466211 | G146: 23365703 | H146: 21985949 | I146: 26732726 | J146: 28069127 | K146: 29475017
A147: ='Org structure'!A9 -> Vote 08 - Roadworks | C147: =SUM(C148:C149) -> 30519833 | D147: 29656559.44 | E147: 24057318.54 | F147: 28000000 | G147: 28000000 | H147: 28000000 | I147: 0 | J147: 0 | K147: 0
A148: ='Org structure'!E67 -> 08.1 - Indirect - Roads | C148: 30519833 | D148: =30258864.07-1034000 -> 29224864.07 | E148: =18240589.21+5353000 -> 23593589.21 | F148: 27474052 | G148: 27474052 | H148: 27474052 | I148: 0 | J148: 0 | K148: 0
A149: ='Org structure'!E68 -> 08.2 - Plant: Public Works | C149: 0 | D149: 431695.37 | E149: 463729.33 | F149: 525948 | G149: 525948 | H149: 525948 | I149: 0 | J149: 0 | K149: 0
A150: ='Org structure'!A10 -> Vote 09 - Entity: Chis Hani Development Agency | C150: =SUM(C151:C151) -> 0 | D150: 0 | E150: 0 | F150: 0 | G150: 0 | H150: 0 | I150: 0 | J150: 0 | K150: 0
A151: ='Org structure'!E70 -> 09.1 - Chris Hani Development Agency | C151: 0 | D151: 0 | E151: 0 | F151: 0 | G151: 0 | H151: 0 | I151: 0 | J151: 0 | K151: 0
A152: ='Org structure'!A11 -> Vote 10 - Vote 10 | C152: 0 | D152: 0 | E152: 0 | F152: 0 | G152: 0 | H152: 0 | I152: 0 | J152: 0 | K152: 0
A153: ='Org structure'!A12 -> Vote 11 - Vote 11 | C153: 0 | D153: 0 | E153: 0 | F153: 0 | G153: 0 | H153: 0 | I153: 0 | J153: 0 | K153: 0
A154: ='Org structure'!A13 -> Vote 12 - Vote 12 | C154: 0 | D154: 0 | E154: 0 | F154: 0 | G154: 0 | H154: 0 | I154: 0 | J154: 0 | K154: 0
A155: ='Org structure'!A14 -> Vote 13 - Vote 13 | C155: 0 | D155: 0 | E155: 0 | F155: 0 | G155: 0 | H155: 0 | I155: 0 | J155: 0 | K155: 0
A156: ='Org structure'!A15 -> Vote 14 - Vote 14 | C156: 0 | D156: 0 | E156: 0 | F156: 0 | G156: 0 | H156: 0 | I156: 0 | J156: 0 | K156: 0
A157: ='Org structure'!A16 -> Vote 15 - Other | C157: 0 | D157: 0 | E157: 0 | F157: 0 | G157: 0 | H157: 0 | I157: 0 | J157: 0 | K157: 0
A158: Total Expenditure by Vote | B158: 2 | C158: =C83+C86+C94+C105+C112+C122+C126+C147+C150+C152+C153+C154+C155+C156+C157 -> 1151032029 | D158: 1229130396 | E158: 1213746258 | F158: 1351408458 | G158: 1126448211 | H158: 1136597701 | I158: 1044453293 | J158: 1051956332 | K158: 1144776167 | L158: =SUM(L83:L146) -> 0 | M158: 0 | N158: 0 | O158: 0 | P158: 0 | Q158: 0 | R158: 0 | S158: 0 | T158: 0 | U158: 0 | V158: 0 | W158: 0
A160: =result -> Surplus/(Deficit) for the year | B160: 2 | C160: =C80-C158 -> 437622226 | D160: 194563830.3 | E160: 107646964.8 | F160: 50276605 | G160: 484087812 | H160: 478775121 | I160: 719121350 | J160: 699949285 | K160: 578994429 | L160: 0 | M160: 0 | N160: 0 | O160: 0 | P160: 0 | Q160: 0 | R160: 0 | S160: 0 | T160: 0 | U160: 0 | V160: 0 | W160: 0
A161: =head27a -> References
A162: 1. Insert 'Vote'; e.g. Department, if different to Functional structure
A163: 2. Must reconcile to Financial Performance ('Revenue and Expenditure by Functional Classification' and 'Revenue and Expenditure')
A164: 3. Assign share in 'associate' to relevant Vote
A166: check revenue | C166: =C80-'DC13 A i Schedule 2020 2021 Fin'!C59 -> 0 | D166: =D80-'DC13 A i Schedule 2020 2021 Fin'!D59 -> 0.2600002289 | E166: =E80-'DC13 A i Schedule 2020 2021 Fin'!E59 -> 0.02999997139 | F166: =F80-'DC13 A i Schedule 2020 2021 Fin'!F59 -> 28852145 | G166: =G80-'DC13 A i Schedule 2020 2021 Fin'!G59 -> 16352260 | H166: =H80-'DC13 A i Schedule 2020 2021 Fin'!H59 -> 21189059 | I166: =I80-'DC13 A i Schedule 2020 2021 Fin'!J59 -> 0 | J166: =J80-'DC13 A i Schedule 2020 2021 Fin'!K59 -> 0 | K166: =K80-'DC13 A i Schedule 2020 2021 Fin'!L59 -> 0
A167: check expenditure | C167: =C158-'DC13 A i Schedule 2020 2021 Fin'!C35 -> 2895732.98 | D167: =D158-'DC13 A i Schedule 2020 2021 Fin'!D35 -> 739.7200003 | E167: =E158-'DC13 A i Schedule 2020 2021 Fin'!E35 -> 59.42999983 | F167: =F158-'DC13 A i Schedule 2020 2021 Fin'!F35 -> 0 | G167: =G158-'DC13 A i Schedule 2020 2021 Fin'!G35 -> 0 | H167: =H158-'DC13 A i Schedule 2020 2021 Fin'!H35 -> 10149490 | I167: =I158-'DC13 A i Schedule 2020 2021 Fin'!J35 -> 0 | J167: =J158-'DC13 A i Schedule 2020 2021 Fin'!K35 -> 0 | K167: =K158-'DC13 A i Schedule 2020 2021 Fin'!L35 -> 0

Sheet DC13 A i Schedule 2020 2021 Fin
A1: =muni&" - "&Approve4 -> DC13 Chris Hani - Table A4 Budgeted Financial Performance (revenue and expenditure)
A2: =desc -> Description | B2: =head27 -> Ref | C2: =head1b -> 2016/17 | D2: =head1A -> 2017/18 | E2: =Head1 -> 2018/19 | F2: =Head2 -> Current Year 2019/20 | J2: =Head3 -> 2020/21 Medium Term Revenue & Expenditure Framework | M2: =Head4 -> LTFS
A3: R thousand | B3: 1 | C3: =Head5 -> Audited Outcome | D3: =Head5 -> Audited Outcome | E3: =Head5 -> Audited Outcome | F3: =Head6 -> Original Budget | G3: =Head7 -> Adjusted Budget | H3: =Head8 -> Full Year Forecast | I3: =Head5b -> Pre-audit outcome | J3: =Head9 -> Budget Year 2020/21 | K3: =Head10 -> Budget Year +1 2021/22 | L3: =Head11 -> Budget Year +2 2022/23 | M3: =Head12 -> Forecast 2023/24 | N3: =Head13 -> Forecast 2024/25 | O3: =Head14 -> Forecast 2025/26 | P3: =Head15 -> Forecast 2026/27 | Q3: =Head16 -> Forecast 2027/28 | R3: =Head17 -> Forecast 2028/29 | S3: =Head18 -> Forecast 2029/30 | T3: =Head19 -> Forecast 2030/31 | U3: =Head20 -> Forecast 2031/32 | V3: =Head21 -> Forecast 2032/33 | W3: =Head22 -> Forecast 2033/34 | X3: =Head23 -> Forecast 2034/35
A4: Revenue By Source
A5: Property rates | B5: 2 | C5: ='SA1'!C9 -> 0 | D5: ='SA1'!D9 -> 0 | E5: ='SA1'!E9 -> 0 | F5: ='SA1'!F9 -> 0 | G5: ='SA1'!G9 -> 0 | H5: ='SA1'!H9 -> 0 | I5: ='SA1'!I9 -> 0 | J5: ='SA1'!J9 -> 0 | K5: ='SA1'!K9 -> 0 | L5: ='SA1'!L9 -> 0
A6: Service charges - electricity revenue | B6: 2 | C6: ='SA1'!C15 -> 0 | D6: ='SA1'!D15 -> 0 | E6: ='SA1'!E15 -> 0 | F6: ='SA1'!F15 -> 0 | G6: ='SA1'!G15 -> 0 | H6: ='SA1'!H15 -> 0 | I6: ='SA1'!I15 -> 0 | J6: ='SA1'!J15 -> 0 | K6: ='SA1'!K15 -> 0 | L6: ='SA1'!L15 -> 0
A7: Service charges - water revenue | B7: 2 | C7: ='SA1'!C21 -> 174469507 | D7: ='SA1'!D21 -> 221965645 | E7: ='SA1'!E21 -> 249364067 | F7: ='SA1'!F21 -> 187502717 | G7: ='SA1'!G21 -> 244291799 | H7: ='SA1'!H21 -> 244291799 | I7: ='SA1'!I21 -> 200778335.6 | J7: ='SA1'!J21 -> 263835000 | K7: ='SA1'!K21 -> 269331709 | L7: ='SA1'!L21 -> 282798293
A8: Service charges - sanitation revenue | B8: 2 | C8: ='SA1'!C27 -> 49453692 | D8: ='SA1'!D27 -> 53070183 | E8: ='SA1'!E27 -> 56102484 | F8: ='SA1'!F27 -> 56958543 | G8: ='SA1'!G27 -> 59240284 | H8: ='SA1'!H27 -> 59240284 | I8: ='SA1'!I27 -> 49448744.73 | J8: ='SA1'!J27 -> 65177273 | K8: ='SA1'!K27 -> 65950570 | L8: ='SA1'!L27 -> 69248098
A9: Service charges - refuse revenue | B9: 2 | C9: ='SA1'!C34 -> 0 | D9: ='SA1'!D34 -> 0 | E9: ='SA1'!E34 -> 0 | F9: ='SA1'!F34 -> 0 | G9: ='SA1'!G34 -> 0 | H9: ='SA1'!H34 -> 0 | I9: ='SA1'!I34 -> 0 | J9: ='SA1'!J34 -> 0 | K9: ='SA1'!K34 -> 0 | L9: ='SA1'!L34 -> 0
A11: Rental of facilities and equipment | C11: 0 | E11: 0 | F11: 289380 | G11: 289380 | H11: 289380 | I11: 0 | J11: 303849 | K11: 319041 | L11: 334994
A12: Interest earned - external investments | C12: 36704686 | D12: 29197389 | E12: 36228060 | F12: 34811696 | G12: 36036101 | H12: 36036101 | I12: 19288554.69 | J12: 37837906 | K12: 39729801 | L12: 41716291
A13: Interest earned - outstanding debtors | C13: 0 | D13: 11355471 | E13: 38495455 | F13: 34090106 | G13: 38495455 | H13: 38495455 | I13: 48479068.25 | J13: 40420228 | K13: 42441239 | L13: 44563301
A14: Dividends received
A15: Fines, penalties and forfeits
A16: Licences and permits
A17: Agency services | C17: 28852145 | D17: 16352260 | E17: 21189059
A18: Transfers and subsidies | C18: 532895960 | D18: 827383165 | E18: 600176012 | F18: 633214738 | G18: 725119759 | H18: 725119759 | I18: 660359473.3 | J18: 649963949 | K18: 663221697 | L18: 747007481
A19: Other revenue | B19: 2 | C19: ='SA1'!C49 -> 2732547 | D19: ='SA1'!D49 -> 3346471 | E19: ='SA1'!E49 -> 1562057 | F19: ='SA1'!F49 -> 1154476 | G19: ='SA1'!G49 -> 77985397 | H19: ='SA1'!H49 -> 77985397 | I19: ='SA1'!I49 -> 34752724.66 | J19: ='SA1'!J49 -> 82532438 | K19: ='SA1'!K49 -> 86641560 | L19: ='SA1'!L49 -> 90956138
A20: Gains | C20: 6988719 | D20: 0 | E20: 0 | F20: 200000 | G20: 200000 | H20: 200000 | I20: 0 | J20: 3000000 | K20: 200000 | L20: 200000
A21: Total Revenue (excluding capital transfers and contributions) | C21: =SUM(C5:C9)+SUM(C11:C20) -> 832097256 | D21: =SUM(D5:D9)+SUM(D11:D20) -> 1162670584 | E21: 1003117194 | F21: 948221656 | G21: 1181658175 | H21: 1181658175 | I21: 1013106901 | J21: 1143070643 | K21: 1167835617 | L21: 1276824596 | M21: =SUM(M5:M20) -> 0 | N21: 0 | O21: 0 | P21: 0 | Q21: 0 | R21: 0 | S21: 0 | T21: 0 | U21: 0 | V21: 0 | W21: 0 | X21: 0
A23: Expenditure By Type
A24: Employee related costs | B24: 2 | C24: ='SA1'!C67 -> 259775924 | D24: ='SA1'!D67 -> 302602219 | E24: ='SA1'!E67 -> 355802035.2 | F24: ='SA1'!F67 -> 337874359 | G24: ='SA1'!G67 -> 344682232 | H24: ='SA1'!H67 -> 344682232 | I24: ='SA1'!I67 -> 288391636.9 | J24: ='SA1'!J67 -> 371509388 | K24: ='SA1'!K67 -> 388096357 | L24: ='SA1'!L67 -> 410816454
A25: Remuneration of councillors | C25: 9577450 | D25: 11161776 | E25: 11665226 | F25: 13902286 | G25: 12427286 | H25: 12427286 | I25: 9829278.91 | J25: 13172924 | K25: 13963298 | L25: 14801097
A26: Debt impairment | B26: 3 | C26: 177155621 | D26: 267391721 | E26: 173390698 | F26: 200000000 | G26: 129734521 | H26: 129734521 | I26: 0 | J26: 129734521 | K26: 134923902 | L26: 140320858
A27: Depreciation & asset impairment | B27: 2 | C27: ='SA1'!C83 -> 121882964 | D27: ='SA1'!D83 -> 142109367 | E27: ='SA1'!E83 -> 157121095 | F27: ='SA1'!F83 -> 140000000 | G27: ='SA1'!G83 -> 155000000 | H27: ='SA1'!H83 -> 155000000 | I27: ='SA1'!I83 -> 0 | J27: ='SA1'!J83 -> 128309274 | K27: ='SA1'!K83 -> 133441648 | L27: ='SA1'!L83 -> 138779315
A28: Finance charges | C28: 0 | D28: 257064 | E28: 997055 | F28: 0 | G28: 40000 | H28: 40000 | I28: 60091.74 | J28: 500000 | K28: 540000 | L28: 581600
A29: Bulk purchases | B29: 2 | C29: ='SA1'!C88 -> 21588920 | D29: ='SA1'!D88 -> 16374604 | E29: ='SA1'!E88 -> 19785231 | F29: ='SA1'!F88 -> 26138516 | G29: ='SA1'!G88 -> 20305670 | H29: ='SA1'!H88 -> 20305670 | I29: ='SA1'!I88 -> 12839322.72 | J29: ='SA1'!J88 -> 17320954 | K29: ='SA1'!K88 -> 18387001 | L29: ='SA1'!L88 -> 19506351
A30: Other materials | B30: 8 | C30: 181832 | D30: 0 | E30: 0 | F30: 25657092 | G30: 23181274 | H30: 23181274 | I30: 16300228.44 | J30: 24328260 | K30: 25421388 | L30: 26560164
A31: Contracted services | C31: ='SA1'!C127 -> 93530370 | D31: ='SA1'!D127 -> 213469988 | E31: ='SA1'!E127 -> 280763461.6 | F31: ='SA1'!F127 -> 405548948 | G31: ='SA1'!G127 -> 283846794 | H31: ='SA1'!H127 -> 283846794 | I31: ='SA1'!I127 -> 229445556.2 | J31: ='SA1'!J127 -> 220517787 | K31: ='SA1'!K127 -> 197243924 | L31: ='SA1'!L127 -> 247749690
A32: Transfers and subsidies | C32: ='SA1'!C93 -> 228939431 | D32: ='SA1'!D93 -> 75195311 | E32: ='SA1'!E93 -> 0 | F32: ='SA1'!F93 -> 0 | G32: ='SA1'!G93 -> 31638081 | H32: ='SA1'!H93 -> 31638081 | I32: ='SA1'!I93 -> 28638080 | J32: ='SA1'!J93 -> 38030646 | K32: ='SA1'!K93 -> 34356120 | L32: ='SA1'!L93 -> 34744411
A33: Other expenditure | B33: 4, 5 | C33: ='SA1'!C157 -> 235503784 | D33: ='SA1'!D157 -> 199825718.2 | E33: ='SA1'!E157 -> 214065743 | F33: ='SA1'!F157 -> 202287257 | G33: ='SA1'!G157 -> 125592353 | H33: ='SA1'!H157 -> 125592353 | I33: ='SA1'!I157 -> 104605200.2 | J33: ='SA1'!J157 -> 101029539 | K33: ='SA1'!K157 -> 105582694 | L33: ='SA1'!L157 -> 110916227
A34: Losses | C34: 0 | D34: 741888 | E34: 155654 | F34: 0 | G34: 0 | H34: 0 | I34: 0 | J34: 0 | K34: 0 | L34: 0
A35: Total Expenditure | C35: =SUM(C24:C34) -> 1148136296 | D35: =SUM(D24:D34) -> 1229129656 | E35: 1213746199 | F35: 1351408458 | G35: 1126448211 | H35: 1126448211 | I35: 690109395.1 | J35: 1044453293 | K35: 1051956332 | L35: 1144776167 | M35: =SUM(M24:M34) -> 0 | N35: 0 | O35: 0 | P35: 0 | Q35: 0 | R35: 0 | S35: 0 | T35: 0 | U35: 0 | V35: 0 | W35: 0 | X35: 0
A37: Surplus/(Deficit) | C37: =C21-C35 -> -316039040 | D37: -66459072.25 | E37: -210629004.8 | F37: -403186802 | G37: 55209964 | H37: 55209964 | I37: 322997506.1 | J37: 98617350 | K37: 115879285 | L37: 132048429 | M37: =M21+M35 -> 0 | N37: 0 | O37: 0 | P37: 0 | Q37: 0 | R37: 0 | S37: 0 | T37: 0 | U37: 0 | V37: 0 | W37: 0 | X37: 0
A38: Transfers and subsidies - capital (monetary allocations) (National / Provincial and District) | C38: 756556999 | D38: 261023642 | E38: 318276029 | F38: 424611262 | G38: 412525588 | H38: 412525588 | I38: 218675653.1 | J38: 620504000 | K38: 584070000 | L38: 446946000
A39: Transfers and subsidies - capital (monetary allocations) (National / Provincial Departmental Agencies, Households, Non-profit Institutions, Private Enterprises, Public Corporatons, Higher Educational Institutions) | B39: 6 | C39: 0
A40: Transfers and subsidies - capital (in-kind - all)
A41: Surplus/(Deficit) after capital transfers & contributions | C41: =SUM(C37:C40) -> 440517959 | D41: 194564569.8 | E41: 107647024.2 | F41: 21424460 | G41: 467735552 | H41: 467735552 | I41: 541673159.2 | J41: 719121350 | K41: 699949285 | L41: 578994429
A42: Taxation | C42: 2895645
A43: Surplus/(Deficit) after taxation | C43: =C41-C42 -> 437622314 | D43: 194564569.8 | E43: 107647024.2 | F43: 21424460 | G43: 467735552 | H43: 467735552 | I43: 541673159.2 | J43: 719121350 | K43: 699949285 | L43: 578994429
A44: Attributable to minorities
A45: Surplus/(Deficit) attributable to municipality | C45: =SUM(C43:C44) -> 437622314 | D45: 194564569.8 | E45: 107647024.2 | F45: 21424460 | G45: 467735552 | H45: 467735552 | I45: 541673159.2 | J45: 719121350 | K45: 699949285 | L45: 578994429
A46: Share of surplus/ (deficit) of associate | B46: 7
A47: =result -> Surplus/(Deficit) for the year | C47: =SUM(C45:C46) -> 437622314 | D47: 194564569.8 | E47: 107647024.2 | F47: 21424460 | G47: 467735552 | H47: 467735552 | I47: 541673159.2 | J47: 719121350 | K47: 699949285 | L47: 578994429 | M47: =M25+M46 -> 0 | N47: 0 | O47: 0 | P47: 0 | Q47: 0 | R47: 0 | S47: 0 | T47: 0 | U47: 0 | V47: 0 | W47: 0 | X47: 0
A48: =head27a -> References
A49: 1. Classifications are revenue sources and expenditure type
A50: 2. Detail to be provided in Table SA1
A51: 3. Previously described as 'bad or doubtful debts' - amounts shown should reflect the change in the provision for debt impairment
A52: 4. Expenditure type components previously shown under repairs and maintenance should be allocated back to the originating expenditure group/item; e.g. employee costs
A53: 5. Repairs & maintenance detailed in Table A9 and Table SA34c
A54: 6. Contributions are funds provided by external organisations to assist with infrastructure development; e.g. developer contributions (detail to be provided in Table SA1)
A55: 7. Equity method ( Includes Joint Ventures)
A56: 8. All materials not part of 'bulk' e.g road making materials, pipe, cable etc.
A57: check balance | C57: =C45-'A3-FinPerf V'!C39 -> 87.98000002 | D57: =D45-'A3-FinPerf V'!D39 -> 739.46 | E57: =E45-'A3-FinPerf V'!E39 -> 59.39999986 | F57: =F45-'A3-FinPerf V'!F39 -> -28852145 | G57: =G45-'A3-FinPerf V'!G39 -> -16352260 | H57: =H45-'A3-FinPerf V'!H39 -> -11039569 | J57: =J45-'A3-FinPerf V'!I39 -> 0 | K57: =K45-'A3-FinPerf V'!J39 -> 0 | L57: =L45-'A3-FinPerf V'!K39 -> 0
A59: Total revenue | C59: =C21+SUM(C38:C40) -> 1588654255 | D59: 1423694226 | E59: 1321393223 | F59: 1372832918 | G59: 1594183763 | H59: 1594183763 | I59: 1231782554 | J59: 1763574643 | K59: 1751905617 | L59: 1723770596

Sheet A5-Capex
A2: =Vdesc -> Vote Description | B2: =head27 -> Ref | C2: =head1b -> 2016/17 | D2: =head1A -> 2017/18 | E2: =Head1 -> 2018/19 | F2: =Head2 -> Current Year 2019/20 | J2: =Head3 -> 2020/21 Medium Term Revenue & Expenditure Framework
A3: R thousand | B3: 1 | C3: =Head5 -> Audited Outcome | D3: =Head5 -> Audited Outcome | E3: =Head5 -> Audited Outcome | F3: =Head6 -> Original Budget | G3: =Head7 -> Adjusted Budget | H3: =Head8 -> Full Year Forecast | I3: =Head5b -> Pre-audit outcome | J3: =Head9 -> Budget Year 2020/21 | K3: =Head10 -> Budget Year +1 2021/22 | L3: =Head11 -> Budget Year +2 2022/23
A4: Capital expenditure - Vote
A5: Multi-year expenditure to be appropriated | B5: 2
A6: =A5A!A6 -> Vote 01 - Council | C6: =A5A!C6 -> 0 | D6: =A5A!D6 -> 0 | E6: =A5A!E6 -> 0 | F6: =A5A!F6 -> 0 | G6: =A5A!G6 -> 0 | H6: =A5A!H6 -> 0 | I6: =A5A!I6 -> 0 | J6: =A5A!J6 -> 0 | K6: =A5A!K6 -> 0 | L6: =A5A!L6 -> 0
A7: =A5A!A9 -> Vote 02 - Municipal Manager | C7: =A5A!C9 -> 0 | D7: =A5A!D9 -> 0 | E7: =A5A!E9 -> 0 | F7: =A5A!F9 -> 0 | G7: =A5A!G9 -> 0 | H7: =A5A!H9 -> 0 | I7: =A5A!I9 -> 0 | J7: =A5A!J9 -> 0 | K7: =A5A!K9 -> 0 | L7: =A5A!L9 -> 0
A8: =A5A!A17 -> Vote 03 - Budget & Treasury | C8: =A5A!C17 -> 0 | D8: =A5A!D17 -> 0 | E8: =A5A!E17 -> 0 | F8: =A5A!F17 -> 0 | G8: =A5A!G17 -> 0 | H8: =A5A!H17 -> 0 | I8: =A5A!I17 -> 0 | J8: =A5A!J17 -> 0 | K8: =A5A!K17 -> 0 | L8: =A5A!L17 -> 0
A9: =A5A!A28 -> Vote 04 - Community Services | C9: =A5A!C28 -> 0 | D9: =A5A!D28 -> 0 | E9: =A5A!E28 -> 0 | F9: =A5A!F28 -> 0 | G9: =A5A!G28 -> 0 | H9: =A5A!H28 -> 0 | I9: =A5A!I28 -> 0 | J9: =A5A!J28 -> 0 | K9: =A5A!K28 -> 0 | L9: =A5A!L28 -> 0
A10: =A5A!A35 -> Vote 05 - Corporate Services | C10: =A5A!C35 -> 0 | D10: =A5A!D35 -> 0 | E10: =A5A!E35 -> 0 | F10: =A5A!F35 -> 0 | G10: =A5A!G35 -> 0 | H10: =A5A!H35 -> 0 | I10: =A5A!I35 -> 0 | J10: =A5A!J35 -> 0 | K10: =A5A!K35 -> 0 | L10: =A5A!L35 -> 0
A11: =A5A!A45 -> Vote 06 - Planning & Development | C11: =A5A!C45 -> 0 | D11: =A5A!D45 -> 0 | E11: =A5A!E45 -> 0 | F11: =A5A!F45 -> 0 | G11: =A5A!G45 -> 0 | H11: =A5A!H45 -> 0 | I11: =A5A!I45 -> 0 | J11: =A5A!J45 -> 0 | K11: =A5A!K45 -> 0 | L11: =A5A!L45 -> 0
A12: =A5A!A49 -> Vote 07 - Technical Services | C12: =A5A!C49 -> 621630053 | D12: =A5A!D49 -> 372561620 | E12: =A5A!E49 -> 306390256 | F12: =A5A!F49 -> 420411262 | G12: =A5A!G49 -> 362525948 | H12: =A5A!H49 -> 362525948 | I12: =A5A!I49 -> 197804693 | J12: =A5A!J49 -> 620504000 | K12: =A5A!K49 -> 584070000 | L12: =A5A!L49 -> 446946000
A13: =A5A!A70 -> Vote 08 - Roadworks | C13: =A5A!C70 -> 0 | D13: =A5A!D70 -> 0 | E13: =A5A!E70 -> 0 | F13: =A5A!F70 -> 0 | G13: =A5A!G70 -> 0 | H13: =A5A!H70 -> 0 | I13: =A5A!I70 -> 0 | J13: =A5A!J70 -> 0 | K13: =A5A!K70 -> 0 | L13: =A5A!L70 -> 0
A14: =A5A!A73 -> Vote 09 - Entity: Chis Hani Development Agency | C14: =A5A!C73 -> 0 | D14: =A5A!D73 -> 0 | E14: =A5A!E73 -> 0 | F14: =A5A!F73 -> 0 | G14: =A5A!G73 -> 0 | H14: =A5A!H73 -> 0 | I14: =A5A!I73 -> 0 | J14: =A5A!J73 -> 0 | K14: =A5A!K73 -> 0 | L14: =A5A!L73 -> 0
A15: ='Org structure'!A11 -> Vote 10 - Vote 10 | C15: =A5A!C75 -> 0 | D15: =A5A!D75 -> 0 | E15: =A5A!E75 -> 0 | F15: =A5A!F75 -> 0 | G15: =A5A!G75 -> 0 | H15: =A5A!H75 -> 0 | I15: =A5A!I75 -> 0 | J15: =A5A!J75 -> 0 | K15: =A5A!K75 -> 0 | L15: =A5A!L75 -> 0
A16: ='Org structure'!A12 -> Vote 11 - Vote 11 | C16: =A5A!C76 -> 0 | D16: =A5A!D76 -> 0 | E16: =A5A!E76 -> 0 | F16: =A5A!F76 -> 0 | G16: =A5A!G76 -> 0 | H16: =A5A!H76 -> 0 | I16: =A5A!I76 -> 0 | J16: =A5A!J76 -> 0 | K16: =A5A!K76 -> 0 | L16: =A5A!L76 -> 0
A17: ='Org structure'!A13 -> Vote 12 - Vote 12 | C17: =A5A!C77 -> 0 | D17: =A5A!D77 -> 0 | E17: =A5A!E77 -> 0 | F17: =A5A!F77 -> 0 | G17: =A5A!G77 -> 0 | H17: =A5A!H77 -> 0 | I17: =A5A!I77 -> 0 | J17: =A5A!J77 -> 0 | K17: =A5A!K77 -> 0 | L17: =A5A!L77 -> 0
A18: ='Org structure'!A14 -> Vote 13 - Vote 13 | C18: =A5A!C78 -> 0 | D18: =A5A!D78 -> 0 | E18: =A5A!E78 -> 0 | F18: =A5A!F78 -> 0 | G18: =A5A!G78 -> 0 | H18: =A5A!H78 -> 0 | I18: =A5A!I78 -> 0 | J18: =A5A!J78 -> 0 | K18: =A5A!K78 -> 0 | L18: =A5A!L78 -> 0
A19: ='Org structure'!A15 -> Vote 14 - Vote 14 | C19: =A5A!C79 -> 0 | D19: =A5A!D79 -> 0 | E19: =A5A!E79 -> 0 | F19: =A5A!F79 -> 0 | G19: =A5A!G79 -> 0 | H19: =A5A!H79 -> 0 | I19: =A5A!I79 -> 0 | J19: =A5A!J79 -> 0 | K19: =A5A!K79 -> 0 | L19: =A5A!L79 -> 0
A20: ='Org structure'!A16 -> Vote 15 - Other | C20: =A5A!C80 -> 0 | D20: =A5A!D80 -> 0 | E20: =A5A!E80 -> 0 | F20: =A5A!F80 -> 0 | G20: =A5A!G80 -> 0 | H20: =A5A!H80 -> 0 | I20: =A5A!I80 -> 0 | J20: =A5A!J80 -> 0 | K20: =A5A!K80 -> 0 | L20: =A5A!L80 -> 0
A21: Capital multi-year expenditure sub-total | B21: 7 | C21: =SUM(C6:C20) -> 621630053 | D21: =SUM(D6:D20) -> 372561620 | E21: 306390256 | F21: 420411262 | G21: 362525948 | H21: =SUM(H6:H20) -> 362525948 | I21: 197804693 | J21: 620504000 | K21: 584070000 | L21: 446946000
A23: Single-year expenditure to be appropriated | B23: 2
A24: =A5A!A85 -> Vote 01 - Council | C24: =A5A!C85 -> 0 | D24: =A5A!D85 -> 0 | E24: =A5A!E85 -> 0 | F24: =A5A!F85 -> 0 | G24: =A5A!G85 -> 0 | H24: =A5A!H85 -> 0 | I24: =A5A!I85 -> 0 | J24: =A5A!J85 -> 0 | K24: =A5A!K85 -> 0 | L24: =A5A!L85 -> 0
A25: =A5A!A88 -> Vote 02 - Municipal Manager | C25: =A5A!C88 -> 0 | D25: =A5A!D88 -> 0 | E25: =A5A!E88 -> 0 | F25: =A5A!F88 -> 0 | G25: =A5A!G88 -> 0 | H25: =A5A!H88 -> 0 | I25: =A5A!I88 -> 0 | J25: =A5A!J88 -> 0 | K25: =A5A!K88 -> 0 | L25: =A5A!L88 -> 0
A26: =A5A!A96 -> Vote 03 - Budget & Treasury | C26: =A5A!C96 -> 15008261 | D26: =A5A!D96 -> 8502445 | E26: =A5A!E96 -> 3795372 | F26: =A5A!F96 -> 0 | G26: =A5A!G96 -> 12556247 | H26: =A5A!H96 -> 12556247 | I26: =A5A!I96 -> 2093540.23 | J26: =A5A!J96 -> 0 | K26: =A5A!K96 -> 0 | L26: =A5A!L96 -> 0
A27: =A5A!A107 -> Vote 04 - Community Services | C27: =A5A!C107 -> 0 | D27: =A5A!D107 -> 0 | E27: =A5A!E107 -> 0 | F27: =A5A!F107 -> 0 | G27: =A5A!G107 -> 0 | H27: =A5A!H107 -> 0 | I27: =A5A!I107 -> 0 | J27: =A5A!J107 -> 0 | K27: =A5A!K107 -> 0 | L27: =A5A!L107 -> 0
A28: =A5A!A114 -> Vote 05 - Corporate Services | C28: =A5A!C114 -> 35496720 | D28: =A5A!D114 -> 11367423 | E28: =A5A!E114 -> 18064867 | F28: =A5A!F114 -> 0 | G28: =A5A!G114 -> 22261327 | H28: =A5A!H114 -> 22261327 | I28: =A5A!I114 -> 6497365.13 | J28: =A5A!J114 -> 0 | K28: =A5A!K114 -> 0 | L28: =A5A!L114 -> 0
A29: =A5A!A124 -> Vote 06 - Planning & Development | C29: =A5A!C124 -> 0 | D29: =A5A!D124 -> 0 | E29: =A5A!E124 -> 0 | F29: =A5A!F124 -> 0 | G29: =A5A!G124 -> 0 | H29: =A5A!H124 -> 0 | I29: =A5A!I124 -> 0 | J29: =A5A!J124 -> 0 | K29: =A5A!K124 -> 0 | L29: =A5A!L124 -> 0
A30: =A5A!A128 -> Vote 07 - Technical Services | C30: =A5A!C128 -> 0 | D30: =A5A!D128 -> 0 | E30: =A5A!E128 -> 0 | F30: =A5A!F128 -> 0 | G30: =A5A!G128 -> 50000000 | H30: =A5A!H128 -> 50000000 | I30: =A5A!I128 -> 27082179.88 | J30: =A5A!J128 -> 0 | K30: =A5A!K128 -> 0 | L30: =A5A!L128 -> 0
A31: =A5A!A149 -> Vote 08 - Roadworks | C31: =A5A!C149 -> 0 | D31: =A5A!D149 -> 0 | E31: =A5A!E149 -> 0 | F31: =A5A!F149 -> 0 | G31: =A5A!G149 -> 0 | H31: =A5A!H149 -> 0 | I31: =A5A!I149 -> 0 | J31: =A5A!J149 -> 0 | K31: =A5A!K149 -> 0 | L31: =A5A!L149 -> 0
A32: =A5A!A152 -> Vote 09 - Entity: Chis Hani Development Agency | C32: =A5A!C152 -> 0 | D32: =A5A!D152 -> 0 | E32: =A5A!E152 -> 0 | F32: =A5A!F152 -> 0 | G32: =A5A!G152 -> 0 | H32: =A5A!H152 -> 0 | I32: =A5A!I152 -> 0 | J32: =A5A!J152 -> 0 | K32: =A5A!K152 -> 0 | L32: =A5A!L152 -> 0
A33: ='Org structure'!A11 -> Vote 10 - Vote 10 | C33: =A5A!C154 -> 0 | D33: =A5A!D154 -> 0 | E33: =A5A!E154 -> 0 | F33: =A5A!F154 -> 0 | G33: =A5A!G154 -> 0 | H33: =A5A!H154 -> 0 | I33: =A5A!I154 -> 0 | J33: =A5A!J154 -> 0 | K33: =A5A!K154 -> 0 | L33: =A5A!L154 -> 0
A34: ='Org structure'!A12 -> Vote 11 - Vote 11 | C34: =A5A!C155 -> 0 | D34: =A5A!D155 -> 0 | E34: =A5A!E155 -> 0 | F34: =A5A!F155 -> 0 | G34: =A5A!G155 -> 0 | H34: =A5A!H155 -> 0 | I34: =A5A!I155 -> 0 | J34: =A5A!J155 -> 0 | K34: =A5A!K155 -> 0 | L34: =A5A!L155 -> 0
A35: ='Org structure'!A13 -> Vote 12 - Vote 12 | C35: =A5A!C156 -> 0 | D35: =A5A!D156 -> 0 | E35: =A5A!E156 -> 0 | F35: =A5A!F156 -> 0 | G35: =A5A!G156 -> 0 | H35: =A5A!H156 -> 0 | I35: =A5A!I156 -> 0 | J35: =A5A!J156 -> 0 | K35: =A5A!K156 -> 0 | L35: =A5A!L156 -> 0
A36: ='Org structure'!A14 -> Vote 13 - Vote 13 | C36: =A5A!C157 -> 0 | D36: =A5A!D157 -> 0 | E36: =A5A!E157 -> 0 | F36: =A5A!F157 -> 0 | G36: =A5A!G157 -> 0 | H36: =A5A!H157 -> 0 | I36: =A5A!I157 -> 0 | J36: =A5A!J157 -> 0 | K36: =A5A!K157 -> 0 | L36: =A5A!L157 -> 0
A37: ='Org structure'!A15 -> Vote 14 - Vote 14 | C37: =A5A!C158 -> 0 | D37: =A5A!D158 -> 0 | E37: =A5A!E158 -> 0 | F37: =A5A!F158 -> 0 | G37: =A5A!G158 -> 0 | H37: =A5A!H158 -> 0 | I37: =A5A!I158 -> 0 | J37: =A5A!J158 -> 0 | K37: =A5A!K158 -> 0 | L37: =A5A!L158 -> 0
A38: ='Org structure'!A16 -> Vote 15 - Other | C38: =A5A!C159 -> 0 | D38: =A5A!D159 -> 0 | E38: =A5A!E159 -> 0 | F38: =A5A!F159 -> 0 | G38: =A5A!G159 -> 0 | H38: =A5A!H159 -> 0 | I38: =A5A!I159 -> 0 | J38: =A5A!J159 -> 0 | K38: =A5A!K159 -> 0 | L38: =A5A!L159 -> 0
A39: Capital single-year expenditure sub-total | C39: =SUM(C24:C38) -> 50504981 | D39: =SUM(D24:D38) -> 19869868 | E39: 21860239 | F39: 0 | G39: 84817574 | H39: 84817574 | I39: 35673085.24 | J39: 0 | K39: 0 | L39: 0
A40: Total Capital Expenditure - Vote | C40: =C39+C21 -> 672135034 | D40: =D39+D21 -> 392431488 | E40: 328250495 | F40: 420411262 | G40: 447343522 | H40: 447343522 | I40: 233477778.2 | J40: 620504000 | K40: 584070000 | L40: 446946000
A42: Capital Expenditure - Functional
A43: Governance and administration | C43: =SUM(C44:C46) -> 0 | D43: =SUM(D44:D46) -> 0 | E43: 0 | F43: 0 | G43: 34817574 | H43: 34817574 | I43: 8590905.36 | J43: 0 | K43: 0 | L43: 0
A44: Executive and council | C44: 0 | D44: 0 | E44: 0 | F44: 0 | G44: 0 | H44: 0 | I44: 0 | J44: 0 | K44: 0 | L44: 0
A45: Finance and administration | C45: 0 | D45: 0 | E45: 0 | F45: 0 | G45: 34817574 | H45: 34817574 | I45: 8590905.36 | J45: 0 | K45: 0 | L45: 0
A46: Internal audit | C46: 0 | D46: 0 | E46: 0 | F46: 0 | G46: 0 | H46: 0 | I46: 0 | J46: 0 | K46: 0 | L46: 0
A47: Community and public safety | C47: =SUM(C48:C52) -> 0 | D47: =SUM(D48:D52) -> 0 | E47: 0 | F47: 0 | G47: 0 | H47: 0 | I47: 0 | J47: 0 | K47: 0 | L47: 0
A48: Community and social services | C48: 0 | D48: 0 | E48: 0 | F48: 0 | G48: 0 | H48: 0 | I48: 0 | J48: 0 | K48: 0 | L48: 0
A49: Sport and recreation
A50: Public safety
A51: Housing
A52: Health | C52: 0 | D52: 0 | E52: 0 | F52: 0 | G52: 0 | H52: 0 | I52: 0 | J52: 0 | K52: 0 | L52: 0
A53: Economic and environmental services | C53: =SUM(C54:C56) -> 0 | D53: =SUM(D54:D56) -> 0 | E53: 0 | F53: 420411262 | G53: 412525948 | H53: 412525948 | I53: 224886872.8 | J53: 620504000 | K53: 584070000 | L53: 446946000
A54: Planning and development | C54: 0 | D54: 0 | E54: 0 | F54: 420411262 | G54: 412525948 | H54: 412525948 | I54: 224886872.8 | J54: 620504000 | K54: 584070000 | L54: 446946000
A55: Road transport | C55: 0 | D55: 0 | E55: 0 | F55: 0 | G55: 0 | H55: 0 | I55: 0 | J55: 0 | K55: 0 | L55: 0
A56: Environmental protection | C56: 0 | D56: 0 | E56: 0 | F56: 0 | G56: 0 | H56: 0 | I56: 0 | J56: 0 | K56: 0 | L56: 0
A57: Trading services | C57: =SUM(C58:C61) -> 0 | D57: =SUM(D58:D61) -> 0 | E57: 0 | F57: 0 | G57: 0 | H57: 0 | I57: 0 | J57: 0 | K57: 0 | L57: 0
A58: Energy sources
A59: Water management | C59: 0 | D59: 0 | E59: 0 | F59: 0 | G59: 0 | H59: 0 | I59: 0 | J59: 0 | K59: 0 | L59: 0
A60: Waste water management | C60: 0 | D60: 0 | E60: 0 | F60: 0 | G60: 0 | H60: 0 | I60: 0 | J60: 0 | K60: 0 | L60: 0
A61: Waste management
A62: Other
A63: Total Capital Expenditure - Functional | B63: 3 | C63: =C43+C47+C53+C57+C62 -> 0 | D63: =D43+D47+D53+D57+D62 -> 0 | E63: 0 | F63: 420411262 | G63: 447343522 | H63: 447343522 | I63: 233477778.2 | J63: 620504000 | K63: 584070000 | L63: =L43+L47+L53+L57+L62 -> 446946000
A65: Funded by:
A66: National Government | C66: 621630053 | D66: 372561620 | E66: 306390256 | F66: 420411262 | G66: 412525948 | H66: 412525948 | I66: 224886872.8 | J66: 620504000 | K66: 584070000 | L66: 446946000
A67: Provincial Government
A68: District Municipality
A69: ='DC13 A i Schedule 2020 2021 Fin'!A39 -> Transfers and subsidies - capital (monetary allocations) (National / Provincial Departmental Agencies, Households, Non-profit Institutions, Private Enterprises, Public Corporatons, Higher Educational Institutions)
A70: Transfers recognised - capital | B70: 4 | C70: =SUM(C66:C69) -> 621630053 | D70: 372561620 | E70: 306390256 | F70: 420411262 | G70: 412525948 | H70: 412525948 | I70: 224886872.8 | J70: 620504000 | K70: 584070000 | L70: 446946000
A72: Borrowing | B72: 6 | D72: 80314
A73: Internally generated funds | C73: 50504981 | D73: 19789554 | E73: 21860239 | F73: 0 | G73: 34817574 | H73: 34817574 | I73: 8590905.36 | J73: 0 | K73: 0 | L73: 0
A74: Total Capital Funding | B74: 7 | C74: =+C70+C72+C73 -> 672135034 | D74: =+D70+D72+D73 -> 392431488 | E74: 328250495 | F74: 420411262 | G74: 447343522 | H74: 447343522 | I74: 233477778.2 | J74: 620504000 | K74: 584070000 | L74: 446946000
A75: =head27a -> References
A76: 1. Municipalities may choose to appropriate for capital expenditure for three years or for one year (if one year appropriation projected expenditure required for yr2 and yr3).
A77: 2. Include capital component of PPP unitary payment. Note that capital transfers are only appropriated to municipalities for the budget year
A78: 3. Capital expenditure by functional classification must reconcile to the appropriations by vote
A79: 4. Must reconcile to supporting table SA20 and to Budgeted Financial Performance (revenue and expenditure)
A81: 6. Include finance leases and PPP capital funding component of unitary payment - total borrowing/repayments to reconcile to changes in Table SA17
A82: 7. Total Capital Funding must balance with Total Capital Expenditure
A83: 8. Include any capitalised interest (MFMA section 46) as part of relevant capital budget
A85: check balance | C85: =IF((C63-C74)=0,0,"Unbalanced") -> Unbalanced | D85: =IF((D63-D74)=0,0,"Unbalanced") -> Unbalanced | E85: Unbalanced | F85: 0 | G85: 0 | H85: 0 | I85: 0 | J85: 0 | K85: 0 | L85: 0

Sheet A5A
A1: =muni&" - "&Approve5 -> DC13 Chris Hani - Table A5 Budgeted Capital Expenditure by vote, functional classification and funding
A2: =Vdesc -> Vote Description | B2: =head27 -> Ref | C2: =head1b -> 2016/17 | D2: =head1A -> 2017/18 | E2: =Head1 -> 2018/19 | F2: =Head2 -> Current Year 2019/20 | J2: =Head3 -> 2020/21 Medium Term Revenue & Expenditure Framework | N2: ="Multi-year appropriation for "&Head9& " in the "&Head2A&" Annual Budget" -> Multi-year appropriation for Budget Year 2020/21 in the 2019/20 Annual Budget | R2: ="Multi-year appropriation for "&RIGHT(Head10,7)& " in the "&Head2A&" Annual Budget" -> Multi-year appropriation for 2021/22 in the 2019/20 Annual Budget | V2: New multi-year appropriations (funds for new and existing projects)
A3: R thousand | B3: 1 | C3: =Head5 -> Audited Outcome | D3: =Head5 -> Audited Outcome | E3: =Head5 -> Audited Outcome | F3: =Head6 -> Original Budget | G3: =Head7 -> Adjusted Budget | H3: =Head8 -> Full Year Forecast | I3: =Head5b -> Pre-audit outcome | J3: =Head9 -> Budget Year 2020/21 | K3: =Head10 -> Budget Year +1 2021/22 | L3: =Head11 -> Budget Year +2 2022/23 | N3: ="Appropriation for "&RIGHT(Head9,7) -> Appropriation for 2020/21 | O3: ="Adjustments in "&Head2A -> Adjustments in 2019/20 | P3: ="Downward adjustments for "&RIGHT(Head9,7) -> Downward adjustments for 2020/21 | Q3: Appropriation carried forward | R3: ="Appropriation for "&RIGHT(Head9,7) -> Appropriation for 2020/21 | S3: ="Adjustments in "&Head2A -> Adjustments in 2019/20 | T3: ="Downward adjustments for "&RIGHT(Head9,7) -> Downward adjustments for 2020/21 | U3: Appropriation carried forward | V3: =Head9 -> Budget Year 2020/21 | W3: =Head10 -> Budget Year +1 2021/22 | X3: =Head11 -> Budget Year +2 2022/23
A4: Capital expenditure - Municipal Vote
A5: Multi-year expenditure appropriation | B5: 2
A6: ='Org structure'!A2 -> Vote 01 - Council | C6: =SUM(C7:C8) -> 0 | D6: 0 | E6: 0 | F6: 0 | G6: 0 | H6: 0 | I6: 0 | J6: 0 | K6: 0 | L6: 0 | N6: =SUM(N7:N8) -> 0 | O6: 0 | P6: 0 | Q6: 0 | R6: 0 | S6: 0 | T6: 0 | U6: 0 | V6: 0 | W6: 0 | X6: 0
A7: ='Org structure'!E3 -> 01.1 - Council's General Expenses | C7: 0 | D7: 0 | E7: 0 | F7: 0 | G7: 0 | H7: 0 | I7: 0 | J7: =Q7+V7 -> 0 | K7: =U7+W7 -> 0 | L7: =X7 -> 0 | N7: 0 | O7: 0 | P7: 0 | Q7: =SUM(N7:P7) -> 0 | R7: 0 | S7: 0 | T7: 0 | U7: =SUM(R7:T7) -> 0 | V7: 0 | W7: 0 | X7: 0
A8: ='Org structure'!E4 -> 01.2 - Council General - Independent Contractor | C8: 0 | D8: 0 | E8: 0 | F8: 0 | G8: 0 | H8: 0 | I8: 0 | J8: =Q8+V8 -> 0 | K8: =U8+W8 -> 0 | L8: =X8 -> 0 | N8: 0 | O8: 0 | P8: 0 | Q8: =SUM(N8:P8) -> 0 | R8: 0 | S8: 0 | T8: 0 | U8: =SUM(R8:T8) -> 0 | V8: 0 | W8: 0 | X8: 0
A9: ='Org structure'!A3 -> Vote 02 - Municipal Manager | C9: =SUM(C10:C16) -> 0 | D9: 0 | E9: 0 | F9: 0 | G9: 0 | H9: 0 | I9: 0 | J9: 0 | K9: 0 | L9: 0 | N9: =SUM(N10:N16) -> 0 | O9: 0 | P9: 0 | Q9: 0 | R9: 0 | S9: 0 | T9: 0 | U9: 0 | V9: 0 | W9: 0 | X9: 0
A10: ='Org structure'!E6 -> 02.1 - Municipal Manager | C10: 0 | D10: 0 | E10: 0 | F10: 0 | G10: 0 | H10: 0 | I10: 0 | J10: =Q10+V10 -> 0 | K10: =U10+W10 -> 0 | L10: =X10 -> 0 | N10: 0 | O10: 0 | P10: 0 | Q10: =SUM(N10:P10) -> 0 | R10: 0 | S10: 0 | T10: 0 | U10: =SUM(R10:T10) -> 0 | V10: 0 | W10: 0 | X10: 0
A11: ='Org structure'!E7 -> 02.2 - Communication Office | C11: 0 | D11: 0 | E11: 0 | F11: 0 | G11: 0 | H11: 0 | I11: 0 | J11: 0 | K11: 0 | L11: 0 | N11: 0 | O11: 0 | P11: 0 | Q11: 0 | R11: 0 | S11: 0 | T11: 0 | U11: 0 | V11: 0 | W11: 0 | X11: 0
A12: ='Org structure'!E8 -> 02.3 - Internal Audit | C12: 0 | D12: 0 | E12: 0 | F12: 0 | G12: 0 | H12: 0 | I12: 0 | J12: 0 | K12: 0 | L12: 0 | N12: 0 | O12: 0 | P12: 0 | Q12: 0 | R12: 0 | S12: 0 | T12: 0 | U12: 0 | V12: 0 | W12: 0 | X12: 0
A13: ='Org structure'!E9 -> 02.4 - Strategic Manager | C13: 0 | D13: 0 | E13: 0 | F13: 0 | G13: 0 | H13: 0 | I13: 0 | J13: 0 | K13: 0 | L13: 0 | N13: 0 | O13: 0 | P13: 0 | Q13: 0 | R13: 0 | S13: 0 | T13: 0 | U13: 0 | V13: 0 | W13: 0 | X13: 0
A14: ='Org structure'!E10 -> 02.5 - Special Programmes Unit | C14: 0 | D14: 0 | E14: 0 | F14: 0 | G14: 0 | H14: 0 | I14: 0 | J14: 0 | K14: 0 | L14: 0 | N14: 0 | O14: 0 | P14: 0 | Q14: 0 | R14: 0 | S14: 0 | T14: 0 | U14: 0 | V14: 0 | W14: 0 | X14: 0
A15: ='Org structure'!E11 -> 02.6 - Special Programmes Unit | C15: 0 | D15: 0 | E15: 0 | F15: 0 | G15: 0 | H15: 0 | I15: 0 | J15: 0 | K15: 0 | L15: 0 | N15: 0 | O15: 0 | P15: 0 | Q15: 0 | R15: 0 | S15: 0 | T15: 0 | U15: 0 | V15: 0 | W15: 0 | X15: 0
A16: ='Org structure'!E12 -> 02.7 - Customer Care | C16: 0 | D16: 0 | E16: 0 | F16: 0 | G16: 0 | H16: 0 | I16: 0 | J16: 0 | K16: 0 | L16: 0 | N16: 0 | O16: 0 | P16: 0 | Q16: 0 | R16: 0 | S16: 0 | T16: 0 | U16: 0 | V16: 0 | W16: 0 | X16: 0
A17: ='Org structure'!A4 -> Vote 03 - Budget & Treasury | C17: =SUM(C18:C27) -> 0 | D17: 0 | E17: 0 | F17: 0 | G17: 0 | H17: 0 | I17: 0 | J17: 0 | K17: 0 | L17: 0 | N17: =SUM(N18:N27) -> 0 | O17: 0 | P17: 0 | Q17: 0 | R17: 0 | S17: 0 | T17: 0 | U17: 0 | V17: 0 | W17: 0 | X17: 0
A18: ='Org structure'!E14 -> 03.1 - Budget & Treasury Office | C18: 0 | D18: 0 | E18: 0 | F18: 0 | G18: 0 | H18: 0 | I18: 0 | J18: =Q18+V18 -> 0 | K18: =U18+W18 -> 0 | L18: =X18 -> 0 | N18: 0 | O18: 0 | P18: 0 | Q18: =SUM(N18:P18) -> 0 | R18: 0 | S18: 0 | T18: 0 | U18: =SUM(R18:T18) -> 0 | V18: 0 | W18: 0 | X18: 0
A19: ='Org structure'!E15 -> 03.2 - Budget & Treasury Office | C19: 0 | D19: 0 | E19: 0 | F19: 0 | G19: 0 | H19: 0 | I19: 0 | J19: 0 | K19: 0 | L19: 0 | N19: 0 | O19: 0 | P19: 0 | Q19: 0 | R19: 0 | S19: 0 | T19: 0 | U19: 0 | V19: 0 | W19: 0 | X19: 0
A20: ='Org structure'!E16 -> 03.3 - Accounting Services | C20: 0 | D20: 0 | E20: 0 | F20: 0 | G20: 0 | H20: 0 | I20: 0 | J20: 0 | K20: 0 | L20: 0 | N20: 0 | O20: 0 | P20: 0 | Q20: 0 | R20: 0 | S20: 0 | T20: 0 | U20: 0 | V20: 0 | W20: 0 | X20: 0
A21: ='Org structure'!E17 -> 03.4 - Budget Control | C21: 0 | D21: 0 | E21: 0 | F21: 0 | G21: 0 | H21: 0 | I21: 0 | J21: 0 | K21: 0 | L21: 0 | N21: 0 | O21: 0 | P21: 0 | Q21: 0 | R21: 0 | S21: 0 | T21: 0 | U21: 0 | V21: 0 | W21: 0 | X21: 0
A22: ='Org structure'!E18 -> 03.5 - Revenue Services | C22: 0 | D22: 0 | E22: 0 | F22: 0 | G22: 0 | H22: 0 | I22: 0 | J22: 0 | K22: 0 | L22: 0 | N22: 0 | O22: 0 | P22: 0 | Q22: 0 | R22: 0 | S22: 0 | T22: 0 | U22: 0 | V22: 0 | W22: 0 | X22: 0
A23: ='Org structure'!E19 -> 03.6 - Supply Chain Management | C23: 0 | D23: 0 | E23: 0 | F23: 0 | G23: 0 | H23: 0 | I23: 0 | J23: 0 | K23: 0 | L23: 0 | N23: 0 | O23: 0 | P23: 0 | Q23: 0 | R23: 0 | S23: 0 | T23: 0 | U23: 0 | V23: 0 | W23: 0 | X23: 0
A24: ='Org structure'!E20 -> 03.7 - Systems Administration | C24: 0 | D24: 0 | E24: 0 | F24: 0 | G24: 0 | H24: 0 | I24: 0 | J24: 0 | K24: 0 | L24: 0 | N24: 0 | O24: 0 | P24: 0 | Q24: 0 | R24: 0 | S24: 0 | T24: 0 | U24: 0 | V24: 0 | W24: 0 | X24: 0
A25: ='Org structure'!E21 -> 03.8 - Financial Statements Management | C25: 0 | D25: 0 | E25: 0 | F25: 0 | G25: 0 | H25: 0 | I25: 0 | J25: 0 | K25: 0 | L25: 0 | N25: 0 | O25: 0 | P25: 0 | Q25: 0 | R25: 0 | S25: 0 | T25: 0 | U25: 0 | V25: 0 | W25: 0 | X25: 0
A26: ='Org structure'!E22 -> 03.9 - Grants & Donations | C26: 0 | D26: 0 | E26: 0 | F26: 0 | G26: 0 | H26: 0 | I26: 0 | J26: 0 | K26: 0 | L26: 0 | N26: 0 | O26: 0 | P26: 0 | Q26: 0 | R26: 0 | S26: 0 | T26: 0 | U26: 0 | V26: 0 | W26: 0 | X26: 0
A27: ='Org structure'!E23 -> 03.10 - Assets Management | C27: 0 | D27: 0 | E27: 0 | F27: 0 | G27: 0 | H27: 0 | I27: 0 | J27: 0 | K27: 0 | L27: 0 | N27: 0 | O27: 0 | P27: 0 | Q27: 0 | R27: 0 | S27: 0 | T27: 0 | U27: 0 | V27: 0 | W27: 0 | X27: 0
A28: ='Org structure'!A5 -> Vote 04 - Community Services | C28: =SUM(C29:C34) -> 0 | D28: 0 | E28: 0 | F28: 0 | G28: 0 | H28: 0 | I28: 0 | J28: 0 | K28: 0 | L28: 0 | N28: =SUM(N29:N34) -> 0 | O28: 0 | P28: 0 | Q28: 0 | R28: 0 | S28: 0 | T28: 0 | U28: 0 | V28: 0 | W28: 0 | X28: 0
A29: ='Org structure'!E25 -> 04.1 - Community & Social Services | C29: 0 | D29: 0 | E29: 0 | F29: 0 | G29: 0 | H29: 0 | I29: 0 | J29: =Q29+V29 -> 0 | K29: =U29+W29 -> 0 | L29: =X29 -> 0 | N29: 0 | O29: 0 | P29: 0 | Q29: =SUM(N29:P29) -> 0 | R29: 0 | S29: 0 | T29: 0 | U29: =SUM(R29:T29) -> 0 | V29: 0 | W29: 0 | X29: 0
A30: ='Org structure'!E26 -> 04.2 - Disaster Management | C30: 0 | D30: 0 | E30: 0 | F30: 0 | G30: 0 | H30: 0 | I30: 0 | J30: 0 | K30: 0 | L30: 0 | N30: 0 | O30: 0 | P30: 0 | Q30: 0 | R30: 0 | S30: 0 | T30: 0 | U30: 0 | V30: 0 | W30: 0 | X30: 0
A31: ='Org structure'!E27 -> 04.3 - Environmental Management | C31: 0 | D31: 0 | E31: 0 | F31: 0 | G31: 0 | H31: 0 | I31: 0 | J31: 0 | K31: 0 | L31: 0 | N31: 0 | O31: 0 | P31: 0 | Q31: 0 | R31: 0 | S31: 0 | T31: 0 | U31: 0 | V31: 0 | W31: 0 | X31: 0
A32: ='Org structure'!E28 -> 04.4 - Fire Services | C32: 0 | D32: 0 | E32: 0 | F32: 0 | G32: 0 | H32: 0 | I32: 0 | J32: 0 | K32: 0 | L32: 0 | N32: 0 | O32: 0 | P32: 0 | Q32: 0 | R32: 0 | S32: 0 | T32: 0 | U32: 0 | V32: 0 | W32: 0 | X32: 0
A33: ='Org structure'!E29 -> 04.5 - Municipal Health Services | C33: 0 | D33: 0 | E33: 0 | F33: 0 | G33: 0 | H33: 0 | I33: 0 | J33: 0 | K33: 0 | L33: 0 | N33: 0 | O33: 0 | P33: 0 | Q33: 0 | R33: 0 | S33: 0 | T33: 0 | U33: 0 | V33: 0 | W33: 0 | X33: 0
A34: ='Org structure'!E30 -> 04.6 - Hiv And Aids Section | C34: 0 | D34: 0 | E34: 0 | F34: 0 | G34: 0 | H34: 0 | I34: 0 | J34: 0 | K34: 0 | L34: 0 | N34: 0 | O34: 0 | P34: 0 | Q34: 0 | R34: 0 | S34: 0 | T34: 0 | U34: 0 | V34: 0 | W34: 0 | X34: 0
A35: ='Org structure'!A6 -> Vote 05 - Corporate Services | C35: =SUM(C36:C44) -> 0 | D35: 0 | E35: 0 | F35: 0 | G35: 0 | H35: 0 | I35: 0 | J35: 0 | K35: 0 | L35: 0 | N35: =SUM(N36:N44) -> 0 | O35: 0 | P35: 0 | Q35: 0 | R35: 0 | S35: 0 | T35: 0 | U35: 0 | V35: 0 | W35: 0 | X35: 0
A36: ='Org structure'!E32 -> 05.1 - Corporate Services | C36: 0 | D36: 0 | E36: 0 | F36: 0 | G36: 0 | H36: 0 | I36: 0 | J36: =Q36+V36 -> 0 | K36: =U36+W36 -> 0 | L36: =X36 -> 0 | N36: 0 | O36: 0 | P36: 0 | Q36: =SUM(N36:P36) -> 0 | R36: 0 | S36: 0 | T36: 0 | U36: =SUM(R36:T36) -> 0 | V36: 0 | W36: 0 | X36: 0
A37: ='Org structure'!E33 -> 05.2 - Council Support | C37: 0 | D37: 0 | E37: 0 | F37: 0 | G37: 0 | H37: 0 | I37: 0 | J37: 0 | K37: 0 | L37: 0 | N37: 0 | O37: 0 | P37: 0 | Q37: 0 | R37: 0 | S37: 0 | T37: 0 | U37: 0 | V37: 0 | W37: 0 | X37: 0
A38: ='Org structure'!E34 -> 05.3 - Employee Assistance Unit | C38: 0 | D38: 0 | E38: 0 | F38: 0 | G38: 0 | H38: 0 | I38: 0 | J38: 0 | K38: 0 | L38: 0 | N38: 0 | O38: 0 | P38: 0 | Q38: 0 | R38: 0 | S38: 0 | T38: 0 | U38: 0 | V38: 0 | W38: 0 | X38: 0
A39: ='Org structure'!E35 -> 05.4 - Administration | C39: 0 | D39: 0 | E39: 0 | F39: 0 | G39: 0 | H39: 0 | I39: 0 | J39: 0 | K39: 0 | L39: 0 | N39: 0 | O39: 0 | P39: 0 | Q39: 0 | R39: 0 | S39: 0 | T39: 0 | U39: 0 | V39: 0 | W39: 0 | X39: 0
A40: ='Org structure'!E36 -> 05.5 - Fleet | C40: 0 | D40: 0 | E40: 0 | F40: 0 | G40: 0 | H40: 0 | I40: 0 | J40: 0 | K40: 0 | L40: 0 | N40: 0 | O40: 0 | P40: 0 | Q40: 0 | R40: 0 | S40: 0 | T40: 0 | U40: 0 | V40: 0 | W40: 0 | X40: 0
A41: ='Org structure'!E37 -> 05.6 - Human Resources | C41: 0 | D41: 0 | E41: 0 | F41: 0 | G41: 0 | H41: 0 | I41: 0 | J41: 0 | K41: 0 | L41: 0 | N41: 0 | O41: 0 | P41: 0 | Q41: 0 | R41: 0 | S41: 0 | T41: 0 | U41: 0 | V41: 0 | W41: 0 | X41: 0
A42: ='Org structure'!E38 -> 05.7 - Legal Services | C42: 0 | D42: 0 | E42: 0 | F42: 0 | G42: 0 | H42: 0 | I42: 0 | J42: 0 | K42: 0 | L42: 0 | N42: 0 | O42: 0 | P42: 0 | Q42: 0 | R42: 0 | S42: 0 | T42: 0 | U42: 0 | V42: 0 | W42: 0 | X42: 0
A43: ='Org structure'!E39 -> 05.8 - Information Technology Management | C43: 0 | D43: 0 | E43: 0 | F43: 0 | G43: 0 | H43: 0 | I43: 0 | J43: 0 | K43: 0 | L43: 0 | N43: 0 | O43: 0 | P43: 0 | Q43: 0 | R43: 0 | S43: 0 | T43: 0 | U43: 0 | V43: 0 | W43: 0 | X43: 0
A44: ='Org structure'!E40 -> 05.9 - Job Evaluation Unit | C44: 0 | D44: 0 | E44: 0 | F44: 0 | G44: 0 | H44: 0 | I44: 0 | J44: 0 | K44: 0 | L44: 0 | N44: 0 | O44: 0 | P44: 0 | Q44: 0 | R44: 0 | S44: 0 | T44: 0 | U44: 0 | V44: 0 | W44: 0 | X44: 0
A45: ='Org structure'!A7 -> Vote 06 - Planning & Development | C45: =SUM(C46:C48) -> 0 | D45: 0 | E45: 0 | F45: 0 | G45: 0 | H45: 0 | I45: 0 | J45: 0 | K45: 0 | L45: 0 | N45: =SUM(N46:N48) -> 0 | O45: 0 | P45: 0 | Q45: 0 | R45: 0 | S45: 0 | T45: 0 | U45: 0 | V45: 0 | W45: 0 | X45: 0
A46: ='Org structure'!E42 -> 06.1 - Integrated Planning & Economic Develop | C46: 0 | D46: 0 | E46: 0 | F46: 0 | G46: 0 | H46: 0 | I46: 0 | J46: =Q46+V46 -> 0 | K46: =U46+W46 -> 0 | L46: =X46 -> 0 | N46: 0 | O46: 0 | P46: 0 | Q46: =SUM(N46:P46) -> 0 | R46: 0 | S46: 0 | T46: 0 | U46: =SUM(R46:T46) -> 0 | V46: 0 | W46: 0 | X46: 0
A47: ='Org structure'!E43 -> 06.2 - Local Economic Development | C47: 0 | D47: 0 | E47: 0 | F47: 0 | G47: 0 | H47: 0 | I47: 0 | J47: =Q47+V47 -> 0 | K47: =U47+W47 -> 0 | L47: =X47 -> 0 | N47: 0 | O47: 0 | P47: 0 | Q47: =SUM(N47:P47) -> 0 | R47: 0 | S47: 0 | T47: 0 | U47: =SUM(R47:T47) -> 0 | V47: 0 | W47: 0 | X47: 0
A48: ='Org structure'!E44 -> 06.3 - Planning | C48: 0 | D48: 0 | E48: 0 | F48: 0 | G48: 0 | H48: 0 | I48: 0 | J48: =Q48+V48 -> 0 | K48: =U48+W48 -> 0 | L48: =X48 -> 0 | N48: 0 | O48: 0 | P48: 0 | Q48: =SUM(N48:P48) -> 0 | R48: 0 | S48: 0 | T48: 0 | U48: =SUM(R48:T48) -> 0 | V48: 0 | W48: 0 | X48: 0
A49: ='Org structure'!A8 -> Vote 07 - Technical Services | C49: =SUM(C50:C69) -> 621630053 | D49: 372561620 | E49: 306390256 | F49: 420411262 | G49: 362525948 | H49: 362525948 | I49: 197804693 | J49: 620504000 | K49: 584070000 | L49: 446946000 | N49: =SUM(N50:N69) -> 620504000 | O49: 0 | P49: 0 | Q49: 620504000 | R49: 584070000 | S49: 0 | T49: 0 | U49: 584070000 | V49: 0 | W49: 0 | X49: 446946000
A50: ='Org structure'!E46 -> 07.1 - Technical Services Administration | C50: 0 | D50: 0 | E50: 0 | F50: 0 | G50: 0 | H50: 0 | I50: 0 | J50: =Q50+V50 -> 0 | K50: =U50+W50 -> 0 | L50: =X50 -> 0 | N50: 0 | O50: 0 | P50: 0 | Q50: =SUM(N50:P50) -> 0 | R50: 0 | S50: 0 | T50: 0 | U50: =SUM(R50:T50) -> 0 | V50: 0 | W50: 0 | X50: 0
A51: ='Org structure'!E47 -> 07.2 - Project Management Unit | C51: 575261877 | D51: 367798030 | E51: 7836930 | F51: 420411262 | G51: 362525948 | H51: 362525948 | I51: 197804693 | J51: 620504000 | K51: 584070000 | L51: 446946000 | N51: 620504000 | O51: 0 | P51: 0 | Q51: 620504000 | R51: 584070000 | S51: 0 | T51: 0 | U51: 584070000 | V51: 0 | W51: 0 | X51: 446946000
A52: ='Org structure'!E48 -> 07.3 - Sewerage Services | C52: 46368176 | D52: 4763590 | E52: 298553326 | F52: 0 | G52: 0 | H52: 0 | I52: 0 | J52: 0 | K52: 0 | L52: 0 | N52: 0 | O52: 0 | P52: 0 | Q52: 0 | R52: 0 | S52: 0 | T52: 0 | U52: 0 | V52: 0 | W52: 0 | X52: 0
A53: ='Org structure'!E49 -> 07.4 - Inxuba Sanitation | C53: 0 | D53: 0 | E53: 0 | F53: 0 | G53: 0 | H53: 0 | I53: 0 | J53: 0 | K53: 0 | L53: 0 | N53: 0 | O53: 0 | P53: 0 | Q53: 0 | R53: 0 | S53: 0 | T53: 0 | U53: 0 | V53: 0 | W53: 0 | X53: 0
A54: ='Org structure'!E50 -> 07.5 - Lukhanji Sanitation | C54: 0 | D54: 0 | E54: 0 | F54: 0 | G54: 0 | H54: 0 | I54: 0 | J54: 0 | K54: 0 | L54: 0 | N54: 0 | O54: 0 | P54: 0 | Q54: 0 | R54: 0 | S54: 0 | T54: 0 | U54: 0 | V54: 0 | W54: 0 | X54: 0
A55: ='Org structure'!E51 -> 07.6 - Intsika Yethu Sanitation | C55: 0 | D55: 0 | E55: 0 | F55: 0 | G55: 0 | H55: 0 | I55: 0 | J55: 0 | K55: 0 | L55: 0 | N55: 0 | O55: 0 | P55: 0 | Q55: 0 | R55: 0 | S55: 0 | T55: 0 | U55: 0 | V55: 0 | W55: 0 | X55: 0
A56: ='Org structure'!E52 -> 07.7 - Inkwanca Sanitation | C56: 0 | D56: 0 | E56: 0 | F56: 0 | G56: 0 | H56: 0 | I56: 0 | J56: 0 | K56: 0 | L56: 0 | N56: 0 | O56: 0 | P56: 0 | Q56: 0 | R56: 0 | S56: 0 | T56: 0 | U56: 0 | V56: 0 | W56: 0 | X56: 0
A57: ='Org structure'!E53 -> 07.8 - Engcobo Sanitation | C57: 0 | D57: 0 | E57: 0 | F57: 0 | G57: 0 | H57: 0 | I57: 0 | J57: 0 | K57: 0 | L57: 0 | N57: 0 | O57: 0 | P57: 0 | Q57: 0 | R57: 0 | S57: 0 | T57: 0 | U57: 0 | V57: 0 | W57: 0 | X57: 0
A58: ='Org structure'!E54 -> 07.9 - Tsolwana Sanitation | C58: 0 | D58: 0 | E58: 0 | F58: 0 | G58: 0 | H58: 0 | I58: 0 | J58: 0 | K58: 0 | L58: 0 | N58: 0 | O58: 0 | P58: 0 | Q58: 0 | R58: 0 | S58: 0 | T58: 0 | U58: 0 | V58: 0 | W58: 0 | X58: 0
A59: ='Org structure'!E55 -> 07.10 - Sakhisizwe Sanitation | C59: 0 | D59: 0 | E59: 0 | F59: 0 | G59: 0 | H59: 0 | I59: 0 | J59: 0 | K59: 0 | L59: 0 | N59: 0 | O59: 0 | P59: 0 | Q59: 0 | R59: 0 | S59: 0 | T59: 0 | U59: 0 | V59: 0 | W59: 0 | X59: 0
A60: ='Org structure'!E56 -> 07.11 - Emalahleni Sanitation | C60: 0 | D60: 0 | E60: 0 | F60: 0 | G60: 0 | H60: 0 | I60: 0 | J60: 0 | K60: 0 | L60: 0 | N60: 0 | O60: 0 | P60: 0 | Q60: 0 | R60: 0 | S60: 0 | T60: 0 | U60: 0 | V60: 0 | W60: 0 | X60: 0
A61: ='Org structure'!E57 -> 07.12 - Water Services Authority | C61: 0 | D61: 0 | E61: 0 | F61: 0 | G61: 0 | H61: 0 | I61: 0 | J61: 0 | K61: 0 | L61: 0 | N61: 0 | O61: 0 | P61: 0 | Q61: 0 | R61: 0 | S61: 0 | T61: 0 | U61: 0 | V61: 0 | W61: 0 | X61: 0
A62: ='Org structure'!E58 -> 07.13 - Inxuba Water | C62: 0 | D62: 0 | E62: 0 | F62: 0 | G62: 0 | H62: 0 | I62: 0 | J62: 0 | K62: 0 | L62: 0 | N62: 0 | O62: 0 | P62: 0 | Q62: 0 | R62: 0 | S62: 0 | T62: 0 | U62: 0 | V62: 0 | W62: 0 | X62: 0
A63: ='Org structure'!E59 -> 07.14 - Lukhanji Water | C63: 0 | D63: 0 | E63: 0 | F63: 0 | G63: 0 | H63: 0 | I63: 0 | J63: 0 | K63: 0 | L63: 0 | N63: 0 | O63: 0 | P63: 0 | Q63: 0 | R63: 0 | S63: 0 | T63: 0 | U63: 0 | V63: 0 | W63: 0 | X63: 0
A64: ='Org structure'!E60 -> 07.15 - Intiska Yethu Water | C64: 0 | D64: 0 | E64: 0 | F64: 0 | G64: 0 | H64: 0 | I64: 0 | J64: 0 | K64: 0 | L64: 0 | N64: 0 | O64: 0 | P64: 0 | Q64: 0 | R64: 0 | S64: 0 | T64: 0 | U64: 0 | V64: 0 | W64: 0 | X64: 0
A65: ='Org structure'!E61 -> 07.16 - Inkwanca Water | C65: 0 | D65: 0 | E65: 0 | F65: 0 | G65: 0 | H65: 0 | I65: 0 | J65: 0 | K65: 0 | L65: 0 | N65: 0 | O65: 0 | P65: 0 | Q65: 0 | R65: 0 | S65: 0 | T65: 0 | U65: 0 | V65: 0 | W65: 0 | X65: 0
A66: ='Org structure'!E62 -> 07.17 - Engcobo Water | C66: 0 | D66: 0 | E66: 0 | F66: 0 | G66: 0 | H66: 0 | I66: 0 | J66: 0 | K66: 0 | L66: 0 | N66: 0 | O66: 0 | P66: 0 | Q66: 0 | R66: 0 | S66: 0 | T66: 0 | U66: 0 | V66: 0 | W66: 0 | X66: 0
A67: ='Org structure'!E63 -> 07.18 - Tsolwana Water | C67: 0 | D67: 0 | E67: 0 | F67: 0 | G67: 0 | H67: 0 | I67: 0 | J67: 0 | K67: 0 | L67: 0 | N67: 0 | O67: 0 | P67: 0 | Q67: 0 | R67: 0 | S67: 0 | T67: 0 | U67: 0 | V67: 0 | W67: 0 | X67: 0
A68: ='Org structure'!E64 -> 07.19 - Sakhisizwe Water | C68: 0 | D68: 0 | E68: 0 | F68: 0 | G68: 0 | H68: 0 | I68: 0 | J68: 0 | K68: 0 | L68: 0 | N68: 0 | O68: 0 | P68: 0 | Q68: 0 | R68: 0 | S68: 0 | T68: 0 | U68: 0 | V68: 0 | W68: 0 | X68: 0
A69: ='Org structure'!E65 -> 07.20 - Emalahleni Water | C69: 0 | D69: 0 | E69: 0 | F69: 0 | G69: 0 | H69: 0 | I69: 0 | J69: 0 | K69: 0 | L69: 0 | N69: 0 | O69: 0 | P69: 0 | Q69: 0 | R69: 0 | S69: 0 | T69: 0 | U69: 0 | V69: 0 | W69: 0 | X69: 0
A70: ='Org structure'!A9 -> Vote 08 - Roadworks | C70: =SUM(C71:C72) -> 0 | D70: 0 | E70: 0 | F70: 0 | G70: 0 | H70: 0 | I70: 0 | J70: 0 | K70: 0 | L70: 0 | N70: =SUM(N71:N72) -> 0 | O70: 0 | P70: 0 | Q70: 0 | R70: 0 | S70: 0 | T70: 0 | U70: 0 | V70: 0 | W70: 0 | X70: 0
A71: ='Org structure'!E67 -> 08.1 - Indirect - Roads | C71: 0 | D71: 0 | E71: 0 | F71: 0 | G71: 0 | H71: 0 | I71: 0 | J71: =Q71+V71 -> 0 | K71: =U71+W71 -> 0 | L71: =X71 -> 0 | N71: 0 | O71: 0 | P71: 0 | Q71: =SUM(N71:P71) -> 0 | R71: 0 | S71: 0 | T71: 0 | U71: =SUM(R71:T71) -> 0 | V71: 0 | W71: 0 | X71: 0
A72: ='Org structure'!E68 -> 08.2 - Plant: Public Works | C72: 0 | D72: 0 | E72: 0 | F72: 0 | G72: 0 | H72: 0 | I72: 0 | J72: =Q72+V72 -> 0 | K72: =U72+W72 -> 0 | L72: =X72 -> 0 | N72: 0 | O72: 0 | P72: 0 | Q72: =SUM(N72:P72) -> 0 | R72: 0 | S72: 0 | T72: 0 | U72: =SUM(R72:T72) -> 0 | V72: 0 | W72: 0 | X72: 0
A73: ='Org structure'!A10 -> Vote 09 - Entity: Chis Hani Development Agency | C73: =SUM(C74:C74) -> 0 | D73: 0 | E73: 0 | F73: 0 | G73: 0 | H73: 0 | I73: 0 | J73: 0 | K73: 0 | L73: 0 | N73: =SUM(N74:N74) -> 0 | O73: 0 | P73: 0 | Q73: 0 | R73: 0 | S73: 0 | T73: 0 | U73: 0 | V73: 0 | W73: 0 | X73: 0
A74: ='Org structure'!E70 -> 09.1 - Chris Hani Development Agency | C74: 0 | D74: 0 | E74: 0 | F74: 0 | G74: 0 | H74: 0 | I74: 0 | J74: =Q74+V74 -> 0 | K74: =U74+W74 -> 0 | L74: =X74 -> 0 | N74: 0 | O74: 0 | P74: 0 | Q74: =SUM(N74:P74) -> 0 | R74: 0 | S74: 0 | T74: 0 | U74: =SUM(R74:T74) -> 0 | V74: 0 | W74: 0 | X74: 0
A75: ='Org structure'!A11 -> Vote 10 - Vote 10 | C75: 0 | D75: 0 | E75: 0 | F75: 0 | G75: 0 | H75: 0 | I75: 0 | J75: 0 | K75: 0 | L75: 0 | N75: 0 | O75: 0 | P75: 0 | Q75: 0 | R75: 0 | S75: 0 | T75: 0 | U75: 0 | V75: 0 | W75: 0
A76: ='Org structure'!A12 -> Vote 11 - Vote 11 | C76: 0 | D76: 0 | E76: 0 | F76: 0 | G76: 0 | H76: 0 | I76: 0 | J76: 0 | K76: 0 | L76: 0 | N76: 0 | O76: 0 | P76: 0 | Q76: 0 | R76: 0 | S76: 0 | T76: 0 | U76: 0 | V76: 0 | W76: 0
A77: ='Org structure'!A13 -> Vote 12 - Vote 12 | C77: 0 | D77: 0 | E77: 0 | F77: 0 | G77: 0 | H77: 0 | I77: 0 | J77: 0 | K77: 0 | L77: 0 | N77: 0 | O77: 0 | P77: 0 | Q77: 0 | R77: 0 | S77: 0 | T77: 0 | U77: 0 | V77: 0 | W77: 0
A78: ='Org structure'!A14 -> Vote 13 - Vote 13 | C78: 0 | D78: 0 | E78: 0 | F78: 0 | G78: 0 | H78: 0 | I78: 0 | J78: 0 | K78: 0 | L78: 0 | N78: 0 | O78: 0 | P78: 0 | Q78: 0 | R78: 0 | S78: 0 | T78: 0 | U78: 0 | V78: 0 | W78: 0
A79: ='Org structure'!A15 -> Vote 14 - Vote 14 | C79: 0 | D79: 0 | E79: 0 | F79: 0 | G79: 0 | H79: 0 | I79: 0 | J79: 0 | K79: 0 | L79: 0 | N79: 0 | O79: 0 | P79: 0 | Q79: 0 | R79: 0 | S79: 0 | T79: 0 | U79: 0 | V79: 0 | W79: 0
A80: ='Org structure'!A16 -> Vote 15 - Other | C80: 0 | D80: 0 | E80: 0 | F80: 0 | G80: 0 | H80: 0 | I80: 0 | J80: 0 | K80: 0 | L80: 0 | N80: 0 | O80: 0 | P80: 0 | Q80: 0 | R80: 0 | S80: 0 | T80: 0 | U80: 0 | V80: 0 | W80: 0
A81: Capital multi-year expenditure sub-total | C81: =C6+C9+C17+C28+C35+C45+C49+C70+C73+C75+C76+C77+C78+C79+C80 -> 621630053 | D81: 372561620 | E81: 306390256 | F81: 420411262 | G81: 362525948 | H81: 362525948 | I81: 197804693 | J81: 620504000 | K81: 584070000 | L81: 446946000 | N81: =N6+N9+N17+N28+N35+N45+N49+N70+N73+N75+N76+N77+N78+N79+N80 -> 620504000 | O81: 0 | P81: 0 | Q81: 620504000 | R81: 584070000 | S81: 0 | T81: 0 | U81: 584070000 | V81: 0 | W81: 0
A83: Capital expenditure - Municipal Vote
A84: Single-year expenditure appropriation | B84: 2
A85: ='Org structure'!A2 -> Vote 01 - Council | C85: =SUM(C86:C87) -> 0 | D85: 0 | E85: 0 | F85: 0 | G85: 0 | H85: 0 | I85: 0 | J85: 0 | K85: 0 | L85: 0
A86: ='Org structure'!E3 -> 01.1 - Council's General Expenses | C86: 0 | D86: 0 | E86: 0 | F86: 0 | G86: 0 | H86: 0 | I86: 0 | J86: 0 | K86: 0 | L86: 0
A87: ='Org structure'!E4 -> 01.2 - Council General - Independent Contractor | C87: 0 | D87: 0 | E87: 0 | F87: 0 | G87: 0 | H87: 0 | I87: 0 | J87: 0 | K87: 0 | L87: 0
A88: ='Org structure'!A3 -> Vote 02 - Municipal Manager | C88: =SUM(C89:C95) -> 0 | D88: 0 | E88: 0 | F88: 0 | G88: 0 | H88: 0 | I88: 0 | J88: 0 | K88: 0 | L88: 0
A89: ='Org structure'!E6 -> 02.1 - Municipal Manager | C89: 0 | D89: 0 | E89: 0 | F89: 0 | G89: 0 | H89: 0 | I89: 0 | J89: 0 | K89: 0 | L89: 0
A90: ='Org structure'!E7 -> 02.2 - Communication Office | C90: 0 | D90: 0 | E90: 0 | F90: 0 | G90: 0 | H90: 0 | I90: 0 | J90: 0 | K90: 0 | L90: 0
A91: ='Org structure'!E8 -> 02.3 - Internal Audit | C91: 0 | D91: 0 | E91: 0 | F91: 0 | G91: 0 | H91: 0 | I91: 0 | J91: 0 | K91: 0 | L91: 0
A92: ='Org structure'!E9 -> 02.4 - Strategic Manager | C92: 0 | D92: 0 | E92: 0 | F92: 0 | G92: 0 | H92: 0 | I92: 0 | J92: 0 | K92: 0 | L92: 0
A93: ='Org structure'!E10 -> 02.5 - Special Programmes Unit | C93: 0 | D93: 0 | E93: 0 | F93: 0 | G93: 0 | H93: 0 | I93: 0 | J93: 0 | K93: 0 | L93: 0
A94: ='Org structure'!E11 -> 02.6 - Special Programmes Unit | C94: 0 | D94: 0 | E94: 0 | F94: 0 | G94: 0 | H94: 0 | I94: 0 | J94: 0 | K94: 0 | L94: 0
A95: ='Org structure'!E12 -> 02.7 - Customer Care | C95: 0 | D95: 0 | E95: 0 | F95: 0 | G95: 0 | H95: 0 | I95: 0 | J95: 0 | K95: 0 | L95: 0
A96: ='Org structure'!A4 -> Vote 03 - Budget & Treasury | C96: =SUM(C97:C106) -> 15008261 | D96: 8502445 | E96: 3795372 | F96: 0 | G96: 12556247 | H96: 12556247 | I96: 2093540.23 | J96: 0 | K96: 0 | L96: 0
A97: ='Org structure'!E14 -> 03.1 - Budget & Treasury Office | C97: 15008261 | D97: 8502445 | E97: 3795372 | F97: 0 | G97: 12556247 | H97: 12556247 | I97: 2093540.23 | J97: 0 | K97: 0 | L97: 0
A98: ='Org structure'!E15 -> 03.2 - Budget & Treasury Office | C98: 0 | D98: 0 | E98: 0 | F98: 0 | G98: 0 | H98: 0 | I98: 0 | J98: 0 | K98: 0 | L98: 0
A99: ='Org structure'!E16 -> 03.3 - Accounting Services | C99: 0 | D99: 0 | E99: 0 | F99: 0 | G99: 0 | H99: 0 | I99: 0 | J99: 0 | K99: 0 | L99: 0
A100: ='Org structure'!E17 -> 03.4 - Budget Control | C100: 0 | D100: 0 | E100: 0 | F100: 0 | G100: 0 | H100: 0 | I100: 0 | J100: 0 | K100: 0 | L100: 0
A101: ='Org structure'!E18 -> 03.5 - Revenue Services | C101: 0 | D101: 0 | E101: 0 | F101: 0 | G101: 0 | H101: 0 | I101: 0 | J101: 0 | K101: 0 | L101: 0
A102: ='Org structure'!E19 -> 03.6 - Supply Chain Management | C102: 0 | D102: 0 | E102: 0 | F102: 0 | G102: 0 | H102: 0 | I102: 0 | J102: 0 | K102: 0 | L102: 0
A103: ='Org structure'!E20 -> 03.7 - Systems Administration | C103: 0 | D103: 0 | E103: 0 | F103: 0 | G103: 0 | H103: 0 | I103: 0 | J103: 0 | K103: 0 | L103: 0
A104: ='Org structure'!E21 -> 03.8 - Financial Statements Management | C104: 0 | D104: 0 | E104: 0 | F104: 0 | G104: 0 | H104: 0 | I104: 0 | J104: 0 | K104: 0 | L104: 0
A105: ='Org structure'!E22 -> 03.9 - Grants & Donations | C105: 0 | D105: 0 | E105: 0 | F105: 0 | G105: 0 | H105: 0 | I105: 0 | J105: 0 | K105: 0 | L105: 0
A106: ='Org structure'!E23 -> 03.10 - Assets Management | C106: 0 | D106: 0 | E106: 0 | F106: 0 | G106: 0 | H106: 0 | I106: 0 | J106: 0 | K106: 0 | L106: 0
A107: ='Org structure'!A5 -> Vote 04 - Community Services | C107: =SUM(C108:C113) -> 0 | D107: 0 | E107: 0 | F107: 0 | G107: 0 | H107: 0 | I107: 0 | J107: 0 | K107: 0 | L107: 0
A108: ='Org structure'!E25 -> 04.1 - Community & Social Services | C108: 0 | D108: 0 | E108: 0 | F108: 0 | G108: 0 | H108: 0 | I108: 0 | J108: 0 | K108: 0 | L108: 0
A109: ='Org structure'!E26 -> 04.2 - Disaster Management | C109: 0 | D109: 0 | E109: 0 | F109: 0 | G109: 0 | H109: 0 | I109: 0 | J109: 0 | K109: 0 | L109: 0
A110: ='Org structure'!E27 -> 04.3 - Environmental Management | C110: 0 | D110: 0 | E110: 0 | F110: 0 | G110: 0 | H110: 0 | I110: 0 | J110: 0 | K110: 0 | L110: 0
A111: ='Org structure'!E28 -> 04.4 - Fire Services | C111: 0 | D111: 0 | E111: 0 | F111: 0 | G111: 0 | H111: 0 | I111: 0 | J111: 0 | K111: 0 | L111: 0
A112: ='Org structure'!E29 -> 04.5 - Municipal Health Services | C112: 0 | D112: 0 | E112: 0 | F112: 0 | G112: 0 | H112: 0 | I112: 0 | J112: 0 | K112: 0 | L112: 0
A113: ='Org structure'!E30 -> 04.6 - Hiv And Aids Section | C113: 0 | D113: 0 | E113: 0 | F113: 0 | G113: 0 | H113: 0 | I113: 0 | J113: 0 | K113: 0 | L113: 0
A114: ='Org structure'!A6 -> Vote 05 - Corporate Services | C114: =SUM(C115:C123) -> 35496720 | D114: 11367423 | E114: 18064867 | F114: 0 | G114: 22261327 | H114: 22261327 | I114: 6497365.13 | J114: 0 | K114: 0 | L114: 0
A115: ='Org structure'!E32 -> 05.1 - Corporate Services | C115: 35496720 | D115: 11367423 | E115: 18064867 | F115: 0 | G115: 22261327 | H115: 22261327 | I115: 6497365.13 | J115: 0 | K115: 0 | L115: 0
A116: ='Org structure'!E33 -> 05.2 - Council Support | C116: 0 | D116: 0 | E116: 0 | F116: 0 | G116: 0 | H116: 0 | I116: 0 | J116: 0 | K116: 0 | L116: 0
A117: ='Org structure'!E34 -> 05.3 - Employee Assistance Unit | C117: 0 | D117: 0 | E117: 0 | F117: 0 | G117: 0 | H117: 0 | I117: 0 | J117: 0 | K117: 0 | L117: 0
A118: ='Org structure'!E35 -> 05.4 - Administration | C118: 0 | D118: 0 | E118: 0 | F118: 0 | G118: 0 | H118: 0 | I118: 0 | J118: 0 | K118: 0 | L118: 0
A119: ='Org structure'!E36 -> 05.5 - Fleet | C119: 0 | D119: 0 | E119: 0 | F119: 0 | G119: 0 | H119: 0 | I119: 0 | J119: 0 | K119: 0 | L119: 0
A120: ='Org structure'!E37 -> 05.6 - Human Resources | C120: 0 | D120: 0 | E120: 0 | F120: 0 | G120: 0 | H120: 0 | I120: 0 | J120: 0 | K120: 0 | L120: 0
A121: ='Org structure'!E38 -> 05.7 - Legal Services | C121: 0 | D121: 0 | E121: 0 | F121: 0 | G121: 0 | H121: 0 | I121: 0 | J121: 0 | K121: 0 | L121: 0
A122: ='Org structure'!E39 -> 05.8 - Information Technology Management | C122: 0 | D122: 0 | E122: 0 | F122: 0 | G122: 0 | H122: 0 | I122: 0 | J122: 0 | K122: 0 | L122: 0
A123: ='Org structure'!E40 -> 05.9 - Job Evaluation Unit | C123: 0 | D123: 0 | E123: 0 | F123: 0 | G123: 0 | H123: 0 | I123: 0 | J123: 0 | K123: 0 | L123: 0
A124: ='Org structure'!A7 -> Vote 06 - Planning & Development | C124: =SUM(C125:C127) -> 0 | D124: 0 | E124: 0 | F124: 0 | G124: 0 | H124: 0 | I124: 0 | J124: 0 | K124: 0 | L124: 0
A125: ='Org structure'!E42 -> 06.1 - Integrated Planning & Economic Develop | C125: 0 | D125: 0 | E125: 0 | F125: 0 | G125: 0 | H125: 0 | I125: 0 | J125: 0 | K125: 0 | L125: 0
A126: ='Org structure'!E43 -> 06.2 - Local Economic Development | C126: 0 | D126: 0 | E126: 0 | F126: 0 | G126: 0 | H126: 0 | I126: 0 | J126: 0 | K126: 0 | L126: 0
A127: ='Org structure'!E44 -> 06.3 - Planning | C127: 0 | D127: 0 | E127: 0 | F127: 0 | G127: 0 | H127: 0 | I127: 0 | J127: 0 | K127: 0 | L127: 0
A128: ='Org structure'!A8 -> Vote 07 - Technical Services | C128: =SUM(C129:C148) -> 0 | D128: 0 | E128: 0 | F128: 0 | G128: 50000000 | H128: 50000000 | I128: 27082179.88 | J128: 0 | K128: 0 | L128: 0
A129: ='Org structure'!E46 -> 07.1 - Technical Services Administration | C129: 0 | D129: 0 | E129: 0 | F129: 0 | G129: 0 | H129: 0 | I129: 0 | J129: 0 | K129: 0 | L129: 0
A130: ='Org structure'!E47 -> 07.2 - Project Management Unit | C130: 0 | D130: 0 | E130: 0 | F130: 0 | G130: 50000000 | H130: 50000000 | I130: 27082179.88 | J130: 0 | K130: 0 | L130: 0
A131: ='Org structure'!E48 -> 07.3 - Sewerage Services | C131: 0 | D131: 0 | E131: 0 | F131: 0 | G131: 0 | H131: 0 | I131: 0 | J131: 0 | K131: 0 | L131: 0
A132: ='Org structure'!E49 -> 07.4 - Inxuba Sanitation | C132: 0 | D132: 0 | E132: 0 | F132: 0 | G132: 0 | H132: 0 | I132: 0 | J132: 0 | K132: 0 | L132: 0
A133: ='Org structure'!E50 -> 07.5 - Lukhanji Sanitation | C133: 0 | D133: 0 | E133: 0 | F133: 0 | G133: 0 | H133: 0 | I133: 0 | J133: 0 | K133: 0 | L133: 0
A134: ='Org structure'!E51 -> 07.6 - Intsika Yethu Sanitation | C134: 0 | D134: 0 | E134: 0 | F134: 0 | G134: 0 | H134: 0 | I134: 0 | J134: 0 | K134: 0 | L134: 0
A135: ='Org structure'!E52 -> 07.7 - Inkwanca Sanitation | C135: 0 | D135: 0 | E135: 0 | F135: 0 | G135: 0 | H135: 0 | I135: 0 | J135: 0 | K135: 0 | L135: 0
A136: ='Org structure'!E53 -> 07.8 - Engcobo Sanitation | C136: 0 | D136: 0 | E136: 0 | F136: 0 | G136: 0 | H136: 0 | I136: 0 | J136: 0 | K136: 0 | L136: 0
A137: ='Org structure'!E54 -> 07.9 - Tsolwana Sanitation | C137: 0 | D137: 0 | E137: 0 | F137: 0 | G137: 0 | H137: 0 | I137: 0 | J137: 0 | K137: 0 | L137: 0
A138: ='Org structure'!E55 -> 07.10 - Sakhisizwe Sanitation | C138: 0 | D138: 0 | E138: 0 | F138: 0 | G138: 0 | H138: 0 | I138: 0 | J138: 0 | K138: 0 | L138: 0
A139: ='Org structure'!E56 -> 07.11 - Emalahleni Sanitation | C139: 0 | D139: 0 | E139: 0 | F139: 0 | G139: 0 | H139: 0 | I139: 0 | J139: 0 | K139: 0 | L139: 0
A140: ='Org structure'!E57 -> 07.12 - Water Services Authority | C140: 0 | D140: 0 | E140: 0 | F140: 0 | G140: 0 | H140: 0 | I140: 0 | J140: 0 | K140: 0 | L140: 0
A141: ='Org structure'!E58 -> 07.13 - Inxuba Water | C141: 0 | D141: 0 | E141: 0 | F141: 0 | G141: 0 | H141: 0 | I141: 0 | J141: 0 | K141: 0 | L141: 0
A142: ='Org structure'!E59 -> 07.14 - Lukhanji Water | C142: 0 | D142: 0 | E142: 0 | F142: 0 | G142: 0 | H142: 0 | I142: 0 | J142: 0 | K142: 0 | L142: 0
A143: ='Org structure'!E60 -> 07.15 - Intiska Yethu Water | C143: 0 | D143: 0 | E143: 0 | F143: 0 | G143: 0 | H143: 0 | I143: 0 | J143: 0 | K143: 0 | L143: 0
A144: ='Org structure'!E61 -> 07.16 - Inkwanca Water | C144: 0 | D144: 0 | E144: 0 | F144: 0 | G144: 0 | H144: 0 | I144: 0 | J144: 0 | K144: 0 | L144: 0
A145: ='Org structure'!E62 -> 07.17 - Engcobo Water | C145: 0 | D145: 0 | E145: 0 | F145: 0 | G145: 0 | H145: 0 | I145: 0 | J145: 0 | K145: 0 | L145: 0
A146: ='Org structure'!E63 -> 07.18 - Tsolwana Water | C146: 0 | D146: 0 | E146: 0 | F146: 0 | G146: 0 | H146: 0 | I146: 0 | J146: 0 | K146: 0 | L146: 0
A147: ='Org structure'!E64 -> 07.19 - Sakhisizwe Water | C147: 0 | D147: 0 | E147: 0 | F147: 0 | G147: 0 | H147: 0 | I147: 0 | J147: 0 | K147: 0 | L147: 0
A148: ='Org structure'!E65 -> 07.20 - Emalahleni Water | C148: 0 | D148: 0 | E148: 0 | F148: 0 | G148: 0 | H148: 0 | I148: 0 | J148: 0 | K148: 0 | L148: 0
A149: ='Org structure'!A9 -> Vote 08 - Roadworks | C149: =SUM(C150:C151) -> 0 | D149: 0 | E149: 0 | F149: 0 | G149: 0 | H149: 0 | I149: 0 | J149: 0 | K149: 0 | L149: 0
A150: ='Org structure'!E67 -> 08.1 - Indirect - Roads | C150: 0 | D150: 0 | E150: 0 | F150: 0 | G150: 0 | H150: 0 | I150: 0 | J150: 0 | K150: 0 | L150: 0
A151: ='Org structure'!E68 -> 08.2 - Plant: Public Works | C151: 0 | D151: 0 | E151: 0 | F151: 0 | G151: 0 | H151: 0 | I151: 0 | J151: 0 | K151: 0 | L151: 0
A152: ='Org structure'!A10 -> Vote 09 - Entity: Chis Hani Development Agency | C152: =SUM(C153:C153) -> 0 | D152: 0 | E152: 0 | F152: 0 | G152: 0 | H152: 0 | I152: 0 | J152: 0 | K152: 0 | L152: 0
A153: ='Org structure'!E70 -> 09.1 - Chris Hani Development Agency | C153: 0 | D153: 0 | E153: 0 | F153: 0 | G153: 0 | H153: 0 | I153: 0 | J153: 0 | K153: 0 | L153: 0
A154: ='Org structure'!A11 -> Vote 10 - Vote 10 | C154: 0 | D154: 0 | E154: 0 | F154: 0 | G154: 0 | H154: 0 | I154: 0 | J154: 0 | K154: 0 | L154: 0
A155: ='Org structure'!A12 -> Vote 11 - Vote 11 | C155: 0 | D155: 0 | E155: 0 | F155: 0 | G155: 0 | H155: 0 | I155: 0 | J155: 0 | K155: 0 | L155: 0
A156: ='Org structure'!A13 -> Vote 12 - Vote 12 | C156: 0 | D156: 0 | E156: 0 | F156: 0 | G156: 0 | H156: 0 | I156: 0 | J156: 0 | K156: 0 | L156: 0
A157: ='Org structure'!A14 -> Vote 13 - Vote 13 | C157: 0 | D157: 0 | E157: 0 | F157: 0 | G157: 0 | H157: 0 | I157: 0 | J157: 0 | K157: 0 | L157: 0
A158: ='Org structure'!A15 -> Vote 14 - Vote 14 | C158: 0 | D158: 0 | E158: 0 | F158: 0 | G158: 0 | H158: 0 | I158: 0 | J158: 0 | K158: 0 | L158: 0
A159: ='Org structure'!A16 -> Vote 15 - Other | C159: 0 | D159: 0 | E159: 0 | F159: 0 | G159: 0 | H159: 0 | I159: 0 | J159: 0 | K159: 0 | L159: 0
A160: Capital single-year expenditure sub-total | C160: =C85+C88+C96+C107+C114+C124+C128+C149+C152+C154+C155+C156+C157+C158+C159 -> 50504981 | D160: 19869868 | E160: 21860239 | F160: 0 | G160: 84817574 | H160: 84817574 | I160: 35673085.24 | J160: 0 | K160: 0 | L160: 0
A161: Total Capital Expenditure | C161: =C81+C160 -> 672135034 | D161: 392431488 | E161: 328250495 | F161: 420411262 | G161: 447343522 | H161: 447343522 | I161: 233477778.2 | J161: 620504000 | K161: 584070000 | L161: 446946000

Sheet A6-FinPos
A1: =muni&" - "&Approve6 -> DC13 Chris Hani - Table A6 Budgeted Financial Position
A2: =desc -> Description | B2: =head27 -> Ref | C2: =head1b -> 2016/17 | D2: =head1A -> 2017/18 | E2: =Head1 -> 2018/19 | F2: =Head2 -> Current Year 2019/20 | J2: =Head3 -> 2020/21 Medium Term Revenue & Expenditure Framework
A3: R thousand | C3: =Head5 -> Audited Outcome | D3: =Head5 -> Audited Outcome | E3: =Head5 -> Audited Outcome | F3: =Head6 -> Original Budget | G3: =Head7 -> Adjusted Budget | H3: =Head8 -> Full Year Forecast | I3: =Head5b -> Pre-audit outcome | J3: =Head9 -> Budget Year 2020/21 | K3: =Head10 -> Budget Year +1 2021/22 | L3: =Head11 -> Budget Year +2 2022/23
A4: ASSETS
A5: Current assets
A6: Cash | C6: 235946654 | D6: 276605905 | E6: 104598718 | F6: 322605893 | G6: 290936000 | H6: 290936000 | I6: -13146582.51 | J6: 327868654 | K6: 371849695 | L6: 386723683
A7: Call investment deposits | B7: 1 | E7: 273729096 | F7: 0 | G7: 275614000 | H7: 275614000 | I7: 86253067.31 | J7: 286638560 | K7: 298104102 | L7: 310028266
A8: Consumer debtors | B8: 1 | C8: ='SA3'!C14 -> 160421866 | D8: ='SA3'!D14 -> 115831937 | E8: ='SA3'!E14 -> 239831672 | F8: ='SA3'!F14 -> 154262026 | G8: ='SA3'!G14 -> 238173251 | H8: ='SA3'!H14 -> 238173251 | I8: ='SA3'!I14 -> 666281092.9 | J8: ='SA3'!J14 -> 346200594 | K8: ='SA3'!K14 -> 547736089 | L8: ='SA3'!L14 -> 569645533
A9: Other debtors | C9: 151774503 | D9: 62448995 | E9: 222684286 | F9: 0 | G9: 53529393 | H9: 53529393 | I9: 1010646721 | J9: 55670569 | K9: 57897391 | L9: 60213287
A10: Current portion of long-term receivables | F10: 0 | G10: 0 | H10: 0 | I10: 143685.77 | J10: 0 | K10: 0 | L10: 0
A11: Inventory | B11: 2 | C11: 11041750 | D11: 16342214 | E11: 11790363 | F11: 0 | G11: 11790363 | H11: 11790363 | I11: 11790362.6 | J11: 12261978 | K11: 12752456 | L11: 13262554
A12: Total current assets | C12: =SUM(C6:C11) -> 559184773 | D12: 471229051 | E12: 852634135 | F12: 476867919 | G12: 870043007 | H12: 870043007 | I12: 1761968347 | J12: 1028640355 | K12: 1288339733 | L12: 1339873323
A14: Non current assets
A15: Long-term receivables | C15: 0 | D15: 0 | E15: 0 | F15: 0 | G15: 0 | H15: 0 | I15: 352291.64 | J15: 0 | K15: 0 | L15: 0
A16: Investments | C16: 0 | D16: 0 | E16: 0 | F16: 0 | G16: 0 | H16: 0 | I16: 0 | J16: 0 | K16: 0 | L16: 0
A17: Investment property
A18: Investment in Associate | C18: 0 | D18: 0 | E18: 0 | F18: 0 | G18: 1500000 | H18: 1500000 | I18: 1500000 | J18: 1500000 | K18: 1500000 | L18: 1500000
A19: Property, plant and equipment | B19: 3 | C19: ='SA3'!C26 -> 3965879873 | D19: ='SA3'!D26 -> 3869482561 | E19: ='SA3'!E26 -> 4056787967 | F19: ='SA3'!F26 -> 4452834704 | G19: ='SA3'!G26 -> 4334829360 | H19: ='SA3'!H26 -> 4334829360 | I19: ='SA3'!I26 -> 4277221960 | J19: ='SA3'!J26 -> 3592638997 | K19: ='SA3'!K26 -> 3732946597 | L19: ='SA3'!L26 -> 3721777661
A21: Biological
A22: Intangible | C22: 3888621 | D22: 2439168 | E22: 1622733 | F22: 0 | G22: 1490000 | H22: 1490000 | I22: 1489707.2 | J22: 1490000 | K22: 1490000 | L22: 1490000
A23: Other non-current assets | C23: 0 | D23: 0 | E23: 0 | F23: 0 | G23: 0 | H23: 0 | I23: 0 | J23: 0 | K23: 0 | L23: 0
A24: Total non current assets | C24: =SUM(C15:C19)+SUM(C21:C23) -> 3969768494 | D24: =SUM(D15:D19)+SUM(D21:D23) -> 3871921729 | E24: 4058410700 | F24: 4452834704 | G24: 4337819360 | H24: 4337819360 | I24: 4280563959 | J24: 3595628997 | K24: 3735936597 | L24: 3724767661
A25: TOTAL ASSETS | C25: =C12+C24 -> 4528953267 | D25: =D12+D24 -> 4343150780 | E25: =E12+E24 -> 4911044835 | F25: =F12+F24 -> 4929702623 | G25: 5207862367 | H25: 5207862367 | I25: 6042532306 | J25: 4624269352 | K25: 5024276330 | L25: 5064640984
A27: LIABILITIES
A28: Current liabilities
A29: Bank overdraft | B29: 1 | C29: 33854007 | D29: 13422606 | F29: 0 | G29: 0 | H29: 0 | I29: 0 | J29: 0 | K29: 0 | L29: 0
A30: Borrowing | B30: 4 | C30: ='SA3'!C32 -> 0 | D30: ='SA3'!D32 -> 63489.07 | E30: ='SA3'!E32 -> 600218.98 | F30: ='SA3'!F32 -> 4056787653 | G30: ='SA3'!G32 -> 0 | H30: ='SA3'!H32 -> 0 | I30: ='SA3'!I32 -> 600218.98 | J30: ='SA3'!J32 -> 0 | K30: ='SA3'!K32 -> 0 | L30: ='SA3'!L32 -> 0
A31: Consumer deposits | C31: 214960 | D31: 329186 | E31: 441108 | F31: 0 | G31: 441000 | H31: 441000 | I31: 507696.36 | J31: 458640 | K31: 476985 | L31: 496064
A32: Trade and other payables | B32: 4 | C32: ='SA3'!C39 -> 285667997 | D32: ='SA3'!D39 -> 266846603 | E32: ='SA3'!E39 -> 620354349 | F32: ='SA3'!F39 -> 167541774 | G32: ='SA3'!G39 -> 540699616 | H32: ='SA3'!H39 -> 540699616 | I32: ='SA3'!I39 -> 1229319347 | J32: ='SA3'!J39 -> 190310946 | K32: ='SA3'!K39 -> 214650338 | L32: ='SA3'!L39 -> 207669875
A33: Provisions | C33: 9365862 | D33: 7428432 | E33: 12797214 | F33: 0 | G33: 12797000 | H33: 12797000 | I33: -12249056.39 | J33: 13308880 | K33: 13974324 | L33: 13974324
A34: Total current liabilities | C34: =SUM(C29:C33) -> 329102826 | D34: 288090316.1 | E34: 634192890 | F34: 4224329427 | G34: 553937616 | H34: 553937616 | I34: 1218178206 | J34: 204078466 | K34: 229101647 | L34: 222140263
A36: Non current liabilities
A37: Borrowing | C37: ='SA3'!C44 -> 0 | D37: ='SA3'!D44 -> 0 | E37: ='SA3'!E44 -> 0 | F37: ='SA3'!F44 -> 0 | G37: ='SA3'!G44 -> 0 | H37: ='SA3'!H44 -> 0 | I37: ='SA3'!I44 -> 0 | J37: ='SA3'!J44 -> 0 | K37: ='SA3'!K44 -> 0 | L37: ='SA3'!L44 -> 0
A38: Provisions | C38: ='SA3'!C51 -> 42496077 | D38: ='SA3'!D51 -> 59231495 | E38: ='SA3'!E51 -> 65893340 | F38: ='SA3'!F51 -> 59231495 | G38: ='SA3'!G51 -> 65893340 | H38: ='SA3'!H51 -> 65893340 | I38: ='SA3'!I51 -> 81040493.3 | J38: ='SA3'!J51 -> 65509214 | K38: ='SA3'!K51 -> 68784674 | L38: ='SA3'!L51 -> 71536061
A39: Total non current liabilities | C39: =SUM(C37:C38) -> 42496077 | D39: =SUM(D37:D38) -> 59231495 | E39: =SUM(E37:E38) -> 65893340 | F39: =SUM(F37:F38) -> 59231495 | G39: 65893340 | H39: 65893340 | I39: 81040493.3 | J39: 65509214 | K39: =SUM(K37:K38) -> 68784674 | L39: 71536061
A40: TOTAL LIABILITIES | C40: =C34+C39 -> 371598903 | D40: =D34+D39 -> 347321811.1 | E40: =E34+E39 -> 700086230 | F40: =F34+F39 -> 4283560922 | G40: 619830956 | H40: 619830956 | I40: 1299218699 | J40: 269587680 | K40: =K34+K39 -> 297886321 | L40: 293676324
A42: NET ASSETS | B42: 5 | C42: =C25-C40 -> 4157354364 | D42: 3995828969 | E42: 4210958605 | F42: 646141701.1 | G42: 4588031411 | H42: 4588031411 | I42: 4743313607 | J42: 4354681672 | K42: 4726390009 | L42: 4770964660
A44: COMMUNITY WEALTH/EQUITY
A45: Accumulated Surplus/(Deficit) | C45: 4157354364 | D45: 3995828969 | E45: 4210958605 | F45: 4224329427 | G45: 4588031411 | H45: 4588031411 | I45: ='SA3'!I63 -> 2055692009 | J45: ='SA3'!J63 -> 4357481672 | K45: ='SA3'!K63 -> 4726390009 | L45: ='SA3'!L63 -> 4770964660
A46: Reserves | B46: 4 | C46: ='SA3'!C70 -> 0 | D46: ='SA3'!D70 -> 0 | E46: ='SA3'!E70 -> 0 | F46: ='SA3'!F70 -> 0 | G46: ='SA3'!G70 -> 0 | H46: ='SA3'!H70 -> 0 | I46: ='SA3'!I70 -> 2690061121 | J46: ='SA3'!J70 -> 0 | K46: ='SA3'!K70 -> 0 | L46: ='SA3'!L70 -> 0
A48: TOTAL COMMUNITY WEALTH/EQUITY | B48: 5 | C48: =SUM(C45:C46) -> 4157354364 | D48: =SUM(D45:D46) -> 3995828969 | E48: 4210958605 | F48: 4224329427 | G48: 4588031411 | H48: 4588031411 | I48: 4745753130 | J48: 4357481672 | K48: 4726390009 | L48: 4770964660
A49: =head27a -> References
A50: 1. Detail to be provided in Table SA3
A51: 2. Include completed low cost housing to be transferred to beneficiaries within 12 months
A52: 3. Include 'Construction-work-in-progress' (disclosed separately in annual financial statements)
A53: 4. Detail to be provided in Table SA3. Includes reserves to be funded by statute.
A54: 5. Net assets must balance with Total Community Wealth/Equity
A55: check balance | C55: =IF((C42-C48)=0,0,"Unbalanced") -> 0 | D55: =IF((D42-D48)=0,0,"Unbalanced") -> 0 | E55: 0 | F55: Unbalanced | G55: 0 | H55: 0 | I55: Unbalanced | J55: Unbalanced | K55: 0 | L55: 0

Sheet A7-CFlow
A1: =muni&" - "&Approve7 -> DC13 Chris Hani - Table A7 Budgeted Cash Flows
A2: =desc -> Description | B2: =head27 -> Ref | C2: =head1b -> 2016/17 | D2: =head1A -> 2017/18 | E2: =Head1 -> 2018/19 | F2: =Head2 -> Current Year 2019/20 | J2: =Head3 -> 2020/21 Medium Term Revenue & Expenditure Framework
A3: R thousand | C3: =Head5 -> Audited Outcome | D3: =Head5 -> Audited Outcome | E3: =Head5 -> Audited Outcome | F3: =Head6 -> Original Budget | G3: =Head7 -> Adjusted Budget | H3: =Head8 -> Full Year Forecast | I3: =Head5b -> Pre-audit outcome | J3: =Head9 -> Budget Year 2020/21 | K3: =Head10 -> Budget Year +1 2021/22 | L3: =Head11 -> Budget Year +2 2022/23
A4: CASH FLOW FROM OPERATING ACTIVITIES
A5: Receipts
A6: Property rates | J6: ='SA30'!N5 -> 0 | K6: ='SA30'!O5 -> 0 | L6: ='SA30'!P5 -> 0
A7: Service charges | C7: 44723006 | D7: 84605028 | E7: 183787174 | F7: 88100000 | G7: 183865106 | H7: 183865106 | J7: ='SA30'!N6+'SA30'!N7+'SA30'!N8+'SA30'!N9 -> 42651227.4 | K7: ='SA30'!O6+'SA30'!O7+'SA30'!O8+'SA30'!O9 -> 44783788.77 | L7: ='SA30'!P6+'SA30'!P7+'SA30'!P8+'SA30'!P9 -> 47022978.21
A8: Other revenue | C8: 32304582 | D8: 18777084 | E8: 33136201 | F8: 820392.3 | G8: 87313921 | H8: 87313921 | J8: ='SA30'!N11+'SA30'!N15+'SA30'!N16+'SA30'!N17+'SA30'!N19 -> 82836287 | K8: ='SA30'!O11+'SA30'!O15+'SA30'!O16+'SA30'!O17+'SA30'!O19 -> 86960601 | L8: ='SA30'!P11+'SA30'!P15+'SA30'!P16+'SA30'!P17+'SA30'!P19 -> 91291132
A9: Transfers and Subsidies - Operational | B9: 1 | C9: 532895960 | D9: 572788429 | E9: 779906214 | F9: 601554001.1 | G9: 726064759 | H9: 726064759 | J9: ='SA30'!N18 -> 649963949 | K9: ='SA30'!O18 -> 663221697 | L9: ='SA30'!P18 -> 747007481
A10: Transfers and Subsidies - Capital | B10: 1 | C10: 756556999 | D10: 539780819 | E10: 362121244 | F10: 403380698.9 | G10: 412525588 | H10: 412525588 | J10: ='SA30'!N23 -> 620504000 | K10: ='SA30'!O23 -> 584070000 | L10: ='SA30'!P23 -> 446946000
A11: Interest | C11: 36704686 | D11: 40552860 | E11: 74723515 | F11: 34580156 | G11: 38495455 | H11: 38495455 | J11: ='SA30'!N12+'SA30'!N13 -> 37837906 | K11: ='SA30'!O12+'SA30'!O13 -> 39729801 | L11: ='SA30'!P12+'SA30'!P13 -> 41716291
A12: Dividends | J12: ='SA30'!N14 -> 0 | K12: ='SA30'!O14 -> 0 | L12: ='SA30'!P14 -> 0
A13: Payments
A14: Suppliers and employees | C14: -867343442 | D14: -802725016 | E14: -959981440 | F14: -1011408458 | G14: -810035793.6 | H14: -810035793.6 | I14: -661411223.4 | J14: =-('SA30'!N35+'SA30'!N36+'SA30'!N38+'SA30'!N39+'SA30'!N40+'SA30'!N41+'SA30'!N44+'SA30'!N50) -> -747878852 | K14: =-('SA30'!O35+'SA30'!O36+'SA30'!O38+'SA30'!O39+'SA30'!O40+'SA30'!O41+'SA30'!O44+'SA30'!O50) -> -748694662 | L14: =-('SA30'!P35+'SA30'!P36+'SA30'!P38+'SA30'!P39+'SA30'!P40+'SA30'!P41+'SA30'!P44+'SA30'!P50) -> -830349983
A15: Finance charges | C15: -271493 | D15: -257064 | E15: -997055 | F15: 0 | G15: -40000 | H15: -40000 | I15: -60091.74 | J15: =-('SA30'!N37) -> -500000 | K15: =-('SA30'!O37) -> -540000 | L15: =-('SA30'!P37) -> -581600
A16: Transfers and Grants | B16: 1 | C16: -228939431 | E16: -29339125 | F16: 0 | G16: -31638081 | H16: -31638081 | I16: -28638080 | J16: =-('SA30'!N42+'SA30'!N43) -> -38030646 | K16: =-('SA30'!O42+'SA30'!O43) -> -34356120 | L16: =-('SA30'!P42+'SA30'!P43) -> -34744411
A17: NET CASH FROM/(USED) OPERATING ACTIVITIES | C17: =SUM(C6:C12)+SUM(C14:C16) -> 306630867 | D17: 453522140 | E17: 443356728 | F17: 117026790.3 | G17: 606550954.4 | H17: 606550954.4 | I17: -690109395.1 | J17: 647383871.4 | K17: 635175105.8 | L17: 508307888.2
A19: CASH FLOWS FROM INVESTING ACTIVITIES
A20: Receipts
A21: Proceeds on disposal of PPE | C21: 4251 | E21: 38283 | G21: 160000 | H21: 160000 | J21: ='SA30'!N24+'SA30'!N25 -> 8000000 | K21: ='SA30'!O24+'SA30'!O25 -> 160000 | L21: ='SA30'!P24+'SA30'!P25 -> 160000
G22: 0 | H22: 0
A23: Decrease (increase) in non-current receivables | G23: 0 | H23: 0 | J23: ='SA30'!N30 -> 0 | K23: ='SA30'!O30 -> 0 | L23: ='SA30'!P30 -> 0
A24: Decrease (increase) in non-current investments | C24: 0 | D24: 0 | E24: 0 | F24: -352291.64 | G24: 1500000 | H24: 1500000 | I24: 0 | J24: ='SA30'!N31 -> 0 | K24: ='SA30'!O31 -> 0 | L24: ='SA30'!P31 -> 0
A25: Payments
A26: Capital assets | G26: -459759607 | H26: -459759607 | J26: =-('SA30'!N48) -> 0 | K26: =-('SA30'!O48) -> 0 | L26: =-('SA30'!P48) -> 0
A27: NET CASH FROM/(USED) INVESTING ACTIVITIES | C27: =+C21+C23+C24+C26 -> 4251 | D27: =+D21+D23+D24+D26 -> 0 | E27: 38283 | F27: -352291.64 | G27: -458099607 | H27: -458099607 | I27: 0 | J27: 8000000 | K27: 160000 | L27: 160000
A29: CASH FLOWS FROM FINANCING ACTIVITIES
A30: Receipts
A31: Short term loans | J31: ='SA30'!N26 -> 0 | K31: ='SA30'!O26 -> 0 | L31: ='SA30'!P26 -> 0
A32: Borrowing long term/refinancing | J32: ='SA30'!N27 -> 0 | K32: ='SA30'!O27 -> 0 | L32: ='SA30'!P27 -> 0
A33: Increase (decrease) in consumer deposits | C33: 0 | D33: 0 | E33: 0 | F33: 441107.92 | G33: 0 | H33: 0 | I33: 0 | J33: ='SA30'!N28 -> -458640 | K33: ='SA30'!O28 -> -476985 | L33: ='SA30'!P28 -> -496064
A34: Payments
A35: Repayment of borrowing | C35: -468204533 | D35: -392431488 | E35: -328250495 | F35: 0 | G35: 0 | H35: 0 | I35: 0 | J35: =-('SA30'!N49) -> 0 | K35: =-('SA30'!O49) -> 0 | L35: =-('SA30'!P49) -> 0
A36: NET CASH FROM/(USED) FINANCING ACTIVITIES | C36: =SUM(C31:C33)+C35 -> -468204533 | D36: =SUM(D31:D33)+D35 -> -392431488 | E36: -328250495 | F36: 441107.92 | G36: 0 | H36: 0 | I36: 0 | J36: -458640 | K36: -476985 | L36: -496064
A38: NET INCREASE/ (DECREASE) IN CASH HELD | C38: =C17+C27+C36 -> -161569415 | D38: =D17+D27+D36 -> 61090652 | E38: 115144516 | F38: 117115606.6 | G38: 148451347.4 | H38: 148451347.4 | I38: -690109395.1 | J38: 654925231.4 | K38: 634858120.8 | L38: 507971824.2
A39: Cash/cash equivalents at the year begin: | B39: 2 | C39: 363492494 | D39: 202092647 | E39: 263183299 | F39: 322605893 | G39: 377919326 | H39: 526370673.4 | I39: 0 | J39: ='SA30'!N54 -> 51208935 | K39: =J40 -> 706134166.4 | L39: =K40 -> 1340992287
A40: Cash/cash equivalents at the year end: | B40: 2 | C40: =C38+C39 -> 201923079 | D40: =D38+D39 -> 263183299 | E40: =E38+E39 -> 378327815 | F40: =F38+F39 -> 439721499.6 | G40: 526370673.4 | H40: 674822020.8 | I40: -690109395.1 | J40: 706134166.4 | K40: 1340992287 | L40: 1848964111
A41: =head27a -> References
A42: 1. Local/District municipalities to include transfers from/to District/Local Municipalities
A43: 2. Cash equivalents includes investments with maturities of 3 months or less
A44: 3. The MTREF is populated directly from SA30.
A45: Total receipts | C45: =SUM(C6:C12)+SUM(C21:C23) -> 1403189484 | D45: 1256504220 | E45: 1433712631 | F45: 1128435248 | G45: 1448424829 | H45: 1448424829 | I45: 0 | J45: 1441793369 | K45: 1418925888 | L45: 1374143882
A46: Total payments | C46: =SUM(C14:C16)+C26 -> -1096554366 | D46: =SUM(D14:D16)+D26 -> -802982080 | E46: -990317620 | F46: -1011408458 | G46: -1301473482 | H46: -1301473482 | I46: -690109395.1 | J46: -786409498 | K46: -783590782 | L46: -865675994
C47: =C45+C46 -> 306635118 | D47: =D45+D46 -> 453522140 | E47: 443395011 | F47: 117026790.3 | G47: 146951347.4 | H47: 146951347.4 | I47: -690109395.1 | J47: 655383871.4 | K47: 635335105.8 | L47: 508467888.2
A48: Borrowings & investments & c.deposits | C48: =C24+C32+C33 -> 0 | D48: =D24+D32+D33 -> 0 | E48: 0 | F48: 88816.28 | G48: 1500000 | H48: 1500000 | I48: 0 | J48: -458640 | K48: -476985 | L48: -496064
A49: =A35 -> Repayment of borrowing | C49: =C35 -> -468204533 | D49: =D35 -> -392431488 | E49: -328250495 | F49: 0 | G49: 0 | H49: 0 | I49: =I35 -> 0 | J49: 0 | K49: 0 | L49: 0
C50: =C47+C48+C49 -> -161569415 | D50: =D47+D48+D49 -> 61090652 | E50: 115144516 | F50: 117115606.6 | G50: 148451347.4 | H50: 148451347.4 | I50: -690109395.1 | J50: 654925231.4 | K50: 634858120.8 | L50: 507971824.2
C51: =C38-C50 -> 0 | D51: 0 | E51: 0 | F51: 0 | G51: 0 | H51: 0 | I51: 0 | J51: 0 | K51: 0 | L51: 0

Sheet A8-ResRecon
A1: =muni&" - "&Approve8 -> DC13 Chris Hani - Table A8 Cash backed reserves/accumulated surplus reconciliation
A2: =desc -> Description | B2: =head27 -> Ref | C2: =head1b -> 2016/17 | D2: =head1A -> 2017/18 | E2: =Head1 -> 2018/19 | F2: =Head2 -> Current Year 2019/20 | J2: =Head3 -> 2020/21 Medium Term Revenue & Expenditure Framework
A3: R thousand | C3: =Head5 -> Audited Outcome | D3: =Head5 -> Audited Outcome | E3: =Head5 -> Audited Outcome | F3: =Head6 -> Original Budget | G3: =Head7 -> Adjusted Budget | H3: =Head8 -> Full Year Forecast | I3: =Head5b -> Pre-audit outcome | J3: =Head9 -> Budget Year 2020/21 | K3: =Head10 -> Budget Year +1 2021/22 | L3: =Head11 -> Budget Year +2 2022/23
A4: Cash and investments available
A5: =LEFT('A7-CFlow'!A40,37) -> Cash/cash equivalents at the year end | B5: 1 | C5: ='A7-CFlow'!C40 -> 201923079 | D5: ='A7-CFlow'!D40 -> 263183299 | E5: ='A7-CFlow'!E40 -> 378327815 | F5: ='A7-CFlow'!F40 -> 439721499.6 | G5: ='A7-CFlow'!G40 -> 526370673.4 | H5: ='A7-CFlow'!H40 -> 674822020.8 | I5: ='A7-CFlow'!I40 -> -690109395.1 | J5: ='A7-CFlow'!J40 -> 706134166.4 | K5: ='A7-CFlow'!K40 -> 1340992287 | L5: ='A7-CFlow'!L40 -> 1848964111
A6: Other current investments > 90 days | C6: ='A6-FinPos'!C6+'A6-FinPos'!C7-'A6-FinPos'!C29-'A8-ResRecon'!C5 -> 169568 | D6: ='A6-FinPos'!D6+'A6-FinPos'!D7-'A6-FinPos'!D29-'A8-ResRecon'!D5 -> 0 | E6: ='A6-FinPos'!E6+'A6-FinPos'!E7-'A6-FinPos'!E29-'A8-ResRecon'!E5 -> -1 | F6: ='A6-FinPos'!F6+'A6-FinPos'!F7-'A6-FinPos'!F29-'A8-ResRecon'!F5 -> -117115606.6 | G6: ='A6-FinPos'!G6+'A6-FinPos'!G7-'A6-FinPos'!G29-'A8-ResRecon'!G5 -> 40179326.58 | H6: ='A6-FinPos'!H6+'A6-FinPos'!H7-'A6-FinPos'!H29-'A8-ResRecon'!H5 -> -108272020.8 | I6: ='A6-FinPos'!I6+'A6-FinPos'!I7-'A6-FinPos'!I29-'A8-ResRecon'!I5 -> 763215879.9 | J6: ='A6-FinPos'!J6+'A6-FinPos'!J7-'A6-FinPos'!J29-'A8-ResRecon'!J5 -> -91626952.4 | K6: ='A6-FinPos'!K6+'A6-FinPos'!K7-'A6-FinPos'!K29-'A8-ResRecon'!K5 -> -671038490.2 | L6: ='A6-FinPos'!L6+'A6-FinPos'!L7-'A6-FinPos'!L29-'A8-ResRecon'!L5 -> -1152212162
A7: ='A6-FinPos'!A14&" - "&'A6-FinPos'!A16 -> Non current assets - Investments | B7: 1 | C7: ='A6-FinPos'!C16 -> 0 | D7: ='A6-FinPos'!D16 -> 0 | E7: ='A6-FinPos'!E16 -> 0 | F7: ='A6-FinPos'!F16 -> 0 | G7: ='A6-FinPos'!G16 -> 0 | H7: ='A6-FinPos'!H16 -> 0 | I7: ='A6-FinPos'!I16 -> 0 | J7: ='A6-FinPos'!J16 -> 0 | K7: ='A6-FinPos'!K16 -> 0 | L7: ='A6-FinPos'!L16 -> 0
A8: Cash and investments available: | C8: =SUM(C5:C7) -> 202092647 | D8: =SUM(D5:D7) -> 263183299 | E8: 378327814 | F8: 322605893 | G8: 566550000 | H8: 566550000 | I8: 73106484.8 | J8: 614507214 | K8: 669953797 | L8: 696751949
A10: Application of cash and investments
A11: ='SA3'!A37 -> Unspent conditional transfers | C11: ='SA3'!C37 -> 0 | D11: ='SA3'!D37 -> 87452932.22 | E11: ='SA3'!E37 -> 307614604.1 | F11: ='SA3'!F37 -> 0 | G11: ='SA3'!G37 -> 307614605 | H11: ='SA3'!H37 -> 307614605 | I11: ='SA3'!I37 -> 100621959.3 | J11: ='SA3'!J37 -> 0 | K11: ='SA3'!K37 -> 0 | L11: ='SA3'!L37 -> 0
A12: Unspent borrowing | C12: ='SA17'!C67 -> 0 | D12: ='SA17'!D67 -> 0 | E12: ='SA17'!E67 -> 0 | F12: ='SA17'!F67 -> 0 | G12: ='SA17'!G67 -> 0 | H12: ='SA17'!H67 -> 0 | J12: ='SA17'!I67 -> 0 | K12: ='SA17'!J67 -> 0 | L12: ='SA17'!K67 -> 0
A13: Statutory requirements | B13: 2 | G13: -9990000 | H13: -9990000 | J13: -9990000 | K13: -9990000 | L13: -9990000
A14: Other working capital requirements | B14: 3 | C14: =-C32 -> 191550997 | D14: =-D32 -> -706752625.1 | E14: -874999362.5 | F14: =-F32 -> 118551774 | G14: 44878011 | H14: 44878011 | I14: 188771078.4 | J14: 78806946 | K14: 42945338 | L14: 29111875
A15: Other provisions | G15: 12797214 | H15: 12797214 | J15: 12797214 | K15: 12797214 | L15: 12797214
A16: Long term investments committed | B16: 4 | C16: =C42 -> 0 | D16: =D42 -> 0 | E16: 0 | F16: 0 | G16: 0 | H16: 0 | I16: 0 | J16: 0 | K16: 0 | L16: 0
A17: Reserves to be backed by cash/investments | B17: 5 | C17: =SUM(C44:C48) -> 0 | D17: 0 | E17: 0 | F17: 0 | G17: 0 | H17: 0 | I17: 2690061121 | J17: 0 | K17: 0 | L17: 0
A18: ="Total "&A10&":" -> Total Application of cash and investments: | C18: =SUM(C11:C17) -> 191550997 | D18: =SUM(D11:D17) -> -619299692.9 | E18: -567384758.4 | F18: 118551774 | G18: 355299830 | H18: 355299830 | I18: 2979454159 | J18: 81614160 | K18: 45752552 | L18: 31919089
A19: Surplus(shortfall) | C19: =C8-C18 -> 10541650 | D19: =D8-D18 -> 882482991.9 | E19: 945712572.4 | F19: 204054119 | G19: 211250170 | H19: 211250170 | I19: -2906347674 | J19: 532893054 | K19: 624201245 | L19: 664832860
A20: =head27a -> References
A21: 1. Must reconcile with Budgeted Cash Flows
A22: 2. For example: VAT, taxation
A23: 3. Council approval for policy required - include sufficient working capital (e.g. allowing for a % of current debtors > 90 days as uncollectable)
A24: 4. For example: sinking fund requirements for borrowing
A25: 5. Council approval required for each reserve created and basis of cash backing of reserves
A28: Other working capital requirements
A29: Debtors | C29: =IF(ISERROR(ROUND(C35*C36,-3)),0,(ROUND(C35*C36,-3))) -> 94117000 | D29: =IF(ISERROR(ROUND(D35*D36,-3)),0,(ROUND(D35*D36,-3))) -> 60215000 | E29: 273594000 | F29: 48990000 | G29: 188207000 | H29: 188207000 | I29: 0 | J29: 111504000 | K29: 171705000 | L29: 178558000
A31: Creditors due | C31: ='SA3'!C35+'SA3'!C36 -> 285667997 | D31: ='SA3'!D35+'SA3'!D36 -> -646537625.1 | E31: ='SA3'!E35+'SA3'!E36 -> -601405362.5 | F31: ='SA3'!F35+'SA3'!F36 -> 167541774 | G31: ='SA3'!G35+'SA3'!G36 -> 233085011 | H31: ='SA3'!H35+'SA3'!H36 -> 233085011 | I31: ='SA3'!I35+'SA3'!I36 -> 188771078.4 | J31: ='SA3'!J35+'SA3'!J36 -> 190310946 | K31: ='SA3'!K35+'SA3'!K36 -> 214650338 | L31: ='SA3'!L35+'SA3'!L36 -> 207669875
A32: Total | C32: =C29-C31 -> -191550997 | D32: =D29-D31 -> 706752625.1 | E32: 874999362.5 | F32: -118551774 | G32: -44878011 | H32: -44878011 | I32: -188771078.4 | J32: -78806946 | K32: -42945338 | L32: -29111875
A34: Debtors collection assumptions
A35: Balance outstanding - debtors | C35: ='A6-FinPos'!C8+'A6-FinPos'!C9+'A6-FinPos'!C15 -> 312196369 | D35: ='A6-FinPos'!D8+'A6-FinPos'!D9+'A6-FinPos'!D15 -> 178280932 | E35: ='A6-FinPos'!E8+'A6-FinPos'!E9+'A6-FinPos'!E15 -> 462515958 | F35: ='A6-FinPos'!F8+'A6-FinPos'!F9+'A6-FinPos'!F15 -> 154262026 | G35: ='A6-FinPos'!G8+'A6-FinPos'!G9+'A6-FinPos'!G15 -> 291702644 | H35: ='A6-FinPos'!H8+'A6-FinPos'!H9+'A6-FinPos'!H15 -> 291702644 | I35: ='A6-FinPos'!I8+'A6-FinPos'!I9+'A6-FinPos'!I15 -> 1677280106 | J35: ='A6-FinPos'!J8+'A6-FinPos'!J9+'A6-FinPos'!J15 -> 401871163 | K35: ='A6-FinPos'!K8+'A6-FinPos'!K9+'A6-FinPos'!K15 -> 605633480 | L35: ='A6-FinPos'!L8+'A6-FinPos'!L9+'A6-FinPos'!L15 -> 629858820
A36: Estimate of debtors collection rate | C36: =IF(ISERROR('SA10'!D10),0,('SA10'!D10)) -> 0.3014685288 | D36: =IF(ISERROR('SA10'!E10),0,('SA10'!E10)) -> 0.3377506677 | E36: =IF(ISERROR('SA10'!F10),0,('SA10'!F10)) -> 0.5915342593 | F36: =IF(ISERROR('SA10'!G10),0,('SA10'!G10)) -> 0.3175782489 | G36: =IF(ISERROR('SA10'!H10),0,('SA10'!H10)) -> 0.6451999366 | H36: =IF(ISERROR('SA10'!I10),0,('SA10'!I10)) -> 0.6451999366 | I36: =IF(ISERROR('SA10'!J10),0,('SA10'!J10)) -> 0 | J36: =IF(ISERROR('SA10'!K10),0,('SA10'!K10)) -> 0.2774622475 | K36: =IF(ISERROR('SA10'!L10),0,('SA10'!L10)) -> 0.2835138633 | L36: =IF(ISERROR('SA10'!M10),0,('SA10'!M10)) -> 0.2834881669
K39: `
A40: =A16 -> Long term investments committed
A41: Balance (Insert description; eg sinking fund)
C42: =SUM(C41:C41) -> 0 | D42: 0 | E42: 0 | F42: 0 | G42: 0 | H42: 0 | I42: 0 | J42: 0 | K42: 0 | L42: 0
A43: =A17 -> Reserves to be backed by cash/investments
A44: ='SA3'!A65 -> Housing Development Fund | C44: ='SA3'!C65 -> 0 | D44: ='SA3'!D65 -> 0 | E44: ='SA3'!E65 -> 0 | F44: ='SA3'!F65 -> 0 | G44: ='SA3'!G65 -> 0 | H44: ='SA3'!H65 -> 0 | I44: ='SA3'!I65 -> 0 | J44: ='SA3'!J65 -> 0 | K44: ='SA3'!K65 -> 0 | L44: ='SA3'!L65 -> 0
A45: ='SA3'!A66 -> Capital replacement | C45: ='SA3'!C66 -> 0 | D45: ='SA3'!D66 -> 0 | E45: ='SA3'!E66 -> 0 | F45: ='SA3'!F66 -> 0 | G45: ='SA3'!G66 -> 0 | H45: ='SA3'!H66 -> 0 | I45: ='SA3'!I66 -> 2690061121 | J45: ='SA3'!J66 -> 0 | K45: ='SA3'!K66 -> 0 | L45: ='SA3'!L66 -> 0
A46: ='SA3'!A67 -> Self-insurance | C46: ='SA3'!C67 -> 0 | D46: ='SA3'!D67 -> 0 | E46: ='SA3'!E67 -> 0 | F46: ='SA3'!F67 -> 0 | G46: ='SA3'!G67 -> 0 | H46: ='SA3'!H67 -> 0 | I46: ='SA3'!I67 -> 0 | J46: ='SA3'!J67 -> 0 | K46: ='SA3'!K67 -> 0 | L46: ='SA3'!L67 -> 0
A47: ='SA3'!A68 -> Other reserves | C47: ='SA3'!C68 -> 0 | D47: ='SA3'!D68 -> 0 | E47: ='SA3'!E68 -> 0 | F47: ='SA3'!F68 -> 0 | G47: ='SA3'!G68 -> 0 | H47: ='SA3'!H68 -> 0 | I47: ='SA3'!I68 -> 0 | J47: ='SA3'!J68 -> 0 | K47: ='SA3'!K68 -> 0 | L47: ='SA3'!L68 -> 0
A48: ='SA3'!A69 -> Revaluation | C48: ='SA3'!C69 -> 0 | D48: ='SA3'!D69 -> 0 | E48: ='SA3'!E69 -> 0 | F48: ='SA3'!F69 -> 0 | G48: ='SA3'!G69 -> 0 | H48: ='SA3'!H69 -> 0 | I48: ='SA3'!I69 -> 0 | J48: ='SA3'!J69 -> 0 | K48: ='SA3'!K69 -> 0 | L48: ='SA3'!L69 -> 0
C49: =SUM(C44:C48) -> 0 | D49: 0 | E49: 0 | F49: 0 | G49: 0 | H49: 0 | I49: 2690061121 | J49: 0 | K49: 0 | L49: 0

Sheet A9-Asset
A1: =muni&" - "&Approve9 -> DC13 Chris Hani - Table A9 Asset Management
A2: =desc -> Description | B2: =head27 -> Ref | C2: =head1b -> 2016/17 | D2: =head1A -> 2017/18 | E2: =Head1 -> 2018/19 | F2: =Head2 -> Current Year 2019/20 | I2: =Head3 -> 2020/21 Medium Term Revenue & Expenditure Framework
A3: R thousand | C3: =Head5 -> Audited Outcome | D3: =Head5 -> Audited Outcome | E3: =Head5 -> Audited Outcome | F3: =Head6 -> Original Budget | G3: =Head7 -> Adjusted Budget | H3: =Head8 -> Full Year Forecast | I3: =Head9 -> Budget Year 2020/21 | J3: =Head10 -> Budget Year +1 2021/22 | K3: =Head11 -> Budget Year +2 2022/23
A4: CAPITAL EXPENDITURE
A5: Total New Assets | B5: 1 | C5: =C15+C18+C19+C22+C25+C26+SUM(C29:C35) -> 672135034 | D5: =D15+D18+D19+D22+D25+D26+SUM(D29:D35) -> 392431488 | E5: 328250030 | F5: 366887262 | G5: 434230166 | H5: 434230166 | I5: 608389000 | J5: 545624481 | K5: 388246000
A6: Roads Infrastructure | C6: =SA34a!C7 -> 20300520 | D6: =SA34a!D7 -> 0 | E6: =SA34a!E7 -> 0 | F6: =SA34a!F7 -> 0 | G6: =SA34a!G7 -> 0 | H6: =SA34a!H7 -> 0 | I6: =SA34a!I7 -> 1000000 | J6: =SA34a!J7 -> 500000 | K6: =SA34a!K7 -> 0
A7: Storm water Infrastructure | C7: =SA34a!C12 -> 0 | D7: =SA34a!D12 -> 0 | E7: =SA34a!E12 -> 0 | F7: =SA34a!F12 -> 0 | G7: =SA34a!G12 -> 0 | H7: =SA34a!H12 -> 0 | I7: =SA34a!I12 -> 700000 | J7: =SA34a!J12 -> 300000 | K7: =SA34a!K12 -> 0
A8: Electrical Infrastructure | C8: =SA34a!C16 -> 0 | D8: =SA34a!D16 -> 0 | E8: =SA34a!E16 -> 0 | F8: =SA34a!F16 -> 0 | G8: =SA34a!G16 -> 0 | H8: =SA34a!H16 -> 0 | I8: =SA34a!I16 -> 0 | J8: =SA34a!J16 -> 0 | K8: =SA34a!K16 -> 0
A9: Water Supply Infrastructure | C9: =SA34a!C26 -> 74298 | D9: =SA34a!D26 -> 367798030 | E9: =SA34a!E26 -> 7836930 | F9: =SA34a!F26 -> 300856262 | G9: =SA34a!G26 -> 332632817 | H9: =SA34a!H26 -> 332632817 | I9: =SA34a!I26 -> 563486000 | J9: =SA34a!J26 -> 488074481 | K9: =SA34a!K26 -> 375646000
A10: Sanitation Infrastructure | C10: =SA34a!C37 -> 0 | D10: =SA34a!D37 -> 4763590 | E10: =SA34a!E37 -> 298553326 | F10: =SA34a!F37 -> 66031000 | G10: =SA34a!G37 -> 66779775 | H10: =SA34a!H37 -> 66779775 | I10: =SA34a!I37 -> 43203000 | J10: =SA34a!J37 -> 56750000 | K10: =SA34a!K37 -> 12600000
A11: Solid Waste Infrastructure | C11: =SA34a!C44 -> 0 | D11: =SA34a!D44 -> 0 | E11: =SA34a!E44 -> 0 | F11: =SA34a!F44 -> 0 | G11: =SA34a!G44 -> 0 | H11: =SA34a!H44 -> 0 | I11: =SA34a!I44 -> 0 | J11: =SA34a!J44 -> 0 | K11: =SA34a!K44 -> 0
A12: Rail Infrastructure | C12: =SA34a!C52 -> 0 | D12: =SA34a!D52 -> 0 | E12: =SA34a!E52 -> 0 | F12: =SA34a!F52 -> 0 | G12: =SA34a!G52 -> 0 | H12: =SA34a!H52 -> 0 | I12: =SA34a!I52 -> 0 | J12: =SA34a!J52 -> 0 | K12: =SA34a!K52 -> 0
A13: Coastal Infrastructure | C13: =SA34a!C62 -> 0 | D13: =SA34a!D62 -> 0 | E13: =SA34a!E62 -> 0 | F13: =SA34a!F62 -> 0 | G13: =SA34a!G62 -> 0 | H13: =SA34a!H62 -> 0 | I13: =SA34a!I62 -> 0 | J13: =SA34a!J62 -> 0 | K13: =SA34a!K62 -> 0
A14: Information and Communication Infrastructure | C14: =SA34a!C68 -> 0 | D14: =SA34a!D68 -> 0 | E14: =SA34a!E68 -> 0 | F14: =SA34a!F68 -> 0 | G14: =SA34a!G68 -> 0 | H14: =SA34a!H68 -> 0 | I14: =SA34a!I68 -> 0 | J14: =SA34a!J68 -> 0 | K14: =SA34a!K68 -> 0
A15: Infrastructure | C15: =SUM(C6:C14) -> 20374818 | D15: =SUM(D6:D14) -> 372561620 | E15: 306390256 | F15: 366887262 | G15: 399412592 | H15: 399412592 | I15: 608389000 | J15: 545624481 | K15: 388246000
A16: Community Facilities | C16: =SA34a!C75 -> 0 | D16: =SA34a!D75 -> 0 | E16: =SA34a!E75 -> 0 | F16: =SA34a!F75 -> 0 | G16: =SA34a!G75 -> 0 | H16: =SA34a!H75 -> 0 | I16: =SA34a!I75 -> 0 | J16: =SA34a!J75 -> 0 | K16: =SA34a!K75 -> 0
A17: Sport and Recreation Facilities | C17: =SA34a!C98 -> 0 | D17: =SA34a!D98 -> 0 | E17: =SA34a!E98 -> 0 | F17: =SA34a!F98 -> 0 | G17: =SA34a!G98 -> 0 | H17: =SA34a!H98 -> 0 | I17: =SA34a!I98 -> 0 | J17: =SA34a!J98 -> 0 | K17: =SA34a!K98 -> 0
A18: Community Assets | C18: =SUM(C16:C17) -> 0 | D18: =SUM(D16:D17) -> 0 | E18: 0 | F18: 0 | G18: 0 | H18: 0 | I18: 0 | J18: 0 | K18: 0
A19: Heritage Assets | C19: =SA34a!C103 -> 0 | D19: =SA34a!D103 -> 0 | E19: =SA34a!E103 -> 0 | F19: =SA34a!F103 -> 0 | G19: =SA34a!G103 -> 0 | H19: =SA34a!H103 -> 0 | I19: =SA34a!I103 -> 0 | J19: =SA34a!J103 -> 0 | K19: =SA34a!K103 -> 0
A20: Revenue Generating | C20: =SA34a!C111 -> 0 | D20: =SA34a!D111 -> 0 | E20: =SA34a!E111 -> 0 | F20: =SA34a!F111 -> 0 | G20: =SA34a!G111 -> 0 | H20: =SA34a!H111 -> 0 | I20: =SA34a!I111 -> 0 | J20: =SA34a!J111 -> 0 | K20: =SA34a!K111 -> 0
A21: Non-revenue Generating | C21: =SA34a!C114 -> 0 | D21: =SA34a!D114 -> 0 | E21: =SA34a!E114 -> 0 | F21: =SA34a!F114 -> 0 | G21: =SA34a!G114 -> 0 | H21: =SA34a!H114 -> 0 | I21: =SA34a!I114 -> 0 | J21: =SA34a!J114 -> 0 | K21: =SA34a!K114 -> 0
A22: Investment properties | C22: =SUM(C20:C21) -> 0 | D22: =SUM(D20:D21) -> 0 | E22: 0 | F22: 0 | G22: 0 | H22: 0 | I22: 0 | J22: 0 | K22: 0
A23: Operational Buildings | C23: =SA34a!C119 -> 601255235 | D23: =SA34a!D119 -> 0 | E23: =SA34a!E119 -> 0 | F23: =SA34a!F119 -> 0 | G23: =SA34a!G119 -> 22261327 | H23: =SA34a!H119 -> 22261327 | I23: =SA34a!I119 -> 0 | J23: =SA34a!J119 -> 0 | K23: =SA34a!K119 -> 0
A24: Housing | C24: =SA34a!C131 -> 0 | D24: =SA34a!D131 -> 0 | E24: =SA34a!E131 -> 0 | F24: =SA34a!F131 -> 0 | G24: =SA34a!G131 -> 0 | H24: =SA34a!H131 -> 0 | I24: =SA34a!I131 -> 0 | J24: =SA34a!J131 -> 0 | K24: =SA34a!K131 -> 0
A25: Other Assets | C25: =SUM(C23:C24) -> 601255235 | D25: =SUM(D23:D24) -> 0 | E25: 0 | F25: 0 | G25: 22261327 | H25: 22261327 | I25: 0 | J25: 0 | K25: 0
A26: Biological or Cultivated Assets | C26: =SA34a!C136 -> 0 | D26: =SA34a!D136 -> 0 | E26: =SA34a!E136 -> 0 | F26: =SA34a!F136 -> 0 | G26: =SA34a!G136 -> 0 | H26: =SA34a!H136 -> 0 | I26: =SA34a!I136 -> 0 | J26: =SA34a!J136 -> 0 | K26: =SA34a!K136 -> 0
A27: Servitudes | C27: =SA34a!C140 -> 0 | D27: =SA34a!D140 -> 0 | E27: =SA34a!E140 -> 0 | F27: =SA34a!F140 -> 0 | G27: =SA34a!G140 -> 0 | H27: =SA34a!H140 -> 0 | I27: =SA34a!I140 -> 0 | J27: =SA34a!J140 -> 0 | K27: =SA34a!K140 -> 0
A28: Licences and Rights | C28: =SA34a!C141 -> 2929670 | D28: =SA34a!D141 -> 80314 | E28: =SA34a!E141 -> 14104 | F28: =SA34a!F141 -> 0 | G28: =SA34a!G141 -> 0 | H28: =SA34a!H141 -> 0 | I28: =SA34a!I141 -> 0 | J28: =SA34a!J141 -> 0 | K28: =SA34a!K141 -> 0
A29: Intangible Assets | C29: =SUM(C27:C28) -> 2929670 | D29: =SUM(D27:D28) -> 80314 | E29: 14104 | F29: 0 | G29: 0 | H29: 0 | I29: 0 | J29: 0 | K29: 0
A30: Computer Equipment | C30: =SA34a!C149 -> 0 | D30: =SA34a!D149 -> 0 | E30: =SA34a!E149 -> 0 | F30: =SA34a!F149 -> 0 | G30: =SA34a!G149 -> 0 | H30: =SA34a!H149 -> 0 | I30: =SA34a!I149 -> 0 | J30: =SA34a!J149 -> 0 | K30: =SA34a!K149 -> 0
A31: Furniture and Office Equipment | C31: =SA34a!C152 -> 12078591 | D31: =SA34a!D152 -> 8422131 | E31: =SA34a!E152 -> 2609803 | F31: =SA34a!F152 -> 0 | G31: =SA34a!G152 -> 12556247 | H31: =SA34a!H152 -> 12556247 | I31: =SA34a!I152 -> 0 | J31: =SA34a!J152 -> 0 | K31: =SA34a!K152 -> 0
A32: Machinery and Equipment | C32: =SA34a!C155 -> 0 | D32: =SA34a!D155 -> 0 | E32: =SA34a!E155 -> 1171000 | F32: =SA34a!F155 -> 0 | G32: =SA34a!G155 -> 0 | H32: =SA34a!H155 -> 0 | I32: =SA34a!I155 -> 0 | J32: =SA34a!J155 -> 0 | K32: =SA34a!K155 -> 0
A33: Transport Assets | C33: =SA34a!C158 -> 17503778 | D33: =SA34a!D158 -> 11367423 | E33: =SA34a!E158 -> 18064867 | F33: =SA34a!F158 -> 0 | G33: =SA34a!G158 -> 0 | H33: =SA34a!H158 -> 0 | I33: =SA34a!I158 -> 0 | J33: =SA34a!J158 -> 0 | K33: =SA34a!K158 -> 0
A34: Land | C34: =SA34a!C161 -> 17992942 | D34: =SA34a!D161 -> 0 | E34: =SA34a!E161 -> 0 | F34: =SA34a!F161 -> 0 | G34: =SA34a!G161 -> 0 | H34: =SA34a!H161 -> 0 | I34: =SA34a!I161 -> 0 | J34: =SA34a!J161 -> 0 | K34: =SA34a!K161 -> 0
A35: Zoo's, Marine and Non-biological Animals | C35: =SA34a!C164 -> 0 | D35: =SA34a!D164 -> 0 | E35: =SA34a!E164 -> 0 | F35: =SA34a!F164 -> 0 | G35: =SA34a!G164 -> 0 | H35: =SA34a!H164 -> 0 | I35: =SA34a!I164 -> 0 | J35: =SA34a!J164 -> 0 | K35: =SA34a!K164 -> 0
A37: Total Renewal of Existing Assets | B37: 2 | C37: =C47+C50+C51+C54+C57+C58+SUM(C61:C67) -> 0 | D37: =D47+D50+D51+D54+D57+D58+SUM(D61:D67) -> 0 | E37: 0 | F37: 0 | G37: 0 | H37: 0 | I37: 0 | J37: 0 | K37: 0
A38: Roads Infrastructure | C38: =SA34b!C7 -> 0 | D38: =SA34b!D7 -> 0 | E38: =SA34b!E7 -> 0 | F38: =SA34b!F7 -> 0 | G38: =SA34b!G7 -> 0 | H38: =SA34b!H7 -> 0 | I38: =SA34b!I7 -> 0 | J38: =SA34b!J7 -> 0 | K38: =SA34b!K7 -> 0
A39: Storm water Infrastructure | C39: =SA34b!C12 -> 0 | D39: =SA34b!D12 -> 0 | E39: =SA34b!E12 -> 0 | F39: =SA34b!F12 -> 0 | G39: =SA34b!G12 -> 0 | H39: =SA34b!H12 -> 0 | I39: =SA34b!I12 -> 0 | J39: =SA34b!J12 -> 0 | K39: =SA34b!K12 -> 0
A40: Electrical Infrastructure | C40: =SA34b!C16 -> 0 | D40: =SA34b!D16 -> 0 | E40: =SA34b!E16 -> 0 | F40: =SA34b!F16 -> 0 | G40: =SA34b!G16 -> 0 | H40: =SA34b!H16 -> 0 | I40: =SA34b!I16 -> 0 | J40: =SA34b!J16 -> 0 | K40: =SA34b!K16 -> 0
A41: Water Supply Infrastructure | C41: =SA34b!C26 -> 0 | D41: =SA34b!D26 -> 0 | E41: =SA34b!E26 -> 0 | F41: =SA34b!F26 -> 0 | G41: =SA34b!G26 -> 0 | H41: =SA34b!H26 -> 0 | I41: =SA34b!I26 -> 0 | J41: =SA34b!J26 -> 0 | K41: =SA34b!K26 -> 0
A42: Sanitation Infrastructure | C42: =SA34b!C37 -> 0 | D42: =SA34b!D37 -> 0 | E42: =SA34b!E37 -> 0 | F42: =SA34b!F37 -> 0 | G42: =SA34b!G37 -> 0 | H42: =SA34b!H37 -> 0 | I42: =SA34b!I37 -> 0 | J42: =SA34b!J37 -> 0 | K42: =SA34b!K37 -> 0
A43: Solid Waste Infrastructure | C43: =SA34b!C44 -> 0 | D43: =SA34b!D44 -> 0 | E43: =SA34b!E44 -> 0 | F43: =SA34b!F44 -> 0 | G43: =SA34b!G44 -> 0 | H43: =SA34b!H44 -> 0 | I43: =SA34b!I44 -> 0 | J43: =SA34b!J44 -> 0 | K43: =SA34b!K44 -> 0
A44: Rail Infrastructure | C44: =SA34b!C52 -> 0 | D44: =SA34b!D52 -> 0 | E44: =SA34b!E52 -> 0 | F44: =SA34b!F52 -> 0 | G44: =SA34b!G52 -> 0 | H44: =SA34b!H52 -> 0 | I44: =SA34b!I52 -> 0 | J44: =SA34b!J52 -> 0 | K44: =SA34b!K52 -> 0
A45: Coastal Infrastructure | C45: =SA34b!C62 -> 0 | D45: =SA34b!D62 -> 0 | E45: =SA34b!E62 -> 0 | F45: =SA34b!F62 -> 0 | G45: =SA34b!G62 -> 0 | H45: =SA34b!H62 -> 0 | I45: =SA34b!I62 -> 0 | J45: =SA34b!J62 -> 0 | K45: =SA34b!K62 -> 0
A46: Information and Communication Infrastructure | C46: =SA34b!C68 -> 0 | D46: =SA34b!D68 -> 0 | E46: =SA34b!E68 -> 0 | F46: =SA34b!F68 -> 0 | G46: =SA34b!G68 -> 0 | H46: =SA34b!H68 -> 0 | I46: =SA34b!I68 -> 0 | J46: =SA34b!J68 -> 0 | K46: =SA34b!K68 -> 0
A47: Infrastructure | C47: =SUM(C38:C46) -> 0 | D47: =SUM(D38:D46) -> 0 | E47: 0 | F47: 0 | G47: 0 | H47: 0 | I47: 0 | J47: 0 | K47: 0
A48: Community Facilities | C48: =SA34b!C75 -> 0 | D48: =SA34b!D75 -> 0 | E48: =SA34b!E75 -> 0 | F48: =SA34b!F75 -> 0 | G48: =SA34b!G75 -> 0 | H48: =SA34b!H75 -> 0 | I48: =SA34b!I75 -> 0 | J48: =SA34b!J75 -> 0 | K48: =SA34b!K75 -> 0
A49: Sport and Recreation Facilities | C49: =SA34b!C98 -> 0 | D49: =SA34b!D98 -> 0 | E49: =SA34b!E98 -> 0 | F49: =SA34b!F98 -> 0 | G49: =SA34b!G98 -> 0 | H49: =SA34b!H98 -> 0 | I49: =SA34b!I98 -> 0 | J49: =SA34b!J98 -> 0 | K49: =SA34b!K98 -> 0
A50: Community Assets | C50: =SUM(C48:C49) -> 0 | D50: =SUM(D48:D49) -> 0 | E50: 0 | F50: 0 | G50: 0 | H50: 0 | I50: 0 | J50: 0 | K50: 0
A51: Heritage Assets | C51: =SA34b!C103 -> 0 | D51: =SA34b!D103 -> 0 | E51: =SA34b!E103 -> 0 | F51: =SA34b!F103 -> 0 | G51: =SA34b!G103 -> 0 | H51: =SA34b!H103 -> 0 | I51: =SA34b!I103 -> 0 | J51: =SA34b!J103 -> 0 | K51: =SA34b!K103 -> 0
A52: Revenue Generating | C52: =SA34b!C111 -> 0 | D52: =SA34b!D111 -> 0 | E52: =SA34b!E111 -> 0 | F52: =SA34b!F111 -> 0 | G52: =SA34b!G111 -> 0 | H52: =SA34b!H111 -> 0 | I52: =SA34b!I111 -> 0 | J52: =SA34b!J111 -> 0 | K52: =SA34b!K111 -> 0
A53: Non-revenue Generating | C53: =SA34b!C114 -> 0 | D53: =SA34b!D114 -> 0 | E53: =SA34b!E114 -> 0 | F53: =SA34b!F114 -> 0 | G53: =SA34b!G114 -> 0 | H53: =SA34b!H114 -> 0 | I53: =SA34b!I114 -> 0 | J53: =SA34b!J114 -> 0 | K53: =SA34b!K114 -> 0
A54: Investment properties | C54: =SUM(C52:C53) -> 0 | D54: =SUM(D52:D53) -> 0 | E54: 0 | F54: 0 | G54: 0 | H54: 0 | I54: 0 | J54: 0 | K54: 0
A55: Operational Buildings | C55: =SA34b!C119 -> 0 | D55: =SA34b!D119 -> 0 | E55: =SA34b!E119 -> 0 | F55: =SA34b!F119 -> 0 | G55: =SA34b!G119 -> 0 | H55: =SA34b!H119 -> 0 | I55: =SA34b!I119 -> 0 | J55: =SA34b!J119 -> 0 | K55: =SA34b!K119 -> 0
A56: Housing | C56: =SA34b!C131 -> 0 | D56: =SA34b!D131 -> 0 | E56: =SA34b!E131 -> 0 | F56: =SA34b!F131 -> 0 | G56: =SA34b!G131 -> 0 | H56: =SA34b!H131 -> 0 | I56: =SA34b!I131 -> 0 | J56: =SA34b!J131 -> 0 | K56: =SA34b!K131 -> 0
A57: Other Assets | C57: =SUM(C55:C56) -> 0 | D57: =SUM(D55:D56) -> 0 | E57: 0 | F57: 0 | G57: 0 | H57: 0 | I57: 0 | J57: 0 | K57: 0
A58: Biological or Cultivated Assets | C58: =SA34b!C136 -> 0 | D58: =SA34b!D136 -> 0 | E58: =SA34b!E136 -> 0 | F58: =SA34b!F136 -> 0 | G58: =SA34b!G136 -> 0 | H58: =SA34b!H136 -> 0 | I58: =SA34b!I136 -> 0 | J58: =SA34b!J136 -> 0 | K58: =SA34b!K136 -> 0
A59: Servitudes | C59: =SA34b!C140 -> 0 | D59: =SA34b!D140 -> 0 | E59: =SA34b!E140 -> 0 | F59: =SA34b!F140 -> 0 | G59: =SA34b!G140 -> 0 | H59: =SA34b!H140 -> 0 | I59: =SA34b!I140 -> 0 | J59: =SA34b!J140 -> 0 | K59: =SA34b!K140 -> 0
A60: Licences and Rights | C60: =SA34b!C141 -> 0 | D60: =SA34b!D141 -> 0 | E60: =SA34b!E141 -> 0 | F60: =SA34b!F141 -> 0 | G60: =SA34b!G141 -> 0 | H60: =SA34b!H141 -> 0 | I60: =SA34b!I141 -> 0 | J60: =SA34b!J141 -> 0 | K60: =SA34b!K141 -> 0
A61: Intangible Assets | C61: =SUM(C59:C60) -> 0 | D61: =SUM(D59:D60) -> 0 | E61: 0 | F61: 0 | G61: 0 | H61: 0 | I61: 0 | J61: 0 | K61: 0
A62: Computer Equipment | C62: =SA34b!C149 -> 0 | D62: =SA34b!D149 -> 0 | E62: =SA34b!E149 -> 0 | F62: =SA34b!F149 -> 0 | G62: =SA34b!G149 -> 0 | H62: =SA34b!H149 -> 0 | I62: =SA34b!I149 -> 0 | J62: =SA34b!J149 -> 0 | K62: =SA34b!K149 -> 0
A63: Furniture and Office Equipment | C63: =SA34b!C152 -> 0 | D63: =SA34b!D152 -> 0 | E63: =SA34b!E152 -> 0 | F63: =SA34b!F152 -> 0 | G63: =SA34b!G152 -> 0 | H63: =SA34b!H152 -> 0 | I63: =SA34b!I152 -> 0 | J63: =SA34b!J152 -> 0 | K63: =SA34b!K152 -> 0
A64: Machinery and Equipment | C64: =SA34b!C155 -> 0 | D64: =SA34b!D155 -> 0 | E64: =SA34b!E155 -> 0 | F64: =SA34b!F155 -> 0 | G64: =SA34b!G155 -> 0 | H64: =SA34b!H155 -> 0 | I64: =SA34b!I155 -> 0 | J64: =SA34b!J155 -> 0 | K64: =SA34b!K155 -> 0
A65: Transport Assets | C65: =SA34b!C158 -> 0 | D65: =SA34b!D158 -> 0 | E65: =SA34b!E158 -> 0 | F65: =SA34b!F158 -> 0 | G65: =SA34b!G158 -> 0 | H65: =SA34b!H158 -> 0 | I65: =SA34b!I158 -> 0 | J65: =SA34b!J158 -> 0 | K65: =SA34b!K158 -> 0
A66: Land | C66: =SA34b!C161 -> 0 | D66: =SA34b!D161 -> 0 | E66: =SA34b!E161 -> 0 | F66: =SA34b!F161 -> 0 | G66: =SA34b!G161 -> 0 | H66: =SA34b!H161 -> 0 | I66: =SA34b!I161 -> 0 | J66: =SA34b!J161 -> 0 | K66: =SA34b!K161 -> 0
A67: Zoo's, Marine and Non-biological Animals | C67: =SA34b!C164 -> 0 | D67: =SA34b!D164 -> 0 | E67: =SA34b!E164 -> 0 | F67: =SA34b!F164 -> 0 | G67: =SA34b!G164 -> 0 | H67: =SA34b!H164 -> 0 | I67: =SA34b!I164 -> 0 | J67: =SA34b!J164 -> 0 | K67: =SA34b!K164 -> 0
A69: Total Upgrading of Existing Assets | B69: 6 | C69: =C79+C82+C83+C86+C89+C90+SUM(C93:C99) -> 0 | D69: =D79+D82+D83+D86+D89+D90+SUM(D93:D99) -> 0 | E69: 0 | F69: 53524000 | G69: 13113356 | H69: 13113356 | I69: 12115000 | J69: 38445519 | K69: 58700000
A70: Roads Infrastructure | C70: =SA34e!C7 -> 0 | D70: =SA34e!D7 -> 0 | E70: =SA34e!E7 -> 0 | F70: =SA34e!F7 -> 0 | G70: =SA34e!G7 -> 0 | H70: =SA34e!H7 -> 0 | I70: =SA34e!I7 -> 0 | J70: =SA34e!J7 -> 0 | K70: =SA34e!K7 -> 0
A71: Storm water Infrastructure | C71: =SA34e!C12 -> 0 | D71: =SA34e!D12 -> 0 | E71: =SA34e!E12 -> 0 | F71: =SA34e!F12 -> 0 | G71: =SA34e!G12 -> 0 | H71: =SA34e!H12 -> 0 | I71: =SA34e!I12 -> 0 | J71: =SA34e!J12 -> 0 | K71: =SA34e!K12 -> 0
A72: Electrical Infrastructure | C72: =SA34e!C16 -> 0 | D72: =SA34e!D16 -> 0 | E72: =SA34e!E16 -> 0 | F72: =SA34e!F16 -> 0 | G72: =SA34e!G16 -> 0 | H72: =SA34e!H16 -> 0 | I72: =SA34e!I16 -> 0 | J72: =SA34e!J16 -> 0 | K72: =SA34e!K16 -> 0
A73: Water Supply Infrastructure | C73: =SA34e!C26 -> 0 | D73: =SA34e!D26 -> 0 | E73: =SA34e!E26 -> 0 | F73: =SA34e!F26 -> 51037000 | G73: =SA34e!G26 -> 8716356 | H73: =SA34e!H26 -> 8716356 | I73: =SA34e!I26 -> 400000 | J73: =SA34e!J26 -> 18500000 | K73: =SA34e!K26 -> 33500000
A74: Sanitation Infrastructure | C74: =SA34e!C37 -> 0 | D74: =SA34e!D37 -> 0 | E74: =SA34e!E37 -> 0 | F74: =SA34e!F37 -> 2487000 | G74: =SA34e!G37 -> 4397000 | H74: =SA34e!H37 -> 4397000 | I74: =SA34e!I37 -> 11715000 | J74: =SA34e!J37 -> 19945519 | K74: =SA34e!K37 -> 25200000
A75: Solid Waste Infrastructure | C75: =SA34e!C44 -> 0 | D75: =SA34e!D44 -> 0 | E75: =SA34e!E44 -> 0 | F75: =SA34e!F44 -> 0 | G75: =SA34e!G44 -> 0 | H75: =SA34e!H44 -> 0 | I75: =SA34e!I44 -> 0 | J75: =SA34e!J44 -> 0 | K75: =SA34e!K44 -> 0
A76: Rail Infrastructure | C76: =SA34e!C52 -> 0 | D76: =SA34e!D52 -> 0 | E76: =SA34e!E52 -> 0 | F76: =SA34e!F52 -> 0 | G76: =SA34e!G52 -> 0 | H76: =SA34e!H52 -> 0 | I76: =SA34e!I52 -> 0 | J76: =SA34e!J52 -> 0 | K76: =SA34e!K52 -> 0
A77: Coastal Infrastructure | C77: =SA34e!C62 -> 0 | D77: =SA34e!D62 -> 0 | E77: =SA34e!E62 -> 0 | F77: =SA34e!F62 -> 0 | G77: =SA34e!G62 -> 0 | H77: =SA34e!H62 -> 0 | I77: =SA34e!I62 -> 0 | J77: =SA34e!J62 -> 0 | K77: =SA34e!K62 -> 0
A78: Information and Communication Infrastructure | C78: =SA34e!C68 -> 0 | D78: =SA34e!D68 -> 0 | E78: =SA34e!E68 -> 0 | F78: =SA34e!F68 -> 0 | G78: =SA34e!G68 -> 0 | H78: =SA34e!H68 -> 0 | I78: =SA34e!I68 -> 0 | J78: =SA34e!J68 -> 0 | K78: =SA34e!K68 -> 0
A79: Infrastructure | C79: =SUM(C70:C78) -> 0 | D79: 0 | E79: 0 | F79: 53524000 | G79: 13113356 | H79: 13113356 | I79: 12115000 | J79: 38445519 | K79: 58700000
A80: Community Facilities | C80: =SA34e!C75 -> 0 | D80: =SA34e!D75 -> 0 | E80: =SA34e!E75 -> 0 | F80: =SA34e!F75 -> 0 | G80: =SA34e!G75 -> 0 | H80: =SA34e!H75 -> 0 | I80: =SA34e!I75 -> 0 | J80: =SA34e!J75 -> 0 | K80: =SA34e!K75 -> 0
A81: Sport and Recreation Facilities | C81: =SA34e!C98 -> 0 | D81: =SA34e!D98 -> 0 | E81: =SA34e!E98 -> 0 | F81: =SA34e!F98 -> 0 | G81: =SA34e!G98 -> 0 | H81: =SA34e!H98 -> 0 | I81: =SA34e!I98 -> 0 | J81: =SA34e!J98 -> 0 | K81: =SA34e!K98 -> 0
A82: Community Assets | C82: =SUM(C80:C81) -> 0 | D82: 0 | E82: 0 | F82: 0 | G82: 0 | H82: 0 | I82: 0 | J82: 0 | K82: 0
A83: Heritage Assets | C83: =SA34e!C103 -> 0 | D83: =SA34e!D103 -> 0 | E83: =SA34e!E103 -> 0 | F83: =SA34e!F103 -> 0 | G83: =SA34e!G103 -> 0 | H83: =SA34e!H103 -> 0 | I83: =SA34e!I103 -> 0 | J83: =SA34e!J103 -> 0 | K83: =SA34e!K103 -> 0
A84: Revenue Generating | C84: =SA34e!C111 -> 0 | D84: =SA34e!D111 -> 0 | E84: =SA34e!E111 -> 0 | F84: =SA34e!F111 -> 0 | G84: =SA34e!G111 -> 0 | H84: =SA34e!H111 -> 0 | I84: =SA34e!I111 -> 0 | J84: =SA34e!J111 -> 0 | K84: =SA34e!K111 -> 0
A85: Non-revenue Generating | C85: =SA34e!C114 -> 0 | D85: =SA34e!D114 -> 0 | E85: =SA34e!E114 -> 0 | F85: =SA34e!F114 -> 0 | G85: =SA34e!G114 -> 0 | H85: =SA34e!H114 -> 0 | I85: =SA34e!I114 -> 0 | J85: =SA34e!J114 -> 0 | K85: =SA34e!K114 -> 0
A86: Investment properties | C86: =SUM(C84:C85) -> 0 | D86: 0 | E86: 0 | F86: 0 | G86: 0 | H86: 0 | I86: 0 | J86: 0 | K86: 0
A87: Operational Buildings | C87: =SA34e!C119 -> 0 | D87: =SA34e!D119 -> 0 | E87: =SA34e!E119 -> 0 | F87: =SA34e!F119 -> 0 | G87: =SA34e!G119 -> 0 | H87: =SA34e!H119 -> 0 | I87: =SA34e!I119 -> 0 | J87: =SA34e!J119 -> 0 | K87: =SA34e!K119 -> 0
A88: Housing | C88: =SA34e!C131 -> 0 | D88: =SA34e!D131 -> 0 | E88: =SA34e!E131 -> 0 | F88: =SA34e!F131 -> 0 | G88: =SA34e!G131 -> 0 | H88: =SA34e!H131 -> 0 | I88: =SA34e!I131 -> 0 | J88: =SA34e!J131 -> 0 | K88: =SA34e!K131 -> 0
A89: Other Assets | C89: =SUM(C87:C88) -> 0 | D89: 0 | E89: 0 | F89: 0 | G89: 0 | H89: 0 | I89: 0 | J89: 0 | K89: 0
A90: Biological or Cultivated Assets | C90: =SA34e!C136 -> 0 | D90: =SA34e!D136 -> 0 | E90: =SA34e!E136 -> 0 | F90: =SA34e!F136 -> 0 | G90: =SA34e!G136 -> 0 | H90: =SA34e!H136 -> 0 | I90: =SA34e!I136 -> 0 | J90: =SA34e!J136 -> 0 | K90: =SA34e!K136 -> 0
A91: Servitudes | C91: =SA34e!C140 -> 0 | D91: =SA34e!D140 -> 0 | E91: =SA34e!E140 -> 0 | F91: =SA34e!F140 -> 0 | G91: =SA34e!G140 -> 0 | H91: =SA34e!H140 -> 0 | I91: =SA34e!I140 -> 0 | J91: =SA34e!J140 -> 0 | K91: =SA34e!K140 -> 0
A92: Licences and Rights | C92: =SA34e!C141 -> 0 | D92: =SA34e!D141 -> 0 | E92: =SA34e!E141 -> 0 | F92: =SA34e!F141 -> 0 | G92: =SA34e!G141 -> 0 | H92: =SA34e!H141 -> 0 | I92: =SA34e!I141 -> 0 | J92: =SA34e!J141 -> 0 | K92: =SA34e!K141 -> 0
A93: Intangible Assets | C93: =SUM(C91:C92) -> 0 | D93: 0 | E93: 0 | F93: 0 | G93: 0 | H93: 0 | I93: 0 | J93: 0 | K93: 0
A94: Computer Equipment | C94: =SA34e!C149 -> 0 | D94: =SA34e!D149 -> 0 | E94: =SA34e!E149 -> 0 | F94: =SA34e!F149 -> 0 | G94: =SA34e!G149 -> 0 | H94: =SA34e!H149 -> 0 | I94: =SA34e!I149 -> 0 | J94: =SA34e!J149 -> 0 | K94: =SA34e!K149 -> 0
A95: Furniture and Office Equipment | C95: =SA34e!C152 -> 0 | D95: =SA34e!D152 -> 0 | E95: =SA34e!E152 -> 0 | F95: =SA34e!F152 -> 0 | G95: =SA34e!G152 -> 0 | H95: =SA34e!H152 -> 0 | I95: =SA34e!I152 -> 0 | J95: =SA34e!J152 -> 0 | K95: =SA34e!K152 -> 0
A96: Machinery and Equipment | C96: =SA34e!C155 -> 0 | D96: =SA34e!D155 -> 0 | E96: =SA34e!E155 -> 0 | F96: =SA34e!F155 -> 0 | G96: =SA34e!G155 -> 0 | H96: =SA34e!H155 -> 0 | I96: =SA34e!I155 -> 0 | J96: =SA34e!J155 -> 0 | K96: =SA34e!K155 -> 0
A97: Transport Assets | C97: =SA34e!C158 -> 0 | D97: =SA34e!D158 -> 0 | E97: =SA34e!E158 -> 0 | F97: =SA34e!F158 -> 0 | G97: =SA34e!G158 -> 0 | H97: =SA34e!H158 -> 0 | I97: =SA34e!I158 -> 0 | J97: =SA34e!J158 -> 0 | K97: =SA34e!K158 -> 0
A98: Land | C98: =SA34e!C161 -> 0 | D98: =SA34e!D161 -> 0 | E98: =SA34e!E161 -> 0 | F98: =SA34e!F161 -> 0 | G98: =SA34e!G161 -> 0 | H98: =SA34e!H161 -> 0 | I98: =SA34e!I161 -> 0 | J98: =SA34e!J161 -> 0 | K98: =SA34e!K161 -> 0
A99: Zoo's, Marine and Non-biological Animals | C99: =SA34e!C164 -> 0 | D99: =SA34e!D164 -> 0 | E99: =SA34e!E164 -> 0 | F99: =SA34e!F164 -> 0 | G99: =SA34e!G164 -> 0 | H99: =SA34e!H164 -> 0 | I99: =SA34e!I164 -> 0 | J99: =SA34e!J164 -> 0 | K99: =SA34e!K164 -> 0
A101: Total Capital Expenditure | B101: 4 | C101: =+C5+C37+C69 -> 672135034 | D101: =+D5+D37+D69 -> 392431488 | E101: 328250030 | F101: 420411262 | G101: 447343522 | H101: 447343522 | I101: 620504000 | J101: 584070000 | K101: 446946000
A102: Roads Infrastructure | C102: =+C6+C38+C70 -> 20300520 | D102: =+D6+D38+D70 -> 0 | E102: 0 | F102: 0 | G102: 0 | H102: 0 | I102: 1000000 | J102: 500000 | K102: 0
A103: Storm water Infrastructure | C103: =+C7+C39+C71 -> 0 | D103: 0 | E103: 0 | F103: 0 | G103: 0 | H103: 0 | I103: 700000 | J103: 300000 | K103: 0
A104: Electrical Infrastructure | C104: 0 | D104: 0 | E104: 0 | F104: 0 | G104: 0 | H104: 0 | I104: 0 | J104: 0 | K104: 0
A105: Water Supply Infrastructure | C105: 74298 | D105: 367798030 | E105: 7836930 | F105: 351893262 | G105: 341349173 | H105: 341349173 | I105: 563886000 | J105: 506574481 | K105: 409146000
A106: Sanitation Infrastructure | C106: 0 | D106: 4763590 | E106: 298553326 | F106: 68518000 | G106: 71176775 | H106: 71176775 | I106: 54918000 | J106: 76695519 | K106: 37800000
A107: Solid Waste Infrastructure | C107: 0 | D107: 0 | E107: 0 | F107: 0 | G107: 0 | H107: 0 | I107: 0 | J107: 0 | K107: 0
A108: Rail Infrastructure | C108: 0 | D108: 0 | E108: 0 | F108: 0 | G108: 0 | H108: 0 | I108: 0 | J108: 0 | K108: 0
A109: Coastal Infrastructure | C109: 0 | D109: 0 | E109: 0 | F109: 0 | G109: 0 | H109: 0 | I109: 0 | J109: 0 | K109: 0
A110: Information and Communication Infrastructure | C110: 0 | D110: 0 | E110: 0 | F110: 0 | G110: 0 | H110: 0 | I110: 0 | J110: 0 | K110: 0
A111: Infrastructure | C111: =SUM(C102:C110) -> 20374818 | D111: =SUM(D102:D110) -> 372561620 | E111: 306390256 | F111: 420411262 | G111: 412525948 | H111: 412525948 | I111: 620504000 | J111: 584070000 | K111: 446946000
A112: Community Facilities | C112: =+C16+C48+C80 -> 0 | D112: =+D16+D48+D80 -> 0 | E112: 0 | F112: 0 | G112: 0 | H112: 0 | I112: 0 | J112: 0 | K112: 0
A113: Sport and Recreation Facilities | C113: =+C17+C49+C81 -> 0 | D113: =+D17+D49+D81 -> 0 | E113: 0 | F113: 0 | G113: 0 | H113: 0 | I113: 0 | J113: 0 | K113: 0
A114: Community Assets | C114: =SUM(C112:C113) -> 0 | D114: =SUM(D112:D113) -> 0 | E114: 0 | F114: 0 | G114: 0 | H114: 0 | I114: 0 | J114: 0 | K114: 0
A115: Heritage Assets | C115: =+C19+C51+C83 -> 0 | D115: =+D19+D51+D83 -> 0 | E115: 0 | F115: 0 | G115: 0 | H115: 0 | I115: 0 | J115: 0 | K115: 0
A116: Revenue Generating | C116: =+C20+C52+C84 -> 0 | D116: =+D20+D52+D84 -> 0 | E116: 0 | F116: 0 | G116: 0 | H116: 0 | I116: 0 | J116: 0 | K116: 0
A117: Non-revenue Generating | C117: =+C21+C53+C85 -> 0 | D117: =+D21+D53+D85 -> 0 | E117: 0 | F117: 0 | G117: 0 | H117: 0 | I117: 0 | J117: 0 | K117: 0
A118: Investment properties | C118: =SUM(C116:C117) -> 0 | D118: =SUM(D116:D117) -> 0 | E118: 0 | F118: 0 | G118: 0 | H118: 0 | I118: 0 | J118: 0 | K118: 0
A119: Operational Buildings | C119: =+C23+C55+C87 -> 601255235 | D119: =+D23+D55+D87 -> 0 | E119: 0 | F119: 0 | G119: 22261327 | H119: 22261327 | I119: 0 | J119: 0 | K119: 0
A120: Housing | C120: =+C24+C56+C88 -> 0 | D120: =+D24+D56+D88 -> 0 | E120: 0 | F120: 0 | G120: 0 | H120: 0 | I120: 0 | J120: 0 | K120: 0
A121: Other Assets | C121: =SUM(C119:C120) -> 601255235 | D121: 0 | E121: 0 | F121: 0 | G121: 22261327 | H121: 22261327 | I121: 0 | J121: 0 | K121: 0
A122: Biological or Cultivated Assets | C122: =+C26+C58+C90 -> 0 | D122: =+D26+D58+D90 -> 0 | E122: 0 | F122: 0 | G122: 0 | H122: 0 | I122: 0 | J122: 0 | K122: 0
A123: Servitudes | C123: =+C27+C59+C91 -> 0 | D123: =+D27+D59+D91 -> 0 | E123: 0 | F123: 0 | G123: 0 | H123: 0 | I123: 0 | J123: 0 | K123: 0
A124: Licences and Rights | C124: =+C28+C60+C92 -> 2929670 | D124: =+D28+D60+D92 -> 80314 | E124: 14104 | F124: 0 | G124: 0 | H124: 0 | I124: 0 | J124: 0 | K124: 0
A125: Intangible Assets | C125: =SUM(C123:C124) -> 2929670 | D125: =SUM(D123:D124) -> 80314 | E125: 14104 | F125: 0 | G125: 0 | H125: 0 | I125: 0 | J125: 0 | K125: 0
A126: Computer Equipment | C126: =+C30+C62+C94 -> 0 | D126: =+D30+D62+D94 -> 0 | E126: 0 | F126: 0 | G126: 0 | H126: 0 | I126: 0 | J126: 0 | K126: 0
A127: Furniture and Office Equipment | C127: =+C31+C63+C95 -> 12078591 | D127: 8422131 | E127: 2609803 | F127: 0 | G127: 12556247 | H127: 12556247 | I127: 0 | J127: 0 | K127: 0
A128: Machinery and Equipment | C128: 0 | D128: 0 | E128: 1171000 | F128: 0 | G128: 0 | H128: 0 | I128: 0 | J128: 0 | K128: 0
A129: Transport Assets | C129: 17503778 | D129: 11367423 | E129: 18064867 | F129: 0 | G129: 0 | H129: 0 | I129: 0 | J129: 0 | K129: 0
A130: Land | C130: 17992942 | D130: 0 | E130: 0 | F130: 0 | G130: 0 | H130: 0 | I130: 0 | J130: 0 | K130: 0
A131: Zoo's, Marine and Non-biological Animals | C131: 0 | D131: 0 | E131: 0 | F131: 0 | G131: 0 | H131: 0 | I131: 0 | J131: 0 | K131: 0
A132: TOTAL CAPITAL EXPENDITURE - Asset class | C132: =+C5+C37+C69 -> 672135034 | D132: =+D5+D37+D69 -> 392431488 | E132: 328250030 | F132: 420411262 | G132: 447343522 | H132: 447343522 | I132: 620504000 | J132: 584070000 | K132: 446946000
A134: ASSET REGISTER SUMMARY - PPE (WDV) | B134: 5 | C134: =C144+C147+C148+C151+C154+C155+C158+C159+C160+C161+C162+C163+C164 -> 3969768494 | D134: =D144+D147+D148+D151+D154+D155+D158+D159+D160+D161+D162+D163+D164 -> 3871922121 | E134: 4058410699 | F134: 4452834704 | G134: 4481256964 | H134: 4481256964 | I134: 3594128997 | J134: 3734436597 | K134: 3723267661
A135: Roads Infrastructure | C135: 30533596 | D135: 9891126 | E135: 2871118650 | F135: 1500000 | G135: 0 | H135: 0 | I135: 1000000 | J135: 500000 | K135: 0
A136: Storm water Infrastructure | C136: 0 | D136: 0 | E136: 0 | F136: 0 | G136: 0 | H136: 0 | I136: 700000 | J136: 300000 | K136: 0
A137: Electrical Infrastructure | C137: 0 | D137: 0 | E137: 0 | F137: 0 | G137: 0 | H137: 0 | I137: 0 | J137: 0 | K137: 0
A138: Water Supply Infrastructure | C138: 2354056352 | D138: 3285341289 | E138: 7836930 | F138: 1432082209 | G138: 1408489184 | H138: 1408489184 | I138: 411379519 | J138: 380976481 | K138: 280531962
A139: Sanitation Infrastructure | C139: 287298572 | D139: 292380010 | E139: 573935114 | F139: 185447914 | G139: 202655625 | H139: 202655625 | I139: 207424481 | J139: 202293519 | K139: 166414038
A140: Solid Waste Infrastructure
A141: Rail Infrastructure
A142: Coastal Infrastructure
A143: Information and Communication Infrastructure | C143: 560221905 | D143: 140073991 | E143: 419545456 | F143: 2833804581 | G143: 2833804581 | H143: 2833804581 | I143: 2972134997 | J143: 3148876597 | K143: 3274831661
A144: Infrastructure | C144: =SUM(C135:C143) -> 3232110425 | D144: =SUM(D135:D143) -> 3727686416 | E144: 3872436150 | F144: 4452834704 | G144: 4444949390 | H144: 4444949390 | I144: 3592638997 | J144: 3732946597 | K144: 3721777661
A147: Community Assets
A148: Heritage Assets
A151: Investment properties
A154: Other Assets | C154: 733769448 | D154: 141796537 | E154: 184351816 | F154: 0 | G154: 22261327 | H154: 22261327 | I154: 0 | J154: 0 | K154: 0
A155: Biological or Cultivated Assets
A158: Intangible Assets | C158: 3888621 | D158: 2439168 | E158: 1622733 | F158: 0 | G158: 1490000 | H158: 1490000 | I158: 1490000 | J158: 1490000 | K158: 1490000
A159: Computer Equipment | C159: 0 | D159: 0 | E159: 0 | F159: 0 | G159: 0 | H159: 0 | I159: 0 | J159: 0 | K159: 0
A160: Furniture and Office Equipment | C160: 0 | D160: 0 | E160: 0 | F160: 0 | G160: 12556247 | H160: 12556247 | I160: 0 | J160: 0 | K160: 0
A161: Machinery and Equipment | C161: 0 | D161: 0 | E161: 0 | F161: 0 | G161: 0 | H161: 0 | I161: 0 | J161: 0 | K161: 0
A162: Transport Assets | C162: 0 | D162: 0 | E162: 0 | F162: 0 | G162: 0 | H162: 0 | I162: 0 | J162: 0 | K162: 0
A163: Land | C163: 0 | D163: 0 | E163: 0 | F163: 0 | G163: 0 | H163: 0 | I163: 0 | J163: 0 | K163: 0
A164: Zoo's, Marine and Non-biological Animals
A165: TOTAL ASSET REGISTER SUMMARY - PPE (WDV) | B165: 5 | C165: =C144+C147+C148+C151+C154+C155+C158+C159+C160+C161+C162+C163+C164 -> 3969768494 | D165: =D144+D147+D148+D151+D154+D155+D158+D159+D160+D161+D162+D163+D164 -> 3871922121 | E165: 4058410699 | F165: 4452834704 | G165: 4481256964 | H165: 4481256964 | I165: 3594128997 | J165: 3734436597 | K165: 3723267661
A167: EXPENDITURE OTHER ITEMS | C167: =SUM(C168:C169) -> -122127106 | D167: =SUM(D168:D169) -> -52439113 | E167: -32581818 | F167: 251890861 | G167: 232322199 | H167: 232322199 | I167: 215869854 | J167: 224755993 | K167: 233998145
A168: Depreciation | B168: 7 | C168: =SA34d!C167 -> -122308938 | D168: =SA34d!D167 -> -142118817 | E168: =SA34d!E167 -> -156846054 | F168: =SA34d!F167 -> 140000000 | G168: =SA34d!G167 -> 155000000 | H168: =SA34d!H167 -> 155000000 | I168: =SA34d!I167 -> 128309274 | J168: =SA34d!J167 -> 133441648 | K168: =SA34d!K167 -> 138779315
A169: Repairs and Maintenance by Asset Class | B169: 3 | C169: =C179+C182+C183+C186+C189+C190+SUM(C193:C199) -> 181832 | D169: =D179+D182+D183+D186+D189+D190+SUM(D193:D199) -> 89679704 | E169: 124264236 | F169: 111890861 | G169: 77322199 | H169: 77322199 | I169: 87560580 | J169: 91314345 | K169: 95218830
A170: Roads Infrastructure | C170: =SA34c!C7 -> 0 | D170: =SA34c!D7 -> 0 | E170: =SA34c!E7 -> 0 | F170: =SA34c!F7 -> 0 | G170: =SA34c!G7 -> 0 | H170: =SA34c!H7 -> 0 | I170: =SA34c!I7 -> 0 | J170: =SA34c!J7 -> 0 | K170: =SA34c!K7 -> 0
A171: Storm water Infrastructure | C171: =SA34c!C12 -> 0 | D171: =SA34c!D12 -> 0 | E171: =SA34c!E12 -> 0 | F171: =SA34c!F12 -> 0 | G171: =SA34c!G12 -> 0 | H171: =SA34c!H12 -> 0 | I171: =SA34c!I12 -> 0 | J171: =SA34c!J12 -> 0 | K171: =SA34c!K12 -> 0
A172: Electrical Infrastructure | C172: =SA34c!C16 -> 0 | D172: =SA34c!D16 -> 0 | E172: =SA34c!E16 -> 0 | F172: =SA34c!F16 -> 0 | G172: =SA34c!G16 -> 0 | H172: =SA34c!H16 -> 0 | I172: =SA34c!I16 -> 0 | J172: =SA34c!J16 -> 0 | K172: =SA34c!K16 -> 0
A173: Water Supply Infrastructure | C173: =SA34c!C26 -> 0 | D173: =SA34c!D26 -> 0 | E173: =SA34c!E26 -> 60265050 | F173: =SA34c!F26 -> 40153815 | G173: =SA34c!G26 -> 39600075 | H173: =SA34c!H26 -> 39600075 | I173: =SA34c!I26 -> 39813244 | J173: =SA34c!J26 -> 41485773 | K173: =SA34c!K26 -> 43225205
A174: Sanitation Infrastructure | C174: =SA34c!C37 -> 0 | D174: =SA34c!D37 -> 0 | E174: =SA34c!E37 -> 47058714 | F174: =SA34c!F37 -> 42763561 | G174: =SA34c!G37 -> 30354326 | H174: =SA34c!H37 -> 30354326 | I174: =SA34c!I37 -> 40675834 | J174: =SA34c!J37 -> 42462866 | K174: =SA34c!K37 -> 44321380
A175: Solid Waste Infrastructure | C175: =SA34c!C44 -> 181832 | D175: =SA34c!D44 -> 89679254 | E175: =SA34c!E44 -> 0 | F175: =SA34c!F44 -> 0 | G175: =SA34c!G44 -> 0 | H175: =SA34c!H44 -> 0 | I175: =SA34c!I44 -> 0 | J175: =SA34c!J44 -> 0 | K175: =SA34c!K44 -> 0
A176: Rail Infrastructure | C176: =SA34c!C52 -> 0 | D176: =SA34c!D52 -> 0 | E176: =SA34c!E52 -> 0 | F176: =SA34c!F52 -> 0 | G176: =SA34c!G52 -> 0 | H176: =SA34c!H52 -> 0 | I176: =SA34c!I52 -> 0 | J176: =SA34c!J52 -> 0 | K176: =SA34c!K52 -> 0
A177: Coastal Infrastructure | C177: =SA34c!C62 -> 0 | D177: =SA34c!D62 -> 0 | E177: =SA34c!E62 -> 0 | F177: =SA34c!F62 -> 0 | G177: =SA34c!G62 -> 0 | H177: =SA34c!H62 -> 0 | I177: =SA34c!I62 -> 0 | J177: =SA34c!J62 -> 0 | K177: =SA34c!K62 -> 0
A178: Information and Communication Infrastructure | C178: =SA34c!C68 -> 0 | D178: =SA34c!D68 -> 0 | E178: =SA34c!E68 -> 0 | F178: =SA34c!F68 -> 0 | G178: =SA34c!G68 -> 0 | H178: =SA34c!H68 -> 0 | I178: =SA34c!I68 -> 0 | J178: =SA34c!J68 -> 0 | K178: =SA34c!K68 -> 0
A179: Infrastructure | C179: =SUM(C170:C178) -> 181832 | D179: =SUM(D170:D178) -> 89679254 | E179: 107323764 | F179: 82917376 | G179: 69954401 | H179: 69954401 | I179: 80489078 | J179: 83948639 | K179: 87546585
A180: Community Facilities | C180: =SA34c!C75 -> 0 | D180: =SA34c!D75 -> 0 | E180: =SA34c!E75 -> 0 | F180: =SA34c!F75 -> 0 | G180: =SA34c!G75 -> 0 | H180: =SA34c!H75 -> 0 | I180: =SA34c!I75 -> 0 | J180: =SA34c!J75 -> 0 | K180: =SA34c!K75 -> 0
A181: Sport and Recreation Facilities | C181: =SA34c!C98 -> 0 | D181: =SA34c!D98 -> 0 | E181: =SA34c!E98 -> 0 | F181: =SA34c!F98 -> 0 | G181: =SA34c!G98 -> 0 | H181: =SA34c!H98 -> 0 | I181: =SA34c!I98 -> 0 | J181: =SA34c!J98 -> 0 | K181: =SA34c!K98 -> 0
A182: Community Assets | C182: =SUM(C180:C181) -> 0 | D182: 0 | E182: 0 | F182: 0 | G182: 0 | H182: 0 | I182: 0 | J182: 0 | K182: 0
A183: Heritage Assets | C183: =SA34c!C103 -> 0 | D183: =SA34c!D103 -> 0 | E183: =SA34c!E103 -> 0 | F183: =SA34c!F103 -> 0 | G183: =SA34c!G103 -> 0 | H183: =SA34c!H103 -> 0 | I183: =SA34c!I103 -> 0 | J183: =SA34c!J103 -> 0 | K183: =SA34c!K103 -> 0
A184: Revenue Generating | C184: =SA34c!C111 -> 0 | D184: =SA34c!D111 -> 0 | E184: =SA34c!E111 -> 0 | F184: =SA34c!F111 -> 0 | G184: =SA34c!G111 -> 0 | H184: =SA34c!H111 -> 0 | I184: =SA34c!I111 -> 0 | J184: =SA34c!J111 -> 0 | K184: =SA34c!K111 -> 0
A185: Non-revenue Generating | C185: =SA34c!C114 -> 0 | D185: =SA34c!D114 -> 0 | E185: =SA34c!E114 -> 0 | F185: =SA34c!F114 -> 0 | G185: =SA34c!G114 -> 0 | H185: =SA34c!H114 -> 0 | I185: =SA34c!I114 -> 0 | J185: =SA34c!J114 -> 0 | K185: =SA34c!K114 -> 0
A186: Investment properties | C186: =SUM(C184:C185) -> 0 | D186: 0 | E186: 0 | F186: 0 | G186: 0 | H186: 0 | I186: 0 | J186: 0 | K186: 0
A187: Operational Buildings | C187: =SA34c!C119 -> 0 | D187: =SA34c!D119 -> 0 | E187: =SA34c!E119 -> 16940472 | F187: =SA34c!F119 -> 20370001 | G187: =SA34c!G119 -> 770991 | H187: =SA34c!H119 -> 770991 | I187: =SA34c!I119 -> 1134375 | J187: =SA34c!J119 -> 1191093 | K187: =SA34c!K119 -> 1250648
A188: Housing | C188: =SA34c!C131 -> 0 | D188: =SA34c!D131 -> 0 | E188: =SA34c!E131 -> 0 | F188: =SA34c!F131 -> 0 | G188: =SA34c!G131 -> 0 | H188: =SA34c!H131 -> 0 | I188: =SA34c!I131 -> 0 | J188: =SA34c!J131 -> 0 | K188: =SA34c!K131 -> 0
A189: Other Assets | C189: =SUM(C187:C188) -> 0 | D189: 0 | E189: 16940472 | F189: 20370001 | G189: 770991 | H189: 770991 | I189: 1134375 | J189: 1191093 | K189: 1250648
A190: Biological or Cultivated Assets | C190: =SA34c!C136 -> 0 | D190: =SA34c!D136 -> 0 | E190: =SA34c!E136 -> 0 | F190: =SA34c!F136 -> 0 | G190: =SA34c!G136 -> 0 | H190: =SA34c!H136 -> 0 | I190: =SA34c!I136 -> 0 | J190: =SA34c!J136 -> 0 | K190: =SA34c!K136 -> 0
A191: Servitudes | C191: =SA34c!C140 -> 0 | D191: =SA34c!D140 -> 0 | E191: =SA34c!E140 -> 0 | F191: =SA34c!F140 -> 0 | G191: =SA34c!G140 -> 0 | H191: =SA34c!H140 -> 0 | I191: =SA34c!I140 -> 0 | J191: =SA34c!J140 -> 0 | K191: =SA34c!K140 -> 0
A192: Licences and Rights | C192: =SA34c!C141 -> 0 | D192: =SA34c!D141 -> 0 | E192: =SA34c!E141 -> 0 | F192: =SA34c!F141 -> 0 | G192: =SA34c!G141 -> 0 | H192: =SA34c!H141 -> 0 | I192: =SA34c!I141 -> 0 | J192: =SA34c!J141 -> 0 | K192: =SA34c!K141 -> 0
A193: Intangible Assets | C193: =SUM(C191:C192) -> 0 | D193: 0 | E193: 0 | F193: 0 | G193: 0 | H193: 0 | I193: 0 | J193: 0 | K193: 0
A194: Computer Equipment | C194: =SA34c!C149 -> 0 | D194: =SA34c!D149 -> 0 | E194: =SA34c!E149 -> 0 | F194: =SA34c!F149 -> 0 | G194: =SA34c!G149 -> 0 | H194: =SA34c!H149 -> 0 | I194: =SA34c!I149 -> 0 | J194: =SA34c!J149 -> 0 | K194: =SA34c!K149 -> 0
A195: Furniture and Office Equipment | C195: =SA34c!C152 -> 0 | D195: =SA34c!D152 -> 450 | E195: =SA34c!E152 -> 0 | F195: =SA34c!F152 -> 0 | G195: =SA34c!G152 -> 0 | H195: =SA34c!H152 -> 0 | I195: =SA34c!I152 -> 0 | J195: =SA34c!J152 -> 0 | K195: =SA34c!K152 -> 0
A196: Machinery and Equipment | C196: =SA34c!C155 -> 0 | D196: =SA34c!D155 -> 0 | E196: =SA34c!E155 -> 0 | F196: =SA34c!F155 -> 103314 | G196: =SA34c!G155 -> 18314 | H196: =SA34c!H155 -> 18314 | I196: =SA34c!I155 -> 158634 | J196: =SA34c!J155 -> 164980 | K196: =SA34c!K155 -> 171579
A197: Transport Assets | C197: =SA34c!C158 -> 0 | D197: =SA34c!D158 -> 0 | E197: =SA34c!E158 -> 0 | F197: =SA34c!F158 -> 8500170 | G197: =SA34c!G158 -> 6578493 | H197: =SA34c!H158 -> 6578493 | I197: =SA34c!I158 -> 5778493 | J197: =SA34c!J158 -> 6009633 | K197: =SA34c!K158 -> 6250018
A198: Land | C198: =SA34c!C161 -> 0 | D198: =SA34c!D161 -> 0 | E198: =SA34c!E161 -> 0 | F198: =SA34c!F161 -> 0 | G198: =SA34c!G161 -> 0 | H198: =SA34c!H161 -> 0 | I198: =SA34c!I161 -> 0 | J198: =SA34c!J161 -> 0 | K198: =SA34c!K161 -> 0
A199: Zoo's, Marine and Non-biological Animals | C199: =SA34c!C164 -> 0 | D199: =SA34c!D164 -> 0 | E199: =SA34c!E164 -> 0 | F199: =SA34c!F164 -> 0 | G199: =SA34c!G164 -> 0 | H199: =SA34c!H164 -> 0 | I199: =SA34c!I164 -> 0 | J199: =SA34c!J164 -> 0 | K199: =SA34c!K164 -> 0
A201: TOTAL EXPENDITURE OTHER ITEMS | C201: =SUM(C168:C169) -> -122127106 | D201: -52439113 | E201: -32581818 | F201: 251890861 | G201: 232322199 | H201: 232322199 | I201: 215869854 | J201: 224755993 | K201: 233998145
A203: Renewal and upgrading of Existing Assets as % of total capex | C203: =IF(ISERROR((C37+C69)/C132),0,((C37+C69)/C132)) -> 0 | D203: =IF(ISERROR((D37+D69)/D132),0,((D37+D69)/D132)) -> 0 | E203: 0 | F203: 0.1273134305 | G203: 0.02931383904 | H203: 0.02931383904 | I203: 0.01952445109 | J203: 0.06582347835 | K203: 0.1313357766
A204: Renewal and upgrading of Existing Assets as % of deprecn | C204: =IF(ISERROR((C37+C69)/C168),0,((C37+C69)/C168)) -> 0 | D204: =IF(ISERROR((D37+D69)/D168),0,((D37+D69)/D168)) -> 0 | E204: 0 | F204: 0.3823142857 | G204: 0.08460229677 | H204: 0.08460229677 | I204: 0.09442029888 | J204: 0.2881073456 | K204: 0.4229736975
A205: R&M as a % of PPE | C205: =IF(ISERROR(ROUND(C169/'A6-FinPos'!C19,3)),0,(ROUND(C169/'A6-FinPos'!C19,3))) -> 0 | D205: =IF(ISERROR(ROUND(D169/'A6-FinPos'!D19,3)),0,(ROUND(D169/'A6-FinPos'!D19,3))) -> 0.023 | E205: =IF(ISERROR(ROUND(E169/'A6-FinPos'!E19,3)),0,(ROUND(E169/'A6-FinPos'!E19,3))) -> 0.031 | F205: =IF(ISERROR(ROUND(F169/'A6-FinPos'!F19,3)),0,(ROUND(F169/'A6-FinPos'!F19,3))) -> 0.025 | G205: =IF(ISERROR(ROUND(G169/'A6-FinPos'!G19,3)),0,(ROUND(G169/'A6-FinPos'!G19,3))) -> 0.018 | H205: =IF(ISERROR(ROUND(H169/'A6-FinPos'!H19,3)),0,(ROUND(H169/'A6-FinPos'!H19,3))) -> 0.018 | I205: =IF(ISERROR(ROUND(I169/'A6-FinPos'!J19,3)),0,(ROUND(I169/'A6-FinPos'!J19,3))) -> 0.024 | J205: =IF(ISERROR(ROUND(J169/'A6-FinPos'!K19,3)),0,(ROUND(J169/'A6-FinPos'!K19,3))) -> 0.024 | K205: =IF(ISERROR(ROUND(K169/'A6-FinPos'!L19,3)),0,(ROUND(K169/'A6-FinPos'!L19,3))) -> 0.026
A206: Renewal and upgrading and R&M as a % of PPE | C206: =IF(ISERROR(ROUND((C37+C69+C169)/C165,2)),0,(ROUND((C37+C69+C169)/C165,2))) -> 0 | D206: =IF(ISERROR(ROUND((D37+D69+D169)/D165,2)),0,(ROUND((D37+D69+D169)/D165,2))) -> 0.02 | E206: 0.03 | F206: 0.04 | G206: 0.02 | H206: 0.02 | I206: 0.03 | J206: 0.03 | K206: 0.04
A208: =head27a -> References
A209: 1. Detail of new assets provided in Table SA34a
A210: 2. Detail of renewal of existing assets provided in Table SA34b
A211: 3. Detail of Repairs and Maintenance by Asset Class provided in Table SA34c
A212: 4. Must reconcile to total capital expenditure on Budgeted Capital Expenditure
A213: 5. Must reconcile to 'Budgeted Financial Position' (written down value)
A214: 6. Detail of upgrading of existing assets provided in Table SA34e
A215: 7. Detail of depreciation provided in Table SA34d
A217: Check balance to A6 | C217: =C165-'A6-FinPos'!D17-'A6-FinPos'!D19-'A6-FinPos'!D20-'A6-FinPos'!D21-'A6-FinPos'!D22-C148 -> 97846765.29 | D217: =D165-'A6-FinPos'!E17-'A6-FinPos'!E19-'A6-FinPos'!E20-'A6-FinPos'!E21-'A6-FinPos'!E22-D148 -> -186488578.9 | E217: =E165-'A6-FinPos'!F17-'A6-FinPos'!F19-'A6-FinPos'!F20-'A6-FinPos'!F21-'A6-FinPos'!F22-E148 -> -394424005 | F217: =F165-'A6-FinPos'!G17-'A6-FinPos'!G19-'A6-FinPos'!G20-'A6-FinPos'!G21-'A6-FinPos'!G22-F148 -> 116515344 | G217: =G165-'A6-FinPos'!H17-'A6-FinPos'!H19-'A6-FinPos'!H20-'A6-FinPos'!H21-'A6-FinPos'!H22-G148 -> 144937604 | H217: =H165-'A6-FinPos'!I17-'A6-FinPos'!I19-'A6-FinPos'!I20-'A6-FinPos'!I21-'A6-FinPos'!I22-H148 -> 202545296.8 | I217: =I165-'A6-FinPos'!J17-'A6-FinPos'!J19-'A6-FinPos'!J20-'A6-FinPos'!J21-'A6-FinPos'!J22-I148 -> 0 | J217: =J165-'A6-FinPos'!K17-'A6-FinPos'!K19-'A6-FinPos'!K20-'A6-FinPos'!K21-'A6-FinPos'!K22-J148 -> 0 | K217: =K165-'A6-FinPos'!L17-'A6-FinPos'!L19-'A6-FinPos'!L20-'A6-FinPos'!L21-'A6-FinPos'!L22-K148 -> 0

Sheet A10-SerDel
A1: =muni&" - "&Approve10 -> DC13 Chris Hani - Table A10 Basic service delivery measurement
A2: =desc -> Description | B2: =head27 -> Ref | C2: =head1b -> 2016/17 | D2: =head1A -> 2017/18 | E2: =Head1 -> 2018/19 | F2: =Head2 -> Current Year 2019/20 | I2: =Head3 -> 2020/21 Medium Term Revenue & Expenditure Framework
C3: =Head5A -> Outcome | D3: =Head5A -> Outcome | E3: =Head5A -> Outcome | F3: =Head6 -> Original Budget | G3: =Head7 -> Adjusted Budget | H3: =Head8 -> Full Year Forecast | I3: =Head9 -> Budget Year 2020/21 | J3: =Head10 -> Budget Year +1 2021/22 | K3: =Head11 -> Budget Year +2 2022/23
A4: Household service targets | B4: 1
A5: Water:
A6: Piped water inside dwelling | C6: ='SA9'!E67 -> 0 | D6: ='SA9'!F67 -> 0 | E6: ='SA9'!G67 -> 0 | F6: ='SA9'!H67 -> 0 | G6: ='SA9'!I67 -> 0 | H6: ='SA9'!J67 -> 0 | I6: ='SA9'!K67 -> 0 | J6: ='SA9'!L67 -> 0 | K6: ='SA9'!M67 -> 0
A7: Piped water inside yard (but not in dwelling) | C7: ='SA9'!E68 -> 0 | D7: ='SA9'!F68 -> 0 | E7: ='SA9'!G68 -> 0 | F7: ='SA9'!H68 -> 0 | G7: ='SA9'!I68 -> 0 | H7: ='SA9'!J68 -> 0 | I7: ='SA9'!K68 -> 0 | J7: ='SA9'!L68 -> 0 | K7: ='SA9'!M68 -> 0
A8: Using public tap (at least min.service level) | B8: 2 | C8: ='SA9'!E69 -> 0 | D8: ='SA9'!F69 -> 0 | E8: ='SA9'!G69 -> 0 | F8: ='SA9'!H69 -> 0 | G8: ='SA9'!I69 -> 0 | H8: ='SA9'!J69 -> 0 | I8: ='SA9'!K69 -> 0 | J8: ='SA9'!L69 -> 0 | K8: ='SA9'!M69 -> 0
A9: Other water supply (at least min.service level) | B9: 4 | C9: ='SA9'!E70 -> 0 | D9: ='SA9'!F70 -> 0 | E9: ='SA9'!G70 -> 0 | F9: ='SA9'!H70 -> 0 | G9: ='SA9'!I70 -> 0 | H9: ='SA9'!J70 -> 0 | I9: ='SA9'!K70 -> 0 | J9: ='SA9'!L70 -> 0 | K9: ='SA9'!M70 -> 0
A10: Minimum Service Level and Above sub-total | C10: =SUM(C6:C9) -> 0 | D10: =SUM(D6:D9) -> 0 | E10: 0 | F10: 0 | G10: 0 | H10: 0 | I10: 0 | J10: 0 | K10: 0
A11: Using public tap (< min.service level) | B11: 3 | C11: ='SA9'!E72 -> 0 | D11: ='SA9'!F72 -> 0 | E11: ='SA9'!G72 -> 0 | F11: ='SA9'!H72 -> 0 | G11: ='SA9'!I72 -> 0 | H11: ='SA9'!J72 -> 0 | I11: ='SA9'!K72 -> 0 | J11: ='SA9'!L72 -> 0 | K11: ='SA9'!M72 -> 0
A12: Other water supply (< min.service level) | B12: =B9 -> 4 | C12: ='SA9'!E73 -> 0 | D12: ='SA9'!F73 -> 0 | E12: ='SA9'!G73 -> 0 | F12: ='SA9'!H73 -> 0 | G12: ='SA9'!I73 -> 0 | H12: ='SA9'!J73 -> 0 | I12: ='SA9'!K73 -> 0 | J12: ='SA9'!L73 -> 0 | K12: ='SA9'!M73 -> 0
A13: No water supply | C13: ='SA9'!E74 -> 0 | D13: ='SA9'!F74 -> 0 | E13: ='SA9'!G74 -> 0 | F13: ='SA9'!H74 -> 0 | G13: ='SA9'!I74 -> 0 | H13: ='SA9'!J74 -> 0 | I13: ='SA9'!K74 -> 0 | J13: ='SA9'!L74 -> 0 | K13: ='SA9'!M74 -> 0
A14: Below Minimum Service Level sub-total | C14: =SUM(C11:C13) -> 0 | D14: =SUM(D11:D13) -> 0 | E14: 0 | F14: 0 | G14: 0 | H14: 0 | I14: 0 | J14: 0 | K14: 0
A15: Total number of households | B15: 5 | C15: =C10+C14 -> 0 | D15: =D10+D14 -> 0 | E15: 0 | F15: 0 | G15: 0 | H15: 0 | I15: 0 | J15: 0 | K15: 0
A16: Sanitation/sewerage:
A17: Flush toilet (connected to sewerage) | C17: ='SA9'!E78 -> 0 | D17: ='SA9'!F78 -> 0 | E17: ='SA9'!G78 -> 0 | F17: ='SA9'!H78 -> 0 | G17: ='SA9'!I78 -> 0 | H17: ='SA9'!J78 -> 0 | I17: ='SA9'!K78 -> 0 | J17: ='SA9'!L78 -> 0 | K17: ='SA9'!M78 -> 0
A18: Flush toilet (with septic tank) | C18: ='SA9'!E79 -> 0 | D18: ='SA9'!F79 -> 0 | E18: ='SA9'!G79 -> 0 | F18: ='SA9'!H79 -> 0 | G18: ='SA9'!I79 -> 0 | H18: ='SA9'!J79 -> 0 | I18: ='SA9'!K79 -> 0 | J18: ='SA9'!L79 -> 0 | K18: ='SA9'!M79 -> 0
A19: Chemical toilet | C19: ='SA9'!E80 -> 0 | D19: ='SA9'!F80 -> 0 | E19: ='SA9'!G80 -> 0 | F19: ='SA9'!H80 -> 0 | G19: ='SA9'!I80 -> 0 | H19: ='SA9'!J80 -> 0 | I19: ='SA9'!K80 -> 0 | J19: ='SA9'!L80 -> 0 | K19: ='SA9'!M80 -> 0
A20: Pit toilet (ventilated) | C20: ='SA9'!E81 -> 0 | D20: ='SA9'!F81 -> 0 | E20: ='SA9'!G81 -> 0 | F20: ='SA9'!H81 -> 0 | G20: ='SA9'!I81 -> 0 | H20: ='SA9'!J81 -> 0 | I20: ='SA9'!K81 -> 0 | J20: ='SA9'!L81 -> 0 | K20: ='SA9'!M81 -> 0
A21: Other toilet provisions (> min.service level) | C21: ='SA9'!E82 -> 0 | D21: ='SA9'!F82 -> 0 | E21: ='SA9'!G82 -> 0 | F21: ='SA9'!H82 -> 0 | G21: ='SA9'!I82 -> 0 | H21: ='SA9'!J82 -> 0 | I21: ='SA9'!K82 -> 0 | J21: ='SA9'!L82 -> 0 | K21: ='SA9'!M82 -> 0
A22: =$A$10 -> Minimum Service Level and Above sub-total | C22: =SUM(C17:C21) -> 0 | D22: =SUM(D17:D21) -> 0 | E22: 0 | F22: 0 | G22: 0 | H22: 0 | I22: 0 | J22: 0 | K22: 0
A23: Bucket toilet | C23: ='SA9'!E84 -> 0 | D23: ='SA9'!F84 -> 0 | E23: ='SA9'!G84 -> 0 | F23: ='SA9'!H84 -> 0 | G23: ='SA9'!I84 -> 0 | H23: ='SA9'!J84 -> 0 | I23: ='SA9'!K84 -> 0 | J23: ='SA9'!L84 -> 0 | K23: ='SA9'!M84 -> 0
A24: Other toilet provisions (< min.service level) | C24: ='SA9'!E85 -> 0 | D24: ='SA9'!F85 -> 0 | E24: ='SA9'!G85 -> 0 | F24: ='SA9'!H85 -> 0 | G24: ='SA9'!I85 -> 0 | H24: ='SA9'!J85 -> 0 | I24: ='SA9'!K85 -> 0 | J24: ='SA9'!L85 -> 0 | K24: ='SA9'!M85 -> 0
A25: No toilet provisions | C25: ='SA9'!E86 -> 0 | D25: ='SA9'!F86 -> 0 | E25: ='SA9'!G86 -> 0 | F25: ='SA9'!H86 -> 0 | G25: ='SA9'!I86 -> 0 | H25: ='SA9'!J86 -> 0 | I25: ='SA9'!K86 -> 0 | J25: ='SA9'!L86 -> 0 | K25: ='SA9'!M86 -> 0
A26: =$A$14 -> Below Minimum Service Level sub-total | C26: =SUM(C23:C25) -> 0 | D26: =SUM(D23:D25) -> 0 | E26: 0 | F26: 0 | G26: 0 | H26: 0 | I26: 0 | J26: 0 | K26: 0
A27: =$A$15 -> Total number of households | B27: =$B$15 -> 5 | C27: =C22+C26 -> 0 | D27: =D22+D26 -> 0 | E27: 0 | F27: 0 | G27: 0 | H27: 0 | I27: 0 | J27: 0 | K27: 0
A28: Energy:
A29: Electricity (at least min.service level) | C29: ='SA9'!E90 -> 0 | D29: ='SA9'!F90 -> 0 | E29: ='SA9'!G90 -> 0 | F29: ='SA9'!H90 -> 0 | G29: ='SA9'!I90 -> 0 | H29: ='SA9'!J90 -> 0 | I29: ='SA9'!K90 -> 0 | J29: ='SA9'!L90 -> 0 | K29: ='SA9'!M90 -> 0
A30: Electricity - prepaid (min.service level) | C30: ='SA9'!E91 -> 0 | D30: ='SA9'!F91 -> 0 | E30: ='SA9'!G91 -> 0 | F30: ='SA9'!H91 -> 0 | G30: ='SA9'!I91 -> 0 | H30: ='SA9'!J91 -> 0 | I30: ='SA9'!K91 -> 0 | J30: ='SA9'!L91 -> 0 | K30: ='SA9'!M91 -> 0
A31: =$A$10 -> Minimum Service Level and Above sub-total | C31: =SUM(C29:C30) -> 0 | D31: =SUM(D29:D30) -> 0 | E31: 0 | F31: 0 | G31: 0 | H31: 0 | I31: 0 | J31: 0 | K31: 0
A32: Electricity (< min.service level) | C32: ='SA9'!E93 -> 0 | D32: ='SA9'!F93 -> 0 | E32: ='SA9'!G93 -> 0 | F32: ='SA9'!H93 -> 0 | G32: ='SA9'!I93 -> 0 | H32: ='SA9'!J93 -> 0 | I32: ='SA9'!K93 -> 0 | J32: ='SA9'!L93 -> 0 | K32: ='SA9'!M93 -> 0
A33: Electricity - prepaid (< min. service level) | C33: ='SA9'!E94 -> 0 | D33: ='SA9'!F94 -> 0 | E33: ='SA9'!G94 -> 0 | F33: ='SA9'!H94 -> 0 | G33: ='SA9'!I94 -> 0 | H33: ='SA9'!J94 -> 0 | I33: ='SA9'!K94 -> 0 | J33: ='SA9'!L94 -> 0 | K33: ='SA9'!M94 -> 0
A34: Other energy sources | C34: ='SA9'!E95 -> 0 | D34: ='SA9'!F95 -> 0 | E34: ='SA9'!G95 -> 0 | F34: ='SA9'!H95 -> 0 | G34: ='SA9'!I95 -> 0 | H34: ='SA9'!J95 -> 0 | I34: ='SA9'!K95 -> 0 | J34: ='SA9'!L95 -> 0 | K34: ='SA9'!M95 -> 0
A35: =$A$14 -> Below Minimum Service Level sub-total | C35: =SUM(C32:C34) -> 0 | D35: =SUM(D32:D34) -> 0 | E35: 0 | F35: 0 | G35: 0 | H35: 0 | I35: 0 | J35: 0 | K35: 0
A36: =$A$15 -> Total number of households | B36: =$B$15 -> 5 | C36: =C31+C35 -> 0 | D36: =D31+D35 -> 0 | E36: 0 | F36: 0 | G36: 0 | H36: 0 | I36: 0 | J36: 0 | K36: 0
A37: Refuse:
A38: Removed at least once a week | C38: ='SA9'!E99 -> 0 | D38: ='SA9'!F99 -> 0 | E38: ='SA9'!G99 -> 0 | F38: ='SA9'!H99 -> 0 | G38: ='SA9'!I99 -> 0 | H38: ='SA9'!J99 -> 0 | I38: ='SA9'!K99 -> 0 | J38: ='SA9'!L99 -> 0 | K38: ='SA9'!M99 -> 0
A39: =$A$10 -> Minimum Service Level and Above sub-total | C39: =SUM(C38) -> 0 | D39: =SUM(D38) -> 0 | E39: 0 | F39: 0 | G39: 0 | H39: 0 | I39: 0 | J39: 0 | K39: 0
A40: Removed less frequently than once a week | C40: ='SA9'!E101 -> 0 | D40: ='SA9'!F101 -> 0 | E40: ='SA9'!G101 -> 0 | F40: ='SA9'!H101 -> 0 | G40: ='SA9'!I101 -> 0 | H40: ='SA9'!J101 -> 0 | I40: ='SA9'!K101 -> 0 | J40: ='SA9'!L101 -> 0 | K40: ='SA9'!M101 -> 0
A41: Using communal refuse dump | C41: ='SA9'!E102 -> 0 | D41: ='SA9'!F102 -> 0 | E41: ='SA9'!G102 -> 0 | F41: ='SA9'!H102 -> 0 | G41: ='SA9'!I102 -> 0 | H41: ='SA9'!J102 -> 0 | I41: ='SA9'!K102 -> 0 | J41: ='SA9'!L102 -> 0 | K41: ='SA9'!M102 -> 0
A42: Using own refuse dump | C42: ='SA9'!E103 -> 0 | D42: ='SA9'!F103 -> 0 | E42: ='SA9'!G103 -> 0 | F42: ='SA9'!H103 -> 0 | G42: ='SA9'!I103 -> 0 | H42: ='SA9'!J103 -> 0 | I42: ='SA9'!K103 -> 0 | J42: ='SA9'!L103 -> 0 | K42: ='SA9'!M103 -> 0
A43: Other rubbish disposal | C43: ='SA9'!E104 -> 0 | D43: ='SA9'!F104 -> 0 | E43: ='SA9'!G104 -> 0 | F43: ='SA9'!H104 -> 0 | G43: ='SA9'!I104 -> 0 | H43: ='SA9'!J104 -> 0 | I43: ='SA9'!K104 -> 0 | J43: ='SA9'!L104 -> 0 | K43: ='SA9'!M104 -> 0
A44: No rubbish disposal | C44: ='SA9'!E105 -> 0 | D44: ='SA9'!F105 -> 0 | E44: ='SA9'!G105 -> 0 | F44: ='SA9'!H105 -> 0 | G44: ='SA9'!I105 -> 0 | H44: ='SA9'!J105 -> 0 | I44: ='SA9'!K105 -> 0 | J44: ='SA9'!L105 -> 0 | K44: ='SA9'!M105 -> 0
A45: =$A$14 -> Below Minimum Service Level sub-total | C45: =SUM(C40:C44) -> 0 | D45: 0 | E45: 0 | F45: 0 | G45: 0 | H45: 0 | I45: 0 | J45: 0 | K45: 0
A46: =$A$15 -> Total number of households | B46: =$B$15 -> 5 | C46: =C39+C45 -> 0 | D46: =D39+D45 -> 0 | E46: 0 | F46: 0 | G46: 0 | H46: 0 | I46: 0 | J46: 0 | K46: 0
A48: Households receiving Free Basic Service | B48: 7
A49: Water (6 kilolitres per household per month) | C49: ='SA9'!E263 -> 0 | D49: ='SA9'!F263 -> 0 | E49: ='SA9'!G263 -> 0 | F49: ='SA9'!H263 -> 0 | G49: ='SA9'!I263 -> 0 | H49: ='SA9'!J263 -> 0 | I49: ='SA9'!K263 -> 0 | J49: ='SA9'!L263 -> 0 | K49: ='SA9'!M263 -> 0
A50: Sanitation (free minimum level service) | C50: ='SA9'!E275 -> 0 | D50: ='SA9'!F275 -> 0 | E50: ='SA9'!G275 -> 0 | F50: ='SA9'!H275 -> 0 | G50: ='SA9'!I275 -> 0 | H50: ='SA9'!J275 -> 0 | I50: ='SA9'!K275 -> 0 | J50: ='SA9'!L275 -> 0 | K50: ='SA9'!M275 -> 0
A51: Electricity/other energy (50kwh per household per month) | C51: ='SA9'!E251 -> 0 | D51: ='SA9'!F251 -> 0 | E51: ='SA9'!G251 -> 0 | F51: ='SA9'!H251 -> 0 | G51: ='SA9'!I251 -> 0 | H51: ='SA9'!J251 -> 0 | I51: ='SA9'!K251 -> 0 | J51: ='SA9'!L251 -> 0 | K51: ='SA9'!M251 -> 0
A52: Refuse (removed at least once a week) | C52: ='SA9'!E287 -> 0 | D52: ='SA9'!F287 -> 0 | E52: ='SA9'!G287 -> 0 | F52: ='SA9'!H287 -> 0 | G52: ='SA9'!I287 -> 0 | H52: ='SA9'!J287 -> 0 | I52: ='SA9'!K287 -> 0 | J52: ='SA9'!L287 -> 0 | K52: ='SA9'!M287 -> 0
A54: Cost of Free Basic Services provided - Formal Settlements (R'000) | B54: 8
A55: Water (6 kilolitres per indigent household per month) | C55: ='SA1'!C20 -> 0 | D55: ='SA1'!D20 -> 0 | E55: ='SA1'!E20 -> 0 | F55: ='SA1'!F20 -> 0 | G55: ='SA1'!G20 -> 0 | H55: ='SA1'!H20 -> 0 | I55: ='SA1'!J20 -> 0 | J55: ='SA1'!K20 -> 0 | K55: ='SA1'!L20 -> 0
A56: Sanitation (free sanitation service to indigent households) | C56: ='SA1'!C26 -> 0 | D56: ='SA1'!D26 -> 0 | E56: ='SA1'!E26 -> 0 | F56: ='SA1'!F26 -> 0 | G56: ='SA1'!G26 -> 0 | H56: ='SA1'!H26 -> 0 | I56: ='SA1'!J26 -> 0 | J56: ='SA1'!K26 -> 0 | K56: ='SA1'!L26 -> 0
A57: Electricity/other energy (50kwh per indigent household per month) | C57: ='SA1'!C14 -> 0 | D57: ='SA1'!D14 -> 0 | E57: ='SA1'!E14 -> 0 | F57: ='SA1'!F14 -> 0 | G57: ='SA1'!G14 -> 0 | H57: ='SA1'!H14 -> 0 | I57: ='SA1'!J14 -> 0 | J57: ='SA1'!K14 -> 0 | K57: ='SA1'!L14 -> 0
A58: Refuse (removed once a week for indigent households) | C58: ='SA1'!C33 -> 0 | D58: ='SA1'!D33 -> 0 | E58: ='SA1'!E33 -> 0 | F58: ='SA1'!F33 -> 0 | G58: ='SA1'!G33 -> 0 | H58: ='SA1'!H33 -> 0 | I58: ='SA1'!J33 -> 0 | J58: ='SA1'!K33 -> 0 | K58: ='SA1'!L33 -> 0
A59: Cost of Free Basic Services provided - Informal Formal Settlements (R'000) | C59: ='SA9'!E260+'SA9'!E272+'SA9'!E284+'SA9'!E296 -> 0 | D59: ='SA9'!F260+'SA9'!F272+'SA9'!F284+'SA9'!F296 -> 0 | E59: ='SA9'!G260+'SA9'!G272+'SA9'!G284+'SA9'!G296 -> 0 | F59: ='SA9'!H260+'SA9'!H272+'SA9'!H284+'SA9'!H296 -> 0 | G59: ='SA9'!I260+'SA9'!I272+'SA9'!I284+'SA9'!I296 -> 0 | H59: ='SA9'!J260+'SA9'!J272+'SA9'!J284+'SA9'!J296 -> 0 | I59: ='SA9'!K260+'SA9'!K272+'SA9'!K284+'SA9'!K296 -> 0 | J59: ='SA9'!L260+'SA9'!L272+'SA9'!L284+'SA9'!L296 -> 0 | K59: ='SA9'!M260+'SA9'!M272+'SA9'!M284+'SA9'!M296 -> 0
A60: Total cost of FBS provided | C60: =SUM(C55:C59) -> 0 | D60: 0 | E60: 0 | F60: 0 | G60: 0 | H60: 0 | I60: 0 | J60: 0 | K60: 0
A62: Highest level of free service provided per household
A63: Property rates (R value threshold)
A64: Water (kilolitres per household per month)
A65: Sanitation (kilolitres per household per month)
A66: Sanitation (Rand per household per month)
A67: Electricity (kwh per household per month)
A68: Refuse (average litres per week)
A69: Revenue cost of subsidised services provided (R'000) | B69: 9
A70: Property rates (tariff adjustment) ( impermissable values per section 17 of MPRA)
A71: Property rates exemptions, reductions and rebates and impermissable values in excess of section 17 of MPRA) | C71: ='SA1'!C8 -> 0 | D71: ='SA1'!D8 -> 0 | E71: ='SA1'!E8 -> 0 | F71: ='SA1'!F8 -> 0 | G71: ='SA1'!G8 -> 0 | H71: ='SA1'!H8 -> 0 | I71: ='SA1'!J8 -> 0 | J71: ='SA1'!K8 -> 0 | K71: ='SA1'!L8 -> 0
A72: Water (in excess of 6 kilolitres per indigent household per month) | C72: ='SA1'!C19 -> 0 | D72: ='SA1'!D19 -> 0 | E72: ='SA1'!E19 -> 0 | F72: ='SA1'!F19 -> 0 | G72: ='SA1'!G19 -> 0 | H72: ='SA1'!H19 -> 0 | I72: ='SA1'!J19 -> 0 | J72: ='SA1'!K19 -> 0 | K72: ='SA1'!L19 -> 0
A73: Sanitation (in excess of free sanitation service to indigent households) | C73: ='SA1'!C25 -> 0 | D73: ='SA1'!D25 -> 0 | E73: ='SA1'!E25 -> 0 | F73: ='SA1'!F25 -> 0 | G73: ='SA1'!G25 -> 0 | H73: ='SA1'!H25 -> 0 | I73: ='SA1'!J25 -> 0 | J73: ='SA1'!K25 -> 0 | K73: ='SA1'!L25 -> 0
